Workbook

Sheet 机构
A1: Id | B1: TqesId | C1: Pid | D1: Pids | E1: OrgType | F1: Code | G1: UserPrefix | H1: FullName | I1: Name | J1: ShortName | K1: ShortName2 | L1: SchoolType | M1: TownCountryType | N1: SchoolProperty | O1: Sort | P1: Address | Q1: Remark | R1: Status | S1: TqesCode
A2: 1 | B2: 0 | C2: 0 | D2: [0], | E2: OrgType.CENTER | F2: ALL | H2: 渝北区教育委员会 | I2: 区教委 | J2: 区教委 | K2: 区教委 | L2: EducationStage.NONE | M2: UrbanRuralType.URBAN | N2: OrgFundSource.PUBLIC | O2: =A2*10 -> 10 | R2: CommonStatus.ENABLE | T2: ="new SysOrg { Id = "&A2&", Pid = "&C2&", Pids = """&D2&""", OrgType = "&E2&", OrgFundSource = "&N2&", EducationStage = "&L2&", UrbanRuralType = "&M2&", Code = """&F2&""", Name = """&I2&""", FullName = """&H2&""", ShortName = """&J2&""", ShortName2 = """&K2&""", TqesId = "&B2&", TqesCode = """&S2&""", Sort = "&O2&", Status = "&R2&", CreateSysUserId = 1, CreateTime = DateTime.Now }," -> new SysOrg { Id = 1, Pid = 0, Pids = "[0],", OrgType = OrgType.CENTER, OrgFundSource = OrgFundSource.PUBLIC, EducationStage = EducationStage.NONE, UrbanRuralType = UrbanRuralType.URBAN, Code = "ALL", Name = "区教委", FullName = "渝北区教育委员会", ShortName = "区教委", ShortName2 = "区教委", TqesId = 0, TqesCode = "", Sort = 10, Status = CommonStatus.ENABLE, CreateSysUserId = 1, CreateTime = DateTime.Now },
A3: 2 | B3: 0 | C3: =A$2 -> 1 | D3: =D$2&"["&C3&"]," -> [0],[1], | E3: OrgType.CENTER | F3: C01 | G3: A | H3: 管理机构 | I3: 管理机构 | J3: 管理机构 | K3: 管理机构 | L3: EducationStage.NONE | M3: UrbanRuralType.NONE | N3: OrgFundSource.PUBLIC | O3: 20 | R3: CommonStatus.ENABLE | T3: new SysOrg { Id = 2, Pid = 1, Pids = "[0],[1],", OrgType = OrgType.CENTER, OrgFundSource = OrgFundSource.PUBLIC, EducationStage = EducationStage.NONE, UrbanRuralType = UrbanRuralType.NONE, Code = "C01", Name = "管理机构", FullName = "管理机构", ShortName = "管理机构", ShortName2 = "管理机构", TqesId = 0, TqesCode = "", Sort = 20, Status = CommonStatus.ENABLE, CreateSysUserId = 1, CreateTime = DateTime.Now },
A4: 3 | B4: 0 | C4: =A$3 -> 2 | D4: =D$3&"["&C4&"]," -> [0],[1],[2], | E4: OrgType.CENTER | F4: C02 | G4: A | H4: 重庆市渝北区教育评估与质量监测中心 | I4: 区教育评估监测中心 | J4: 评估监测中心 | K4: 监测中心 | L4: EducationStage.NONE | M4: UrbanRuralType.URBAN | N4: OrgFundSource.PUBLIC | O4: 30 | R4: CommonStatus.ENABLE | T4: new SysOrg { Id = 3, Pid = 2, Pids = "[0],[1],[2],", OrgType = OrgType.CENTER, OrgFundSource = OrgFundSource.PUBLIC, EducationStage = EducationStage.NONE, UrbanRuralType = UrbanRuralType.URBAN, Code = "C02", Name = "区教育评估监测中心", FullName = "重庆市渝北区教育评估与质量监测中心", ShortName = "评估监测中心", ShortName2 = "监测中心", TqesId = 0, TqesCode = "", Sort = 30, Status = CommonStatus.ENABLE, CreateSysUserId = 1, CreateTime = DateTime.Now },
A5: 4 | B5: 0 | C5: =A$3 -> 2 | D5: =D$3&"["&C5&"]," -> [0],[1],[2], | E5: OrgType.CENTER | F5: C03 | G5: A | H5: 重庆市渝北区教师进修学院 | I5: 教师进修学院 | J5: 进修学院 | K5: 进修学院 | L5: EducationStage.NONE | M5: UrbanRuralType.URBAN | N5: OrgFundSource.PUBLIC | O5: 40 | R5: CommonStatus.ENABLE | T5: new SysOrg { Id = 4, Pid = 2, Pids = "[0],[1],[2],", OrgType = OrgType.CENTER, OrgFundSource = OrgFundSource.PUBLIC, EducationStage = EducationStage.NONE, UrbanRuralType = UrbanRuralType.URBAN, Code = "C03", Name = "教师进修学院", FullName = "重庆市渝北区教师进修学院", ShortName = "进修学院", ShortName2 = "进修学院", TqesId = 0, TqesCode = "", Sort = 40, Status = CommonStatus.ENABLE, CreateSysUserId = 1, CreateTime = DateTime.Now },
A6: 5 | B6: 0 | C6: =A$3 -> 2 | D6: =D$3&"["&C6&"]," -> [0],[1],[2], | E6: OrgType.CENTER | F6: C04 | G6: A | H6: 基础教育科 | I6: 基教科 | J6: 基教科 | K6: 基教科 | L6: EducationStage.NONE | M6: UrbanRuralType.URBAN | N6: OrgFundSource.PUBLIC | O6: 50 | R6: CommonStatus.ENABLE | T6: new SysOrg { Id = 5, Pid = 2, Pids = "[0],[1],[2],", OrgType = OrgType.CENTER, OrgFundSource = OrgFundSource.PUBLIC, EducationStage = EducationStage.NONE, UrbanRuralType = UrbanRuralType.URBAN, Code = "C04", Name = "基教科", FullName = "基础教育科", ShortName = "基教科", ShortName2 = "基教科", TqesId = 0, TqesCode = "", Sort = 50, Status = CommonStatus.ENABLE, CreateSysUserId = 1, CreateTime = DateTime.Now },
A7: 6 | B7: 0 | C7: =A$3 -> 2 | D7: =D$3&"["&C7&"]," -> [0],[1],[2], | E7: OrgType.CENTER | F7: C05 | G7: A | H7: 督导室 | I7: 督导室 | J7: 督导室 | K7: 督导室 | L7: EducationStage.NONE | M7: UrbanRuralType.URBAN | N7: OrgFundSource.PUBLIC | O7: 60 | R7: CommonStatus.ENABLE | T7: new SysOrg { Id = 6, Pid = 2, Pids = "[0],[1],[2],", OrgType = OrgType.CENTER, OrgFundSource = OrgFundSource.PUBLIC, EducationStage = EducationStage.NONE, UrbanRuralType = UrbanRuralType.URBAN, Code = "C05", Name = "督导室", FullName = "督导室", ShortName = "督导室", ShortName2 = "督导室", TqesId = 0, TqesCode = "", Sort = 60, Status = CommonStatus.ENABLE, CreateSysUserId = 1, CreateTime = DateTime.Now },
A8: 7 | B8: 0 | C8: =A$2 -> 1 | D8: =D$2&"["&C8&"]," -> [0],[1], | E8: OrgType.DISTRICT | F8: D00 | H8: 学区 | I8: 学区 | J8: 学区 | K8: 学区 | L8: EducationStage.NONE | M8: UrbanRuralType.NONE | N8: OrgFundSource.PUBLIC | O8: =A8*10 -> 70 | R8: CommonStatus.ENABLE | T8: ="new SysOrg { Id = "&A8&", Pid = "&C8&", Pids = """&D8&""", OrgType = "&E8&", OrgFundSource = "&N8&", EducationStage = "&L8&", UrbanRuralType = "&M8&", Code = """&F8&""", Name = """&I8&""", FullName = """&H8&""", ShortName = """&J8&""", ShortName2 = """&K8&""", TqesId = "&B8&", TqesCode = """&S8&""", Sort = "&O8&", Status = "&R8&", CreateSysUserId = 1, CreateTime = DateTime.Now }," -> new SysOrg { Id = 7, Pid = 1, Pids = "[0],[1],", OrgType = OrgType.DISTRICT, OrgFundSource = OrgFundSource.PUBLIC, EducationStage = EducationStage.NONE, UrbanRuralType = UrbanRuralType.NONE, Code = "D00", Name = "学区", FullName = "学区", ShortName = "学区", ShortName2 = "学区", TqesId = 0, TqesCode = "", Sort = 70, Status = CommonStatus.ENABLE, CreateSysUserId = 1, CreateTime = DateTime.Now },
A9: 8 | B9: 0 | C9: =A$8 -> 7 | D9: =D$8&"["&C9&"]," -> [0],[1],[7], | E9: OrgType.DISTRICT | F9: D01 | G9: D | H9: 龙溪学区 | I9: 龙溪学区 | J9: 龙溪学区 | K9: 龙溪学区 | L9: EducationStage.NONE | M9: UrbanRuralType.URBAN | N9: OrgFundSource.PUBLIC | O9: 80 | R9: CommonStatus.ENABLE | T9: new SysOrg { Id = 8, Pid = 7, Pids = "[0],[1],[7],", OrgType = OrgType.DISTRICT, OrgFundSource = OrgFundSource.PUBLIC, EducationStage = EducationStage.NONE, UrbanRuralType = UrbanRuralType.URBAN, Code = "D01", Name = "龙溪学区", FullName = "龙溪学区", ShortName = "龙溪学区", ShortName2 = "龙溪学区", TqesId = 0, TqesCode = "", Sort = 80, Status = CommonStatus.ENABLE, CreateSysUserId = 1, CreateTime = DateTime.Now },
A10: 9 | B10: 0 | C10: =A$8 -> 7 | D10: =D$8&"["&C10&"]," -> [0],[1],[7], | E10: OrgType.DISTRICT | F10: D02 | G10: D | H10: 两路学区 | I10: 两路学区 | J10: 两路学区 | K10: 两路学区 | L10: EducationStage.NONE | M10: UrbanRuralType.URBAN | N10: OrgFundSource.PUBLIC | O10: 90 | R10: CommonStatus.ENABLE | T10: new SysOrg { Id = 9, Pid = 7, Pids = "[0],[1],[7],", OrgType = OrgType.DISTRICT, OrgFundSource = OrgFundSource.PUBLIC, EducationStage = EducationStage.NONE, UrbanRuralType = UrbanRuralType.URBAN, Code = "D02", Name = "两路学区", FullName = "两路学区", ShortName = "两路学区", ShortName2 = "两路学区", TqesId = 0, TqesCode = "", Sort = 90, Status = CommonStatus.ENABLE, CreateSysUserId = 1, CreateTime = DateTime.Now },
A11: 10 | B11: 0 | C11: =A$8 -> 7 | D11: =D$8&"["&C11&"]," -> [0],[1],[7], | E11: OrgType.DISTRICT | F11: D03 | G11: D | H11: 回兴学区 | I11: 回兴学区 | J11: 回兴学区 | K11: 回兴学区 | L11: EducationStage.NONE | M11: UrbanRuralType.URBAN | N11: OrgFundSource.PUBLIC | O11: 100 | R11: CommonStatus.ENABLE | T11: new SysOrg { Id = 10, Pid = 7, Pids = "[0],[1],[7],", OrgType = OrgType.DISTRICT, OrgFundSource = OrgFundSource.PUBLIC, EducationStage = EducationStage.NONE, UrbanRuralType = UrbanRuralType.URBAN, Code = "D03", Name = "回兴学区", FullName = "回兴学区", ShortName = "回兴学区", ShortName2 = "回兴学区", TqesId = 0, TqesCode = "", Sort = 100, Status = CommonStatus.ENABLE, CreateSysUserId = 1, CreateTime = DateTime.Now },
A12: 11 | B12: 0 | C12: 7 | D12: [0],[1],[7], | E12: OrgType.DISTRICT | F12: D04 | G12: D | H12: 兴隆学区 | I12: 兴隆学区 | J12: 兴隆学区 | K12: 兴隆学区 | L12: EducationStage.NONE | M12: UrbanRuralType.URBAN | N12: OrgFundSource.PUBLIC | O12: 110 | R12: CommonStatus.ENABLE | T12: new SysOrg { Id = 11, Pid = 7, Pids = "[0],[1],[7],", OrgType = OrgType.DISTRICT, OrgFundSource = OrgFundSource.PUBLIC, EducationStage = EducationStage.NONE, UrbanRuralType = UrbanRuralType.URBAN, Code = "D04", Name = "兴隆学区", FullName = "兴隆学区", ShortName = "兴隆学区", ShortName2 = "兴隆学区", TqesId = 0, TqesCode = "", Sort = 110, Status = CommonStatus.ENABLE, CreateSysUserId = 1, CreateTime = DateTime.Now },
A13: 12 | B13: 0 | C13: 7 | D13: [0],[1],[7], | E13: OrgType.DISTRICT | F13: D05 | G13: D | H13: 石船学区 | I13: 石船学区 | J13: 石船学区 | K13: 石船学区 | L13: EducationStage.NONE | M13: UrbanRuralType.URBAN | N13: OrgFundSource.PUBLIC | O13: 120 | R13: CommonStatus.ENABLE | T13: new SysOrg { Id = 12, Pid = 7, Pids = "[0],[1],[7],", OrgType = OrgType.DISTRICT, OrgFundSource = OrgFundSource.PUBLIC, EducationStage = EducationStage.NONE, UrbanRuralType = UrbanRuralType.URBAN, Code = "D05", Name = "石船学区", FullName = "石船学区", ShortName = "石船学区", ShortName2 = "石船学区", TqesId = 0, TqesCode = "", Sort = 120, Status = CommonStatus.ENABLE, CreateSysUserId = 1, CreateTime = DateTime.Now },
A14: 13 | B14: 0 | C14: 7 | D14: [0],[1],[7], | E14: OrgType.DISTRICT | F14: D06 | G14: D | H14: 高完中学区 | I14: 高完中学区 | J14: 高完中学区 | K14: 高完中学区 | L14: EducationStage.NONE | M14: UrbanRuralType.URBAN | N14: OrgFundSource.PUBLIC | O14: 130 | R14: CommonStatus.ENABLE | T14: new SysOrg { Id = 13, Pid = 7, Pids = "[0],[1],[7],", OrgType = OrgType.DISTRICT, OrgFundSource = OrgFundSource.PUBLIC, EducationStage = EducationStage.NONE, UrbanRuralType = UrbanRuralType.URBAN, Code = "D06", Name = "高完中学区", FullName = "高完中学区", ShortName = "高完中学区", ShortName2 = "高完中学区", TqesId = 0, TqesCode = "", Sort = 130, Status = CommonStatus.ENABLE, CreateSysUserId = 1, CreateTime = DateTime.Now },
A15: 14 | B15: 0 | C15: =A$2 -> 1 | D15: =D$2&"["&C15&"]," -> [0],[1], | E15: OrgType.SCHOOL | F15: ES1 | H15: 学前 | I15: 学前 | J15: 学前 | K15: 学前 | L15: EducationStage.PRESCHOOL_STAGE | M15: UrbanRuralType.NONE | N15: OrgFundSource.PUBLIC | O15: =A15*10 -> 140 | R15: CommonStatus.ENABLE | T15: new SysOrg { Id = 14, Pid = 1, Pids = "[0],[1],", OrgType = OrgType.SCHOOL, OrgFundSource = OrgFundSource.PUBLIC, EducationStage = EducationStage.PRESCHOOL_STAGE, UrbanRuralType = UrbanRuralType.NONE, Code = "ES1", Name = "学前", FullName = "学前", ShortName = "学前", ShortName2 = "学前", TqesId = 0, TqesCode = "", Sort = 140, Status = CommonStatus.ENABLE, CreateSysUserId = 1, CreateTime = DateTime.Now },
A16: 15 | B16: 0 | C16: =A$15 -> 14 | D16: =D$15&"["&C16&"]," -> [0],[1],[14], | E16: OrgType.SCHOOL | F16: 0001 | G16: Y | H16: 重庆市渝北区城南幼儿园 | I16: 城南幼儿园 | J16: 城南 | K16: 城南 | L16: EducationStage.PRESCHOOL_STAGE | M16: UrbanRuralType.URBAN | N16: OrgFundSource.PUBLIC | O16: 150 | P16: 渝北区北湖路140号 | Q16: 等级二级，是否普惠园：是 | R16: CommonStatus.DISABLE | T16: new SysOrg { Id = 15, Pid = 14, Pids = "[0],[1],[14],", OrgType = OrgType.SCHOOL, OrgFundSource = OrgFundSource.PUBLIC, EducationStage = EducationStage.PRESCHOOL_STAGE, UrbanRuralType = UrbanRuralType.URBAN, Code = "0001", Name = "城南幼儿园", FullName = "重庆市渝北区城南幼儿园", ShortName = "城南", ShortName2 = "城南", TqesId = 0, TqesCode = "", Sort = 150, Status = CommonStatus.DISABLE, CreateSysUserId = 1, CreateTime = DateTime.Now },
A17: 16 | B17: 0 | C17: =A$15 -> 14 | D17: =D$15&"["&C17&"]," -> [0],[1],[14], | E17: OrgType.SCHOOL | F17: 0002 | G17: Y | H17: 重庆市渝北区城南幼儿园飞湖园 | I17: 城南幼儿园飞湖园 | J17: 城南飞湖园 | K17: 城南飞湖园 | L17: EducationStage.PRESCHOOL_STAGE | M17: UrbanRuralType.URBAN | N17: OrgFundSource.PUBLIC | O17: 160 | P17: 渝北区龙永街28号 | Q17: 等级一级，是否普惠园：是 | R17: CommonStatus.DISABLE | T17: new SysOrg { Id = 16, Pid = 14, Pids = "[0],[1],[14],", OrgType = OrgType.SCHOOL, OrgFundSource = OrgFundSource.PUBLIC, EducationStage = EducationStage.PRESCHOOL_STAGE, UrbanRuralType = UrbanRuralType.URBAN, Code = "0002", Name = "城南幼儿园飞湖园", FullName = "重庆市渝北区城南幼儿园飞湖园", ShortName = "城南飞湖园", ShortName2 = "城南飞湖园", TqesId = 0, TqesCode = "", Sort = 160, Status = CommonStatus.DISABLE, CreateSysUserId = 1, CreateTime = DateTime.Now },
A18: 17 | B18: 0 | C18: 14 | D18: [0],[1],[14], | E18: OrgType.SCHOOL | F18: 0003 | G18: Y | H18: 重庆市渝北区城南幼儿园翠湖园 | I18: 城南幼儿园翠湖园 | J18: 城南翠湖园 | K18: 城南翠湖园 | L18: EducationStage.PRESCHOOL_STAGE | M18: UrbanRuralType.URBAN | N18: OrgFundSource.PUBLIC | O18: 170 | P18: 渝北区翠湖路一巷 | Q18: 等级二级，是否普惠园：是 | R18: CommonStatus.DISABLE | T18: new SysOrg { Id = 17, Pid = 14, Pids = "[0],[1],[14],", OrgType = OrgType.SCHOOL, OrgFundSource = OrgFundSource.PUBLIC, EducationStage = EducationStage.PRESCHOOL_STAGE, UrbanRuralType = UrbanRuralType.URBAN, Code = "0003", Name = "城南幼儿园翠湖园", FullName = "重庆市渝北区城南幼儿园翠湖园", ShortName = "城南翠湖园", ShortName2 = "城南翠湖园", TqesId = 0, TqesCode = "", Sort = 170, Status = CommonStatus.DISABLE, CreateSysUserId = 1, CreateTime = DateTime.Now },
A19: 18 | B19: 0 | C19: 14 | D19: [0],[1],[14], | E19: OrgType.SCHOOL | F19: 0004 | G19: Y | H19: 重庆市渝北区城南幼儿园锦湖园 | I19: 城南幼儿园锦湖园 | J19: 城南锦湖园 | K19: 城南锦湖园 | L19: EducationStage.PRESCHOOL_STAGE | M19: UrbanRuralType.URBAN | N19: OrgFundSource.PUBLIC | O19: 180 | P19: 渝北区双龙湖街道翠湖路146号 | Q19: 等级预一级，是否普惠园：是 | R19: CommonStatus.DISABLE | T19: new SysOrg { Id = 18, Pid = 14, Pids = "[0],[1],[14],", OrgType = OrgType.SCHOOL, OrgFundSource = OrgFundSource.PUBLIC, EducationStage = EducationStage.PRESCHOOL_STAGE, UrbanRuralType = UrbanRuralType.URBAN, Code = "0004", Name = "城南幼儿园锦湖园", FullName = "重庆市渝北区城南幼儿园锦湖园", ShortName = "城南锦湖园", ShortName2 = "城南锦湖园", TqesId = 0, TqesCode = "", Sort = 180, Status = CommonStatus.DISABLE, CreateSysUserId = 1, CreateTime = DateTime.Now },
A20: 19 | B20: 0 | C20: 14 | D20: [0],[1],[14], | E20: OrgType.SCHOOL | F20: 0005 | G20: Y | H20: 重庆市渝北区同茂小学校附属幼儿园 | I20: 同茂小学校附属幼儿园 | J20: 同茂小学校附属 | K20: 同茂小学校附属 | L20: EducationStage.PRESCHOOL_STAGE | M20: UrbanRuralType.URBAN | N20: OrgFundSource.PUBLIC | O20: 190 | P20: 渝北区双龙湖街道同茂小学内 | Q20: 等级预一级，是否普惠园：是 | R20: CommonStatus.DISABLE | T20: new SysOrg { Id = 19, Pid = 14, Pids = "[0],[1],[14],", OrgType = OrgType.SCHOOL, OrgFundSource = OrgFundSource.PUBLIC, EducationStage = EducationStage.PRESCHOOL_STAGE, UrbanRuralType = UrbanRuralType.URBAN, Code = "0005", Name = "同茂小学校附属幼儿园", FullName = "重庆市渝北区同茂小学校附属幼儿园", ShortName = "同茂小学校附属", ShortName2 = "同茂小学校附属", TqesId = 0, TqesCode = "", Sort = 190, Status = CommonStatus.DISABLE, CreateSysUserId = 1, CreateTime = DateTime.Now },
A21: 20 | B21: 0 | C21: 14 | D21: [0],[1],[14], | E21: OrgType.SCHOOL | F21: 0006 | G21: Y | H21: 重庆市渝北区港城幼儿园 | I21: 港城幼儿园 | J21: 港城 | K21: 港城 | L21: EducationStage.PRESCHOOL_STAGE | M21: UrbanRuralType.URBAN | N21: OrgFundSource.PRIVATE | O21: 200 | P21: 渝北区仙桃街道兰馨大道18号 | Q21: 等级一级，是否普惠园：是 | R21: CommonStatus.DISABLE | T21: new SysOrg { Id = 20, Pid = 14, Pids = "[0],[1],[14],", OrgType = OrgType.SCHOOL, OrgFundSource = OrgFundSource.PRIVATE, EducationStage = EducationStage.PRESCHOOL_STAGE, UrbanRuralType = UrbanRuralType.URBAN, Code = "0006", Name = "港城幼儿园", FullName = "重庆市渝北区港城幼儿园", ShortName = "港城", ShortName2 = "港城", TqesId = 0, TqesCode = "", Sort = 200, Status = CommonStatus.DISABLE, CreateSysUserId = 1, CreateTime = DateTime.Now },
A22: 21 | B22: 0 | C22: 14 | D22: [0],[1],[14], | E22: OrgType.SCHOOL | F22: 0007 | G22: Y | H22: 重庆市渝北区双龙湖思艺幼儿园 | I22: 双龙湖思艺幼儿园 | J22: 双龙湖思艺 | K22: 双龙湖思艺 | L22: EducationStage.PRESCHOOL_STAGE | M22: UrbanRuralType.URBAN | N22: OrgFundSource.PRIVATE | O22: 210 | P22: 渝北区翠湖路三巷250号 | Q22: 等级二级，是否普惠园：是 | R22: CommonStatus.DISABLE | T22: new SysOrg { Id = 21, Pid = 14, Pids = "[0],[1],[14],", OrgType = OrgType.SCHOOL, OrgFundSource = OrgFundSource.PRIVATE, EducationStage = EducationStage.PRESCHOOL_STAGE, UrbanRuralType = UrbanRuralType.URBAN, Code = "0007", Name = "双龙湖思艺幼儿园", FullName = "重庆市渝北区双龙湖思艺幼儿园", ShortName = "双龙湖思艺", ShortName2 = "双龙湖思艺", TqesId = 0, TqesCode = "", Sort = 210, Status = CommonStatus.DISABLE, CreateSysUserId = 1, CreateTime = DateTime.Now },
A23: 22 | B23: 0 | C23: 14 | D23: [0],[1],[14], | E23: OrgType.SCHOOL | F23: 0008 | G23: Y | H23: 重庆市渝北区双龙湖佳家幼儿园 | I23: 双龙湖佳家幼儿园 | J23: 双龙湖佳家 | K23: 双龙湖佳家 | L23: EducationStage.PRESCHOOL_STAGE | M23: UrbanRuralType.URBAN | N23: OrgFundSource.PRIVATE | O23: 220 | P23: 渝北区双龙湖凯歌路后街4号 | Q23: 等级二级，是否普惠园：是 | R23: CommonStatus.DISABLE | T23: new SysOrg { Id = 22, Pid = 14, Pids = "[0],[1],[14],", OrgType = OrgType.SCHOOL, OrgFundSource = OrgFundSource.PRIVATE, EducationStage = EducationStage.PRESCHOOL_STAGE, UrbanRuralType = UrbanRuralType.URBAN, Code = "0008", Name = "双龙湖佳家幼儿园", FullName = "重庆市渝北区双龙湖佳家幼儿园", ShortName = "双龙湖佳家", ShortName2 = "双龙湖佳家", TqesId = 0, TqesCode = "", Sort = 220, Status = CommonStatus.DISABLE, CreateSysUserId = 1, CreateTime = DateTime.Now },
A24: 23 | B24: 0 | C24: 14 | D24: [0],[1],[14], | E24: OrgType.SCHOOL | F24: 0009 | G24: Y | H24: 重庆市渝北区双龙湖园丁村幼儿园 | I24: 双龙湖园丁村幼儿园 | J24: 双龙湖园丁村 | K24: 双龙湖园丁村 | L24: EducationStage.PRESCHOOL_STAGE | M24: UrbanRuralType.URBAN | N24: OrgFundSource.PRIVATE | O24: 230 | P24: 渝北区龙平街5号1幢单元1-1-3 | Q24: 等级二级，是否普惠园：是 | R24: CommonStatus.DISABLE | T24: new SysOrg { Id = 23, Pid = 14, Pids = "[0],[1],[14],", OrgType = OrgType.SCHOOL, OrgFundSource = OrgFundSource.PRIVATE, EducationStage = EducationStage.PRESCHOOL_STAGE, UrbanRuralType = UrbanRuralType.URBAN, Code = "0009", Name = "双龙湖园丁村幼儿园", FullName = "重庆市渝北区双龙湖园丁村幼儿园", ShortName = "双龙湖园丁村", ShortName2 = "双龙湖园丁村", TqesId = 0, TqesCode = "", Sort = 230, Status = CommonStatus.DISABLE, CreateSysUserId = 1, CreateTime = DateTime.Now },
A25: 24 | B25: 0 | C25: 14 | D25: [0],[1],[14], | E25: OrgType.SCHOOL | F25: 0010 | G25: Y | H25: 重庆市渝北区双龙湖华都湖滨幼儿园 | I25: 双龙湖华都湖滨幼儿园 | J25: 双龙湖华都湖滨 | K25: 双龙湖华都湖滨 | L25: EducationStage.PRESCHOOL_STAGE | M25: UrbanRuralType.URBAN | N25: OrgFundSource.PRIVATE | O25: 240 | P25: 渝北区双龙大道绣湖路21号 | Q25: 等级二级，是否普惠园：是 | R25: CommonStatus.DISABLE | T25: new SysOrg { Id = 24, Pid = 14, Pids = "[0],[1],[14],", OrgType = OrgType.SCHOOL, OrgFundSource = OrgFundSource.PRIVATE, EducationStage = EducationStage.PRESCHOOL_STAGE, UrbanRuralType = UrbanRuralType.URBAN, Code = "0010", Name = "双龙湖华都湖滨幼儿园", FullName = "重庆市渝北区双龙湖华都湖滨幼儿园", ShortName = "双龙湖华都湖滨", ShortName2 = "双龙湖华都湖滨", TqesId = 0, TqesCode = "", Sort = 240, Status = CommonStatus.DISABLE, CreateSysUserId = 1, CreateTime = DateTime.Now },
A26: 25 | B26: 0 | C26: 14 | D26: [0],[1],[14], | E26: OrgType.SCHOOL | F26: 0011 | G26: Y | H26: 重庆市渝北区双龙湖艺苗幼儿园 | I26: 双龙湖艺苗幼儿园 | J26: 双龙湖艺苗 | K26: 双龙湖艺苗 | L26: EducationStage.PRESCHOOL_STAGE | M26: UrbanRuralType.URBAN | N26: OrgFundSource.PRIVATE | O26: 250 | P26: 渝北区双龙湖街道龙兴街85号 | Q26: 等级二级，是否普惠园：是 | R26: CommonStatus.DISABLE | T26: new SysOrg { Id = 25, Pid = 14, Pids = "[0],[1],[14],", OrgType = OrgType.SCHOOL, OrgFundSource = OrgFundSource.PRIVATE, EducationStage = EducationStage.PRESCHOOL_STAGE, UrbanRuralType = UrbanRuralType.URBAN, Code = "0011", Name = "双龙湖艺苗幼儿园", FullName = "重庆市渝北区双龙湖艺苗幼儿园", ShortName = "双龙湖艺苗", ShortName2 = "双龙湖艺苗", TqesId = 0, TqesCode = "", Sort = 250, Status = CommonStatus.DISABLE, CreateSysUserId = 1, CreateTime = DateTime.Now },
A27: 26 | B27: 0 | C27: 14 | D27: [0],[1],[14], | E27: OrgType.SCHOOL | F27: 0012 | G27: Y | H27: 重庆市渝北区星朗幼儿园 | I27: 星朗幼儿园 | J27: 星朗 | K27: 星朗 | L27: EducationStage.PRESCHOOL_STAGE | M27: UrbanRuralType.URBAN | N27: OrgFundSource.PRIVATE | O27: 260 | P27: 渝北区双龙西路149号 | Q27: 等级二级，是否普惠园：是 | R27: CommonStatus.DISABLE | T27: new SysOrg { Id = 26, Pid = 14, Pids = "[0],[1],[14],", OrgType = OrgType.SCHOOL, OrgFundSource = OrgFundSource.PRIVATE, EducationStage = EducationStage.PRESCHOOL_STAGE, UrbanRuralType = UrbanRuralType.URBAN, Code = "0012", Name = "星朗幼儿园", FullName = "重庆市渝北区星朗幼儿园", ShortName = "星朗", ShortName2 = "星朗", TqesId = 0, TqesCode = "", Sort = 260, Status = CommonStatus.DISABLE, CreateSysUserId = 1, CreateTime = DateTime.Now },
A28: 27 | B28: 0 | C28: 14 | D28: [0],[1],[14], | E28: OrgType.SCHOOL | F28: 0013 | G28: Y | H28: 重庆市渝北区阳光宝童幼儿园 | I28: 阳光宝童幼儿园 | J28: 阳光宝童 | K28: 阳光宝童 | L28: EducationStage.PRESCHOOL_STAGE | M28: UrbanRuralType.URBAN | N28: OrgFundSource.PRIVATE | O28: 270 | P28: 渝北区双龙湖街道银鑫路7号 | Q28: 等级二级，是否普惠园：是 | R28: CommonStatus.DISABLE | T28: new SysOrg { Id = 27, Pid = 14, Pids = "[0],[1],[14],", OrgType = OrgType.SCHOOL, OrgFundSource = OrgFundSource.PRIVATE, EducationStage = EducationStage.PRESCHOOL_STAGE, UrbanRuralType = UrbanRuralType.URBAN, Code = "0013", Name = "阳光宝童幼儿园", FullName = "重庆市渝北区阳光宝童幼儿园", ShortName = "阳光宝童", ShortName2 = "阳光宝童", TqesId = 0, TqesCode = "", Sort = 270, Status = CommonStatus.DISABLE, CreateSysUserId = 1, CreateTime = DateTime.Now },
A29: 28 | B29: 0 | C29: 14 | D29: [0],[1],[14], | E29: OrgType.SCHOOL | F29: 0014 | G29: Y | H29: 重庆市渝北区紫台金宝贝幼儿园 | I29: 紫台金宝贝幼儿园 | J29: 紫台金宝贝 | K29: 紫台金宝贝 | L29: EducationStage.PRESCHOOL_STAGE | M29: UrbanRuralType.URBAN | N29: OrgFundSource.PRIVATE | O29: 280 | P29: 渝北区双龙湖街道同茂大道14号 | Q29: 等级二级，是否普惠园：是 | R29: CommonStatus.DISABLE | T29: new SysOrg { Id = 28, Pid = 14, Pids = "[0],[1],[14],", OrgType = OrgType.SCHOOL, OrgFundSource = OrgFundSource.PRIVATE, EducationStage = EducationStage.PRESCHOOL_STAGE, UrbanRuralType = UrbanRuralType.URBAN, Code = "0014", Name = "紫台金宝贝幼儿园", FullName = "重庆市渝北区紫台金宝贝幼儿园", ShortName = "紫台金宝贝", ShortName2 = "紫台金宝贝", TqesId = 0, TqesCode = "", Sort = 280, Status = CommonStatus.DISABLE, CreateSysUserId = 1, CreateTime = DateTime.Now },
A30: 29 | B30: 0 | C30: 14 | D30: [0],[1],[14], | E30: OrgType.SCHOOL | F30: 0015 | G30: Y | H30: 重庆市渝北区双龙湖小不点幼儿园 | I30: 双龙湖小不点幼儿园 | J30: 双龙湖小不点 | K30: 双龙湖小不点 | L30: EducationStage.PRESCHOOL_STAGE | M30: UrbanRuralType.URBAN | N30: OrgFundSource.PRIVATE | O30: 290 | P30: 渝北区双龙湖一支路龙裕街58号 | Q30: 等级二级，是否普惠园：是 | R30: CommonStatus.DISABLE | T30: new SysOrg { Id = 29, Pid = 14, Pids = "[0],[1],[14],", OrgType = OrgType.SCHOOL, OrgFundSource = OrgFundSource.PRIVATE, EducationStage = EducationStage.PRESCHOOL_STAGE, UrbanRuralType = UrbanRuralType.URBAN, Code = "0015", Name = "双龙湖小不点幼儿园", FullName = "重庆市渝北区双龙湖小不点幼儿园", ShortName = "双龙湖小不点", ShortName2 = "双龙湖小不点", TqesId = 0, TqesCode = "", Sort = 290, Status = CommonStatus.DISABLE, CreateSysUserId = 1, CreateTime = DateTime.Now },
A31: 30 | B31: 0 | C31: 14 | D31: [0],[1],[14], | E31: OrgType.SCHOOL | F31: 0016 | G31: Y | H31: 重庆市渝北区双龙湖老干部活动中心幼儿园 | I31: 双龙湖老干部活动中心幼儿园 | J31: 双龙湖老干部活动中心 | K31: 双龙湖老干部活动中心 | L31: EducationStage.PRESCHOOL_STAGE | M31: UrbanRuralType.URBAN | N31: OrgFundSource.PRIVATE | O31: 300 | P31: 渝北区双龙湖龙永街28号 | Q31: 等级三级，是否普惠园：是 | R31: CommonStatus.DISABLE | T31: new SysOrg { Id = 30, Pid = 14, Pids = "[0],[1],[14],", OrgType = OrgType.SCHOOL, OrgFundSource = OrgFundSource.PRIVATE, EducationStage = EducationStage.PRESCHOOL_STAGE, UrbanRuralType = UrbanRuralType.URBAN, Code = "0016", Name = "双龙湖老干部活动中心幼儿园", FullName = "重庆市渝北区双龙湖老干部活动中心幼儿园", ShortName = "双龙湖老干部活动中心", ShortName2 = "双龙湖老干部活动中心", TqesId = 0, TqesCode = "", Sort = 300, Status = CommonStatus.DISABLE, CreateSysUserId = 1, CreateTime = DateTime.Now },
A32: 31 | B32: 0 | C32: 14 | D32: [0],[1],[14], | E32: OrgType.SCHOOL | F32: 0017 | G32: Y | H32: 重庆市渝北区双龙湖育苗幼儿园 | I32: 双龙湖育苗幼儿园 | J32: 双龙湖育苗 | K32: 双龙湖育苗 | L32: EducationStage.PRESCHOOL_STAGE | M32: UrbanRuralType.URBAN | N32: OrgFundSource.PRIVATE | O32: 310 | P32: 渝北区双龙湖街道龙盛街90号 | Q32: 等级三级，是否普惠园：是 | R32: CommonStatus.DISABLE | T32: new SysOrg { Id = 31, Pid = 14, Pids = "[0],[1],[14],", OrgType = OrgType.SCHOOL, OrgFundSource = OrgFundSource.PRIVATE, EducationStage = EducationStage.PRESCHOOL_STAGE, UrbanRuralType = UrbanRuralType.URBAN, Code = "0017", Name = "双龙湖育苗幼儿园", FullName = "重庆市渝北区双龙湖育苗幼儿园", ShortName = "双龙湖育苗", ShortName2 = "双龙湖育苗", TqesId = 0, TqesCode = "", Sort = 310, Status = CommonStatus.DISABLE, CreateSysUserId = 1, CreateTime = DateTime.Now },
A33: 32 | B33: 0 | C33: 14 | D33: [0],[1],[14], | E33: OrgType.SCHOOL | F33: 0018 | G33: Y | H33: 重庆市渝北区双龙湖天寨幼儿园 | I33: 双龙湖天寨幼儿园 | J33: 双龙湖天寨 | K33: 双龙湖天寨 | L33: EducationStage.PRESCHOOL_STAGE | M33: UrbanRuralType.URBAN | N33: OrgFundSource.PRIVATE | O33: 320 | P33: 渝北区五星路162号 | Q33: 等级三级，是否普惠园：是 | R33: CommonStatus.DISABLE | T33: new SysOrg { Id = 32, Pid = 14, Pids = "[0],[1],[14],", OrgType = OrgType.SCHOOL, OrgFundSource = OrgFundSource.PRIVATE, EducationStage = EducationStage.PRESCHOOL_STAGE, UrbanRuralType = UrbanRuralType.URBAN, Code = "0018", Name = "双龙湖天寨幼儿园", FullName = "重庆市渝北区双龙湖天寨幼儿园", ShortName = "双龙湖天寨", ShortName2 = "双龙湖天寨", TqesId = 0, TqesCode = "", Sort = 320, Status = CommonStatus.DISABLE, CreateSysUserId = 1, CreateTime = DateTime.Now },
A34: 33 | B34: 0 | C34: 14 | D34: [0],[1],[14], | E34: OrgType.SCHOOL | F34: 0019 | G34: Y | H34: 重庆市渝北区双龙湖康利幼儿园 | I34: 双龙湖康利幼儿园 | J34: 双龙湖康利 | K34: 双龙湖康利 | L34: EducationStage.PRESCHOOL_STAGE | M34: UrbanRuralType.URBAN | N34: OrgFundSource.PRIVATE | O34: 330 | P34: 渝北区双龙湖龙康街124号 | Q34: 等级三级，是否普惠园：是 | R34: CommonStatus.DISABLE | T34: new SysOrg { Id = 33, Pid = 14, Pids = "[0],[1],[14],", OrgType = OrgType.SCHOOL, OrgFundSource = OrgFundSource.PRIVATE, EducationStage = EducationStage.PRESCHOOL_STAGE, UrbanRuralType = UrbanRuralType.URBAN, Code = "0019", Name = "双龙湖康利幼儿园", FullName = "重庆市渝北区双龙湖康利幼儿园", ShortName = "双龙湖康利", ShortName2 = "双龙湖康利", TqesId = 0, TqesCode = "", Sort = 330, Status = CommonStatus.DISABLE, CreateSysUserId = 1, CreateTime = DateTime.Now },
A35: 34 | B35: 0 | C35: 14 | D35: [0],[1],[14], | E35: OrgType.SCHOOL | F35: 0020 | G35: Y | H35: 重庆市渝北区双龙湖花蕾幼儿园 | I35: 双龙湖花蕾幼儿园 | J35: 双龙湖花蕾 | K35: 双龙湖花蕾 | L35: EducationStage.PRESCHOOL_STAGE | M35: UrbanRuralType.URBAN | N35: OrgFundSource.PRIVATE | O35: 340 | P35: 渝北区双龙湖龙升街114# | Q35: 等级三级，是否普惠园：是 | R35: CommonStatus.DISABLE | T35: new SysOrg { Id = 34, Pid = 14, Pids = "[0],[1],[14],", OrgType = OrgType.SCHOOL, OrgFundSource = OrgFundSource.PRIVATE, EducationStage = EducationStage.PRESCHOOL_STAGE, UrbanRuralType = UrbanRuralType.URBAN, Code = "0020", Name = "双龙湖花蕾幼儿园", FullName = "重庆市渝北区双龙湖花蕾幼儿园", ShortName = "双龙湖花蕾", ShortName2 = "双龙湖花蕾", TqesId = 0, TqesCode = "", Sort = 340, Status = CommonStatus.DISABLE, CreateSysUserId = 1, CreateTime = DateTime.Now },
A36: 35 | B36: 0 | C36: 14 | D36: [0],[1],[14], | E36: OrgType.SCHOOL | F36: 0021 | G36: Y | H36: 重庆市渝北区双龙湖华艺幼儿园 | I36: 双龙湖华艺幼儿园 | J36: 双龙湖华艺 | K36: 双龙湖华艺 | L36: EducationStage.PRESCHOOL_STAGE | M36: UrbanRuralType.URBAN | N36: OrgFundSource.PRIVATE | O36: 350 | P36: 渝北区双龙湖滨港路39号山水绿城内 | Q36: 等级三级，是否普惠园：是 | R36: CommonStatus.DISABLE | T36: new SysOrg { Id = 35, Pid = 14, Pids = "[0],[1],[14],", OrgType = OrgType.SCHOOL, OrgFundSource = OrgFundSource.PRIVATE, EducationStage = EducationStage.PRESCHOOL_STAGE, UrbanRuralType = UrbanRuralType.URBAN, Code = "0021", Name = "双龙湖华艺幼儿园", FullName = "重庆市渝北区双龙湖华艺幼儿园", ShortName = "双龙湖华艺", ShortName2 = "双龙湖华艺", TqesId = 0, TqesCode = "", Sort = 350, Status = CommonStatus.DISABLE, CreateSysUserId = 1, CreateTime = DateTime.Now },
A37: 36 | B37: 0 | C37: 14 | D37: [0],[1],[14], | E37: OrgType.SCHOOL | F37: 0022 | G37: Y | H37: 重庆市渝北区光彩幼儿园 | I37: 光彩幼儿园 | J37: 光彩 | K37: 光彩 | L37: EducationStage.PRESCHOOL_STAGE | M37: UrbanRuralType.URBAN | N37: OrgFundSource.PRIVATE | O37: 360 | P37: 渝北区双龙湖街道五星路三巷18号 | Q37: 等级三级，是否普惠园：是 | R37: CommonStatus.DISABLE | T37: new SysOrg { Id = 36, Pid = 14, Pids = "[0],[1],[14],", OrgType = OrgType.SCHOOL, OrgFundSource = OrgFundSource.PRIVATE, EducationStage = EducationStage.PRESCHOOL_STAGE, UrbanRuralType = UrbanRuralType.URBAN, Code = "0022", Name = "光彩幼儿园", FullName = "重庆市渝北区光彩幼儿园", ShortName = "光彩", ShortName2 = "光彩", TqesId = 0, TqesCode = "", Sort = 360, Status = CommonStatus.DISABLE, CreateSysUserId = 1, CreateTime = DateTime.Now },
A38: 37 | B38: 0 | C38: 14 | D38: [0],[1],[14], | E38: OrgType.SCHOOL | F38: 0023 | G38: Y | H38: 重庆市渝北区双龙湖南灵幼儿园 | I38: 双龙湖南灵幼儿园 | J38: 双龙湖南灵 | K38: 双龙湖南灵 | L38: EducationStage.PRESCHOOL_STAGE | M38: UrbanRuralType.URBAN | N38: OrgFundSource.PRIVATE | O38: 370 | P38: 渝北区双龙湖龙康街161号 | Q38: 等级三级，是否普惠园：是 | R38: CommonStatus.DISABLE | T38: new SysOrg { Id = 37, Pid = 14, Pids = "[0],[1],[14],", OrgType = OrgType.SCHOOL, OrgFundSource = OrgFundSource.PRIVATE, EducationStage = EducationStage.PRESCHOOL_STAGE, UrbanRuralType = UrbanRuralType.URBAN, Code = "0023", Name = "双龙湖南灵幼儿园", FullName = "重庆市渝北区双龙湖南灵幼儿园", ShortName = "双龙湖南灵", ShortName2 = "双龙湖南灵", TqesId = 0, TqesCode = "", Sort = 370, Status = CommonStatus.DISABLE, CreateSysUserId = 1, CreateTime = DateTime.Now },
A39: 38 | B39: 0 | C39: 14 | D39: [0],[1],[14], | E39: OrgType.SCHOOL | F39: 0024 | G39: Y | H39: 重庆市渝北区双龙湖红孩儿幼儿园 | I39: 双龙湖红孩儿幼儿园 | J39: 双龙湖红孩儿 | K39: 双龙湖红孩儿 | L39: EducationStage.PRESCHOOL_STAGE | M39: UrbanRuralType.URBAN | N39: OrgFundSource.PRIVATE | O39: 380 | P39: 渝北区双龙湖街道龙平街一巷43号 | Q39: 等级三级，是否普惠园：是 | R39: CommonStatus.DISABLE | T39: new SysOrg { Id = 38, Pid = 14, Pids = "[0],[1],[14],", OrgType = OrgType.SCHOOL, OrgFundSource = OrgFundSource.PRIVATE, EducationStage = EducationStage.PRESCHOOL_STAGE, UrbanRuralType = UrbanRuralType.URBAN, Code = "0024", Name = "双龙湖红孩儿幼儿园", FullName = "重庆市渝北区双龙湖红孩儿幼儿园", ShortName = "双龙湖红孩儿", ShortName2 = "双龙湖红孩儿", TqesId = 0, TqesCode = "", Sort = 380, Status = CommonStatus.DISABLE, CreateSysUserId = 1, CreateTime = DateTime.Now },
A40: 39 | B40: 0 | C40: 14 | D40: [0],[1],[14], | E40: OrgType.SCHOOL | F40: 0025 | G40: Y | H40: 重庆市渝北区双龙湖蓝天贝贝幼儿园 | I40: 双龙湖蓝天贝贝幼儿园 | J40: 双龙湖蓝天贝贝 | K40: 双龙湖蓝天贝贝 | L40: EducationStage.PRESCHOOL_STAGE | M40: UrbanRuralType.URBAN | N40: OrgFundSource.PRIVATE | O40: 390 | P40: 渝北区双龙湖龙平街三巷检察院家属院B栋9-12号 | Q40: 等级三级，是否普惠园：是 | R40: CommonStatus.DISABLE | T40: new SysOrg { Id = 39, Pid = 14, Pids = "[0],[1],[14],", OrgType = OrgType.SCHOOL, OrgFundSource = OrgFundSource.PRIVATE, EducationStage = EducationStage.PRESCHOOL_STAGE, UrbanRuralType = UrbanRuralType.URBAN, Code = "0025", Name = "双龙湖蓝天贝贝幼儿园", FullName = "重庆市渝北区双龙湖蓝天贝贝幼儿园", ShortName = "双龙湖蓝天贝贝", ShortName2 = "双龙湖蓝天贝贝", TqesId = 0, TqesCode = "", Sort = 390, Status = CommonStatus.DISABLE, CreateSysUserId = 1, CreateTime = DateTime.Now },
A41: 40 | B41: 0 | C41: 14 | D41: [0],[1],[14], | E41: OrgType.SCHOOL | F41: 0026 | G41: Y | H41: 重庆市渝北区双龙湖农工商幼儿园 | I41: 双龙湖农工商幼儿园 | J41: 双龙湖农工商 | K41: 双龙湖农工商 | L41: EducationStage.PRESCHOOL_STAGE | M41: UrbanRuralType.URBAN | N41: OrgFundSource.PRIVATE | O41: 400 | P41: 渝北区双龙湖街道龙平支路36号 | Q41: 等级三级，是否普惠园：是 | R41: CommonStatus.DISABLE | T41: new SysOrg { Id = 40, Pid = 14, Pids = "[0],[1],[14],", OrgType = OrgType.SCHOOL, OrgFundSource = OrgFundSource.PRIVATE, EducationStage = EducationStage.PRESCHOOL_STAGE, UrbanRuralType = UrbanRuralType.URBAN, Code = "0026", Name = "双龙湖农工商幼儿园", FullName = "重庆市渝北区双龙湖农工商幼儿园", ShortName = "双龙湖农工商", ShortName2 = "双龙湖农工商", TqesId = 0, TqesCode = "", Sort = 400, Status = CommonStatus.DISABLE, CreateSysUserId = 1, CreateTime = DateTime.Now },
A42: 41 | B42: 0 | C42: 14 | D42: [0],[1],[14], | E42: OrgType.SCHOOL | F42: 0027 | G42: Y | H42: 重庆市渝北区双龙湖苗苗幼儿园 | I42: 双龙湖苗苗幼儿园 | J42: 双龙湖苗苗 | K42: 双龙湖苗苗 | L42: EducationStage.PRESCHOOL_STAGE | M42: UrbanRuralType.URBAN | N42: OrgFundSource.PRIVATE | O42: 410 | P42: 渝北区双龙湖街道五星路4巷19号 | Q42: 等级三级，是否普惠园：是 | R42: CommonStatus.DISABLE | T42: new SysOrg { Id = 41, Pid = 14, Pids = "[0],[1],[14],", OrgType = OrgType.SCHOOL, OrgFundSource = OrgFundSource.PRIVATE, EducationStage = EducationStage.PRESCHOOL_STAGE, UrbanRuralType = UrbanRuralType.URBAN, Code = "0027", Name = "双龙湖苗苗幼儿园", FullName = "重庆市渝北区双龙湖苗苗幼儿园", ShortName = "双龙湖苗苗", ShortName2 = "双龙湖苗苗", TqesId = 0, TqesCode = "", Sort = 410, Status = CommonStatus.DISABLE, CreateSysUserId = 1, CreateTime = DateTime.Now },
A43: 42 | B43: 0 | C43: 14 | D43: [0],[1],[14], | E43: OrgType.SCHOOL | F43: 0028 | G43: Y | H43: 重庆市渝北区双龙湖彩虹幼儿园 | I43: 双龙湖彩虹幼儿园 | J43: 双龙湖彩虹 | K43: 双龙湖彩虹 | L43: EducationStage.PRESCHOOL_STAGE | M43: UrbanRuralType.URBAN | N43: OrgFundSource.PRIVATE | O43: 420 | P43: 渝北区龙康街161号3-3-1-2 | Q43: 等级三级，是否普惠园：是 | R43: CommonStatus.DISABLE | T43: new SysOrg { Id = 42, Pid = 14, Pids = "[0],[1],[14],", OrgType = OrgType.SCHOOL, OrgFundSource = OrgFundSource.PRIVATE, EducationStage = EducationStage.PRESCHOOL_STAGE, UrbanRuralType = UrbanRuralType.URBAN, Code = "0028", Name = "双龙湖彩虹幼儿园", FullName = "重庆市渝北区双龙湖彩虹幼儿园", ShortName = "双龙湖彩虹", ShortName2 = "双龙湖彩虹", TqesId = 0, TqesCode = "", Sort = 420, Status = CommonStatus.DISABLE, CreateSysUserId = 1, CreateTime = DateTime.Now },
A44: 43 | B44: 0 | C44: 14 | D44: [0],[1],[14], | E44: OrgType.SCHOOL | F44: 0029 | G44: Y | H44: 重庆市渝北区双龙湖群欣幼儿园 | I44: 双龙湖群欣幼儿园 | J44: 双龙湖群欣 | K44: 双龙湖群欣 | L44: EducationStage.PRESCHOOL_STAGE | M44: UrbanRuralType.URBAN | N44: OrgFundSource.PRIVATE | O44: 430 | P44: 渝北区渝湖路56号 | Q44: 等级三级，是否普惠园：是 | R44: CommonStatus.DISABLE | T44: new SysOrg { Id = 43, Pid = 14, Pids = "[0],[1],[14],", OrgType = OrgType.SCHOOL, OrgFundSource = OrgFundSource.PRIVATE, EducationStage = EducationStage.PRESCHOOL_STAGE, UrbanRuralType = UrbanRuralType.URBAN, Code = "0029", Name = "双龙湖群欣幼儿园", FullName = "重庆市渝北区双龙湖群欣幼儿园", ShortName = "双龙湖群欣", ShortName2 = "双龙湖群欣", TqesId = 0, TqesCode = "", Sort = 430, Status = CommonStatus.DISABLE, CreateSysUserId = 1, CreateTime = DateTime.Now },
A45: 44 | B45: 0 | C45: 14 | D45: [0],[1],[14], | E45: OrgType.SCHOOL | F45: 0030 | G45: Y | H45: 重庆市渝北区绿梦幼儿园 | I45: 绿梦幼儿园 | J45: 绿梦 | K45: 绿梦 | L45: EducationStage.PRESCHOOL_STAGE | M45: UrbanRuralType.URBAN | N45: OrgFundSource.PRIVATE | O45: 440 | P45: 渝北区双龙大道474号 | Q45: 等级二级，是否普惠园：是 | R45: CommonStatus.DISABLE | T45: new SysOrg { Id = 44, Pid = 14, Pids = "[0],[1],[14],", OrgType = OrgType.SCHOOL, OrgFundSource = OrgFundSource.PRIVATE, EducationStage = EducationStage.PRESCHOOL_STAGE, UrbanRuralType = UrbanRuralType.URBAN, Code = "0030", Name = "绿梦幼儿园", FullName = "重庆市渝北区绿梦幼儿园", ShortName = "绿梦", ShortName2 = "绿梦", TqesId = 0, TqesCode = "", Sort = 440, Status = CommonStatus.DISABLE, CreateSysUserId = 1, CreateTime = DateTime.Now },
A46: 45 | B46: 0 | C46: 14 | D46: [0],[1],[14], | E46: OrgType.SCHOOL | F46: 0031 | G46: Y | H46: 重庆市渝北区鹿山村宝贝幼儿园 | I46: 鹿山村宝贝幼儿园 | J46: 鹿山村宝贝 | K46: 鹿山村宝贝 | L46: EducationStage.PRESCHOOL_STAGE | M46: UrbanRuralType.URBAN | N46: OrgFundSource.PRIVATE | O46: 450 | P46: 渝北区双龙湖街道观音岩路168号格林上城小区 | Q46: 等级三级，是否普惠园：是 | R46: CommonStatus.DISABLE | T46: new SysOrg { Id = 45, Pid = 14, Pids = "[0],[1],[14],", OrgType = OrgType.SCHOOL, OrgFundSource = OrgFundSource.PRIVATE, EducationStage = EducationStage.PRESCHOOL_STAGE, UrbanRuralType = UrbanRuralType.URBAN, Code = "0031", Name = "鹿山村宝贝幼儿园", FullName = "重庆市渝北区鹿山村宝贝幼儿园", ShortName = "鹿山村宝贝", ShortName2 = "鹿山村宝贝", TqesId = 0, TqesCode = "", Sort = 450, Status = CommonStatus.DISABLE, CreateSysUserId = 1, CreateTime = DateTime.Now },
A47: 46 | B47: 0 | C47: 14 | D47: [0],[1],[14], | E47: OrgType.SCHOOL | F47: 0032 | G47: Y | H47: 重庆市渝北区水木香山贝乐坊幼儿园 | I47: 水木香山贝乐坊幼儿园 | J47: 水木香山贝乐坊 | K47: 水木香山贝乐坊 | L47: EducationStage.PRESCHOOL_STAGE | M47: UrbanRuralType.URBAN | N47: OrgFundSource.PRIVATE | O47: 460 | P47: 渝北区双龙湖街道竹音支路18号34栋1-1、2-1 | Q47: 等级一级，是否普惠园：是 | R47: CommonStatus.DISABLE | T47: new SysOrg { Id = 46, Pid = 14, Pids = "[0],[1],[14],", OrgType = OrgType.SCHOOL, OrgFundSource = OrgFundSource.PRIVATE, EducationStage = EducationStage.PRESCHOOL_STAGE, UrbanRuralType = UrbanRuralType.URBAN, Code = "0032", Name = "水木香山贝乐坊幼儿园", FullName = "重庆市渝北区水木香山贝乐坊幼儿园", ShortName = "水木香山贝乐坊", ShortName2 = "水木香山贝乐坊", TqesId = 0, TqesCode = "", Sort = 460, Status = CommonStatus.DISABLE, CreateSysUserId = 1, CreateTime = DateTime.Now },
A48: 47 | B48: 0 | C48: 14 | D48: [0],[1],[14], | E48: OrgType.SCHOOL | F48: 0033 | G48: Y | H48: 重庆市渝北区莱恩幼儿园 | I48: 莱恩幼儿园 | J48: 莱恩 | K48: 莱恩 | L48: EducationStage.PRESCHOOL_STAGE | M48: UrbanRuralType.URBAN | N48: OrgFundSource.PRIVATE | O48: 470 | P48: 渝北区空港新城兰馨大道18号附26号 | Q48: 等级二级，是否普惠园：否 | R48: CommonStatus.DISABLE | T48: new SysOrg { Id = 47, Pid = 14, Pids = "[0],[1],[14],", OrgType = OrgType.SCHOOL, OrgFundSource = OrgFundSource.PRIVATE, EducationStage = EducationStage.PRESCHOOL_STAGE, UrbanRuralType = UrbanRuralType.URBAN, Code = "0033", Name = "莱恩幼儿园", FullName = "重庆市渝北区莱恩幼儿园", ShortName = "莱恩", ShortName2 = "莱恩", TqesId = 0, TqesCode = "", Sort = 470, Status = CommonStatus.DISABLE, CreateSysUserId = 1, CreateTime = DateTime.Now },
A49: 48 | B49: 0 | C49: 14 | D49: [0],[1],[14], | E49: OrgType.SCHOOL | F49: 0034 | G49: Y | H49: 重庆市渝北区润丰水尚幼儿园 | I49: 润丰水尚幼儿园 | J49: 润丰水尚 | K49: 润丰水尚 | L49: EducationStage.PRESCHOOL_STAGE | M49: UrbanRuralType.URBAN | N49: OrgFundSource.PRIVATE | O49: 480 | P49: 重庆市渝北区兰桂大道2号18幢 | Q49: 等级预一级，是否普惠园：是 | R49: CommonStatus.DISABLE | T49: new SysOrg { Id = 48, Pid = 14, Pids = "[0],[1],[14],", OrgType = OrgType.SCHOOL, OrgFundSource = OrgFundSource.PRIVATE, EducationStage = EducationStage.PRESCHOOL_STAGE, UrbanRuralType = UrbanRuralType.URBAN, Code = "0034", Name = "润丰水尚幼儿园", FullName = "重庆市渝北区润丰水尚幼儿园", ShortName = "润丰水尚", ShortName2 = "润丰水尚", TqesId = 0, TqesCode = "", Sort = 480, Status = CommonStatus.DISABLE, CreateSysUserId = 1, CreateTime = DateTime.Now },
A50: 49 | B50: 0 | C50: 14 | D50: [0],[1],[14], | E50: OrgType.SCHOOL | F50: 0035 | G50: Y | H50: 重庆市渝北区公园北路幼儿园 | I50: 公园北路幼儿园 | J50: 公园北路 | K50: 公园北路 | L50: EducationStage.PRESCHOOL_STAGE | M50: UrbanRuralType.URBAN | N50: OrgFundSource.PUBLIC | O50: 490 | P50: 渝北区中央公园北路8号 | Q50: 等级一级，是否普惠园：是 | R50: CommonStatus.DISABLE | T50: new SysOrg { Id = 49, Pid = 14, Pids = "[0],[1],[14],", OrgType = OrgType.SCHOOL, OrgFundSource = OrgFundSource.PUBLIC, EducationStage = EducationStage.PRESCHOOL_STAGE, UrbanRuralType = UrbanRuralType.URBAN, Code = "0035", Name = "公园北路幼儿园", FullName = "重庆市渝北区公园北路幼儿园", ShortName = "公园北路", ShortName2 = "公园北路", TqesId = 0, TqesCode = "", Sort = 490, Status = CommonStatus.DISABLE, CreateSysUserId = 1, CreateTime = DateTime.Now },
A51: 50 | B51: 0 | C51: 14 | D51: [0],[1],[14], | E51: OrgType.SCHOOL | F51: 0036 | G51: Y | H51: 重庆市渝北区腾芳幼儿园桂馥园 | I51: 腾芳幼儿园桂馥园 | J51: 腾芳桂馥园 | K51: 腾芳桂馥园 | L51: EducationStage.PRESCHOOL_STAGE | M51: UrbanRuralType.URBAN | N51: OrgFundSource.PUBLIC | O51: 500 | P51: 渝北区桂馥二支路18号 | Q51: 等级一级，是否普惠园：是 | R51: CommonStatus.DISABLE | T51: new SysOrg { Id = 50, Pid = 14, Pids = "[0],[1],[14],", OrgType = OrgType.SCHOOL, OrgFundSource = OrgFundSource.PUBLIC, EducationStage = EducationStage.PRESCHOOL_STAGE, UrbanRuralType = UrbanRuralType.URBAN, Code = "0036", Name = "腾芳幼儿园桂馥园", FullName = "重庆市渝北区腾芳幼儿园桂馥园", ShortName = "腾芳桂馥园", ShortName2 = "腾芳桂馥园", TqesId = 0, TqesCode = "", Sort = 500, Status = CommonStatus.DISABLE, CreateSysUserId = 1, CreateTime = DateTime.Now },
A52: 51 | B52: 0 | C52: 14 | D52: [0],[1],[14], | E52: OrgType.SCHOOL | F52: 0037 | G52: Y | H52: 重庆市渝北区空港佳园幼儿园学盛园（G园） | I52: 空港佳园幼儿园学盛园（G园） | J52: 空港佳园学盛园（G园） | K52: 空港佳园学盛园（G园） | L52: EducationStage.PRESCHOOL_STAGE | M52: UrbanRuralType.URBAN | N52: OrgFundSource.PUBLIC | O52: 510 | P52: 渝北区空港佳园公租房丛岩一路17号 | Q52: 等级一级，是否普惠园：是 | R52: CommonStatus.DISABLE | T52: new SysOrg { Id = 51, Pid = 14, Pids = "[0],[1],[14],", OrgType = OrgType.SCHOOL, OrgFundSource = OrgFundSource.PUBLIC, EducationStage = EducationStage.PRESCHOOL_STAGE, UrbanRuralType = UrbanRuralType.URBAN, Code = "0037", Name = "空港佳园幼儿园学盛园（G园）", FullName = "重庆市渝北区空港佳园幼儿园学盛园（G园）", ShortName = "空港佳园学盛园（G园）", ShortName2 = "空港佳园学盛园（G园）", TqesId = 0, TqesCode = "", Sort = 510, Status = CommonStatus.DISABLE, CreateSysUserId = 1, CreateTime = DateTime.Now },
A53: 52 | B53: 0 | C53: 14 | D53: [0],[1],[14], | E53: OrgType.SCHOOL | F53: 0038 | G53: Y | H53: 重庆市渝北区空港佳园幼儿园丛岩园（E园） | I53: 空港佳园幼儿园丛岩园（E园） | J53: 空港佳园丛岩园（E园） | K53: 空港佳园丛岩园（E园） | L53: EducationStage.PRESCHOOL_STAGE | M53: UrbanRuralType.URBAN | N53: OrgFundSource.PUBLIC | O53: 520 | P53: 渝北区空港佳园公租房丛岩一路1号 | Q53: 等级一级，是否普惠园：是 | R53: CommonStatus.DISABLE | T53: new SysOrg { Id = 52, Pid = 14, Pids = "[0],[1],[14],", OrgType = OrgType.SCHOOL, OrgFundSource = OrgFundSource.PUBLIC, EducationStage = EducationStage.PRESCHOOL_STAGE, UrbanRuralType = UrbanRuralType.URBAN, Code = "0038", Name = "空港佳园幼儿园丛岩园（E园）", FullName = "重庆市渝北区空港佳园幼儿园丛岩园（E园）", ShortName = "空港佳园丛岩园（E园）", ShortName2 = "空港佳园丛岩园（E园）", TqesId = 0, TqesCode = "", Sort = 520, Status = CommonStatus.DISABLE, CreateSysUserId = 1, CreateTime = DateTime.Now },
A54: 53 | B54: 0 | C54: 14 | D54: [0],[1],[14], | E54: OrgType.SCHOOL | F54: 0039 | G54: Y | H54: 重庆市渝北区空港佳园第二幼儿园 | I54: 空港佳园第二幼儿园 | J54: 空港佳园第二 | K54: 空港佳园第二 | L54: EducationStage.PRESCHOOL_STAGE | M54: UrbanRuralType.URBAN | N54: OrgFundSource.PUBLIC | O54: 530 | P54: 渝北区仙桃街道从岩二路4号 | Q54: 等级一级，是否普惠园：是 | R54: CommonStatus.DISABLE | T54: new SysOrg { Id = 53, Pid = 14, Pids = "[0],[1],[14],", OrgType = OrgType.SCHOOL, OrgFundSource = OrgFundSource.PUBLIC, EducationStage = EducationStage.PRESCHOOL_STAGE, UrbanRuralType = UrbanRuralType.URBAN, Code = "0039", Name = "空港佳园第二幼儿园", FullName = "重庆市渝北区空港佳园第二幼儿园", ShortName = "空港佳园第二", ShortName2 = "空港佳园第二", TqesId = 0, TqesCode = "", Sort = 530, Status = CommonStatus.DISABLE, CreateSysUserId = 1, CreateTime = DateTime.Now },
A55: 54 | B55: 0 | C55: 14 | D55: [0],[1],[14], | E55: OrgType.SCHOOL | F55: 0040 | G55: Y | H55: 重庆市渝北区同茂幼儿园 | I55: 同茂幼儿园 | J55: 同茂 | K55: 同茂 | L55: EducationStage.PRESCHOOL_STAGE | M55: UrbanRuralType.URBAN | N55: OrgFundSource.PUBLIC | O55: 540 | P55: 渝北区睦邻路 | Q55: 等级预一级，是否普惠园：是 | R55: CommonStatus.DISABLE | T55: new SysOrg { Id = 54, Pid = 14, Pids = "[0],[1],[14],", OrgType = OrgType.SCHOOL, OrgFundSource = OrgFundSource.PUBLIC, EducationStage = EducationStage.PRESCHOOL_STAGE, UrbanRuralType = UrbanRuralType.URBAN, Code = "0040", Name = "同茂幼儿园", FullName = "重庆市渝北区同茂幼儿园", ShortName = "同茂", ShortName2 = "同茂", TqesId = 0, TqesCode = "", Sort = 540, Status = CommonStatus.DISABLE, CreateSysUserId = 1, CreateTime = DateTime.Now },
A56: 55 | B56: 0 | C56: 14 | D56: [0],[1],[14], | E56: OrgType.SCHOOL | F56: 0041 | G56: Y | H56: 重庆市渝北区盛景天下小学校附属幼儿园 | I56: 盛景天下小学校附属幼儿园 | J56: 盛景天下小学校附属 | K56: 盛景天下小学校附属 | L56: EducationStage.PRESCHOOL_STAGE | M56: UrbanRuralType.URBAN | N56: OrgFundSource.PUBLIC | O56: 550 | P56: 渝北区兰馨大道16号1栋 | Q56: 等级一级，是否普惠园：是 | R56: CommonStatus.DISABLE | T56: new SysOrg { Id = 55, Pid = 14, Pids = "[0],[1],[14],", OrgType = OrgType.SCHOOL, OrgFundSource = OrgFundSource.PUBLIC, EducationStage = EducationStage.PRESCHOOL_STAGE, UrbanRuralType = UrbanRuralType.URBAN, Code = "0041", Name = "盛景天下小学校附属幼儿园", FullName = "重庆市渝北区盛景天下小学校附属幼儿园", ShortName = "盛景天下小学校附属", ShortName2 = "盛景天下小学校附属", TqesId = 0, TqesCode = "", Sort = 550, Status = CommonStatus.DISABLE, CreateSysUserId = 1, CreateTime = DateTime.Now },
A57: 56 | B57: 0 | C57: 14 | D57: [0],[1],[14], | E57: OrgType.SCHOOL | F57: 0042 | G57: Y | H57: 重庆市渝北区空港新城小学附属幼儿园 | I57: 空港新城小学附属幼儿园 | J57: 空港新城小学附属 | K57: 空港新城小学附属 | L57: EducationStage.PRESCHOOL_STAGE | M57: UrbanRuralType.URBAN | N57: OrgFundSource.PUBLIC | O57: 560 | P57: 渝北区仙桃街道桂馥二支路9号 | Q57: 等级二级，是否普惠园：是 | R57: CommonStatus.DISABLE | T57: new SysOrg { Id = 56, Pid = 14, Pids = "[0],[1],[14],", OrgType = OrgType.SCHOOL, OrgFundSource = OrgFundSource.PUBLIC, EducationStage = EducationStage.PRESCHOOL_STAGE, UrbanRuralType = UrbanRuralType.URBAN, Code = "0042", Name = "空港新城小学附属幼儿园", FullName = "重庆市渝北区空港新城小学附属幼儿园", ShortName = "空港新城小学附属", ShortName2 = "空港新城小学附属", TqesId = 0, TqesCode = "", Sort = 560, Status = CommonStatus.DISABLE, CreateSysUserId = 1, CreateTime = DateTime.Now },
A58: 57 | B58: 0 | C58: 14 | D58: [0],[1],[14], | E58: OrgType.SCHOOL | F58: 0043 | G58: Y | H58: 重庆市渝北区数据谷小学校附属幼儿园 | I58: 数据谷小学校附属幼儿园 | J58: 数据谷小学校附属 | K58: 数据谷小学校附属 | L58: EducationStage.PRESCHOOL_STAGE | M58: UrbanRuralType.URBAN | N58: OrgFundSource.PUBLIC | O58: 570 | P58: 渝北区仙桃街道数据谷中路52号 | Q58: 等级一级，是否普惠园：是 | R58: CommonStatus.DISABLE | T58: new SysOrg { Id = 57, Pid = 14, Pids = "[0],[1],[14],", OrgType = OrgType.SCHOOL, OrgFundSource = OrgFundSource.PUBLIC, EducationStage = EducationStage.PRESCHOOL_STAGE, UrbanRuralType = UrbanRuralType.URBAN, Code = "0043", Name = "数据谷小学校附属幼儿园", FullName = "重庆市渝北区数据谷小学校附属幼儿园", ShortName = "数据谷小学校附属", ShortName2 = "数据谷小学校附属", TqesId = 0, TqesCode = "", Sort = 570, Status = CommonStatus.DISABLE, CreateSysUserId = 1, CreateTime = DateTime.Now },
A59: 58 | B59: 0 | C59: 14 | D59: [0],[1],[14], | E59: OrgType.SCHOOL | F59: 0044 | G59: Y | H59: 重庆市渝北庆龄幼儿园秋成园 | I59: 龄幼儿园秋成园 | J59: 龄秋成园 | K59: 龄秋成园 | L59: EducationStage.PRESCHOOL_STAGE | M59: UrbanRuralType.URBAN | N59: OrgFundSource.PUBLIC | O59: 580 | P59: 渝北区秋成大道 | Q59: 等级预一级，是否普惠园：是 | R59: CommonStatus.DISABLE | T59: new SysOrg { Id = 58, Pid = 14, Pids = "[0],[1],[14],", OrgType = OrgType.SCHOOL, OrgFundSource = OrgFundSource.PUBLIC, EducationStage = EducationStage.PRESCHOOL_STAGE, UrbanRuralType = UrbanRuralType.URBAN, Code = "0044", Name = "龄幼儿园秋成园", FullName = "重庆市渝北庆龄幼儿园秋成园", ShortName = "龄秋成园", ShortName2 = "龄秋成园", TqesId = 0, TqesCode = "", Sort = 580, Status = CommonStatus.DISABLE, CreateSysUserId = 1, CreateTime = DateTime.Now },
A60: 59 | B60: 0 | C60: 14 | D60: [0],[1],[14], | E60: OrgType.SCHOOL | F60: 0045 | G60: Y | H60: 重庆市渝北区英华贝贝空港幼儿园 | I60: 英华贝贝空港幼儿园 | J60: 英华贝贝空港 | K60: 英华贝贝空港 | L60: EducationStage.PRESCHOOL_STAGE | M60: UrbanRuralType.URBAN | N60: OrgFundSource.PRIVATE | O60: 590 | P60: 渝北区双龙湖桂馥大道6号 | Q60: 等级一级，是否普惠园：是 | R60: CommonStatus.DISABLE | T60: new SysOrg { Id = 59, Pid = 14, Pids = "[0],[1],[14],", OrgType = OrgType.SCHOOL, OrgFundSource = OrgFundSource.PRIVATE, EducationStage = EducationStage.PRESCHOOL_STAGE, UrbanRuralType = UrbanRuralType.URBAN, Code = "0045", Name = "英华贝贝空港幼儿园", FullName = "重庆市渝北区英华贝贝空港幼儿园", ShortName = "英华贝贝空港", ShortName2 = "英华贝贝空港", TqesId = 0, TqesCode = "", Sort = 590, Status = CommonStatus.DISABLE, CreateSysUserId = 1, CreateTime = DateTime.Now },
A61: 60 | B61: 0 | C61: 14 | D61: [0],[1],[14], | E61: OrgType.SCHOOL | F61: 0046 | G61: Y | H61: 重庆市渝北区好莱坞红黄蓝幼儿园 | I61: 好莱坞红黄蓝幼儿园 | J61: 好莱坞红黄蓝 | K61: 好莱坞红黄蓝 | L61: EducationStage.PRESCHOOL_STAGE | M61: UrbanRuralType.URBAN | N61: OrgFundSource.PRIVATE | O61: 600 | P61: 渝北区兰馨大道77号汇祥好莱坞 | Q61: 等级一级，是否普惠园：是 | R61: CommonStatus.DISABLE | T61: new SysOrg { Id = 60, Pid = 14, Pids = "[0],[1],[14],", OrgType = OrgType.SCHOOL, OrgFundSource = OrgFundSource.PRIVATE, EducationStage = EducationStage.PRESCHOOL_STAGE, UrbanRuralType = UrbanRuralType.URBAN, Code = "0046", Name = "好莱坞红黄蓝幼儿园", FullName = "重庆市渝北区好莱坞红黄蓝幼儿园", ShortName = "好莱坞红黄蓝", ShortName2 = "好莱坞红黄蓝", TqesId = 0, TqesCode = "", Sort = 600, Status = CommonStatus.DISABLE, CreateSysUserId = 1, CreateTime = DateTime.Now },
A62: 61 | B62: 0 | C62: 14 | D62: [0],[1],[14], | E62: OrgType.SCHOOL | F62: 0047 | G62: Y | H62: 重庆市渝北区盛景天下喜洋洋幼儿园 | I62: 盛景天下喜洋洋幼儿园 | J62: 盛景天下喜洋洋 | K62: 盛景天下喜洋洋 | L62: EducationStage.PRESCHOOL_STAGE | M62: UrbanRuralType.URBAN | N62: OrgFundSource.PRIVATE | O62: 610 | P62: 渝北区双龙湖兰馨大道12号17幢负一层 | Q62: 等级二级，是否普惠园：是 | R62: CommonStatus.DISABLE | T62: new SysOrg { Id = 61, Pid = 14, Pids = "[0],[1],[14],", OrgType = OrgType.SCHOOL, OrgFundSource = OrgFundSource.PRIVATE, EducationStage = EducationStage.PRESCHOOL_STAGE, UrbanRuralType = UrbanRuralType.URBAN, Code = "0047", Name = "盛景天下喜洋洋幼儿园", FullName = "重庆市渝北区盛景天下喜洋洋幼儿园", ShortName = "盛景天下喜洋洋", ShortName2 = "盛景天下喜洋洋", TqesId = 0, TqesCode = "", Sort = 610, Status = CommonStatus.DISABLE, CreateSysUserId = 1, CreateTime = DateTime.Now },
A63: 62 | B63: 0 | C63: 14 | D63: [0],[1],[14], | E63: OrgType.SCHOOL | F63: 0048 | G63: Y | H63: 重庆市渝北区迪思尼幼儿园 | I63: 迪思尼幼儿园 | J63: 迪思尼 | K63: 迪思尼 | L63: EducationStage.PRESCHOOL_STAGE | M63: UrbanRuralType.URBAN | N63: OrgFundSource.PRIVATE | O63: 620 | P63: 渝北区兰馨大道10号锦域蓝湾13幢3-35号 | Q63: 等级二级，是否普惠园：是 | R63: CommonStatus.DISABLE | T63: new SysOrg { Id = 62, Pid = 14, Pids = "[0],[1],[14],", OrgType = OrgType.SCHOOL, OrgFundSource = OrgFundSource.PRIVATE, EducationStage = EducationStage.PRESCHOOL_STAGE, UrbanRuralType = UrbanRuralType.URBAN, Code = "0048", Name = "迪思尼幼儿园", FullName = "重庆市渝北区迪思尼幼儿园", ShortName = "迪思尼", ShortName2 = "迪思尼", TqesId = 0, TqesCode = "", Sort = 620, Status = CommonStatus.DISABLE, CreateSysUserId = 1, CreateTime = DateTime.Now },
A64: 63 | B64: 0 | C64: 14 | D64: [0],[1],[14], | E64: OrgType.SCHOOL | F64: 0049 | G64: Y | H64: 重庆市渝北区七色幼儿园 | I64: 七色幼儿园 | J64: 七色 | K64: 七色 | L64: EducationStage.PRESCHOOL_STAGE | M64: UrbanRuralType.URBAN | N64: OrgFundSource.PRIVATE | O64: 630 | P64: 渝北区兰馨大道10号锦域蓝湾小区12-1-14 | Q64: 等级二级，是否普惠园：是 | R64: CommonStatus.DISABLE | T64: new SysOrg { Id = 63, Pid = 14, Pids = "[0],[1],[14],", OrgType = OrgType.SCHOOL, OrgFundSource = OrgFundSource.PRIVATE, EducationStage = EducationStage.PRESCHOOL_STAGE, UrbanRuralType = UrbanRuralType.URBAN, Code = "0049", Name = "七色幼儿园", FullName = "重庆市渝北区七色幼儿园", ShortName = "七色", ShortName2 = "七色", TqesId = 0, TqesCode = "", Sort = 630, Status = CommonStatus.DISABLE, CreateSysUserId = 1, CreateTime = DateTime.Now },
A65: 64 | B65: 0 | C65: 14 | D65: [0],[1],[14], | E65: OrgType.SCHOOL | F65: 0050 | G65: Y | H65: 重庆市渝北区全稚园金色池塘幼儿园 | I65: 全稚园金色池塘幼儿园 | J65: 全稚园金色池塘 | K65: 全稚园金色池塘 | L65: EducationStage.PRESCHOOL_STAGE | M65: UrbanRuralType.URBAN | N65: OrgFundSource.PRIVATE | O65: 640 | P65: 渝北区空港新城金色池塘小区 | Q65: 等级二级，是否普惠园：是 | R65: CommonStatus.DISABLE | T65: new SysOrg { Id = 64, Pid = 14, Pids = "[0],[1],[14],", OrgType = OrgType.SCHOOL, OrgFundSource = OrgFundSource.PRIVATE, EducationStage = EducationStage.PRESCHOOL_STAGE, UrbanRuralType = UrbanRuralType.URBAN, Code = "0050", Name = "全稚园金色池塘幼儿园", FullName = "重庆市渝北区全稚园金色池塘幼儿园", ShortName = "全稚园金色池塘", ShortName2 = "全稚园金色池塘", TqesId = 0, TqesCode = "", Sort = 640, Status = CommonStatus.DISABLE, CreateSysUserId = 1, CreateTime = DateTime.Now },
A66: 65 | B66: 0 | C66: 14 | D66: [0],[1],[14], | E66: OrgType.SCHOOL | F66: 0051 | G66: Y | H66: 重庆市渝北区润丰明希幼儿园 | I66: 润丰明希幼儿园 | J66: 润丰明希 | K66: 润丰明希 | L66: EducationStage.PRESCHOOL_STAGE | M66: UrbanRuralType.URBAN | N66: OrgFundSource.PRIVATE | O66: 650 | P66: 渝北区仙桃街道福畅路7号附59号润丰水尚20幢至23幢 | Q66: 等级三级，是否普惠园：是 | R66: CommonStatus.DISABLE | T66: new SysOrg { Id = 65, Pid = 14, Pids = "[0],[1],[14],", OrgType = OrgType.SCHOOL, OrgFundSource = OrgFundSource.PRIVATE, EducationStage = EducationStage.PRESCHOOL_STAGE, UrbanRuralType = UrbanRuralType.URBAN, Code = "0051", Name = "润丰明希幼儿园", FullName = "重庆市渝北区润丰明希幼儿园", ShortName = "润丰明希", ShortName2 = "润丰明希", TqesId = 0, TqesCode = "", Sort = 650, Status = CommonStatus.DISABLE, CreateSysUserId = 1, CreateTime = DateTime.Now },
A67: 66 | B67: 0 | C67: 14 | D67: [0],[1],[14], | E67: OrgType.SCHOOL | F67: 0052 | G67: Y | H67: 重庆市渝北区香城雅郡幼儿园 | I67: 香城雅郡幼儿园 | J67: 香城雅郡 | K67: 香城雅郡 | L67: EducationStage.PRESCHOOL_STAGE | M67: UrbanRuralType.URBAN | N67: OrgFundSource.PRIVATE | O67: 660 | P67: 渝北区仙桃街道睦邻路158号附12号14幢 | Q67: 等级一级，是否普惠园：是 | R67: CommonStatus.DISABLE | T67: new SysOrg { Id = 66, Pid = 14, Pids = "[0],[1],[14],", OrgType = OrgType.SCHOOL, OrgFundSource = OrgFundSource.PRIVATE, EducationStage = EducationStage.PRESCHOOL_STAGE, UrbanRuralType = UrbanRuralType.URBAN, Code = "0052", Name = "香城雅郡幼儿园", FullName = "重庆市渝北区香城雅郡幼儿园", ShortName = "香城雅郡", ShortName2 = "香城雅郡", TqesId = 0, TqesCode = "", Sort = 660, Status = CommonStatus.DISABLE, CreateSysUserId = 1, CreateTime = DateTime.Now },
A68: 67 | B68: 0 | C68: 14 | D68: [0],[1],[14], | E68: OrgType.SCHOOL | F68: 0053 | G68: Y | H68: 重庆市渝北区和庆路幼儿园 | I68: 和庆路幼儿园 | J68: 和庆路 | K68: 和庆路 | L68: EducationStage.PRESCHOOL_STAGE | M68: UrbanRuralType.URBAN | N68: OrgFundSource.PRIVATE | O68: 670 | P68: 渝北区和庆路1号 | Q68: 等级二级，是否普惠园：是 | R68: CommonStatus.DISABLE | T68: new SysOrg { Id = 67, Pid = 14, Pids = "[0],[1],[14],", OrgType = OrgType.SCHOOL, OrgFundSource = OrgFundSource.PRIVATE, EducationStage = EducationStage.PRESCHOOL_STAGE, UrbanRuralType = UrbanRuralType.URBAN, Code = "0053", Name = "和庆路幼儿园", FullName = "重庆市渝北区和庆路幼儿园", ShortName = "和庆路", ShortName2 = "和庆路", TqesId = 0, TqesCode = "", Sort = 670, Status = CommonStatus.DISABLE, CreateSysUserId = 1, CreateTime = DateTime.Now },
A69: 68 | B69: 0 | C69: 14 | D69: [0],[1],[14], | E69: OrgType.SCHOOL | F69: 0054 | G69: Y | H69: 重庆市渝北区戈米孚幼儿园 | I69: 戈米孚幼儿园 | J69: 戈米孚 | K69: 戈米孚 | L69: EducationStage.PRESCHOOL_STAGE | M69: UrbanRuralType.URBAN | N69: OrgFundSource.PRIVATE | O69: 680 | P69: 渝北区仙桃街道同辉路18号附35号8幢1-幼儿园 | Q69: 等级一级，是否普惠园：是 | R69: CommonStatus.DISABLE | T69: new SysOrg { Id = 68, Pid = 14, Pids = "[0],[1],[14],", OrgType = OrgType.SCHOOL, OrgFundSource = OrgFundSource.PRIVATE, EducationStage = EducationStage.PRESCHOOL_STAGE, UrbanRuralType = UrbanRuralType.URBAN, Code = "0054", Name = "戈米孚幼儿园", FullName = "重庆市渝北区戈米孚幼儿园", ShortName = "戈米孚", ShortName2 = "戈米孚", TqesId = 0, TqesCode = "", Sort = 680, Status = CommonStatus.DISABLE, CreateSysUserId = 1, CreateTime = DateTime.Now },
A70: 69 | B70: 0 | C70: 14 | D70: [0],[1],[14], | E70: OrgType.SCHOOL | F70: 0055 | G70: Y | H70: 重庆市渝北区奇心乐泽科幼儿园 | I70: 奇心乐泽科幼儿园 | J70: 奇心乐泽科 | K70: 奇心乐泽科 | L70: EducationStage.PRESCHOOL_STAGE | M70: UrbanRuralType.URBAN | N70: OrgFundSource.PRIVATE | O70: 690 | P70: 渝北区仙桃街道兰馨大道福畅路12号港城国际 | Q70: 等级一级，是否普惠园：否 | R70: CommonStatus.DISABLE | T70: new SysOrg { Id = 69, Pid = 14, Pids = "[0],[1],[14],", OrgType = OrgType.SCHOOL, OrgFundSource = OrgFundSource.PRIVATE, EducationStage = EducationStage.PRESCHOOL_STAGE, UrbanRuralType = UrbanRuralType.URBAN, Code = "0055", Name = "奇心乐泽科幼儿园", FullName = "重庆市渝北区奇心乐泽科幼儿园", ShortName = "奇心乐泽科", ShortName2 = "奇心乐泽科", TqesId = 0, TqesCode = "", Sort = 690, Status = CommonStatus.DISABLE, CreateSysUserId = 1, CreateTime = DateTime.Now },
A71: 70 | B71: 0 | C71: 14 | D71: [0],[1],[14], | E71: OrgType.SCHOOL | F71: 0056 | G71: Y | H71: 重庆市渝北区青苗幼儿园有限公司 | I71: 青苗幼儿园有限公司 | J71: 青苗有限公司 | K71: 青苗有限公司 | L71: EducationStage.PRESCHOOL_STAGE | M71: UrbanRuralType.URBAN | N71: OrgFundSource.PRIVATE | O71: 700 | P71: 渝北区成兴路21号附2-45至2-73号 | Q71: 等级一级，是否普惠园：否 | R71: CommonStatus.DISABLE | T71: new SysOrg { Id = 70, Pid = 14, Pids = "[0],[1],[14],", OrgType = OrgType.SCHOOL, OrgFundSource = OrgFundSource.PRIVATE, EducationStage = EducationStage.PRESCHOOL_STAGE, UrbanRuralType = UrbanRuralType.URBAN, Code = "0056", Name = "青苗幼儿园有限公司", FullName = "重庆市渝北区青苗幼儿园有限公司", ShortName = "青苗有限公司", ShortName2 = "青苗有限公司", TqesId = 0, TqesCode = "", Sort = 700, Status = CommonStatus.DISABLE, CreateSysUserId = 1, CreateTime = DateTime.Now },
A72: 71 | B72: 0 | C72: 14 | D72: [0],[1],[14], | E72: OrgType.SCHOOL | F72: 0057 | G72: Y | H72: 重庆市渝北区汇祥林里伟才幼儿园 | I72: 汇祥林里伟才幼儿园 | J72: 汇祥林里伟才 | K72: 汇祥林里伟才 | L72: EducationStage.PRESCHOOL_STAGE | M72: UrbanRuralType.URBAN | N72: OrgFundSource.PRIVATE | O72: 710 | P72: 渝北区仙桃街道城兴路16号香芷汀兰22幢 | Q72: 等级一级，是否普惠园：否 | R72: CommonStatus.DISABLE | T72: ="new SysOrg { Id = "&A72&", Pid = "&C72&", Pids = """&D72&""", OrgType = "&E72&", OrgFundSource = "&N72&", EducationStage = "&L72&", UrbanRuralType = "&M72&", Code = """&F72&""", Name = """&I72&""", FullName = """&H72&""", ShortName = """&J72&""", ShortName2 = """&K72&""", TqesId = "&B72&", TqesCode = """&S72&""", Sort = "&O72&", Status = "&R72&", CreateSysUserId = 1, CreateTime = DateTime.Now }," -> new SysOrg { Id = 71, Pid = 14, Pids = "[0],[1],[14],", OrgType = OrgType.SCHOOL, OrgFundSource = OrgFundSource.PRIVATE, EducationStage = EducationStage.PRESCHOOL_STAGE, UrbanRuralType = UrbanRuralType.URBAN, Code = "0057", Name = "汇祥林里伟才幼儿园", FullName = "重庆市渝北区汇祥林里伟才幼儿园", ShortName = "汇祥林里伟才", ShortName2 = "汇祥林里伟才", TqesId = 0, TqesCode = "", Sort = 710, Status = CommonStatus.DISABLE, CreateSysUserId = 1, CreateTime = DateTime.Now },
A73: 72 | B73: 0 | C73: 14 | D73: [0],[1],[14], | E73: OrgType.SCHOOL | F73: 0058 | G73: Y | H73: 重庆市渝北区辰星幼儿园 | I73: 辰星幼儿园 | J73: 辰星 | K73: 辰星 | L73: EducationStage.PRESCHOOL_STAGE | M73: UrbanRuralType.URBAN | N73: OrgFundSource.PRIVATE | O73: 720 | P73: 渝北区仙桃街道睦邻路9号 | Q73: 等级一级，是否普惠园：否 | R73: CommonStatus.DISABLE | T73: new SysOrg { Id = 72, Pid = 14, Pids = "[0],[1],[14],", OrgType = OrgType.SCHOOL, OrgFundSource = OrgFundSource.PRIVATE, EducationStage = EducationStage.PRESCHOOL_STAGE, UrbanRuralType = UrbanRuralType.URBAN, Code = "0058", Name = "辰星幼儿园", FullName = "重庆市渝北区辰星幼儿园", ShortName = "辰星", ShortName2 = "辰星", TqesId = 0, TqesCode = "", Sort = 720, Status = CommonStatus.DISABLE, CreateSysUserId = 1, CreateTime = DateTime.Now },
A74: 73 | B74: 0 | C74: 14 | D74: [0],[1],[14], | E74: OrgType.SCHOOL | F74: 0059 | G74: Y | H74: 重庆市渝北区爱加橄榄幼儿园 | I74: 爱加橄榄幼儿园 | J74: 爱加橄榄 | K74: 爱加橄榄 | L74: EducationStage.PRESCHOOL_STAGE | M74: UrbanRuralType.URBAN | N74: OrgFundSource.PRIVATE | O74: 730 | P74: 渝北区双龙湖街道福畅路一号 | Q74: 等级一级，是否普惠园：否 | R74: CommonStatus.DISABLE | T74: new SysOrg { Id = 73, Pid = 14, Pids = "[0],[1],[14],", OrgType = OrgType.SCHOOL, OrgFundSource = OrgFundSource.PRIVATE, EducationStage = EducationStage.PRESCHOOL_STAGE, UrbanRuralType = UrbanRuralType.URBAN, Code = "0059", Name = "爱加橄榄幼儿园", FullName = "重庆市渝北区爱加橄榄幼儿园", ShortName = "爱加橄榄", ShortName2 = "爱加橄榄", TqesId = 0, TqesCode = "", Sort = 730, Status = CommonStatus.DISABLE, CreateSysUserId = 1, CreateTime = DateTime.Now },
A75: 74 | B75: 0 | C75: 14 | D75: [0],[1],[14], | E75: OrgType.SCHOOL | F75: 0060 | G75: Y | H75: 重庆市渝北区蒙世学堂幼儿园 | I75: 蒙世学堂幼儿园 | J75: 蒙世学堂 | K75: 蒙世学堂 | L75: EducationStage.PRESCHOOL_STAGE | M75: UrbanRuralType.URBAN | N75: OrgFundSource.PRIVATE | O75: 740 | P75: 渝北区福畅路28号 | Q75: 等级二级，是否普惠园：否 | R75: CommonStatus.DISABLE | T75: new SysOrg { Id = 74, Pid = 14, Pids = "[0],[1],[14],", OrgType = OrgType.SCHOOL, OrgFundSource = OrgFundSource.PRIVATE, EducationStage = EducationStage.PRESCHOOL_STAGE, UrbanRuralType = UrbanRuralType.URBAN, Code = "0060", Name = "蒙世学堂幼儿园", FullName = "重庆市渝北区蒙世学堂幼儿园", ShortName = "蒙世学堂", ShortName2 = "蒙世学堂", TqesId = 0, TqesCode = "", Sort = 740, Status = CommonStatus.DISABLE, CreateSysUserId = 1, CreateTime = DateTime.Now },
A76: 75 | B76: 0 | C76: 14 | D76: [0],[1],[14], | E76: OrgType.SCHOOL | F76: 0061 | G76: Y | H76: 重庆市渝北区启明幼儿园 | I76: 启明幼儿园 | J76: 启明 | K76: 启明 | L76: EducationStage.PRESCHOOL_STAGE | M76: UrbanRuralType.URBAN | N76: OrgFundSource.PRIVATE | O76: 750 | P76: 渝北区空港新城金玉路18号 | Q76: 等级二级，是否普惠园：否 | R76: CommonStatus.DISABLE | T76: new SysOrg { Id = 75, Pid = 14, Pids = "[0],[1],[14],", OrgType = OrgType.SCHOOL, OrgFundSource = OrgFundSource.PRIVATE, EducationStage = EducationStage.PRESCHOOL_STAGE, UrbanRuralType = UrbanRuralType.URBAN, Code = "0061", Name = "启明幼儿园", FullName = "重庆市渝北区启明幼儿园", ShortName = "启明", ShortName2 = "启明", TqesId = 0, TqesCode = "", Sort = 750, Status = CommonStatus.DISABLE, CreateSysUserId = 1, CreateTime = DateTime.Now },
A77: 76 | B77: 0 | C77: 14 | D77: [0],[1],[14], | E77: OrgType.SCHOOL | F77: 0062 | G77: Y | H77: 重庆市渝北区金茂幼儿园 | I77: 金茂幼儿园 | J77: 金茂 | K77: 金茂 | L77: EducationStage.PRESCHOOL_STAGE | M77: UrbanRuralType.URBAN | N77: OrgFundSource.PRIVATE | O77: 760 | P77: 渝北区德才路329号金茂书院2号楼 | Q77: 等级预一级，是否普惠园：是 | R77: CommonStatus.DISABLE | T77: new SysOrg { Id = 76, Pid = 14, Pids = "[0],[1],[14],", OrgType = OrgType.SCHOOL, OrgFundSource = OrgFundSource.PRIVATE, EducationStage = EducationStage.PRESCHOOL_STAGE, UrbanRuralType = UrbanRuralType.URBAN, Code = "0062", Name = "金茂幼儿园", FullName = "重庆市渝北区金茂幼儿园", ShortName = "金茂", ShortName2 = "金茂", TqesId = 0, TqesCode = "", Sort = 760, Status = CommonStatus.DISABLE, CreateSysUserId = 1, CreateTime = DateTime.Now },
A78: 77 | B78: 0 | C78: 14 | D78: [0],[1],[14], | E78: OrgType.SCHOOL | F78: 0063 | G78: Y | H78: 重庆市渝北区三之三天晋幼儿园 | I78: 三之三天晋幼儿园 | J78: 三之三天晋 | K78: 三之三天晋 | L78: EducationStage.PRESCHOOL_STAGE | M78: UrbanRuralType.URBAN | N78: OrgFundSource.PRIVATE | O78: 770 | P78: 渝北区仙桃街道同茂大道38号天晋46栋 | Q78: 等级预一级，是否普惠园：是 | R78: CommonStatus.DISABLE | T78: new SysOrg { Id = 77, Pid = 14, Pids = "[0],[1],[14],", OrgType = OrgType.SCHOOL, OrgFundSource = OrgFundSource.PRIVATE, EducationStage = EducationStage.PRESCHOOL_STAGE, UrbanRuralType = UrbanRuralType.URBAN, Code = "0063", Name = "三之三天晋幼儿园", FullName = "重庆市渝北区三之三天晋幼儿园", ShortName = "三之三天晋", ShortName2 = "三之三天晋", TqesId = 0, TqesCode = "", Sort = 770, Status = CommonStatus.DISABLE, CreateSysUserId = 1, CreateTime = DateTime.Now },
A79: 78 | B79: 0 | C79: 14 | D79: [0],[1],[14], | E79: OrgType.SCHOOL | F79: 0064 | G79: Y | H79: 重庆市渝北区盛果誉峰幼儿园 | I79: 盛果誉峰幼儿园 | J79: 盛果誉峰 | K79: 盛果誉峰 | L79: EducationStage.PRESCHOOL_STAGE | M79: UrbanRuralType.URBAN | N79: OrgFundSource.PRIVATE | O79: =A79*10 -> 780 | P79: 渝北区富锦街23号 | Q79: 等级未定级，是否普惠园：是 | R79: CommonStatus.DISABLE | T79: new SysOrg { Id = 78, Pid = 14, Pids = "[0],[1],[14],", OrgType = OrgType.SCHOOL, OrgFundSource = OrgFundSource.PRIVATE, EducationStage = EducationStage.PRESCHOOL_STAGE, UrbanRuralType = UrbanRuralType.URBAN, Code = "0064", Name = "盛果誉峰幼儿园", FullName = "重庆市渝北区盛果誉峰幼儿园", ShortName = "盛果誉峰", ShortName2 = "盛果誉峰", TqesId = 0, TqesCode = "", Sort = 780, Status = CommonStatus.DISABLE, CreateSysUserId = 1, CreateTime = DateTime.Now },
A80: 79 | B80: 0 | C80: 14 | D80: [0],[1],[14], | E80: OrgType.SCHOOL | F80: 0065 | G80: Y | H80: 重庆市渝北区生生幼儿园 | I80: 生生幼儿园 | J80: 生生 | K80: 生生 | L80: EducationStage.PRESCHOOL_STAGE | M80: UrbanRuralType.URBAN | N80: OrgFundSource.PRIVATE | O80: 790 | P80: 渝北区福畅路55号13幢 | Q80: 等级未定级，是否普惠园：是 | R80: CommonStatus.DISABLE | T80: new SysOrg { Id = 79, Pid = 14, Pids = "[0],[1],[14],", OrgType = OrgType.SCHOOL, OrgFundSource = OrgFundSource.PRIVATE, EducationStage = EducationStage.PRESCHOOL_STAGE, UrbanRuralType = UrbanRuralType.URBAN, Code = "0065", Name = "生生幼儿园", FullName = "重庆市渝北区生生幼儿园", ShortName = "生生", ShortName2 = "生生", TqesId = 0, TqesCode = "", Sort = 790, Status = CommonStatus.DISABLE, CreateSysUserId = 1, CreateTime = DateTime.Now },
A81: 80 | B81: 0 | C81: =A$15 -> 14 | D81: =D$15&"["&C81&"]," -> [0],[1],[14], | E81: OrgType.SCHOOL | F81: 0066 | G81: Y | H81: 重庆市渝北幼儿园 | I81: 儿园 | J81: 儿园 | K81: 儿园 | L81: EducationStage.PRESCHOOL_STAGE | M81: UrbanRuralType.URBAN | N81: OrgFundSource.PUBLIC | O81: 800 | P81: 渝北区金航路86号 | Q81: 等级示范园，是否普惠园：是 | R81: CommonStatus.DISABLE | T81: new SysOrg { Id = 80, Pid = 14, Pids = "[0],[1],[14],", OrgType = OrgType.SCHOOL, OrgFundSource = OrgFundSource.PUBLIC, EducationStage = EducationStage.PRESCHOOL_STAGE, UrbanRuralType = UrbanRuralType.URBAN, Code = "0066", Name = "儿园", FullName = "重庆市渝北幼儿园", ShortName = "儿园", ShortName2 = "儿园", TqesId = 0, TqesCode = "", Sort = 800, Status = CommonStatus.DISABLE, CreateSysUserId = 1, CreateTime = DateTime.Now },
A82: 81 | B82: 0 | C82: 14 | D82: [0],[1],[14], | E82: OrgType.SCHOOL | F82: 0067 | G82: Y | H82: 重庆市渝北幼儿园空港新城园 | I82: 儿园空港新城园 | J82: 儿园空港新城园 | K82: 儿园空港新城园 | L82: EducationStage.PRESCHOOL_STAGE | M82: UrbanRuralType.URBAN | N82: OrgFundSource.PUBLIC | O82: 810 | P82: 仙桃街道桂馥一支路6号 | Q82: 等级一级，是否普惠园：是 | R82: CommonStatus.DISABLE | T82: new SysOrg { Id = 81, Pid = 14, Pids = "[0],[1],[14],", OrgType = OrgType.SCHOOL, OrgFundSource = OrgFundSource.PUBLIC, EducationStage = EducationStage.PRESCHOOL_STAGE, UrbanRuralType = UrbanRuralType.URBAN, Code = "0067", Name = "儿园空港新城园", FullName = "重庆市渝北幼儿园空港新城园", ShortName = "儿园空港新城园", ShortName2 = "儿园空港新城园", TqesId = 0, TqesCode = "", Sort = 810, Status = CommonStatus.DISABLE, CreateSysUserId = 1, CreateTime = DateTime.Now },
A83: 82 | B83: 0 | C83: 14 | D83: [0],[1],[14], | E83: OrgType.SCHOOL | F83: 0068 | G83: Y | H83: 重庆市渝北区两路幼儿园 | I83: 两路幼儿园 | J83: 两路 | K83: 两路 | L83: EducationStage.PRESCHOOL_STAGE | M83: UrbanRuralType.URBAN | N83: OrgFundSource.PUBLIC | O83: 820 | P83: 渝北区双凤路170号 | Q83: 等级一级，是否普惠园：是 | R83: CommonStatus.DISABLE | T83: new SysOrg { Id = 82, Pid = 14, Pids = "[0],[1],[14],", OrgType = OrgType.SCHOOL, OrgFundSource = OrgFundSource.PUBLIC, EducationStage = EducationStage.PRESCHOOL_STAGE, UrbanRuralType = UrbanRuralType.URBAN, Code = "0068", Name = "两路幼儿园", FullName = "重庆市渝北区两路幼儿园", ShortName = "两路", ShortName2 = "两路", TqesId = 0, TqesCode = "", Sort = 820, Status = CommonStatus.DISABLE, CreateSysUserId = 1, CreateTime = DateTime.Now },
A84: 83 | B84: 0 | C84: 14 | D84: [0],[1],[14], | E84: OrgType.SCHOOL | F84: 0069 | G84: Y | H84: 重庆市渝北区两路幼儿园晚晴园 | I84: 两路幼儿园晚晴园 | J84: 两路晚晴园 | K84: 两路晚晴园 | L84: EducationStage.PRESCHOOL_STAGE | M84: UrbanRuralType.URBAN | N84: OrgFundSource.PUBLIC | O84: 830 | P84: 渝北区双凤支路3号 | Q84: 等级一级，是否普惠园：是 | R84: CommonStatus.DISABLE | T84: new SysOrg { Id = 83, Pid = 14, Pids = "[0],[1],[14],", OrgType = OrgType.SCHOOL, OrgFundSource = OrgFundSource.PUBLIC, EducationStage = EducationStage.PRESCHOOL_STAGE, UrbanRuralType = UrbanRuralType.URBAN, Code = "0069", Name = "两路幼儿园晚晴园", FullName = "重庆市渝北区两路幼儿园晚晴园", ShortName = "两路晚晴园", ShortName2 = "两路晚晴园", TqesId = 0, TqesCode = "", Sort = 830, Status = CommonStatus.DISABLE, CreateSysUserId = 1, CreateTime = DateTime.Now },
A85: 84 | B85: 0 | C85: 14 | D85: [0],[1],[14], | E85: OrgType.SCHOOL | F85: 0070 | G85: Y | H85: 重庆市渝北金港国际实验小学校附属幼儿园 | I85: 港国际实验小学校附属幼儿园 | J85: 港国际实验小学校附属 | K85: 港国际实验小学校附属 | L85: EducationStage.PRESCHOOL_STAGE | M85: UrbanRuralType.URBAN | N85: OrgFundSource.PUBLIC | O85: 840 | P85: 渝北区胜利路李家湾3号 | Q85: 等级一级，是否普惠园：是 | R85: CommonStatus.DISABLE | T85: new SysOrg { Id = 84, Pid = 14, Pids = "[0],[1],[14],", OrgType = OrgType.SCHOOL, OrgFundSource = OrgFundSource.PUBLIC, EducationStage = EducationStage.PRESCHOOL_STAGE, UrbanRuralType = UrbanRuralType.URBAN, Code = "0070", Name = "港国际实验小学校附属幼儿园", FullName = "重庆市渝北金港国际实验小学校附属幼儿园", ShortName = "港国际实验小学校附属", ShortName2 = "港国际实验小学校附属", TqesId = 0, TqesCode = "", Sort = 840, Status = CommonStatus.DISABLE, CreateSysUserId = 1, CreateTime = DateTime.Now },
A86: 85 | B86: 0 | C86: 14 | D86: [0],[1],[14], | E86: OrgType.SCHOOL | F86: 0071 | G86: Y | H86: 重庆市渝北区汉渝路小学校附属幼儿园 | I86: 汉渝路小学校附属幼儿园 | J86: 汉渝路小学校附属 | K86: 汉渝路小学校附属 | L86: EducationStage.PRESCHOOL_STAGE | M86: UrbanRuralType.URBAN | N86: OrgFundSource.PUBLIC | O86: 850 | P86: 渝北区两路街道汉渝路62号 | Q86: 等级预一级，是否普惠园：是 | R86: CommonStatus.DISABLE | T86: new SysOrg { Id = 85, Pid = 14, Pids = "[0],[1],[14],", OrgType = OrgType.SCHOOL, OrgFundSource = OrgFundSource.PUBLIC, EducationStage = EducationStage.PRESCHOOL_STAGE, UrbanRuralType = UrbanRuralType.URBAN, Code = "0071", Name = "汉渝路小学校附属幼儿园", FullName = "重庆市渝北区汉渝路小学校附属幼儿园", ShortName = "汉渝路小学校附属", ShortName2 = "汉渝路小学校附属", TqesId = 0, TqesCode = "", Sort = 850, Status = CommonStatus.DISABLE, CreateSysUserId = 1, CreateTime = DateTime.Now },
A87: 86 | B87: 0 | C87: 14 | D87: [0],[1],[14], | E87: OrgType.SCHOOL | F87: 0072 | G87: Y | H87: 重庆市渝北区实验中学附属幼儿园 | I87: 实验中学附属幼儿园 | J87: 实验中学附属 | K87: 实验中学附属 | L87: EducationStage.PRESCHOOL_STAGE | M87: UrbanRuralType.URBAN | N87: OrgFundSource.PUBLIC | O87: 860 | P87: 渝北区双凤支路三号 | Q87: 等级预一级，是否普惠园：是 | R87: CommonStatus.DISABLE | T87: new SysOrg { Id = 86, Pid = 14, Pids = "[0],[1],[14],", OrgType = OrgType.SCHOOL, OrgFundSource = OrgFundSource.PUBLIC, EducationStage = EducationStage.PRESCHOOL_STAGE, UrbanRuralType = UrbanRuralType.URBAN, Code = "0072", Name = "实验中学附属幼儿园", FullName = "重庆市渝北区实验中学附属幼儿园", ShortName = "实验中学附属", ShortName2 = "实验中学附属", TqesId = 0, TqesCode = "", Sort = 860, Status = CommonStatus.DISABLE, CreateSysUserId = 1, CreateTime = DateTime.Now },
A88: 87 | B88: 0 | C88: 14 | D88: [0],[1],[14], | E88: OrgType.SCHOOL | F88: 0073 | G88: Y | H88: 重庆市渝北区笃信实验学校附属幼儿园 | I88: 笃信实验学校附属幼儿园 | J88: 笃信实验学校附属 | K88: 笃信实验学校附属 | L88: EducationStage.PRESCHOOL_STAGE | M88: UrbanRuralType.URBAN | N88: OrgFundSource.PUBLIC | O88: 870 | P88: 渝北区两路街道汉渝路101号 | Q88: 等级二级，是否普惠园：是 | R88: CommonStatus.DISABLE | T88: new SysOrg { Id = 87, Pid = 14, Pids = "[0],[1],[14],", OrgType = OrgType.SCHOOL, OrgFundSource = OrgFundSource.PUBLIC, EducationStage = EducationStage.PRESCHOOL_STAGE, UrbanRuralType = UrbanRuralType.URBAN, Code = "0073", Name = "笃信实验学校附属幼儿园", FullName = "重庆市渝北区笃信实验学校附属幼儿园", ShortName = "笃信实验学校附属", ShortName2 = "笃信实验学校附属", TqesId = 0, TqesCode = "", Sort = 870, Status = CommonStatus.DISABLE, CreateSysUserId = 1, CreateTime = DateTime.Now },
A89: 88 | B89: 0 | C89: 14 | D89: [0],[1],[14], | E89: OrgType.SCHOOL | F89: 0074 | G89: Y | H89: 重庆市渝北区特殊教育学校附属幼儿园 | I89: 特殊教育学校附属幼儿园 | J89: 特殊教育学校附属 | K89: 特殊教育学校附属 | L89: EducationStage.PRESCHOOL_STAGE | M89: UrbanRuralType.URBAN | N89: OrgFundSource.PUBLIC | O89: 880 | P89: 渝北区两路街道汉渝路69-5号 | Q89: 等级二级，是否普惠园：是 | R89: CommonStatus.DISABLE | T89: new SysOrg { Id = 88, Pid = 14, Pids = "[0],[1],[14],", OrgType = OrgType.SCHOOL, OrgFundSource = OrgFundSource.PUBLIC, EducationStage = EducationStage.PRESCHOOL_STAGE, UrbanRuralType = UrbanRuralType.URBAN, Code = "0074", Name = "特殊教育学校附属幼儿园", FullName = "重庆市渝北区特殊教育学校附属幼儿园", ShortName = "特殊教育学校附属", ShortName2 = "特殊教育学校附属", TqesId = 0, TqesCode = "", Sort = 880, Status = CommonStatus.DISABLE, CreateSysUserId = 1, CreateTime = DateTime.Now },
A90: 89 | B90: 0 | C90: 14 | D90: [0],[1],[14], | E90: OrgType.SCHOOL | F90: 0075 | G90: Y | H90: 重庆市渝北区新葵幼儿园 | I90: 新葵幼儿园 | J90: 新葵 | K90: 新葵 | L90: EducationStage.PRESCHOOL_STAGE | M90: UrbanRuralType.URBAN | N90: OrgFundSource.PRIVATE | O90: 890 | P90: 渝北区两路街道汉渝路101号 | Q90: 等级一级，是否普惠园：是 | R90: CommonStatus.DISABLE | T90: new SysOrg { Id = 89, Pid = 14, Pids = "[0],[1],[14],", OrgType = OrgType.SCHOOL, OrgFundSource = OrgFundSource.PRIVATE, EducationStage = EducationStage.PRESCHOOL_STAGE, UrbanRuralType = UrbanRuralType.URBAN, Code = "0075", Name = "新葵幼儿园", FullName = "重庆市渝北区新葵幼儿园", ShortName = "新葵", ShortName2 = "新葵", TqesId = 0, TqesCode = "", Sort = 890, Status = CommonStatus.DISABLE, CreateSysUserId = 1, CreateTime = DateTime.Now },
A91: 90 | B91: 0 | C91: 14 | D91: [0],[1],[14], | E91: OrgType.SCHOOL | F91: 0076 | G91: Y | H91: 重庆市渝北区双凤桥星星幼儿园 | I91: 双凤桥星星幼儿园 | J91: 双凤桥星星 | K91: 双凤桥星星 | L91: EducationStage.PRESCHOOL_STAGE | M91: UrbanRuralType.URBAN | N91: OrgFundSource.PRIVATE | O91: 900 | P91: 渝北区双凤路五巷48号 | Q91: 等级二级，是否普惠园：是 | R91: CommonStatus.DISABLE | T91: new SysOrg { Id = 90, Pid = 14, Pids = "[0],[1],[14],", OrgType = OrgType.SCHOOL, OrgFundSource = OrgFundSource.PRIVATE, EducationStage = EducationStage.PRESCHOOL_STAGE, UrbanRuralType = UrbanRuralType.URBAN, Code = "0076", Name = "双凤桥星星幼儿园", FullName = "重庆市渝北区双凤桥星星幼儿园", ShortName = "双凤桥星星", ShortName2 = "双凤桥星星", TqesId = 0, TqesCode = "", Sort = 900, Status = CommonStatus.DISABLE, CreateSysUserId = 1, CreateTime = DateTime.Now },
A92: 91 | B92: 0 | C92: 14 | D92: [0],[1],[14], | E92: OrgType.SCHOOL | F92: 0077 | G92: Y | H92: 重庆市渝北区泽科幼儿园 | I92: 泽科幼儿园 | J92: 泽科 | K92: 泽科 | L92: EducationStage.PRESCHOOL_STAGE | M92: UrbanRuralType.URBAN | N92: OrgFundSource.PRIVATE | O92: 910 | P92: 观音岩路83号泽科兴城A区 | Q92: 等级二级，是否普惠园：是 | R92: CommonStatus.DISABLE | T92: new SysOrg { Id = 91, Pid = 14, Pids = "[0],[1],[14],", OrgType = OrgType.SCHOOL, OrgFundSource = OrgFundSource.PRIVATE, EducationStage = EducationStage.PRESCHOOL_STAGE, UrbanRuralType = UrbanRuralType.URBAN, Code = "0077", Name = "泽科幼儿园", FullName = "重庆市渝北区泽科幼儿园", ShortName = "泽科", ShortName2 = "泽科", TqesId = 0, TqesCode = "", Sort = 910, Status = CommonStatus.DISABLE, CreateSysUserId = 1, CreateTime = DateTime.Now },
A93: 92 | B93: 0 | C93: 14 | D93: [0],[1],[14], | E93: OrgType.SCHOOL | F93: 0078 | G93: Y | H93: 重庆市渝北区双凤桥慧伶幼儿园 | I93: 双凤桥慧伶幼儿园 | J93: 双凤桥慧伶 | K93: 双凤桥慧伶 | L93: EducationStage.PRESCHOOL_STAGE | M93: UrbanRuralType.URBAN | N93: OrgFundSource.PRIVATE | O93: 920 | P93: 渝北区双凤桥天灯堡 | Q93: 等级二级，是否普惠园：是 | R93: CommonStatus.DISABLE | T93: new SysOrg { Id = 92, Pid = 14, Pids = "[0],[1],[14],", OrgType = OrgType.SCHOOL, OrgFundSource = OrgFundSource.PRIVATE, EducationStage = EducationStage.PRESCHOOL_STAGE, UrbanRuralType = UrbanRuralType.URBAN, Code = "0078", Name = "双凤桥慧伶幼儿园", FullName = "重庆市渝北区双凤桥慧伶幼儿园", ShortName = "双凤桥慧伶", ShortName2 = "双凤桥慧伶", TqesId = 0, TqesCode = "", Sort = 920, Status = CommonStatus.DISABLE, CreateSysUserId = 1, CreateTime = DateTime.Now },
A94: 93 | B94: 0 | C94: 14 | D94: [0],[1],[14], | E94: OrgType.SCHOOL | F94: 0079 | G94: Y | H94: 重庆市渝北区双凤桥高屋幼儿园 | I94: 双凤桥高屋幼儿园 | J94: 双凤桥高屋 | K94: 双凤桥高屋 | L94: EducationStage.PRESCHOOL_STAGE | M94: UrbanRuralType.URBAN | N94: OrgFundSource.PRIVATE | O94: 930 | P94: 渝北区汉渝路69-3号 | Q94: 等级三级，是否普惠园：是 | R94: CommonStatus.DISABLE | T94: new SysOrg { Id = 93, Pid = 14, Pids = "[0],[1],[14],", OrgType = OrgType.SCHOOL, OrgFundSource = OrgFundSource.PRIVATE, EducationStage = EducationStage.PRESCHOOL_STAGE, UrbanRuralType = UrbanRuralType.URBAN, Code = "0079", Name = "双凤桥高屋幼儿园", FullName = "重庆市渝北区双凤桥高屋幼儿园", ShortName = "双凤桥高屋", ShortName2 = "双凤桥高屋", TqesId = 0, TqesCode = "", Sort = 930, Status = CommonStatus.DISABLE, CreateSysUserId = 1, CreateTime = DateTime.Now },
A95: 94 | B95: 0 | C95: 14 | D95: [0],[1],[14], | E95: OrgType.SCHOOL | F95: 0080 | G95: Y | H95: 重庆市渝北区双凤桥乐乐幼儿园 | I95: 双凤桥乐乐幼儿园 | J95: 双凤桥乐乐 | K95: 双凤桥乐乐 | L95: EducationStage.PRESCHOOL_STAGE | M95: UrbanRuralType.URBAN | N95: OrgFundSource.PRIVATE | O95: 940 | P95: 渝北区双凤支路5号 | Q95: 等级三级，是否普惠园：是 | R95: CommonStatus.DISABLE | T95: new SysOrg { Id = 94, Pid = 14, Pids = "[0],[1],[14],", OrgType = OrgType.SCHOOL, OrgFundSource = OrgFundSource.PRIVATE, EducationStage = EducationStage.PRESCHOOL_STAGE, UrbanRuralType = UrbanRuralType.URBAN, Code = "0080", Name = "双凤桥乐乐幼儿园", FullName = "重庆市渝北区双凤桥乐乐幼儿园", ShortName = "双凤桥乐乐", ShortName2 = "双凤桥乐乐", TqesId = 0, TqesCode = "", Sort = 940, Status = CommonStatus.DISABLE, CreateSysUserId = 1, CreateTime = DateTime.Now },
A96: 95 | B96: 0 | C96: 14 | D96: [0],[1],[14], | E96: OrgType.SCHOOL | F96: 0081 | G96: Y | H96: 重庆市渝北区双凤桥大风车幼儿园 | I96: 双凤桥大风车幼儿园 | J96: 双凤桥大风车 | K96: 双凤桥大风车 | L96: EducationStage.PRESCHOOL_STAGE | M96: UrbanRuralType.URBAN | N96: OrgFundSource.PRIVATE | O96: 950 | P96: 渝航路三巷1号 | Q96: 等级三级，是否普惠园：是 | R96: CommonStatus.DISABLE | T96: new SysOrg { Id = 95, Pid = 14, Pids = "[0],[1],[14],", OrgType = OrgType.SCHOOL, OrgFundSource = OrgFundSource.PRIVATE, EducationStage = EducationStage.PRESCHOOL_STAGE, UrbanRuralType = UrbanRuralType.URBAN, Code = "0081", Name = "双凤桥大风车幼儿园", FullName = "重庆市渝北区双凤桥大风车幼儿园", ShortName = "双凤桥大风车", ShortName2 = "双凤桥大风车", TqesId = 0, TqesCode = "", Sort = 950, Status = CommonStatus.DISABLE, CreateSysUserId = 1, CreateTime = DateTime.Now },
A97: 96 | B97: 0 | C97: 14 | D97: [0],[1],[14], | E97: OrgType.SCHOOL | F97: 0082 | G97: Y | H97: 重庆市渝北区双凤桥艺树幼儿园 | I97: 双凤桥艺树幼儿园 | J97: 双凤桥艺树 | K97: 双凤桥艺树 | L97: EducationStage.PRESCHOOL_STAGE | M97: UrbanRuralType.URBAN | N97: OrgFundSource.PRIVATE | O97: 960 | P97: 渝航路14号 | Q97: 等级三级，是否普惠园：是 | R97: CommonStatus.DISABLE | T97: new SysOrg { Id = 96, Pid = 14, Pids = "[0],[1],[14],", OrgType = OrgType.SCHOOL, OrgFundSource = OrgFundSource.PRIVATE, EducationStage = EducationStage.PRESCHOOL_STAGE, UrbanRuralType = UrbanRuralType.URBAN, Code = "0082", Name = "双凤桥艺树幼儿园", FullName = "重庆市渝北区双凤桥艺树幼儿园", ShortName = "双凤桥艺树", ShortName2 = "双凤桥艺树", TqesId = 0, TqesCode = "", Sort = 960, Status = CommonStatus.DISABLE, CreateSysUserId = 1, CreateTime = DateTime.Now },
A98: 97 | B98: 0 | C98: 14 | D98: [0],[1],[14], | E98: OrgType.SCHOOL | F98: 0083 | G98: Y | H98: 重庆市渝北区双凤桥阳光幼儿园 | I98: 双凤桥阳光幼儿园 | J98: 双凤桥阳光 | K98: 双凤桥阳光 | L98: EducationStage.PRESCHOOL_STAGE | M98: UrbanRuralType.URBAN | N98: OrgFundSource.PRIVATE | O98: 970 | P98: 渝北区渝航路凯莱帝景15号 | Q98: 等级三级，是否普惠园：是 | R98: CommonStatus.DISABLE | T98: new SysOrg { Id = 97, Pid = 14, Pids = "[0],[1],[14],", OrgType = OrgType.SCHOOL, OrgFundSource = OrgFundSource.PRIVATE, EducationStage = EducationStage.PRESCHOOL_STAGE, UrbanRuralType = UrbanRuralType.URBAN, Code = "0083", Name = "双凤桥阳光幼儿园", FullName = "重庆市渝北区双凤桥阳光幼儿园", ShortName = "双凤桥阳光", ShortName2 = "双凤桥阳光", TqesId = 0, TqesCode = "", Sort = 970, Status = CommonStatus.DISABLE, CreateSysUserId = 1, CreateTime = DateTime.Now },
A99: 98 | B99: 0 | C99: 14 | D99: [0],[1],[14], | E99: OrgType.SCHOOL | F99: 0084 | G99: Y | H99: 重庆市渝北区双凤桥康乐幼儿园 | I99: 双凤桥康乐幼儿园 | J99: 双凤桥康乐 | K99: 双凤桥康乐 | L99: EducationStage.PRESCHOOL_STAGE | M99: UrbanRuralType.URBAN | N99: OrgFundSource.PRIVATE | O99: 980 | P99: 渝北区汉渝路二巷18号附1号 | Q99: 等级三级，是否普惠园：是 | R99: CommonStatus.DISABLE | T99: new SysOrg { Id = 98, Pid = 14, Pids = "[0],[1],[14],", OrgType = OrgType.SCHOOL, OrgFundSource = OrgFundSource.PRIVATE, EducationStage = EducationStage.PRESCHOOL_STAGE, UrbanRuralType = UrbanRuralType.URBAN, Code = "0084", Name = "双凤桥康乐幼儿园", FullName = "重庆市渝北区双凤桥康乐幼儿园", ShortName = "双凤桥康乐", ShortName2 = "双凤桥康乐", TqesId = 0, TqesCode = "", Sort = 980, Status = CommonStatus.DISABLE, CreateSysUserId = 1, CreateTime = DateTime.Now },
A100: 99 | B100: 0 | C100: 14 | D100: [0],[1],[14], | E100: OrgType.SCHOOL | F100: 0085 | G100: Y | H100: 重庆市渝北区两江第一幼儿园环雅园 | I100: 两江第一幼儿园环雅园 | J100: 两江第一环雅园 | K100: 两江第一环雅园 | L100: EducationStage.PRESCHOOL_STAGE | M100: UrbanRuralType.URBAN | N100: OrgFundSource.PUBLIC | O100: 990 | P100: 渝北区桃源大道559号 | Q100: 等级一级，是否普惠园：是 | R100: CommonStatus.DISABLE | T100: new SysOrg { Id = 99, Pid = 14, Pids = "[0],[1],[14],", OrgType = OrgType.SCHOOL, OrgFundSource = OrgFundSource.PUBLIC, EducationStage = EducationStage.PRESCHOOL_STAGE, UrbanRuralType = UrbanRuralType.URBAN, Code = "0085", Name = "两江第一幼儿园环雅园", FullName = "重庆市渝北区两江第一幼儿园环雅园", ShortName = "两江第一环雅园", ShortName2 = "两江第一环雅园", TqesId = 0, TqesCode = "", Sort = 990, Status = CommonStatus.DISABLE, CreateSysUserId = 1, CreateTime = DateTime.Now },
A101: 100 | B101: 0 | C101: 14 | D101: [0],[1],[14], | E101: OrgType.SCHOOL | F101: 0086 | G101: Y | H101: 重庆市渝北区两江第一幼儿园 | I101: 两江第一幼儿园 | J101: 两江第一 | K101: 两江第一 | L101: EducationStage.PRESCHOOL_STAGE | M101: UrbanRuralType.URBAN | N101: OrgFundSource.PUBLIC | O101: 1000 | P101: 渝北区环湖雅居B区民秀路1号附9号 | Q101: 等级一级，是否普惠园：是 | R101: CommonStatus.DISABLE | T101: new SysOrg { Id = 100, Pid = 14, Pids = "[0],[1],[14],", OrgType = OrgType.SCHOOL, OrgFundSource = OrgFundSource.PUBLIC, EducationStage = EducationStage.PRESCHOOL_STAGE, UrbanRuralType = UrbanRuralType.URBAN, Code = "0086", Name = "两江第一幼儿园", FullName = "重庆市渝北区两江第一幼儿园", ShortName = "两江第一", ShortName2 = "两江第一", TqesId = 0, TqesCode = "", Sort = 1000, Status = CommonStatus.DISABLE, CreateSysUserId = 1, CreateTime = DateTime.Now },
A102: 101 | B102: 0 | C102: 14 | D102: [0],[1],[14], | E102: OrgType.SCHOOL | F102: 0087 | G102: Y | H102: 重庆市渝北区两江第一幼儿园桃源园 | I102: 两江第一幼儿园桃源园 | J102: 两江第一桃源园 | K102: 两江第一桃源园 | L102: EducationStage.PRESCHOOL_STAGE | M102: UrbanRuralType.URBAN | N102: OrgFundSource.PUBLIC | O102: 1010 | P102: 渝北区桃源大道888号 | Q102: 等级二级，是否普惠园：是 | R102: CommonStatus.DISABLE | T102: new SysOrg { Id = 101, Pid = 14, Pids = "[0],[1],[14],", OrgType = OrgType.SCHOOL, OrgFundSource = OrgFundSource.PUBLIC, EducationStage = EducationStage.PRESCHOOL_STAGE, UrbanRuralType = UrbanRuralType.URBAN, Code = "0087", Name = "两江第一幼儿园桃源园", FullName = "重庆市渝北区两江第一幼儿园桃源园", ShortName = "两江第一桃源园", ShortName2 = "两江第一桃源园", TqesId = 0, TqesCode = "", Sort = 1010, Status = CommonStatus.DISABLE, CreateSysUserId = 1, CreateTime = DateTime.Now },
A103: 102 | B103: 0 | C103: 14 | D103: [0],[1],[14], | E103: OrgType.SCHOOL | F103: 0088 | G103: Y | H103: 重庆市渝北区空港实验小学校附属幼儿园 | I103: 空港实验小学校附属幼儿园 | J103: 空港实验小学校附属 | K103: 空港实验小学校附属 | L103: EducationStage.PRESCHOOL_STAGE | M103: UrbanRuralType.URBAN | N103: OrgFundSource.PUBLIC | O103: 1020 | P103: 渝北区双凤桥街道安康路225号 | Q103: 等级一级，是否普惠园：是 | R103: CommonStatus.DISABLE | T103: new SysOrg { Id = 102, Pid = 14, Pids = "[0],[1],[14],", OrgType = OrgType.SCHOOL, OrgFundSource = OrgFundSource.PUBLIC, EducationStage = EducationStage.PRESCHOOL_STAGE, UrbanRuralType = UrbanRuralType.URBAN, Code = "0088", Name = "空港实验小学校附属幼儿园", FullName = "重庆市渝北区空港实验小学校附属幼儿园", ShortName = "空港实验小学校附属", ShortName2 = "空港实验小学校附属", TqesId = 0, TqesCode = "", Sort = 1020, Status = CommonStatus.DISABLE, CreateSysUserId = 1, CreateTime = DateTime.Now },
A104: 103 | B104: 0 | C104: 14 | D104: [0],[1],[14], | E104: OrgType.SCHOOL | F104: 0089 | G104: Y | H104: 重庆市渝北区长安锦尚小学附属幼儿园 | I104: 长安锦尚小学附属幼儿园 | J104: 长安锦尚小学附属 | K104: 长安锦尚小学附属 | L104: EducationStage.PRESCHOOL_STAGE | M104: UrbanRuralType.URBAN | N104: OrgFundSource.PUBLIC | O104: 1030 | P104: 渝北区观月大道滨河路1号 | Q104: 等级二级，是否普惠园：是 | R104: CommonStatus.DISABLE | T104: new SysOrg { Id = 103, Pid = 14, Pids = "[0],[1],[14],", OrgType = OrgType.SCHOOL, OrgFundSource = OrgFundSource.PUBLIC, EducationStage = EducationStage.PRESCHOOL_STAGE, UrbanRuralType = UrbanRuralType.URBAN, Code = "0089", Name = "长安锦尚小学附属幼儿园", FullName = "重庆市渝北区长安锦尚小学附属幼儿园", ShortName = "长安锦尚小学附属", ShortName2 = "长安锦尚小学附属", TqesId = 0, TqesCode = "", Sort = 1030, Status = CommonStatus.DISABLE, CreateSysUserId = 1, CreateTime = DateTime.Now },
A105: 104 | B105: 0 | C105: 14 | D105: [0],[1],[14], | E105: OrgType.SCHOOL | F105: 0090 | G105: Y | H105: 重庆市渝北区环雅小学校附属幼儿园 | I105: 环雅小学校附属幼儿园 | J105: 环雅小学校附属 | K105: 环雅小学校附属 | L105: EducationStage.PRESCHOOL_STAGE | M105: UrbanRuralType.URBAN | N105: OrgFundSource.PUBLIC | O105: 1040 | P105: 渝北区民秀路5号 | Q105: 等级一级，是否普惠园：是 | R105: CommonStatus.DISABLE | T105: new SysOrg { Id = 104, Pid = 14, Pids = "[0],[1],[14],", OrgType = OrgType.SCHOOL, OrgFundSource = OrgFundSource.PUBLIC, EducationStage = EducationStage.PRESCHOOL_STAGE, UrbanRuralType = UrbanRuralType.URBAN, Code = "0090", Name = "环雅小学校附属幼儿园", FullName = "重庆市渝北区环雅小学校附属幼儿园", ShortName = "环雅小学校附属", ShortName2 = "环雅小学校附属", TqesId = 0, TqesCode = "", Sort = 1040, Status = CommonStatus.DISABLE, CreateSysUserId = 1, CreateTime = DateTime.Now },
A106: 105 | B106: 0 | C106: 14 | D106: [0],[1],[14], | E106: OrgType.SCHOOL | F106: 0091 | G106: Y | H106: 重庆市渝北区观月小学校附属幼儿园 | I106: 观月小学校附属幼儿园 | J106: 观月小学校附属 | K106: 观月小学校附属 | L106: EducationStage.PRESCHOOL_STAGE | M106: UrbanRuralType.URBAN | N106: OrgFundSource.PUBLIC | O106: 1050 | P106: 渝北区双凤桥街道观月北路229号 | Q106: 等级预一级，是否普惠园：是 | R106: CommonStatus.DISABLE | T106: new SysOrg { Id = 105, Pid = 14, Pids = "[0],[1],[14],", OrgType = OrgType.SCHOOL, OrgFundSource = OrgFundSource.PUBLIC, EducationStage = EducationStage.PRESCHOOL_STAGE, UrbanRuralType = UrbanRuralType.URBAN, Code = "0091", Name = "观月小学校附属幼儿园", FullName = "重庆市渝北区观月小学校附属幼儿园", ShortName = "观月小学校附属", ShortName2 = "观月小学校附属", TqesId = 0, TqesCode = "", Sort = 1050, Status = CommonStatus.DISABLE, CreateSysUserId = 1, CreateTime = DateTime.Now },
A107: 106 | B107: 0 | C107: 14 | D107: [0],[1],[14], | E107: OrgType.SCHOOL | F107: 0092 | G107: Y | H107: 重庆市渝北区兴阳瑞丰幼儿园 | I107: 兴阳瑞丰幼儿园 | J107: 兴阳瑞丰 | K107: 兴阳瑞丰 | L107: EducationStage.PRESCHOOL_STAGE | M107: UrbanRuralType.URBAN | N107: OrgFundSource.PRIVATE | O107: 1060 | P107: 渝北区空港大道251号 | Q107: 等级一级，是否普惠园：是 | R107: CommonStatus.DISABLE | T107: new SysOrg { Id = 106, Pid = 14, Pids = "[0],[1],[14],", OrgType = OrgType.SCHOOL, OrgFundSource = OrgFundSource.PRIVATE, EducationStage = EducationStage.PRESCHOOL_STAGE, UrbanRuralType = UrbanRuralType.URBAN, Code = "0092", Name = "兴阳瑞丰幼儿园", FullName = "重庆市渝北区兴阳瑞丰幼儿园", ShortName = "兴阳瑞丰", ShortName2 = "兴阳瑞丰", TqesId = 0, TqesCode = "", Sort = 1060, Status = CommonStatus.DISABLE, CreateSysUserId = 1, CreateTime = DateTime.Now },
A108: 107 | B108: 0 | C108: 14 | D108: [0],[1],[14], | E108: OrgType.SCHOOL | F108: 0093 | G108: Y | H108: 重庆市渝北区兴阳幼儿园 | I108: 兴阳幼儿园 | J108: 兴阳 | K108: 兴阳 | L108: EducationStage.PRESCHOOL_STAGE | M108: UrbanRuralType.URBAN | N108: OrgFundSource.PRIVATE | O108: 1070 | P108: 渝北区双凤桥街道长翔路150号 | Q108: 等级一级，是否普惠园：是 | R108: CommonStatus.DISABLE | T108: new SysOrg { Id = 107, Pid = 14, Pids = "[0],[1],[14],", OrgType = OrgType.SCHOOL, OrgFundSource = OrgFundSource.PRIVATE, EducationStage = EducationStage.PRESCHOOL_STAGE, UrbanRuralType = UrbanRuralType.URBAN, Code = "0093", Name = "兴阳幼儿园", FullName = "重庆市渝北区兴阳幼儿园", ShortName = "兴阳", ShortName2 = "兴阳", TqesId = 0, TqesCode = "", Sort = 1070, Status = CommonStatus.DISABLE, CreateSysUserId = 1, CreateTime = DateTime.Now },
A109: 108 | B109: 0 | C109: 14 | D109: [0],[1],[14], | E109: OrgType.SCHOOL | F109: 0094 | G109: Y | H109: 重庆市渝北区当当香海驿幼儿园 | I109: 当当香海驿幼儿园 | J109: 当当香海驿 | K109: 当当香海驿 | L109: EducationStage.PRESCHOOL_STAGE | M109: UrbanRuralType.URBAN | N109: OrgFundSource.PRIVATE | O109: 1080 | P109: 渝北区空港大道766号香海驿小区19栋 | Q109: 等级一级，是否普惠园：是 | R109: CommonStatus.DISABLE | T109: new SysOrg { Id = 108, Pid = 14, Pids = "[0],[1],[14],", OrgType = OrgType.SCHOOL, OrgFundSource = OrgFundSource.PRIVATE, EducationStage = EducationStage.PRESCHOOL_STAGE, UrbanRuralType = UrbanRuralType.URBAN, Code = "0094", Name = "当当香海驿幼儿园", FullName = "重庆市渝北区当当香海驿幼儿园", ShortName = "当当香海驿", ShortName2 = "当当香海驿", TqesId = 0, TqesCode = "", Sort = 1080, Status = CommonStatus.DISABLE, CreateSysUserId = 1, CreateTime = DateTime.Now },
A110: 109 | B110: 0 | C110: 14 | D110: [0],[1],[14], | E110: OrgType.SCHOOL | F110: 0095 | G110: Y | H110: 重庆市渝北区长安锦尚城幼儿园 | I110: 长安锦尚城幼儿园 | J110: 长安锦尚城 | K110: 长安锦尚城 | L110: EducationStage.PRESCHOOL_STAGE | M110: UrbanRuralType.URBAN | N110: OrgFundSource.PRIVATE | O110: 1090 | P110: 渝北区双凤桥街道空港大道655号滨溪路12号 | Q110: 等级一级，是否普惠园：是 | R110: CommonStatus.DISABLE | T110: new SysOrg { Id = 109, Pid = 14, Pids = "[0],[1],[14],", OrgType = OrgType.SCHOOL, OrgFundSource = OrgFundSource.PRIVATE, EducationStage = EducationStage.PRESCHOOL_STAGE, UrbanRuralType = UrbanRuralType.URBAN, Code = "0095", Name = "长安锦尚城幼儿园", FullName = "重庆市渝北区长安锦尚城幼儿园", ShortName = "长安锦尚城", ShortName2 = "长安锦尚城", TqesId = 0, TqesCode = "", Sort = 1090, Status = CommonStatus.DISABLE, CreateSysUserId = 1, CreateTime = DateTime.Now },
A111: 110 | B111: 0 | C111: 14 | D111: [0],[1],[14], | E111: OrgType.SCHOOL | F111: 0096 | G111: Y | H111: 重庆市渝北区空港童心幼儿园 | I111: 空港童心幼儿园 | J111: 空港童心 | K111: 空港童心 | L111: EducationStage.PRESCHOOL_STAGE | M111: UrbanRuralType.URBAN | N111: OrgFundSource.PRIVATE | O111: 1100 | P111: 渝北区双凤桥街道泰福路6号4幢2-2 | Q111: 等级二级，是否普惠园：是 | R111: CommonStatus.DISABLE | T111: new SysOrg { Id = 110, Pid = 14, Pids = "[0],[1],[14],", OrgType = OrgType.SCHOOL, OrgFundSource = OrgFundSource.PRIVATE, EducationStage = EducationStage.PRESCHOOL_STAGE, UrbanRuralType = UrbanRuralType.URBAN, Code = "0096", Name = "空港童心幼儿园", FullName = "重庆市渝北区空港童心幼儿园", ShortName = "空港童心", ShortName2 = "空港童心", TqesId = 0, TqesCode = "", Sort = 1100, Status = CommonStatus.DISABLE, CreateSysUserId = 1, CreateTime = DateTime.Now },
A112: 111 | B112: 0 | C112: 14 | D112: [0],[1],[14], | E112: OrgType.SCHOOL | F112: 0097 | G112: Y | H112: 重庆市渝北区浩博幼儿园 | I112: 浩博幼儿园 | J112: 浩博 | K112: 浩博 | L112: EducationStage.PRESCHOOL_STAGE | M112: UrbanRuralType.URBAN | N112: OrgFundSource.PRIVATE | O112: 1110 | P112: 渝北区双凤桥长空路249号 | Q112: 等级二级，是否普惠园：是 | R112: CommonStatus.DISABLE | T112: new SysOrg { Id = 111, Pid = 14, Pids = "[0],[1],[14],", OrgType = OrgType.SCHOOL, OrgFundSource = OrgFundSource.PRIVATE, EducationStage = EducationStage.PRESCHOOL_STAGE, UrbanRuralType = UrbanRuralType.URBAN, Code = "0097", Name = "浩博幼儿园", FullName = "重庆市渝北区浩博幼儿园", ShortName = "浩博", ShortName2 = "浩博", TqesId = 0, TqesCode = "", Sort = 1110, Status = CommonStatus.DISABLE, CreateSysUserId = 1, CreateTime = DateTime.Now },
A113: 112 | B113: 0 | C113: 14 | D113: [0],[1],[14], | E113: OrgType.SCHOOL | F113: 0098 | G113: Y | H113: 重庆市渝北区双凤桥金易星辰幼儿园 | I113: 双凤桥金易星辰幼儿园 | J113: 双凤桥金易星辰 | K113: 双凤桥金易星辰 | L113: EducationStage.PRESCHOOL_STAGE | M113: UrbanRuralType.URBAN | N113: OrgFundSource.PRIVATE | O113: 1120 | P113: 渝北区双凤桥街道双凤支路188号 | Q113: 等级二级，是否普惠园：是 | R113: CommonStatus.DISABLE | T113: new SysOrg { Id = 112, Pid = 14, Pids = "[0],[1],[14],", OrgType = OrgType.SCHOOL, OrgFundSource = OrgFundSource.PRIVATE, EducationStage = EducationStage.PRESCHOOL_STAGE, UrbanRuralType = UrbanRuralType.URBAN, Code = "0098", Name = "双凤桥金易星辰幼儿园", FullName = "重庆市渝北区双凤桥金易星辰幼儿园", ShortName = "双凤桥金易星辰", ShortName2 = "双凤桥金易星辰", TqesId = 0, TqesCode = "", Sort = 1120, Status = CommonStatus.DISABLE, CreateSysUserId = 1, CreateTime = DateTime.Now },
A114: 113 | B114: 0 | C114: 14 | D114: [0],[1],[14], | E114: OrgType.SCHOOL | F114: 0099 | G114: Y | H114: 重庆市渝北区双凤桥青麓幼儿园 | I114: 双凤桥青麓幼儿园 | J114: 双凤桥青麓 | K114: 双凤桥青麓 | L114: EducationStage.PRESCHOOL_STAGE | M114: UrbanRuralType.URBAN | N114: OrgFundSource.PRIVATE | O114: 1130 | P114: 渝北区空港大道99号 | Q114: 等级二级，是否普惠园：是 | R114: CommonStatus.DISABLE | T114: new SysOrg { Id = 113, Pid = 14, Pids = "[0],[1],[14],", OrgType = OrgType.SCHOOL, OrgFundSource = OrgFundSource.PRIVATE, EducationStage = EducationStage.PRESCHOOL_STAGE, UrbanRuralType = UrbanRuralType.URBAN, Code = "0099", Name = "双凤桥青麓幼儿园", FullName = "重庆市渝北区双凤桥青麓幼儿园", ShortName = "双凤桥青麓", ShortName2 = "双凤桥青麓", TqesId = 0, TqesCode = "", Sort = 1130, Status = CommonStatus.DISABLE, CreateSysUserId = 1, CreateTime = DateTime.Now },
A115: 114 | B115: 0 | C115: 14 | D115: [0],[1],[14], | E115: OrgType.SCHOOL | F115: 0100 | G115: Y | H115: 重庆市渝北区蕾蕾唐庄幼儿园 | I115: 蕾蕾唐庄幼儿园 | J115: 蕾蕾唐庄 | K115: 蕾蕾唐庄 | L115: EducationStage.PRESCHOOL_STAGE | M115: UrbanRuralType.URBAN | N115: OrgFundSource.PRIVATE | O115: 1140 | P115: 渝北区双凤桥街道凤鸣路66号 | Q115: 等级二级，是否普惠园：是 | R115: CommonStatus.DISABLE | T115: new SysOrg { Id = 114, Pid = 14, Pids = "[0],[1],[14],", OrgType = OrgType.SCHOOL, OrgFundSource = OrgFundSource.PRIVATE, EducationStage = EducationStage.PRESCHOOL_STAGE, UrbanRuralType = UrbanRuralType.URBAN, Code = "0100", Name = "蕾蕾唐庄幼儿园", FullName = "重庆市渝北区蕾蕾唐庄幼儿园", ShortName = "蕾蕾唐庄", ShortName2 = "蕾蕾唐庄", TqesId = 0, TqesCode = "", Sort = 1140, Status = CommonStatus.DISABLE, CreateSysUserId = 1, CreateTime = DateTime.Now },
A116: 115 | B116: 0 | C116: 14 | D116: [0],[1],[14], | E116: OrgType.SCHOOL | F116: 0101 | G116: Y | H116: 重庆市渝北区海智幼儿园 | I116: 海智幼儿园 | J116: 海智 | K116: 海智 | L116: EducationStage.PRESCHOOL_STAGE | M116: UrbanRuralType.URBAN | N116: OrgFundSource.PRIVATE | O116: 1150 | P116: 渝北区观月大道99号附2号2-1 | Q116: 等级二级，是否普惠园：是 | R116: CommonStatus.DISABLE | T116: new SysOrg { Id = 115, Pid = 14, Pids = "[0],[1],[14],", OrgType = OrgType.SCHOOL, OrgFundSource = OrgFundSource.PRIVATE, EducationStage = EducationStage.PRESCHOOL_STAGE, UrbanRuralType = UrbanRuralType.URBAN, Code = "0101", Name = "海智幼儿园", FullName = "重庆市渝北区海智幼儿园", ShortName = "海智", ShortName2 = "海智", TqesId = 0, TqesCode = "", Sort = 1150, Status = CommonStatus.DISABLE, CreateSysUserId = 1, CreateTime = DateTime.Now },
A117: 116 | B117: 0 | C117: 14 | D117: [0],[1],[14], | E117: OrgType.SCHOOL | F117: 0102 | G117: Y | H117: 重庆市渝北区艺思蒙想幼儿园 | I117: 艺思蒙想幼儿园 | J117: 艺思蒙想 | K117: 艺思蒙想 | L117: EducationStage.PRESCHOOL_STAGE | M117: UrbanRuralType.URBAN | N117: OrgFundSource.PRIVATE | O117: 1160 | P117: 渝北区观月北路217号附1号 | Q117: 等级一级，是否普惠园：是 | R117: CommonStatus.DISABLE | T117: new SysOrg { Id = 116, Pid = 14, Pids = "[0],[1],[14],", OrgType = OrgType.SCHOOL, OrgFundSource = OrgFundSource.PRIVATE, EducationStage = EducationStage.PRESCHOOL_STAGE, UrbanRuralType = UrbanRuralType.URBAN, Code = "0102", Name = "艺思蒙想幼儿园", FullName = "重庆市渝北区艺思蒙想幼儿园", ShortName = "艺思蒙想", ShortName2 = "艺思蒙想", TqesId = 0, TqesCode = "", Sort = 1160, Status = CommonStatus.DISABLE, CreateSysUserId = 1, CreateTime = DateTime.Now },
A118: 117 | B118: 0 | C118: 14 | D118: [0],[1],[14], | E118: OrgType.SCHOOL | F118: 0103 | G118: Y | H118: 重庆市渝北区双凤桥红苹果幼儿园 | I118: 双凤桥红苹果幼儿园 | J118: 双凤桥红苹果 | K118: 双凤桥红苹果 | L118: EducationStage.PRESCHOOL_STAGE | M118: UrbanRuralType.URBAN | N118: OrgFundSource.PRIVATE | O118: 1170 | P118: 渝北区双凤桥支路90号 | Q118: 等级三级，是否普惠园：是 | R118: CommonStatus.DISABLE | T118: new SysOrg { Id = 117, Pid = 14, Pids = "[0],[1],[14],", OrgType = OrgType.SCHOOL, OrgFundSource = OrgFundSource.PRIVATE, EducationStage = EducationStage.PRESCHOOL_STAGE, UrbanRuralType = UrbanRuralType.URBAN, Code = "0103", Name = "双凤桥红苹果幼儿园", FullName = "重庆市渝北区双凤桥红苹果幼儿园", ShortName = "双凤桥红苹果", ShortName2 = "双凤桥红苹果", TqesId = 0, TqesCode = "", Sort = 1170, Status = CommonStatus.DISABLE, CreateSysUserId = 1, CreateTime = DateTime.Now },
A119: 118 | B119: 0 | C119: 14 | D119: [0],[1],[14], | E119: OrgType.SCHOOL | F119: 0104 | G119: Y | H119: 重庆市渝北区双凤桥建兴幼儿园 | I119: 双凤桥建兴幼儿园 | J119: 双凤桥建兴 | K119: 双凤桥建兴 | L119: EducationStage.PRESCHOOL_STAGE | M119: UrbanRuralType.URBAN | N119: OrgFundSource.PRIVATE | O119: 1180 | P119: 渝北区双凤桥街道观月大道294号泽科 | Q119: 等级二级，是否普惠园：是 | R119: CommonStatus.DISABLE | T119: new SysOrg { Id = 118, Pid = 14, Pids = "[0],[1],[14],", OrgType = OrgType.SCHOOL, OrgFundSource = OrgFundSource.PRIVATE, EducationStage = EducationStage.PRESCHOOL_STAGE, UrbanRuralType = UrbanRuralType.URBAN, Code = "0104", Name = "双凤桥建兴幼儿园", FullName = "重庆市渝北区双凤桥建兴幼儿园", ShortName = "双凤桥建兴", ShortName2 = "双凤桥建兴", TqesId = 0, TqesCode = "", Sort = 1180, Status = CommonStatus.DISABLE, CreateSysUserId = 1, CreateTime = DateTime.Now },
A120: 119 | B120: 0 | C120: 14 | D120: [0],[1],[14], | E120: OrgType.SCHOOL | F120: 0105 | G120: Y | H120: 重庆市渝北区双凤桥蕾蕾幼儿园 | I120: 双凤桥蕾蕾幼儿园 | J120: 双凤桥蕾蕾 | K120: 双凤桥蕾蕾 | L120: EducationStage.PRESCHOOL_STAGE | M120: UrbanRuralType.URBAN | N120: OrgFundSource.PRIVATE | O120: 1190 | P120: 渝北区双凤桥街道双凤桥支路68号 | Q120: 等级三级，是否普惠园：是 | R120: CommonStatus.DISABLE | T120: new SysOrg { Id = 119, Pid = 14, Pids = "[0],[1],[14],", OrgType = OrgType.SCHOOL, OrgFundSource = OrgFundSource.PRIVATE, EducationStage = EducationStage.PRESCHOOL_STAGE, UrbanRuralType = UrbanRuralType.URBAN, Code = "0105", Name = "双凤桥蕾蕾幼儿园", FullName = "重庆市渝北区双凤桥蕾蕾幼儿园", ShortName = "双凤桥蕾蕾", ShortName2 = "双凤桥蕾蕾", TqesId = 0, TqesCode = "", Sort = 1190, Status = CommonStatus.DISABLE, CreateSysUserId = 1, CreateTime = DateTime.Now },
A121: 120 | B121: 0 | C121: 14 | D121: [0],[1],[14], | E121: OrgType.SCHOOL | F121: 0106 | G121: Y | H121: 重庆市渝北区双凤桥晨曦幼儿园 | I121: 双凤桥晨曦幼儿园 | J121: 双凤桥晨曦 | K121: 双凤桥晨曦 | L121: EducationStage.PRESCHOOL_STAGE | M121: UrbanRuralType.URBAN | N121: OrgFundSource.PRIVATE | O121: 1200 | P121: 渝北区双凤桥街道桃源大道363号 | Q121: 等级三级，是否普惠园：是 | R121: CommonStatus.DISABLE | T121: new SysOrg { Id = 120, Pid = 14, Pids = "[0],[1],[14],", OrgType = OrgType.SCHOOL, OrgFundSource = OrgFundSource.PRIVATE, EducationStage = EducationStage.PRESCHOOL_STAGE, UrbanRuralType = UrbanRuralType.URBAN, Code = "0106", Name = "双凤桥晨曦幼儿园", FullName = "重庆市渝北区双凤桥晨曦幼儿园", ShortName = "双凤桥晨曦", ShortName2 = "双凤桥晨曦", TqesId = 0, TqesCode = "", Sort = 1200, Status = CommonStatus.DISABLE, CreateSysUserId = 1, CreateTime = DateTime.Now },
A122: 121 | B122: 0 | C122: 14 | D122: [0],[1],[14], | E122: OrgType.SCHOOL | F122: 0107 | G122: Y | H122: 重庆市渝北区金色童年幼儿园 | I122: 金色童年幼儿园 | J122: 金色童年 | K122: 金色童年 | L122: EducationStage.PRESCHOOL_STAGE | M122: UrbanRuralType.URBAN | N122: OrgFundSource.PRIVATE | O122: 1210 | P122: 渝北区双凤桥街道翔宇路29号2幢2-2 | Q122: 等级三级，是否普惠园：是 | R122: CommonStatus.DISABLE | T122: new SysOrg { Id = 121, Pid = 14, Pids = "[0],[1],[14],", OrgType = OrgType.SCHOOL, OrgFundSource = OrgFundSource.PRIVATE, EducationStage = EducationStage.PRESCHOOL_STAGE, UrbanRuralType = UrbanRuralType.URBAN, Code = "0107", Name = "金色童年幼儿园", FullName = "重庆市渝北区金色童年幼儿园", ShortName = "金色童年", ShortName2 = "金色童年", TqesId = 0, TqesCode = "", Sort = 1210, Status = CommonStatus.DISABLE, CreateSysUserId = 1, CreateTime = DateTime.Now },
A123: 122 | B123: 0 | C123: 14 | D123: [0],[1],[14], | E123: OrgType.SCHOOL | F123: 0108 | G123: Y | H123: 重庆市渝北区双凤桥童心幼儿园 | I123: 双凤桥童心幼儿园 | J123: 双凤桥童心 | K123: 双凤桥童心 | L123: EducationStage.PRESCHOOL_STAGE | M123: UrbanRuralType.URBAN | N123: OrgFundSource.PRIVATE | O123: 1220 | P123: 渝北区双凤桥街道港汇路99号附138号 | Q123: 等级三级，是否普惠园：是 | R123: CommonStatus.DISABLE | T123: new SysOrg { Id = 122, Pid = 14, Pids = "[0],[1],[14],", OrgType = OrgType.SCHOOL, OrgFundSource = OrgFundSource.PRIVATE, EducationStage = EducationStage.PRESCHOOL_STAGE, UrbanRuralType = UrbanRuralType.URBAN, Code = "0108", Name = "双凤桥童心幼儿园", FullName = "重庆市渝北区双凤桥童心幼儿园", ShortName = "双凤桥童心", ShortName2 = "双凤桥童心", TqesId = 0, TqesCode = "", Sort = 1220, Status = CommonStatus.DISABLE, CreateSysUserId = 1, CreateTime = DateTime.Now },
A124: 123 | B124: 0 | C124: 14 | D124: [0],[1],[14], | E124: OrgType.SCHOOL | F124: 0109 | G124: Y | H124: 重庆市渝北区北城空港大地幼儿园 | I124: 北城空港大地幼儿园 | J124: 北城空港大地 | K124: 北城空港大地 | L124: EducationStage.PRESCHOOL_STAGE | M124: UrbanRuralType.URBAN | N124: OrgFundSource.PRIVATE | O124: 1230 | P124: 渝北区双凤桥街道观河路30号 | Q124: 等级二级，是否普惠园：是 | R124: CommonStatus.DISABLE | T124: new SysOrg { Id = 123, Pid = 14, Pids = "[0],[1],[14],", OrgType = OrgType.SCHOOL, OrgFundSource = OrgFundSource.PRIVATE, EducationStage = EducationStage.PRESCHOOL_STAGE, UrbanRuralType = UrbanRuralType.URBAN, Code = "0109", Name = "北城空港大地幼儿园", FullName = "重庆市渝北区北城空港大地幼儿园", ShortName = "北城空港大地", ShortName2 = "北城空港大地", TqesId = 0, TqesCode = "", Sort = 1230, Status = CommonStatus.DISABLE, CreateSysUserId = 1, CreateTime = DateTime.Now },
A125: 124 | B125: 0 | C125: 14 | D125: [0],[1],[14], | E125: OrgType.SCHOOL | F125: 0110 | G125: Y | H125: 重庆市渝北区桃源居悠乐蒙幼儿园 | I125: 桃源居悠乐蒙幼儿园 | J125: 桃源居悠乐蒙 | K125: 桃源居悠乐蒙 | L125: EducationStage.PRESCHOOL_STAGE | M125: UrbanRuralType.URBAN | N125: OrgFundSource.PRIVATE | O125: 1240 | P125: 渝北区桃源大道409号 | Q125: 等级一级，是否普惠园：是 | R125: CommonStatus.DISABLE | T125: new SysOrg { Id = 124, Pid = 14, Pids = "[0],[1],[14],", OrgType = OrgType.SCHOOL, OrgFundSource = OrgFundSource.PRIVATE, EducationStage = EducationStage.PRESCHOOL_STAGE, UrbanRuralType = UrbanRuralType.URBAN, Code = "0110", Name = "桃源居悠乐蒙幼儿园", FullName = "重庆市渝北区桃源居悠乐蒙幼儿园", ShortName = "桃源居悠乐蒙", ShortName2 = "桃源居悠乐蒙", TqesId = 0, TqesCode = "", Sort = 1240, Status = CommonStatus.DISABLE, CreateSysUserId = 1, CreateTime = DateTime.Now },
A126: 125 | B126: 0 | C126: 14 | D126: [0],[1],[14], | E126: OrgType.SCHOOL | F126: 0111 | G126: Y | H126: 重庆市渝北区双凤桥街道金辰幼儿园 | I126: 双凤桥街道金辰幼儿园 | J126: 双凤桥街道金辰 | K126: 双凤桥街道金辰 | L126: EducationStage.PRESCHOOL_STAGE | M126: UrbanRuralType.URBAN | N126: OrgFundSource.PRIVATE | O126: 1250 | P126: 渝北区空港大道99号35栋 | Q126: 等级一级，是否普惠园：是 | R126: CommonStatus.DISABLE | T126: new SysOrg { Id = 125, Pid = 14, Pids = "[0],[1],[14],", OrgType = OrgType.SCHOOL, OrgFundSource = OrgFundSource.PRIVATE, EducationStage = EducationStage.PRESCHOOL_STAGE, UrbanRuralType = UrbanRuralType.URBAN, Code = "0111", Name = "双凤桥街道金辰幼儿园", FullName = "重庆市渝北区双凤桥街道金辰幼儿园", ShortName = "双凤桥街道金辰", ShortName2 = "双凤桥街道金辰", TqesId = 0, TqesCode = "", Sort = 1250, Status = CommonStatus.DISABLE, CreateSysUserId = 1, CreateTime = DateTime.Now },
A127: 126 | B127: 0 | C127: 14 | D127: [0],[1],[14], | E127: OrgType.SCHOOL | F127: 0112 | G127: Y | H127: 重庆市渝北区君君幼儿园 | I127: 君君幼儿园 | J127: 君君 | K127: 君君 | L127: EducationStage.PRESCHOOL_STAGE | M127: UrbanRuralType.URBAN | N127: OrgFundSource.PRIVATE | O127: 1260 | P127: 渝北区桃源大道106号 | Q127: 等级一级，是否普惠园：是 | R127: CommonStatus.DISABLE | T127: new SysOrg { Id = 126, Pid = 14, Pids = "[0],[1],[14],", OrgType = OrgType.SCHOOL, OrgFundSource = OrgFundSource.PRIVATE, EducationStage = EducationStage.PRESCHOOL_STAGE, UrbanRuralType = UrbanRuralType.URBAN, Code = "0112", Name = "君君幼儿园", FullName = "重庆市渝北区君君幼儿园", ShortName = "君君", ShortName2 = "君君", TqesId = 0, TqesCode = "", Sort = 1260, Status = CommonStatus.DISABLE, CreateSysUserId = 1, CreateTime = DateTime.Now },
A128: 127 | B128: 0 | C128: 14 | D128: [0],[1],[14], | E128: OrgType.SCHOOL | F128: 0113 | G128: Y | H128: 重庆市渝北区红树林幼儿园 | I128: 红树林幼儿园 | J128: 红树林 | K128: 红树林 | L128: EducationStage.PRESCHOOL_STAGE | M128: UrbanRuralType.URBAN | N128: OrgFundSource.PRIVATE | O128: 1270 | P128: 渝北区桃源大道333号红树林公园处 | Q128: 等级一级，是否普惠园：是 | R128: CommonStatus.DISABLE | T128: new SysOrg { Id = 127, Pid = 14, Pids = "[0],[1],[14],", OrgType = OrgType.SCHOOL, OrgFundSource = OrgFundSource.PRIVATE, EducationStage = EducationStage.PRESCHOOL_STAGE, UrbanRuralType = UrbanRuralType.URBAN, Code = "0113", Name = "红树林幼儿园", FullName = "重庆市渝北区红树林幼儿园", ShortName = "红树林", ShortName2 = "红树林", TqesId = 0, TqesCode = "", Sort = 1270, Status = CommonStatus.DISABLE, CreateSysUserId = 1, CreateTime = DateTime.Now },
A129: 128 | B129: 0 | C129: 14 | D129: [0],[1],[14], | E129: OrgType.SCHOOL | F129: 0114 | G129: Y | H129: 重庆市渝北区黄桷坪幼儿园 | I129: 黄桷坪幼儿园 | J129: 黄桷坪 | K129: 黄桷坪 | L129: EducationStage.PRESCHOOL_STAGE | M129: UrbanRuralType.URBAN | N129: OrgFundSource.PUBLIC | O129: 1280 | P129: 渝北区回兴街道松鹤路临1699号 | Q129: 等级一级，是否普惠园：是 | R129: CommonStatus.DISABLE | T129: new SysOrg { Id = 128, Pid = 14, Pids = "[0],[1],[14],", OrgType = OrgType.SCHOOL, OrgFundSource = OrgFundSource.PUBLIC, EducationStage = EducationStage.PRESCHOOL_STAGE, UrbanRuralType = UrbanRuralType.URBAN, Code = "0114", Name = "黄桷坪幼儿园", FullName = "重庆市渝北区黄桷坪幼儿园", ShortName = "黄桷坪", ShortName2 = "黄桷坪", TqesId = 0, TqesCode = "", Sort = 1280, Status = CommonStatus.DISABLE, CreateSysUserId = 1, CreateTime = DateTime.Now },
A130: 129 | B130: 0 | C130: 14 | D130: [0],[1],[14], | E130: OrgType.SCHOOL | F130: 0115 | G130: Y | H130: 重庆市渝北区黄桷坪幼儿园心海园 | I130: 黄桷坪幼儿园心海园 | J130: 黄桷坪心海园 | K130: 黄桷坪心海园 | L130: EducationStage.PRESCHOOL_STAGE | M130: UrbanRuralType.URBAN | N130: OrgFundSource.PUBLIC | O130: 1290 | P130: 渝北区回兴街道双湖路398号 | Q130: 等级预一级，是否普惠园：是 | R130: CommonStatus.DISABLE | T130: new SysOrg { Id = 129, Pid = 14, Pids = "[0],[1],[14],", OrgType = OrgType.SCHOOL, OrgFundSource = OrgFundSource.PUBLIC, EducationStage = EducationStage.PRESCHOOL_STAGE, UrbanRuralType = UrbanRuralType.URBAN, Code = "0115", Name = "黄桷坪幼儿园心海园", FullName = "重庆市渝北区黄桷坪幼儿园心海园", ShortName = "黄桷坪心海园", ShortName2 = "黄桷坪心海园", TqesId = 0, TqesCode = "", Sort = 1290, Status = CommonStatus.DISABLE, CreateSysUserId = 1, CreateTime = DateTime.Now },
A131: 130 | B131: 0 | C131: 14 | D131: [0],[1],[14], | E131: OrgType.SCHOOL | F131: 0116 | G131: Y | H131: 重庆市渝北区回兴小学校附属幼儿园 | I131: 回兴小学校附属幼儿园 | J131: 回兴小学校附属 | K131: 回兴小学校附属 | L131: EducationStage.PRESCHOOL_STAGE | M131: UrbanRuralType.URBAN | N131: OrgFundSource.PUBLIC | O131: 1300 | P131: 渝北区回兴街道宝圣东路67号 | Q131: 等级二级，是否普惠园：是 | R131: CommonStatus.DISABLE | T131: new SysOrg { Id = 130, Pid = 14, Pids = "[0],[1],[14],", OrgType = OrgType.SCHOOL, OrgFundSource = OrgFundSource.PUBLIC, EducationStage = EducationStage.PRESCHOOL_STAGE, UrbanRuralType = UrbanRuralType.URBAN, Code = "0116", Name = "回兴小学校附属幼儿园", FullName = "重庆市渝北区回兴小学校附属幼儿园", ShortName = "回兴小学校附属", ShortName2 = "回兴小学校附属", TqesId = 0, TqesCode = "", Sort = 1300, Status = CommonStatus.DISABLE, CreateSysUserId = 1, CreateTime = DateTime.Now },
A132: 131 | B132: 0 | C132: 14 | D132: [0],[1],[14], | E132: OrgType.SCHOOL | F132: 0117 | G132: Y | H132: 重庆市渝北区双湖小学校附属幼儿园 | I132: 双湖小学校附属幼儿园 | J132: 双湖小学校附属 | K132: 双湖小学校附属 | L132: EducationStage.PRESCHOOL_STAGE | M132: UrbanRuralType.URBAN | N132: OrgFundSource.PUBLIC | O132: 1310 | P132: 渝北区回兴街道双湖支路33号 | Q132: 等级二级，是否普惠园：是 | R132: CommonStatus.DISABLE | T132: new SysOrg { Id = 131, Pid = 14, Pids = "[0],[1],[14],", OrgType = OrgType.SCHOOL, OrgFundSource = OrgFundSource.PUBLIC, EducationStage = EducationStage.PRESCHOOL_STAGE, UrbanRuralType = UrbanRuralType.URBAN, Code = "0117", Name = "双湖小学校附属幼儿园", FullName = "重庆市渝北区双湖小学校附属幼儿园", ShortName = "双湖小学校附属", ShortName2 = "双湖小学校附属", TqesId = 0, TqesCode = "", Sort = 1310, Status = CommonStatus.DISABLE, CreateSysUserId = 1, CreateTime = DateTime.Now },
A133: 132 | B133: 0 | C133: 14 | D133: [0],[1],[14], | E133: OrgType.SCHOOL | F133: 0118 | G133: Y | H133: 重庆市渝北区锦华学校附属幼儿园 | I133: 锦华学校附属幼儿园 | J133: 锦华学校附属 | K133: 锦华学校附属 | L133: EducationStage.PRESCHOOL_STAGE | M133: UrbanRuralType.URBAN | N133: OrgFundSource.PUBLIC | O133: 1320 | P133: 渝北区锦华路2号 | Q133: 等级二级，是否普惠园：是 | R133: CommonStatus.DISABLE | T133: new SysOrg { Id = 132, Pid = 14, Pids = "[0],[1],[14],", OrgType = OrgType.SCHOOL, OrgFundSource = OrgFundSource.PUBLIC, EducationStage = EducationStage.PRESCHOOL_STAGE, UrbanRuralType = UrbanRuralType.URBAN, Code = "0118", Name = "锦华学校附属幼儿园", FullName = "重庆市渝北区锦华学校附属幼儿园", ShortName = "锦华学校附属", ShortName2 = "锦华学校附属", TqesId = 0, TqesCode = "", Sort = 1320, Status = CommonStatus.DISABLE, CreateSysUserId = 1, CreateTime = DateTime.Now },
A134: 133 | B134: 0 | C134: 14 | D134: [0],[1],[14], | E134: OrgType.SCHOOL | F134: 0119 | G134: Y | H134: 重庆市渝北区申佳幼儿园 | I134: 申佳幼儿园 | J134: 申佳 | K134: 申佳 | L134: EducationStage.PRESCHOOL_STAGE | M134: UrbanRuralType.URBAN | N134: OrgFundSource.PRIVATE | O134: 1330 | P134: 渝北区回兴街道银梭大道1号10栋 | Q134: 等级一级，是否普惠园：是 | R134: CommonStatus.DISABLE | T134: new SysOrg { Id = 133, Pid = 14, Pids = "[0],[1],[14],", OrgType = OrgType.SCHOOL, OrgFundSource = OrgFundSource.PRIVATE, EducationStage = EducationStage.PRESCHOOL_STAGE, UrbanRuralType = UrbanRuralType.URBAN, Code = "0119", Name = "申佳幼儿园", FullName = "重庆市渝北区申佳幼儿园", ShortName = "申佳", ShortName2 = "申佳", TqesId = 0, TqesCode = "", Sort = 1330, Status = CommonStatus.DISABLE, CreateSysUserId = 1, CreateTime = DateTime.Now },
A135: 134 | B135: 0 | C135: 14 | D135: [0],[1],[14], | E135: OrgType.SCHOOL | F135: 0120 | G135: Y | H135: 重庆市渝北区中艺南方玫瑰城幼儿园 | I135: 中艺南方玫瑰城幼儿园 | J135: 中艺南方玫瑰城 | K135: 中艺南方玫瑰城 | L135: EducationStage.PRESCHOOL_STAGE | M135: UrbanRuralType.URBAN | N135: OrgFundSource.PRIVATE | O135: 1340 | P135: 渝北区回兴街道南方玫瑰城C区332-3地块黛瑰苑 | Q135: 等级一级，是否普惠园：是 | R135: CommonStatus.DISABLE | T135: new SysOrg { Id = 134, Pid = 14, Pids = "[0],[1],[14],", OrgType = OrgType.SCHOOL, OrgFundSource = OrgFundSource.PRIVATE, EducationStage = EducationStage.PRESCHOOL_STAGE, UrbanRuralType = UrbanRuralType.URBAN, Code = "0120", Name = "中艺南方玫瑰城幼儿园", FullName = "重庆市渝北区中艺南方玫瑰城幼儿园", ShortName = "中艺南方玫瑰城", ShortName2 = "中艺南方玫瑰城", TqesId = 0, TqesCode = "", Sort = 1340, Status = CommonStatus.DISABLE, CreateSysUserId = 1, CreateTime = DateTime.Now },
A136: 135 | B136: 0 | C136: 14 | D136: [0],[1],[14], | E136: OrgType.SCHOOL | F136: 0121 | G136: Y | H136: 重庆市渝北区山语间幼儿园 | I136: 山语间幼儿园 | J136: 山语间 | K136: 山语间 | L136: EducationStage.PRESCHOOL_STAGE | M136: UrbanRuralType.URBAN | N136: OrgFundSource.PRIVATE | O136: 1350 | P136: 渝北区高岩路242号山语间幼儿园 | Q136: 等级一级，是否普惠园：是 | R136: CommonStatus.DISABLE | T136: ="new SysOrg { Id = "&A136&", Pid = "&C136&", Pids = """&D136&""", OrgType = "&E136&", OrgFundSource = "&N136&", EducationStage = "&L136&", UrbanRuralType = "&M136&", Code = """&F136&""", Name = """&I136&""", FullName = """&H136&""", ShortName = """&J136&""", ShortName2 = """&K136&""", TqesId = "&B136&", TqesCode = """&S136&""", Sort = "&O136&", Status = "&R136&", CreateSysUserId = 1, CreateTime = DateTime.Now }," -> new SysOrg { Id = 135, Pid = 14, Pids = "[0],[1],[14],", OrgType = OrgType.SCHOOL, OrgFundSource = OrgFundSource.PRIVATE, EducationStage = EducationStage.PRESCHOOL_STAGE, UrbanRuralType = UrbanRuralType.URBAN, Code = "0121", Name = "山语间幼儿园", FullName = "重庆市渝北区山语间幼儿园", ShortName = "山语间", ShortName2 = "山语间", TqesId = 0, TqesCode = "", Sort = 1350, Status = CommonStatus.DISABLE, CreateSysUserId = 1, CreateTime = DateTime.Now },
A137: 136 | B137: 0 | C137: 14 | D137: [0],[1],[14], | E137: OrgType.SCHOOL | F137: 0122 | G137: Y | H137: 重庆市渝北区家纺城大地幼儿园 | I137: 家纺城大地幼儿园 | J137: 家纺城大地 | K137: 家纺城大地 | L137: EducationStage.PRESCHOOL_STAGE | M137: UrbanRuralType.URBAN | N137: OrgFundSource.PRIVATE | O137: 1360 | P137: 渝北区回兴服装城大道48号B1栋 | Q137: 等级一级，是否普惠园：是 | R137: CommonStatus.DISABLE | T137: new SysOrg { Id = 136, Pid = 14, Pids = "[0],[1],[14],", OrgType = OrgType.SCHOOL, OrgFundSource = OrgFundSource.PRIVATE, EducationStage = EducationStage.PRESCHOOL_STAGE, UrbanRuralType = UrbanRuralType.URBAN, Code = "0122", Name = "家纺城大地幼儿园", FullName = "重庆市渝北区家纺城大地幼儿园", ShortName = "家纺城大地", ShortName2 = "家纺城大地", TqesId = 0, TqesCode = "", Sort = 1360, Status = CommonStatus.DISABLE, CreateSysUserId = 1, CreateTime = DateTime.Now },
A138: 137 | B138: 0 | C138: 14 | D138: [0],[1],[14], | E138: OrgType.SCHOOL | F138: 0123 | G138: Y | H138: 重庆市渝北区启智幼儿园 | I138: 启智幼儿园 | J138: 启智 | K138: 启智 | L138: EducationStage.PRESCHOOL_STAGE | M138: UrbanRuralType.URBAN | N138: OrgFundSource.PRIVATE | O138: 1370 | P138: 渝北区回兴服装城大道翠屏路1号附6号 | Q138: 等级二级，是否普惠园：是 | R138: CommonStatus.DISABLE | T138: new SysOrg { Id = 137, Pid = 14, Pids = "[0],[1],[14],", OrgType = OrgType.SCHOOL, OrgFundSource = OrgFundSource.PRIVATE, EducationStage = EducationStage.PRESCHOOL_STAGE, UrbanRuralType = UrbanRuralType.URBAN, Code = "0123", Name = "启智幼儿园", FullName = "重庆市渝北区启智幼儿园", ShortName = "启智", ShortName2 = "启智", TqesId = 0, TqesCode = "", Sort = 1370, Status = CommonStatus.DISABLE, CreateSysUserId = 1, CreateTime = DateTime.Now },
A139: 138 | B139: 0 | C139: 14 | D139: [0],[1],[14], | E139: OrgType.SCHOOL | F139: 0124 | G139: Y | H139: 重庆市渝北区迪乐星光幼儿园 | I139: 迪乐星光幼儿园 | J139: 迪乐星光 | K139: 迪乐星光 | L139: EducationStage.PRESCHOOL_STAGE | M139: UrbanRuralType.URBAN | N139: OrgFundSource.PRIVATE | O139: 1380 | P139: 渝北区回兴街道宝圣东路269号1栋 | Q139: 等级二级，是否普惠园：是 | R139: CommonStatus.DISABLE | T139: new SysOrg { Id = 138, Pid = 14, Pids = "[0],[1],[14],", OrgType = OrgType.SCHOOL, OrgFundSource = OrgFundSource.PRIVATE, EducationStage = EducationStage.PRESCHOOL_STAGE, UrbanRuralType = UrbanRuralType.URBAN, Code = "0124", Name = "迪乐星光幼儿园", FullName = "重庆市渝北区迪乐星光幼儿园", ShortName = "迪乐星光", ShortName2 = "迪乐星光", TqesId = 0, TqesCode = "", Sort = 1380, Status = CommonStatus.DISABLE, CreateSysUserId = 1, CreateTime = DateTime.Now },
A140: 139 | B140: 0 | C140: 14 | D140: [0],[1],[14], | E140: OrgType.SCHOOL | F140: 0125 | G140: Y | H140: 重庆市渝北区乡间城七色花幼儿园 | I140: 乡间城七色花幼儿园 | J140: 乡间城七色花 | K140: 乡间城七色花 | L140: EducationStage.PRESCHOOL_STAGE | M140: UrbanRuralType.URBAN | N140: OrgFundSource.PRIVATE | O140: 1390 | P140: 渝北区宝桐一路555号 | Q140: 等级二级，是否普惠园：是 | R140: CommonStatus.DISABLE | T140: new SysOrg { Id = 139, Pid = 14, Pids = "[0],[1],[14],", OrgType = OrgType.SCHOOL, OrgFundSource = OrgFundSource.PRIVATE, EducationStage = EducationStage.PRESCHOOL_STAGE, UrbanRuralType = UrbanRuralType.URBAN, Code = "0125", Name = "乡间城七色花幼儿园", FullName = "重庆市渝北区乡间城七色花幼儿园", ShortName = "乡间城七色花", ShortName2 = "乡间城七色花", TqesId = 0, TqesCode = "", Sort = 1390, Status = CommonStatus.DISABLE, CreateSysUserId = 1, CreateTime = DateTime.Now },
A141: 140 | B141: 0 | C141: 14 | D141: [0],[1],[14], | E141: OrgType.SCHOOL | F141: 0126 | G141: Y | H141: 重庆市渝北区回兴龙凤幼儿园 | I141: 回兴龙凤幼儿园 | J141: 回兴龙凤 | K141: 回兴龙凤 | L141: EducationStage.PRESCHOOL_STAGE | M141: UrbanRuralType.URBAN | N141: OrgFundSource.PRIVATE | O141: 1400 | P141: 渝北区回兴街道高岩路172号 | Q141: 等级二级，是否普惠园：是 | R141: CommonStatus.DISABLE | T141: new SysOrg { Id = 140, Pid = 14, Pids = "[0],[1],[14],", OrgType = OrgType.SCHOOL, OrgFundSource = OrgFundSource.PRIVATE, EducationStage = EducationStage.PRESCHOOL_STAGE, UrbanRuralType = UrbanRuralType.URBAN, Code = "0126", Name = "回兴龙凤幼儿园", FullName = "重庆市渝北区回兴龙凤幼儿园", ShortName = "回兴龙凤", ShortName2 = "回兴龙凤", TqesId = 0, TqesCode = "", Sort = 1400, Status = CommonStatus.DISABLE, CreateSysUserId = 1, CreateTime = DateTime.Now },
A142: 141 | B142: 0 | C142: 14 | D142: [0],[1],[14], | E142: OrgType.SCHOOL | F142: 0127 | G142: Y | H142: 重庆市渝北区木鱼石幼儿园 | I142: 木鱼石幼儿园 | J142: 木鱼石 | K142: 木鱼石 | L142: EducationStage.PRESCHOOL_STAGE | M142: UrbanRuralType.URBAN | N142: OrgFundSource.PRIVATE | O142: 1410 | P142: 渝北区回兴街道双湖路木鱼石花园社区服务楼 | Q142: 等级二级，是否普惠园：是 | R142: CommonStatus.DISABLE | T142: new SysOrg { Id = 141, Pid = 14, Pids = "[0],[1],[14],", OrgType = OrgType.SCHOOL, OrgFundSource = OrgFundSource.PRIVATE, EducationStage = EducationStage.PRESCHOOL_STAGE, UrbanRuralType = UrbanRuralType.URBAN, Code = "0127", Name = "木鱼石幼儿园", FullName = "重庆市渝北区木鱼石幼儿园", ShortName = "木鱼石", ShortName2 = "木鱼石", TqesId = 0, TqesCode = "", Sort = 1410, Status = CommonStatus.DISABLE, CreateSysUserId = 1, CreateTime = DateTime.Now },
A143: 142 | B143: 0 | C143: 14 | D143: [0],[1],[14], | E143: OrgType.SCHOOL | F143: 0128 | G143: Y | H143: 重庆市渝北区迪乐家纺城幼儿园 | I143: 迪乐家纺城幼儿园 | J143: 迪乐家纺城 | K143: 迪乐家纺城 | L143: EducationStage.PRESCHOOL_STAGE | M143: UrbanRuralType.URBAN | N143: OrgFundSource.PRIVATE | O143: =A143*10 -> 1420 | P143: 渝北区回兴街道服装城大道48号国际家纺城小区A3栋 | Q143: 等级二级，是否普惠园：是 | R143: CommonStatus.DISABLE | T143: new SysOrg { Id = 142, Pid = 14, Pids = "[0],[1],[14],", OrgType = OrgType.SCHOOL, OrgFundSource = OrgFundSource.PRIVATE, EducationStage = EducationStage.PRESCHOOL_STAGE, UrbanRuralType = UrbanRuralType.URBAN, Code = "0128", Name = "迪乐家纺城幼儿园", FullName = "重庆市渝北区迪乐家纺城幼儿园", ShortName = "迪乐家纺城", ShortName2 = "迪乐家纺城", TqesId = 0, TqesCode = "", Sort = 1420, Status = CommonStatus.DISABLE, CreateSysUserId = 1, CreateTime = DateTime.Now },
A144: 143 | B144: 0 | C144: 14 | D144: [0],[1],[14], | E144: OrgType.SCHOOL | F144: 0129 | G144: Y | H144: 重庆市渝北区明天幼儿园 | I144: 明天幼儿园 | J144: 明天 | K144: 明天 | L144: EducationStage.PRESCHOOL_STAGE | M144: UrbanRuralType.URBAN | N144: OrgFundSource.PRIVATE | O144: 1430 | P144: 渝北区回兴街道双湖路441号E栋商场 | Q144: 等级二级，是否普惠园：是 | R144: CommonStatus.DISABLE | T144: new SysOrg { Id = 143, Pid = 14, Pids = "[0],[1],[14],", OrgType = OrgType.SCHOOL, OrgFundSource = OrgFundSource.PRIVATE, EducationStage = EducationStage.PRESCHOOL_STAGE, UrbanRuralType = UrbanRuralType.URBAN, Code = "0129", Name = "明天幼儿园", FullName = "重庆市渝北区明天幼儿园", ShortName = "明天", ShortName2 = "明天", TqesId = 0, TqesCode = "", Sort = 1430, Status = CommonStatus.DISABLE, CreateSysUserId = 1, CreateTime = DateTime.Now },
A145: 144 | B145: 0 | C145: =A$15 -> 14 | D145: =D$15&"["&C145&"]," -> [0],[1],[14], | E145: OrgType.SCHOOL | F145: 0130 | G145: Y | H145: 重庆市渝北区回兴七彩阳光幼儿园 | I145: 回兴七彩阳光幼儿园 | J145: 回兴七彩阳光 | K145: 回兴七彩阳光 | L145: EducationStage.PRESCHOOL_STAGE | M145: UrbanRuralType.URBAN | N145: OrgFundSource.PRIVATE | O145: 1440 | P145: 渝北区一碗水前街18号银海峰景小区内 | Q145: 等级二级，是否普惠园：是 | R145: CommonStatus.DISABLE | T145: new SysOrg { Id = 144, Pid = 14, Pids = "[0],[1],[14],", OrgType = OrgType.SCHOOL, OrgFundSource = OrgFundSource.PRIVATE, EducationStage = EducationStage.PRESCHOOL_STAGE, UrbanRuralType = UrbanRuralType.URBAN, Code = "0130", Name = "回兴七彩阳光幼儿园", FullName = "重庆市渝北区回兴七彩阳光幼儿园", ShortName = "回兴七彩阳光", ShortName2 = "回兴七彩阳光", TqesId = 0, TqesCode = "", Sort = 1440, Status = CommonStatus.DISABLE, CreateSysUserId = 1, CreateTime = DateTime.Now },
A146: 145 | B146: 0 | C146: 14 | D146: [0],[1],[14], | E146: OrgType.SCHOOL | F146: 0131 | G146: Y | H146: 重庆市渝北区香榆园幼儿园 | I146: 香榆园幼儿园 | J146: 香榆园 | K146: 香榆园 | L146: EducationStage.PRESCHOOL_STAGE | M146: UrbanRuralType.URBAN | N146: OrgFundSource.PRIVATE | O146: 1450 | P146: 渝北区回兴街道康城路3号附11-16号 | Q146: 等级二级，是否普惠园：是 | R146: CommonStatus.DISABLE | T146: new SysOrg { Id = 145, Pid = 14, Pids = "[0],[1],[14],", OrgType = OrgType.SCHOOL, OrgFundSource = OrgFundSource.PRIVATE, EducationStage = EducationStage.PRESCHOOL_STAGE, UrbanRuralType = UrbanRuralType.URBAN, Code = "0131", Name = "香榆园幼儿园", FullName = "重庆市渝北区香榆园幼儿园", ShortName = "香榆园", ShortName2 = "香榆园", TqesId = 0, TqesCode = "", Sort = 1450, Status = CommonStatus.DISABLE, CreateSysUserId = 1, CreateTime = DateTime.Now },
A147: 146 | B147: 0 | C147: 14 | D147: [0],[1],[14], | E147: OrgType.SCHOOL | F147: 0132 | G147: Y | H147: 重庆市渝北区水木年华贝乐坊幼儿园 | I147: 水木年华贝乐坊幼儿园 | J147: 水木年华贝乐坊 | K147: 水木年华贝乐坊 | L147: EducationStage.PRESCHOOL_STAGE | M147: UrbanRuralType.URBAN | N147: OrgFundSource.PRIVATE | O147: 1460 | P147: 渝北区兴科大道299号附15号 | Q147: 等级二级，是否普惠园：是 | R147: CommonStatus.DISABLE | T147: new SysOrg { Id = 146, Pid = 14, Pids = "[0],[1],[14],", OrgType = OrgType.SCHOOL, OrgFundSource = OrgFundSource.PRIVATE, EducationStage = EducationStage.PRESCHOOL_STAGE, UrbanRuralType = UrbanRuralType.URBAN, Code = "0132", Name = "水木年华贝乐坊幼儿园", FullName = "重庆市渝北区水木年华贝乐坊幼儿园", ShortName = "水木年华贝乐坊", ShortName2 = "水木年华贝乐坊", TqesId = 0, TqesCode = "", Sort = 1460, Status = CommonStatus.DISABLE, CreateSysUserId = 1, CreateTime = DateTime.Now },
A148: 147 | B148: 0 | C148: 14 | D148: [0],[1],[14], | E148: OrgType.SCHOOL | F148: 0133 | G148: Y | H148: 重庆市渝北区回兴满艺幼儿园 | I148: 回兴满艺幼儿园 | J148: 回兴满艺 | K148: 回兴满艺 | L148: EducationStage.PRESCHOOL_STAGE | M148: UrbanRuralType.URBAN | N148: OrgFundSource.PRIVATE | O148: 1470 | P148: 渝北区回兴凯歌一支路99号鹭岭尚品4-1-1013 | Q148: 等级二级，是否普惠园：是 | R148: CommonStatus.DISABLE | T148: new SysOrg { Id = 147, Pid = 14, Pids = "[0],[1],[14],", OrgType = OrgType.SCHOOL, OrgFundSource = OrgFundSource.PRIVATE, EducationStage = EducationStage.PRESCHOOL_STAGE, UrbanRuralType = UrbanRuralType.URBAN, Code = "0133", Name = "回兴满艺幼儿园", FullName = "重庆市渝北区回兴满艺幼儿园", ShortName = "回兴满艺", ShortName2 = "回兴满艺", TqesId = 0, TqesCode = "", Sort = 1470, Status = CommonStatus.DISABLE, CreateSysUserId = 1, CreateTime = DateTime.Now },
A149: 148 | B149: 0 | C149: 14 | D149: [0],[1],[14], | E149: OrgType.SCHOOL | F149: 0134 | G149: Y | H149: 重庆市渝北区吉的堡花屿城幼儿园 | I149: 吉的堡花屿城幼儿园 | J149: 吉的堡花屿城 | K149: 吉的堡花屿城 | L149: EducationStage.PRESCHOOL_STAGE | M149: UrbanRuralType.URBAN | N149: OrgFundSource.PRIVATE | O149: 1480 | P149: 渝北区回兴街道复地花屿城C区21栋 | Q149: 等级一级，是否普惠园：是 | R149: CommonStatus.DISABLE | T149: new SysOrg { Id = 148, Pid = 14, Pids = "[0],[1],[14],", OrgType = OrgType.SCHOOL, OrgFundSource = OrgFundSource.PRIVATE, EducationStage = EducationStage.PRESCHOOL_STAGE, UrbanRuralType = UrbanRuralType.URBAN, Code = "0134", Name = "吉的堡花屿城幼儿园", FullName = "重庆市渝北区吉的堡花屿城幼儿园", ShortName = "吉的堡花屿城", ShortName2 = "吉的堡花屿城", TqesId = 0, TqesCode = "", Sort = 1480, Status = CommonStatus.DISABLE, CreateSysUserId = 1, CreateTime = DateTime.Now },
A150: 149 | B150: 0 | C150: 14 | D150: [0],[1],[14], | E150: OrgType.SCHOOL | F150: 0135 | G150: Y | H150: 重庆市渝北区梦苗艾乐幼儿园 | I150: 梦苗艾乐幼儿园 | J150: 梦苗艾乐 | K150: 梦苗艾乐 | L150: EducationStage.PRESCHOOL_STAGE | M150: UrbanRuralType.URBAN | N150: OrgFundSource.PRIVATE | O150: 1490 | P150: 渝北区回兴街道服装城大道34号 | Q150: 等级二级，是否普惠园：是 | R150: CommonStatus.DISABLE | T150: new SysOrg { Id = 149, Pid = 14, Pids = "[0],[1],[14],", OrgType = OrgType.SCHOOL, OrgFundSource = OrgFundSource.PRIVATE, EducationStage = EducationStage.PRESCHOOL_STAGE, UrbanRuralType = UrbanRuralType.URBAN, Code = "0135", Name = "梦苗艾乐幼儿园", FullName = "重庆市渝北区梦苗艾乐幼儿园", ShortName = "梦苗艾乐", ShortName2 = "梦苗艾乐", TqesId = 0, TqesCode = "", Sort = 1490, Status = CommonStatus.DISABLE, CreateSysUserId = 1, CreateTime = DateTime.Now },
A151: 150 | B151: 0 | C151: 14 | D151: [0],[1],[14], | E151: OrgType.SCHOOL | F151: 0136 | G151: Y | H151: 重庆市渝北区南方玫瑰城康城幼儿园 | I151: 南方玫瑰城康城幼儿园 | J151: 南方玫瑰城康城 | K151: 南方玫瑰城康城 | L151: EducationStage.PRESCHOOL_STAGE | M151: UrbanRuralType.URBAN | N151: OrgFundSource.PRIVATE | O151: 1500 | P151: 渝北区康城路9号附1号 | Q151: 等级二级，是否普惠园：是 | R151: CommonStatus.DISABLE | T151: new SysOrg { Id = 150, Pid = 14, Pids = "[0],[1],[14],", OrgType = OrgType.SCHOOL, OrgFundSource = OrgFundSource.PRIVATE, EducationStage = EducationStage.PRESCHOOL_STAGE, UrbanRuralType = UrbanRuralType.URBAN, Code = "0136", Name = "南方玫瑰城康城幼儿园", FullName = "重庆市渝北区南方玫瑰城康城幼儿园", ShortName = "南方玫瑰城康城", ShortName2 = "南方玫瑰城康城", TqesId = 0, TqesCode = "", Sort = 1500, Status = CommonStatus.DISABLE, CreateSysUserId = 1, CreateTime = DateTime.Now },
A152: 151 | B152: 0 | C152: 14 | D152: [0],[1],[14], | E152: OrgType.SCHOOL | F152: 0137 | G152: Y | H152: 重庆市渝北区回兴华华幼儿园 | I152: 回兴华华幼儿园 | J152: 回兴华华 | K152: 回兴华华 | L152: EducationStage.PRESCHOOL_STAGE | M152: UrbanRuralType.URBAN | N152: OrgFundSource.PRIVATE | O152: 1510 | P152: 渝北区回兴街道凯歌一支路金鑫小区6幢 | Q152: 等级三级，是否普惠园：是 | R152: CommonStatus.DISABLE | T152: new SysOrg { Id = 151, Pid = 14, Pids = "[0],[1],[14],", OrgType = OrgType.SCHOOL, OrgFundSource = OrgFundSource.PRIVATE, EducationStage = EducationStage.PRESCHOOL_STAGE, UrbanRuralType = UrbanRuralType.URBAN, Code = "0137", Name = "回兴华华幼儿园", FullName = "重庆市渝北区回兴华华幼儿园", ShortName = "回兴华华", ShortName2 = "回兴华华", TqesId = 0, TqesCode = "", Sort = 1510, Status = CommonStatus.DISABLE, CreateSysUserId = 1, CreateTime = DateTime.Now },
A153: 152 | B153: 0 | C153: 14 | D153: [0],[1],[14], | E153: OrgType.SCHOOL | F153: 0138 | G153: Y | H153: 重庆市渝北区回兴六一幼儿园 | I153: 回兴六一幼儿园 | J153: 回兴六一 | K153: 回兴六一 | L153: EducationStage.PRESCHOOL_STAGE | M153: UrbanRuralType.URBAN | N153: OrgFundSource.PRIVATE | O153: 1520 | P153: 渝北区回兴兴科大道海德燕窝小区 | Q153: 等级三级，是否普惠园：是 | R153: CommonStatus.DISABLE | T153: new SysOrg { Id = 152, Pid = 14, Pids = "[0],[1],[14],", OrgType = OrgType.SCHOOL, OrgFundSource = OrgFundSource.PRIVATE, EducationStage = EducationStage.PRESCHOOL_STAGE, UrbanRuralType = UrbanRuralType.URBAN, Code = "0138", Name = "回兴六一幼儿园", FullName = "重庆市渝北区回兴六一幼儿园", ShortName = "回兴六一", ShortName2 = "回兴六一", TqesId = 0, TqesCode = "", Sort = 1520, Status = CommonStatus.DISABLE, CreateSysUserId = 1, CreateTime = DateTime.Now },
A154: 153 | B154: 0 | C154: 14 | D154: [0],[1],[14], | E154: OrgType.SCHOOL | F154: 0139 | G154: Y | H154: 重庆市渝北区回兴奇缘名居幼儿园 | I154: 回兴奇缘名居幼儿园 | J154: 回兴奇缘名居 | K154: 回兴奇缘名居 | L154: EducationStage.PRESCHOOL_STAGE | M154: UrbanRuralType.URBAN | N154: OrgFundSource.PRIVATE | O154: 1530 | P154: 渝北区回兴兴科大道186号 | Q154: 等级三级，是否普惠园：是 | R154: CommonStatus.DISABLE | T154: new SysOrg { Id = 153, Pid = 14, Pids = "[0],[1],[14],", OrgType = OrgType.SCHOOL, OrgFundSource = OrgFundSource.PRIVATE, EducationStage = EducationStage.PRESCHOOL_STAGE, UrbanRuralType = UrbanRuralType.URBAN, Code = "0139", Name = "回兴奇缘名居幼儿园", FullName = "重庆市渝北区回兴奇缘名居幼儿园", ShortName = "回兴奇缘名居", ShortName2 = "回兴奇缘名居", TqesId = 0, TqesCode = "", Sort = 1530, Status = CommonStatus.DISABLE, CreateSysUserId = 1, CreateTime = DateTime.Now },
A155: 154 | B155: 0 | C155: 14 | D155: [0],[1],[14], | E155: OrgType.SCHOOL | F155: 0140 | G155: Y | H155: 重庆市渝北区回兴培培幼儿园 | I155: 回兴培培幼儿园 | J155: 回兴培培 | K155: 回兴培培 | L155: EducationStage.PRESCHOOL_STAGE | M155: UrbanRuralType.URBAN | N155: OrgFundSource.PRIVATE | O155: 1540 | P155: 渝北区回兴宝桐一路529号 | Q155: 等级三级，是否普惠园：是 | R155: CommonStatus.DISABLE | T155: new SysOrg { Id = 154, Pid = 14, Pids = "[0],[1],[14],", OrgType = OrgType.SCHOOL, OrgFundSource = OrgFundSource.PRIVATE, EducationStage = EducationStage.PRESCHOOL_STAGE, UrbanRuralType = UrbanRuralType.URBAN, Code = "0140", Name = "回兴培培幼儿园", FullName = "重庆市渝北区回兴培培幼儿园", ShortName = "回兴培培", ShortName2 = "回兴培培", TqesId = 0, TqesCode = "", Sort = 1540, Status = CommonStatus.DISABLE, CreateSysUserId = 1, CreateTime = DateTime.Now },
A156: 155 | B156: 0 | C156: 14 | D156: [0],[1],[14], | E156: OrgType.SCHOOL | F156: 0141 | G156: Y | H156: 重庆市渝北区回兴宝圣东路幼儿园 | I156: 回兴宝圣东路幼儿园 | J156: 回兴宝圣东路 | K156: 回兴宝圣东路 | L156: EducationStage.PRESCHOOL_STAGE | M156: UrbanRuralType.URBAN | N156: OrgFundSource.PRIVATE | O156: 1550 | P156: 渝北区回兴宝圣东路一巷93号 | Q156: 等级三级，是否普惠园：是 | R156: CommonStatus.DISABLE | T156: new SysOrg { Id = 155, Pid = 14, Pids = "[0],[1],[14],", OrgType = OrgType.SCHOOL, OrgFundSource = OrgFundSource.PRIVATE, EducationStage = EducationStage.PRESCHOOL_STAGE, UrbanRuralType = UrbanRuralType.URBAN, Code = "0141", Name = "回兴宝圣东路幼儿园", FullName = "重庆市渝北区回兴宝圣东路幼儿园", ShortName = "回兴宝圣东路", ShortName2 = "回兴宝圣东路", TqesId = 0, TqesCode = "", Sort = 1550, Status = CommonStatus.DISABLE, CreateSysUserId = 1, CreateTime = DateTime.Now },
A157: 156 | B157: 0 | C157: 14 | D157: [0],[1],[14], | E157: OrgType.SCHOOL | F157: 0142 | G157: Y | H157: 重庆市渝北区迪乐宝贝幼儿园 | I157: 迪乐宝贝幼儿园 | J157: 迪乐宝贝 | K157: 迪乐宝贝 | L157: EducationStage.PRESCHOOL_STAGE | M157: UrbanRuralType.URBAN | N157: OrgFundSource.PRIVATE | O157: 1560 | P157: 渝北区回兴街道康城82栋1—5 | Q157: 等级二级，是否普惠园：是 | R157: CommonStatus.DISABLE | T157: new SysOrg { Id = 156, Pid = 14, Pids = "[0],[1],[14],", OrgType = OrgType.SCHOOL, OrgFundSource = OrgFundSource.PRIVATE, EducationStage = EducationStage.PRESCHOOL_STAGE, UrbanRuralType = UrbanRuralType.URBAN, Code = "0142", Name = "迪乐宝贝幼儿园", FullName = "重庆市渝北区迪乐宝贝幼儿园", ShortName = "迪乐宝贝", ShortName2 = "迪乐宝贝", TqesId = 0, TqesCode = "", Sort = 1560, Status = CommonStatus.DISABLE, CreateSysUserId = 1, CreateTime = DateTime.Now },
A158: 157 | B158: 0 | C158: 14 | D158: [0],[1],[14], | E158: OrgType.SCHOOL | F158: 0143 | G158: Y | H158: 重庆市渝北区励贝玫瑰城幼儿园 | I158: 励贝玫瑰城幼儿园 | J158: 励贝玫瑰城 | K158: 励贝玫瑰城 | L158: EducationStage.PRESCHOOL_STAGE | M158: UrbanRuralType.URBAN | N158: OrgFundSource.PRIVATE | O158: 1570 | P158: 渝北区回兴街道锦华二路玫瑰城A区8幢 | Q158: 等级一级，是否普惠园：是 | R158: CommonStatus.DISABLE | T158: new SysOrg { Id = 157, Pid = 14, Pids = "[0],[1],[14],", OrgType = OrgType.SCHOOL, OrgFundSource = OrgFundSource.PRIVATE, EducationStage = EducationStage.PRESCHOOL_STAGE, UrbanRuralType = UrbanRuralType.URBAN, Code = "0143", Name = "励贝玫瑰城幼儿园", FullName = "重庆市渝北区励贝玫瑰城幼儿园", ShortName = "励贝玫瑰城", ShortName2 = "励贝玫瑰城", TqesId = 0, TqesCode = "", Sort = 1570, Status = CommonStatus.DISABLE, CreateSysUserId = 1, CreateTime = DateTime.Now },
A159: 158 | B159: 0 | C159: 14 | D159: [0],[1],[14], | E159: OrgType.SCHOOL | F159: 0144 | G159: Y | H159: 重庆市渝北区金辰环山幼儿园 | I159: 金辰环山幼儿园 | J159: 金辰环山 | K159: 金辰环山 | L159: EducationStage.PRESCHOOL_STAGE | M159: UrbanRuralType.URBAN | N159: OrgFundSource.PRIVATE | O159: 1580 | P159: 重庆市渝北区回兴街道龙石路23号 | Q159: 等级一级，是否普惠园：是 | R159: CommonStatus.DISABLE | T159: new SysOrg { Id = 158, Pid = 14, Pids = "[0],[1],[14],", OrgType = OrgType.SCHOOL, OrgFundSource = OrgFundSource.PRIVATE, EducationStage = EducationStage.PRESCHOOL_STAGE, UrbanRuralType = UrbanRuralType.URBAN, Code = "0144", Name = "金辰环山幼儿园", FullName = "重庆市渝北区金辰环山幼儿园", ShortName = "金辰环山", ShortName2 = "金辰环山", TqesId = 0, TqesCode = "", Sort = 1580, Status = CommonStatus.DISABLE, CreateSysUserId = 1, CreateTime = DateTime.Now },
A160: 159 | B160: 0 | C160: 14 | D160: [0],[1],[14], | E160: OrgType.SCHOOL | F160: 0145 | G160: Y | H160: 重庆市渝北区南方英华玫瑰城幼儿园 | I160: 南方英华玫瑰城幼儿园 | J160: 南方英华玫瑰城 | K160: 南方英华玫瑰城 | L160: EducationStage.PRESCHOOL_STAGE | M160: UrbanRuralType.URBAN | N160: OrgFundSource.PRIVATE | O160: 1590 | P160: 重庆市渝北区回兴街道康晖路5号2幢 | Q160: 等级一级，是否普惠园：否 | R160: CommonStatus.DISABLE | T160: new SysOrg { Id = 159, Pid = 14, Pids = "[0],[1],[14],", OrgType = OrgType.SCHOOL, OrgFundSource = OrgFundSource.PRIVATE, EducationStage = EducationStage.PRESCHOOL_STAGE, UrbanRuralType = UrbanRuralType.URBAN, Code = "0145", Name = "南方英华玫瑰城幼儿园", FullName = "重庆市渝北区南方英华玫瑰城幼儿园", ShortName = "南方英华玫瑰城", ShortName2 = "南方英华玫瑰城", TqesId = 0, TqesCode = "", Sort = 1590, Status = CommonStatus.DISABLE, CreateSysUserId = 1, CreateTime = DateTime.Now },
A161: 160 | B161: 0 | C161: 14 | D161: [0],[1],[14], | E161: OrgType.SCHOOL | F161: 0146 | G161: Y | H161: 重庆市渝北区智慧树幼儿园 | I161: 智慧树幼儿园 | J161: 智慧树 | K161: 智慧树 | L161: EducationStage.PRESCHOOL_STAGE | M161: UrbanRuralType.URBAN | N161: OrgFundSource.PRIVATE | O161: 1600 | P161: 渝北区回兴街道兴科大道268号 | Q161: 等级二级，是否普惠园：否 | R161: CommonStatus.DISABLE | T161: new SysOrg { Id = 160, Pid = 14, Pids = "[0],[1],[14],", OrgType = OrgType.SCHOOL, OrgFundSource = OrgFundSource.PRIVATE, EducationStage = EducationStage.PRESCHOOL_STAGE, UrbanRuralType = UrbanRuralType.URBAN, Code = "0146", Name = "智慧树幼儿园", FullName = "重庆市渝北区智慧树幼儿园", ShortName = "智慧树", ShortName2 = "智慧树", TqesId = 0, TqesCode = "", Sort = 1600, Status = CommonStatus.DISABLE, CreateSysUserId = 1, CreateTime = DateTime.Now },
A162: 161 | B162: 0 | C162: 14 | D162: [0],[1],[14], | E162: OrgType.SCHOOL | F162: 0147 | G162: Y | H162: 重庆市渝北区吉的堡新里城幼儿园 | I162: 吉的堡新里城幼儿园 | J162: 吉的堡新里城 | K162: 吉的堡新里城 | L162: EducationStage.PRESCHOOL_STAGE | M162: UrbanRuralType.URBAN | N162: OrgFundSource.PRIVATE | O162: 1610 | P162: 重庆市渝北区宝桐路2号旭辉新里城57栋 | Q162: 等级二级，是否普惠园：否 | R162: CommonStatus.DISABLE | T162: new SysOrg { Id = 161, Pid = 14, Pids = "[0],[1],[14],", OrgType = OrgType.SCHOOL, OrgFundSource = OrgFundSource.PRIVATE, EducationStage = EducationStage.PRESCHOOL_STAGE, UrbanRuralType = UrbanRuralType.URBAN, Code = "0147", Name = "吉的堡新里城幼儿园", FullName = "重庆市渝北区吉的堡新里城幼儿园", ShortName = "吉的堡新里城", ShortName2 = "吉的堡新里城", TqesId = 0, TqesCode = "", Sort = 1610, Status = CommonStatus.DISABLE, CreateSysUserId = 1, CreateTime = DateTime.Now },
A163: 162 | B163: 0 | C163: 14 | D163: [0],[1],[14], | E163: OrgType.SCHOOL | F163: 0148 | G163: Y | H163: 重庆市渝北区金香林幼儿园 | I163: 金香林幼儿园 | J163: 金香林 | K163: 金香林 | L163: EducationStage.PRESCHOOL_STAGE | M163: UrbanRuralType.URBAN | N163: OrgFundSource.PRIVATE | O163: 1620 | P163: 重庆市渝北区兴科大道96号 | Q163: 等级二级，是否普惠园：否 | R163: CommonStatus.DISABLE | T163: new SysOrg { Id = 162, Pid = 14, Pids = "[0],[1],[14],", OrgType = OrgType.SCHOOL, OrgFundSource = OrgFundSource.PRIVATE, EducationStage = EducationStage.PRESCHOOL_STAGE, UrbanRuralType = UrbanRuralType.URBAN, Code = "0148", Name = "金香林幼儿园", FullName = "重庆市渝北区金香林幼儿园", ShortName = "金香林", ShortName2 = "金香林", TqesId = 0, TqesCode = "", Sort = 1620, Status = CommonStatus.DISABLE, CreateSysUserId = 1, CreateTime = DateTime.Now },
A164: 163 | B164: 0 | C164: 14 | D164: [0],[1],[14], | E164: OrgType.SCHOOL | F164: 0149 | G164: Y | H164: 重庆市渝北区康兴幼儿园 | I164: 康兴幼儿园 | J164: 康兴 | K164: 康兴 | L164: EducationStage.PRESCHOOL_STAGE | M164: UrbanRuralType.URBAN | N164: OrgFundSource.PRIVATE | O164: 1630 | P164: 重庆市渝北区回兴街道康兴路2号18号 | Q164: 等级二级，是否普惠园：是 | R164: CommonStatus.DISABLE | T164: new SysOrg { Id = 163, Pid = 14, Pids = "[0],[1],[14],", OrgType = OrgType.SCHOOL, OrgFundSource = OrgFundSource.PRIVATE, EducationStage = EducationStage.PRESCHOOL_STAGE, UrbanRuralType = UrbanRuralType.URBAN, Code = "0149", Name = "康兴幼儿园", FullName = "重庆市渝北区康兴幼儿园", ShortName = "康兴", ShortName2 = "康兴", TqesId = 0, TqesCode = "", Sort = 1630, Status = CommonStatus.DISABLE, CreateSysUserId = 1, CreateTime = DateTime.Now },
A165: 164 | B165: 0 | C165: 14 | D165: [0],[1],[14], | E165: OrgType.SCHOOL | F165: 0150 | G165: Y | H165: 重庆市渝北区同航幼儿园 | I165: 同航幼儿园 | J165: 同航 | K165: 同航 | L165: EducationStage.PRESCHOOL_STAGE | M165: UrbanRuralType.URBAN | N165: OrgFundSource.PRIVATE | O165: 1640 | P165: 渝北区回兴街道兰馨大道55号附23号中航MYTOWNB2幢 | Q165: 等级二级，是否普惠园：是 | R165: CommonStatus.DISABLE | T165: new SysOrg { Id = 164, Pid = 14, Pids = "[0],[1],[14],", OrgType = OrgType.SCHOOL, OrgFundSource = OrgFundSource.PRIVATE, EducationStage = EducationStage.PRESCHOOL_STAGE, UrbanRuralType = UrbanRuralType.URBAN, Code = "0150", Name = "同航幼儿园", FullName = "重庆市渝北区同航幼儿园", ShortName = "同航", ShortName2 = "同航", TqesId = 0, TqesCode = "", Sort = 1640, Status = CommonStatus.DISABLE, CreateSysUserId = 1, CreateTime = DateTime.Now },
A166: 165 | B166: 0 | C166: 14 | D166: [0],[1],[14], | E166: OrgType.SCHOOL | F166: 0151 | G166: Y | H166: 重庆市渝北区鸿府贝迪幼儿园 | I166: 鸿府贝迪幼儿园 | J166: 鸿府贝迪 | K166: 鸿府贝迪 | L166: EducationStage.PRESCHOOL_STAGE | M166: UrbanRuralType.URBAN | N166: OrgFundSource.PRIVATE | O166: 1650 | P166: 重庆市渝北区宝环路36号 | Q166: 等级预一级，是否普惠园：是 | R166: CommonStatus.DISABLE | T166: new SysOrg { Id = 165, Pid = 14, Pids = "[0],[1],[14],", OrgType = OrgType.SCHOOL, OrgFundSource = OrgFundSource.PRIVATE, EducationStage = EducationStage.PRESCHOOL_STAGE, UrbanRuralType = UrbanRuralType.URBAN, Code = "0151", Name = "鸿府贝迪幼儿园", FullName = "重庆市渝北区鸿府贝迪幼儿园", ShortName = "鸿府贝迪", ShortName2 = "鸿府贝迪", TqesId = 0, TqesCode = "", Sort = 1650, Status = CommonStatus.DISABLE, CreateSysUserId = 1, CreateTime = DateTime.Now },
A167: 166 | B167: 0 | C167: 14 | D167: [0],[1],[14], | E167: OrgType.SCHOOL | F167: 0152 | G167: Y | H167: 重庆市渝北区宝圣湖幼儿园 | I167: 宝圣湖幼儿园 | J167: 宝圣湖 | K167: 宝圣湖 | L167: EducationStage.PRESCHOOL_STAGE | M167: UrbanRuralType.URBAN | N167: OrgFundSource.PUBLIC | O167: 1660 | P167: 渝北区宝圣湖街道宝环路346号 | Q167: 等级一级，是否普惠园：是 | R167: CommonStatus.DISABLE | T167: new SysOrg { Id = 166, Pid = 14, Pids = "[0],[1],[14],", OrgType = OrgType.SCHOOL, OrgFundSource = OrgFundSource.PUBLIC, EducationStage = EducationStage.PRESCHOOL_STAGE, UrbanRuralType = UrbanRuralType.URBAN, Code = "0152", Name = "宝圣湖幼儿园", FullName = "重庆市渝北区宝圣湖幼儿园", ShortName = "宝圣湖", ShortName2 = "宝圣湖", TqesId = 0, TqesCode = "", Sort = 1660, Status = CommonStatus.DISABLE, CreateSysUserId = 1, CreateTime = DateTime.Now },
A168: 167 | B168: 0 | C168: 14 | D168: [0],[1],[14], | E168: OrgType.SCHOOL | F168: 0153 | G168: Y | H168: 重庆市渝北区宝圣湖幼儿园宏苑园 | I168: 宝圣湖幼儿园宏苑园 | J168: 宝圣湖宏苑园 | K168: 宝圣湖宏苑园 | L168: EducationStage.PRESCHOOL_STAGE | M168: UrbanRuralType.URBAN | N168: OrgFundSource.PUBLIC | O168: 1670 | P168: 渝北区回兴街道服装城大道41号 | Q168: 等级二级，是否普惠园：是 | R168: CommonStatus.DISABLE | T168: new SysOrg { Id = 167, Pid = 14, Pids = "[0],[1],[14],", OrgType = OrgType.SCHOOL, OrgFundSource = OrgFundSource.PUBLIC, EducationStage = EducationStage.PRESCHOOL_STAGE, UrbanRuralType = UrbanRuralType.URBAN, Code = "0153", Name = "宝圣湖幼儿园宏苑园", FullName = "重庆市渝北区宝圣湖幼儿园宏苑园", ShortName = "宝圣湖宏苑园", ShortName2 = "宝圣湖宏苑园", TqesId = 0, TqesCode = "", Sort = 1670, Status = CommonStatus.DISABLE, CreateSysUserId = 1, CreateTime = DateTime.Now },
A169: 168 | B169: 0 | C169: 14 | D169: [0],[1],[14], | E169: OrgType.SCHOOL | F169: 0154 | G169: Y | H169: 重庆市渝北区宝圣湖幼儿园翠屏园 | I169: 宝圣湖幼儿园翠屏园 | J169: 宝圣湖翠屏园 | K169: 宝圣湖翠屏园 | L169: EducationStage.PRESCHOOL_STAGE | M169: UrbanRuralType.URBAN | N169: OrgFundSource.PUBLIC | O169: 1680 | P169: 渝北区回兴街道霓裳大道翠屏三巷6号 | Q169: 等级二级，是否普惠园：是 | R169: CommonStatus.DISABLE | T169: new SysOrg { Id = 168, Pid = 14, Pids = "[0],[1],[14],", OrgType = OrgType.SCHOOL, OrgFundSource = OrgFundSource.PUBLIC, EducationStage = EducationStage.PRESCHOOL_STAGE, UrbanRuralType = UrbanRuralType.URBAN, Code = "0154", Name = "宝圣湖幼儿园翠屏园", FullName = "重庆市渝北区宝圣湖幼儿园翠屏园", ShortName = "宝圣湖翠屏园", ShortName2 = "宝圣湖翠屏园", TqesId = 0, TqesCode = "", Sort = 1680, Status = CommonStatus.DISABLE, CreateSysUserId = 1, CreateTime = DateTime.Now },
A170: 169 | B170: 0 | C170: 14 | D170: [0],[1],[14], | E170: OrgType.SCHOOL | F170: 0155 | G170: Y | H170: 重庆市渝北区西政幼儿园 | I170: 西政幼儿园 | J170: 西政 | K170: 西政 | L170: EducationStage.PRESCHOOL_STAGE | M170: UrbanRuralType.URBAN | N170: OrgFundSource.PUBLIC | O170: 1690 | P170: 渝北区宝圣大道139号 | Q170: 等级一级，是否普惠园：是 | R170: CommonStatus.DISABLE | T170: new SysOrg { Id = 169, Pid = 14, Pids = "[0],[1],[14],", OrgType = OrgType.SCHOOL, OrgFundSource = OrgFundSource.PUBLIC, EducationStage = EducationStage.PRESCHOOL_STAGE, UrbanRuralType = UrbanRuralType.URBAN, Code = "0155", Name = "西政幼儿园", FullName = "重庆市渝北区西政幼儿园", ShortName = "西政", ShortName2 = "西政", TqesId = 0, TqesCode = "", Sort = 1690, Status = CommonStatus.DISABLE, CreateSysUserId = 1, CreateTime = DateTime.Now },
A171: 170 | B171: 0 | C171: 14 | D171: [0],[1],[14], | E171: OrgType.SCHOOL | F171: 0156 | G171: Y | H171: 重庆市渝北区第三实验小学校附属幼儿园 | I171: 第三实验小学校附属幼儿园 | J171: 第三实验小学校附属 | K171: 第三实验小学校附属 | L171: EducationStage.PRESCHOOL_STAGE | M171: UrbanRuralType.URBAN | N171: OrgFundSource.PUBLIC | O171: 1700 | P171: 渝北区宝桐路308号 | Q171: 等级一级，是否普惠园：是 | R171: CommonStatus.DISABLE | T171: new SysOrg { Id = 170, Pid = 14, Pids = "[0],[1],[14],", OrgType = OrgType.SCHOOL, OrgFundSource = OrgFundSource.PUBLIC, EducationStage = EducationStage.PRESCHOOL_STAGE, UrbanRuralType = UrbanRuralType.URBAN, Code = "0156", Name = "第三实验小学校附属幼儿园", FullName = "重庆市渝北区第三实验小学校附属幼儿园", ShortName = "第三实验小学校附属", ShortName2 = "第三实验小学校附属", TqesId = 0, TqesCode = "", Sort = 1700, Status = CommonStatus.DISABLE, CreateSysUserId = 1, CreateTime = DateTime.Now },
A172: 171 | B172: 0 | C172: 14 | D172: [0],[1],[14], | E172: OrgType.SCHOOL | F172: 0157 | G172: Y | H172: 重庆市渝北区宝圣湖小学附属幼儿园 | I172: 宝圣湖小学附属幼儿园 | J172: 宝圣湖小学附属 | K172: 宝圣湖小学附属 | L172: EducationStage.PRESCHOOL_STAGE | M172: UrbanRuralType.URBAN | N172: OrgFundSource.PUBLIC | O172: 1710 | P172: 渝北区宝圣湖街道宝环路418号 | Q172: 等级二级，是否普惠园：是 | R172: CommonStatus.DISABLE | T172: new SysOrg { Id = 171, Pid = 14, Pids = "[0],[1],[14],", OrgType = OrgType.SCHOOL, OrgFundSource = OrgFundSource.PUBLIC, EducationStage = EducationStage.PRESCHOOL_STAGE, UrbanRuralType = UrbanRuralType.URBAN, Code = "0157", Name = "宝圣湖小学附属幼儿园", FullName = "重庆市渝北区宝圣湖小学附属幼儿园", ShortName = "宝圣湖小学附属", ShortName2 = "宝圣湖小学附属", TqesId = 0, TqesCode = "", Sort = 1710, Status = CommonStatus.DISABLE, CreateSysUserId = 1, CreateTime = DateTime.Now },
A173: 172 | B173: 0 | C173: 14 | D173: [0],[1],[14], | E173: OrgType.SCHOOL | F173: 0158 | G173: Y | H173: 重庆市渝北区在水一方大地幼儿园 | I173: 在水一方大地幼儿园 | J173: 在水一方大地 | K173: 在水一方大地 | L173: EducationStage.PRESCHOOL_STAGE | M173: UrbanRuralType.URBAN | N173: OrgFundSource.PRIVATE | O173: 1720 | P173: 渝北区回兴街道宝圣大道99号 | Q173: 等级一级，是否普惠园：是 | R173: CommonStatus.DISABLE | T173: new SysOrg { Id = 172, Pid = 14, Pids = "[0],[1],[14],", OrgType = OrgType.SCHOOL, OrgFundSource = OrgFundSource.PRIVATE, EducationStage = EducationStage.PRESCHOOL_STAGE, UrbanRuralType = UrbanRuralType.URBAN, Code = "0158", Name = "在水一方大地幼儿园", FullName = "重庆市渝北区在水一方大地幼儿园", ShortName = "在水一方大地", ShortName2 = "在水一方大地", TqesId = 0, TqesCode = "", Sort = 1720, Status = CommonStatus.DISABLE, CreateSysUserId = 1, CreateTime = DateTime.Now },
A174: 173 | B174: 0 | C174: 14 | D174: [0],[1],[14], | E174: OrgType.SCHOOL | F174: 0159 | G174: Y | H174: 重庆市渝北区青河世家华都幼儿园 | I174: 青河世家华都幼儿园 | J174: 青河世家华都 | K174: 青河世家华都 | L174: EducationStage.PRESCHOOL_STAGE | M174: UrbanRuralType.URBAN | N174: OrgFundSource.PRIVATE | O174: 1730 | P174: 渝北区回兴街道果塘路139号 | Q174: 等级一级，是否普惠园：是 | R174: CommonStatus.DISABLE | T174: new SysOrg { Id = 173, Pid = 14, Pids = "[0],[1],[14],", OrgType = OrgType.SCHOOL, OrgFundSource = OrgFundSource.PRIVATE, EducationStage = EducationStage.PRESCHOOL_STAGE, UrbanRuralType = UrbanRuralType.URBAN, Code = "0159", Name = "青河世家华都幼儿园", FullName = "重庆市渝北区青河世家华都幼儿园", ShortName = "青河世家华都", ShortName2 = "青河世家华都", TqesId = 0, TqesCode = "", Sort = 1730, Status = CommonStatus.DISABLE, CreateSysUserId = 1, CreateTime = DateTime.Now },
A175: 174 | B175: 0 | C175: 14 | D175: [0],[1],[14], | E175: OrgType.SCHOOL | F175: 0160 | G175: Y | H175: 重庆市渝北区朗润三色幼儿园 | I175: 朗润三色幼儿园 | J175: 朗润三色 | K175: 朗润三色 | L175: EducationStage.PRESCHOOL_STAGE | M175: UrbanRuralType.URBAN | N175: OrgFundSource.PRIVATE | O175: 1740 | P175: 渝北区回兴街道宝圣大道466号 | Q175: 等级一级，是否普惠园：是 | R175: CommonStatus.DISABLE | T175: new SysOrg { Id = 174, Pid = 14, Pids = "[0],[1],[14],", OrgType = OrgType.SCHOOL, OrgFundSource = OrgFundSource.PRIVATE, EducationStage = EducationStage.PRESCHOOL_STAGE, UrbanRuralType = UrbanRuralType.URBAN, Code = "0160", Name = "朗润三色幼儿园", FullName = "重庆市渝北区朗润三色幼儿园", ShortName = "朗润三色", ShortName2 = "朗润三色", TqesId = 0, TqesCode = "", Sort = 1740, Status = CommonStatus.DISABLE, CreateSysUserId = 1, CreateTime = DateTime.Now },
A176: 175 | B176: 0 | C176: 14 | D176: [0],[1],[14], | E176: OrgType.SCHOOL | F176: 0161 | G176: Y | H176: 重庆市渝北区回兴小太阳幼儿园 | I176: 回兴小太阳幼儿园 | J176: 回兴小太阳 | K176: 回兴小太阳 | L176: EducationStage.PRESCHOOL_STAGE | M176: UrbanRuralType.URBAN | N176: OrgFundSource.PRIVATE | O176: 1750 | P176: 渝北区回兴街道兴科四路93号富悦新城9栋 | Q176: 等级一级，是否普惠园：是 | R176: CommonStatus.DISABLE | T176: new SysOrg { Id = 175, Pid = 14, Pids = "[0],[1],[14],", OrgType = OrgType.SCHOOL, OrgFundSource = OrgFundSource.PRIVATE, EducationStage = EducationStage.PRESCHOOL_STAGE, UrbanRuralType = UrbanRuralType.URBAN, Code = "0161", Name = "回兴小太阳幼儿园", FullName = "重庆市渝北区回兴小太阳幼儿园", ShortName = "回兴小太阳", ShortName2 = "回兴小太阳", TqesId = 0, TqesCode = "", Sort = 1750, Status = CommonStatus.DISABLE, CreateSysUserId = 1, CreateTime = DateTime.Now },
A177: 176 | B177: 0 | C177: 14 | D177: [0],[1],[14], | E177: OrgType.SCHOOL | F177: 0162 | G177: Y | H177: 重庆市渝北区兴阳两江时光幼儿园 | I177: 兴阳两江时光幼儿园 | J177: 兴阳两江时光 | K177: 兴阳两江时光 | L177: EducationStage.PRESCHOOL_STAGE | M177: UrbanRuralType.URBAN | N177: OrgFundSource.PRIVATE | O177: 1760 | P177: 重庆市渝北区宝圣大道599号 | Q177: 等级一级，是否普惠园：是 | R177: CommonStatus.DISABLE | T177: new SysOrg { Id = 176, Pid = 14, Pids = "[0],[1],[14],", OrgType = OrgType.SCHOOL, OrgFundSource = OrgFundSource.PRIVATE, EducationStage = EducationStage.PRESCHOOL_STAGE, UrbanRuralType = UrbanRuralType.URBAN, Code = "0162", Name = "兴阳两江时光幼儿园", FullName = "重庆市渝北区兴阳两江时光幼儿园", ShortName = "兴阳两江时光", ShortName2 = "兴阳两江时光", TqesId = 0, TqesCode = "", Sort = 1760, Status = CommonStatus.DISABLE, CreateSysUserId = 1, CreateTime = DateTime.Now },
A178: 177 | B178: 0 | C178: 14 | D178: [0],[1],[14], | E178: OrgType.SCHOOL | F178: 0163 | G178: Y | H178: 重庆市渝北区宝圣湖艺佳谊幼儿园 | I178: 宝圣湖艺佳谊幼儿园 | J178: 宝圣湖艺佳谊 | K178: 宝圣湖艺佳谊 | L178: EducationStage.PRESCHOOL_STAGE | M178: UrbanRuralType.URBAN | N178: OrgFundSource.PRIVATE | O178: 1770 | P178: 渝北区宝圣湖街道兴科大道 635号附19号 | Q178: 等级二级，是否普惠园：是 | R178: CommonStatus.DISABLE | T178: new SysOrg { Id = 177, Pid = 14, Pids = "[0],[1],[14],", OrgType = OrgType.SCHOOL, OrgFundSource = OrgFundSource.PRIVATE, EducationStage = EducationStage.PRESCHOOL_STAGE, UrbanRuralType = UrbanRuralType.URBAN, Code = "0163", Name = "宝圣湖艺佳谊幼儿园", FullName = "重庆市渝北区宝圣湖艺佳谊幼儿园", ShortName = "宝圣湖艺佳谊", ShortName2 = "宝圣湖艺佳谊", TqesId = 0, TqesCode = "", Sort = 1770, Status = CommonStatus.DISABLE, CreateSysUserId = 1, CreateTime = DateTime.Now },
A179: 178 | B179: 0 | C179: 14 | D179: [0],[1],[14], | E179: OrgType.SCHOOL | F179: 0164 | G179: Y | H179: 重庆市渝北区未来宝贝幼儿园 | I179: 未来宝贝幼儿园 | J179: 未来宝贝 | K179: 未来宝贝 | L179: EducationStage.PRESCHOOL_STAGE | M179: UrbanRuralType.URBAN | N179: OrgFundSource.PRIVATE | O179: 1780 | P179: 渝北区宝圣大道121号 | Q179: 等级二级，是否普惠园：是 | R179: CommonStatus.DISABLE | T179: new SysOrg { Id = 178, Pid = 14, Pids = "[0],[1],[14],", OrgType = OrgType.SCHOOL, OrgFundSource = OrgFundSource.PRIVATE, EducationStage = EducationStage.PRESCHOOL_STAGE, UrbanRuralType = UrbanRuralType.URBAN, Code = "0164", Name = "未来宝贝幼儿园", FullName = "重庆市渝北区未来宝贝幼儿园", ShortName = "未来宝贝", ShortName2 = "未来宝贝", TqesId = 0, TqesCode = "", Sort = 1780, Status = CommonStatus.DISABLE, CreateSysUserId = 1, CreateTime = DateTime.Now },
A180: 179 | B180: 0 | C180: 14 | D180: [0],[1],[14], | E180: OrgType.SCHOOL | F180: 0165 | G180: Y | H180: 重庆市渝北区三和幼儿园 | I180: 三和幼儿园 | J180: 三和 | K180: 三和 | L180: EducationStage.PRESCHOOL_STAGE | M180: UrbanRuralType.URBAN | N180: OrgFundSource.PRIVATE | O180: 1790 | P180: 渝北区宝石路91号 | Q180: 等级二级，是否普惠园：是 | R180: CommonStatus.DISABLE | T180: new SysOrg { Id = 179, Pid = 14, Pids = "[0],[1],[14],", OrgType = OrgType.SCHOOL, OrgFundSource = OrgFundSource.PRIVATE, EducationStage = EducationStage.PRESCHOOL_STAGE, UrbanRuralType = UrbanRuralType.URBAN, Code = "0165", Name = "三和幼儿园", FullName = "重庆市渝北区三和幼儿园", ShortName = "三和", ShortName2 = "三和", TqesId = 0, TqesCode = "", Sort = 1790, Status = CommonStatus.DISABLE, CreateSysUserId = 1, CreateTime = DateTime.Now },
A181: 180 | B181: 0 | C181: 14 | D181: [0],[1],[14], | E181: OrgType.SCHOOL | F181: 0166 | G181: Y | H181: 重庆市渝北区回兴圣湖天域阳光幼儿园 | I181: 回兴圣湖天域阳光幼儿园 | J181: 回兴圣湖天域阳光 | K181: 回兴圣湖天域阳光 | L181: EducationStage.PRESCHOOL_STAGE | M181: UrbanRuralType.URBAN | N181: OrgFundSource.PRIVATE | O181: 1800 | P181: 渝北区回兴宝桐路1号 | Q181: 等级二级，是否普惠园：是 | R181: CommonStatus.DISABLE | T181: new SysOrg { Id = 180, Pid = 14, Pids = "[0],[1],[14],", OrgType = OrgType.SCHOOL, OrgFundSource = OrgFundSource.PRIVATE, EducationStage = EducationStage.PRESCHOOL_STAGE, UrbanRuralType = UrbanRuralType.URBAN, Code = "0166", Name = "回兴圣湖天域阳光幼儿园", FullName = "重庆市渝北区回兴圣湖天域阳光幼儿园", ShortName = "回兴圣湖天域阳光", ShortName2 = "回兴圣湖天域阳光", TqesId = 0, TqesCode = "", Sort = 1800, Status = CommonStatus.DISABLE, CreateSysUserId = 1, CreateTime = DateTime.Now },
A182: 181 | B182: 0 | C182: 14 | D182: [0],[1],[14], | E182: OrgType.SCHOOL | F182: 0167 | G182: Y | H182: 重庆市渝北区鑫城名都幼儿园 | I182: 鑫城名都幼儿园 | J182: 鑫城名都 | K182: 鑫城名都 | L182: EducationStage.PRESCHOOL_STAGE | M182: UrbanRuralType.URBAN | N182: OrgFundSource.PRIVATE | O182: 1810 | P182: 渝北区回兴街道金开大道2009号鑫城名都小区 | Q182: 等级二级，是否普惠园：是 | R182: CommonStatus.DISABLE | T182: new SysOrg { Id = 181, Pid = 14, Pids = "[0],[1],[14],", OrgType = OrgType.SCHOOL, OrgFundSource = OrgFundSource.PRIVATE, EducationStage = EducationStage.PRESCHOOL_STAGE, UrbanRuralType = UrbanRuralType.URBAN, Code = "0167", Name = "鑫城名都幼儿园", FullName = "重庆市渝北区鑫城名都幼儿园", ShortName = "鑫城名都", ShortName2 = "鑫城名都", TqesId = 0, TqesCode = "", Sort = 1810, Status = CommonStatus.DISABLE, CreateSysUserId = 1, CreateTime = DateTime.Now },
A183: 182 | B183: 0 | C183: 14 | D183: [0],[1],[14], | E183: OrgType.SCHOOL | F183: 0168 | G183: Y | H183: 重庆市渝北区鸿府幼儿园 | I183: 鸿府幼儿园 | J183: 鸿府 | K183: 鸿府 | L183: EducationStage.PRESCHOOL_STAGE | M183: UrbanRuralType.URBAN | N183: OrgFundSource.PRIVATE | O183: 1820 | P183: 渝北区宝环路隆鑫鸿府1号附45号 | Q183: 等级二级，是否普惠园：是 | R183: CommonStatus.DISABLE | T183: new SysOrg { Id = 182, Pid = 14, Pids = "[0],[1],[14],", OrgType = OrgType.SCHOOL, OrgFundSource = OrgFundSource.PRIVATE, EducationStage = EducationStage.PRESCHOOL_STAGE, UrbanRuralType = UrbanRuralType.URBAN, Code = "0168", Name = "鸿府幼儿园", FullName = "重庆市渝北区鸿府幼儿园", ShortName = "鸿府", ShortName2 = "鸿府", TqesId = 0, TqesCode = "", Sort = 1820, Status = CommonStatus.DISABLE, CreateSysUserId = 1, CreateTime = DateTime.Now },
A184: 183 | B184: 0 | C184: 14 | D184: [0],[1],[14], | E184: OrgType.SCHOOL | F184: 0169 | G184: Y | H184: 重庆市渝北区悠彩郡阳光幼儿园 | I184: 悠彩郡阳光幼儿园 | J184: 悠彩郡阳光 | K184: 悠彩郡阳光 | L184: EducationStage.PRESCHOOL_STAGE | M184: UrbanRuralType.URBAN | N184: OrgFundSource.PRIVATE | O184: 1830 | P184: 渝北区宝圣支路89号 | Q184: 等级二级，是否普惠园：是 | R184: CommonStatus.DISABLE | T184: new SysOrg { Id = 183, Pid = 14, Pids = "[0],[1],[14],", OrgType = OrgType.SCHOOL, OrgFundSource = OrgFundSource.PRIVATE, EducationStage = EducationStage.PRESCHOOL_STAGE, UrbanRuralType = UrbanRuralType.URBAN, Code = "0169", Name = "悠彩郡阳光幼儿园", FullName = "重庆市渝北区悠彩郡阳光幼儿园", ShortName = "悠彩郡阳光", ShortName2 = "悠彩郡阳光", TqesId = 0, TqesCode = "", Sort = 1830, Status = CommonStatus.DISABLE, CreateSysUserId = 1, CreateTime = DateTime.Now },
A185: 184 | B185: 0 | C185: 14 | D185: [0],[1],[14], | E185: OrgType.SCHOOL | F185: 0170 | G185: Y | H185: 重庆市渝北区蓝宝特幼儿园 | I185: 蓝宝特幼儿园 | J185: 蓝宝特 | K185: 蓝宝特 | L185: EducationStage.PRESCHOOL_STAGE | M185: UrbanRuralType.URBAN | N185: OrgFundSource.PRIVATE | O185: 1840 | P185: 渝北区回兴农业园区果塘路99号（北岸明珠） | Q185: 等级二级，是否普惠园：是 | R185: CommonStatus.DISABLE | T185: new SysOrg { Id = 184, Pid = 14, Pids = "[0],[1],[14],", OrgType = OrgType.SCHOOL, OrgFundSource = OrgFundSource.PRIVATE, EducationStage = EducationStage.PRESCHOOL_STAGE, UrbanRuralType = UrbanRuralType.URBAN, Code = "0170", Name = "蓝宝特幼儿园", FullName = "重庆市渝北区蓝宝特幼儿园", ShortName = "蓝宝特", ShortName2 = "蓝宝特", TqesId = 0, TqesCode = "", Sort = 1840, Status = CommonStatus.DISABLE, CreateSysUserId = 1, CreateTime = DateTime.Now },
A186: 185 | B186: 0 | C186: 14 | D186: [0],[1],[14], | E186: OrgType.SCHOOL | F186: 0171 | G186: Y | H186: 重庆市渝北区回兴朗天幼儿园 | I186: 回兴朗天幼儿园 | J186: 回兴朗天 | K186: 回兴朗天 | L186: EducationStage.PRESCHOOL_STAGE | M186: UrbanRuralType.URBAN | N186: OrgFundSource.PRIVATE | O186: 1850 | P186: 渝北区回兴街道兴科大道祥和花园B幢3单元 | Q186: 等级二级，是否普惠园：是 | R186: CommonStatus.DISABLE | T186: new SysOrg { Id = 185, Pid = 14, Pids = "[0],[1],[14],", OrgType = OrgType.SCHOOL, OrgFundSource = OrgFundSource.PRIVATE, EducationStage = EducationStage.PRESCHOOL_STAGE, UrbanRuralType = UrbanRuralType.URBAN, Code = "0171", Name = "回兴朗天幼儿园", FullName = "重庆市渝北区回兴朗天幼儿园", ShortName = "回兴朗天", ShortName2 = "回兴朗天", TqesId = 0, TqesCode = "", Sort = 1850, Status = CommonStatus.DISABLE, CreateSysUserId = 1, CreateTime = DateTime.Now },
A187: 186 | B187: 0 | C187: 14 | D187: [0],[1],[14], | E187: OrgType.SCHOOL | F187: 0172 | G187: Y | H187: 重庆市渝北区宝圣西路幼儿园 | I187: 宝圣西路幼儿园 | J187: 宝圣西路 | K187: 宝圣西路 | L187: EducationStage.PRESCHOOL_STAGE | M187: UrbanRuralType.URBAN | N187: OrgFundSource.PRIVATE | O187: 1860 | P187: 渝北区回兴宝圣西路幼儿园8栋5单元 | Q187: 等级三级，是否普惠园：是 | R187: CommonStatus.DISABLE | T187: new SysOrg { Id = 186, Pid = 14, Pids = "[0],[1],[14],", OrgType = OrgType.SCHOOL, OrgFundSource = OrgFundSource.PRIVATE, EducationStage = EducationStage.PRESCHOOL_STAGE, UrbanRuralType = UrbanRuralType.URBAN, Code = "0172", Name = "宝圣西路幼儿园", FullName = "重庆市渝北区宝圣西路幼儿园", ShortName = "宝圣西路", ShortName2 = "宝圣西路", TqesId = 0, TqesCode = "", Sort = 1860, Status = CommonStatus.DISABLE, CreateSysUserId = 1, CreateTime = DateTime.Now },
A188: 187 | B188: 0 | C188: 14 | D188: [0],[1],[14], | E188: OrgType.SCHOOL | F188: 0173 | G188: Y | H188: 重庆市渝北区回兴海德幼儿园 | I188: 回兴海德幼儿园 | J188: 回兴海德 | K188: 回兴海德 | L188: EducationStage.PRESCHOOL_STAGE | M188: UrbanRuralType.URBAN | N188: OrgFundSource.PRIVATE | O188: 1870 | P188: 渝北区宝圣西路229号海德小区 | Q188: 等级三级，是否普惠园：是 | R188: CommonStatus.DISABLE | T188: new SysOrg { Id = 187, Pid = 14, Pids = "[0],[1],[14],", OrgType = OrgType.SCHOOL, OrgFundSource = OrgFundSource.PRIVATE, EducationStage = EducationStage.PRESCHOOL_STAGE, UrbanRuralType = UrbanRuralType.URBAN, Code = "0173", Name = "回兴海德幼儿园", FullName = "重庆市渝北区回兴海德幼儿园", ShortName = "回兴海德", ShortName2 = "回兴海德", TqesId = 0, TqesCode = "", Sort = 1870, Status = CommonStatus.DISABLE, CreateSysUserId = 1, CreateTime = DateTime.Now },
A189: 188 | B189: 0 | C189: 14 | D189: [0],[1],[14], | E189: OrgType.SCHOOL | F189: 0174 | G189: Y | H189: 重庆市渝北区回兴童星幼儿园 | I189: 回兴童星幼儿园 | J189: 回兴童星 | K189: 回兴童星 | L189: EducationStage.PRESCHOOL_STAGE | M189: UrbanRuralType.URBAN | N189: OrgFundSource.PRIVATE | O189: 1880 | P189: 渝北区回兴街道兴科三路海德山庄c幢 | Q189: 等级三级，是否普惠园：是 | R189: CommonStatus.DISABLE | T189: new SysOrg { Id = 188, Pid = 14, Pids = "[0],[1],[14],", OrgType = OrgType.SCHOOL, OrgFundSource = OrgFundSource.PRIVATE, EducationStage = EducationStage.PRESCHOOL_STAGE, UrbanRuralType = UrbanRuralType.URBAN, Code = "0174", Name = "回兴童星幼儿园", FullName = "重庆市渝北区回兴童星幼儿园", ShortName = "回兴童星", ShortName2 = "回兴童星", TqesId = 0, TqesCode = "", Sort = 1880, Status = CommonStatus.DISABLE, CreateSysUserId = 1, CreateTime = DateTime.Now },
A190: 189 | B190: 0 | C190: 14 | D190: [0],[1],[14], | E190: OrgType.SCHOOL | F190: 0175 | G190: Y | H190: 重庆市渝北区回兴明菁幼儿园 | I190: 回兴明菁幼儿园 | J190: 回兴明菁 | K190: 回兴明菁 | L190: EducationStage.PRESCHOOL_STAGE | M190: UrbanRuralType.URBAN | N190: OrgFundSource.PRIVATE | O190: 1890 | P190: 渝北区兴科大道463号祥和花园A栋1单元 | Q190: 等级三级，是否普惠园：是 | R190: CommonStatus.DISABLE | T190: new SysOrg { Id = 189, Pid = 14, Pids = "[0],[1],[14],", OrgType = OrgType.SCHOOL, OrgFundSource = OrgFundSource.PRIVATE, EducationStage = EducationStage.PRESCHOOL_STAGE, UrbanRuralType = UrbanRuralType.URBAN, Code = "0175", Name = "回兴明菁幼儿园", FullName = "重庆市渝北区回兴明菁幼儿园", ShortName = "回兴明菁", ShortName2 = "回兴明菁", TqesId = 0, TqesCode = "", Sort = 1890, Status = CommonStatus.DISABLE, CreateSysUserId = 1, CreateTime = DateTime.Now },
A191: 190 | B191: 0 | C191: 14 | D191: [0],[1],[14], | E191: OrgType.SCHOOL | F191: 0176 | G191: Y | H191: 重庆市渝北区回兴蓝精灵幼儿园 | I191: 回兴蓝精灵幼儿园 | J191: 回兴蓝精灵 | K191: 回兴蓝精灵 | L191: EducationStage.PRESCHOOL_STAGE | M191: UrbanRuralType.URBAN | N191: OrgFundSource.PRIVATE | O191: 1900 | P191: 渝北区回兴兴科三路127号 | Q191: 等级三级，是否普惠园：是 | R191: CommonStatus.DISABLE | T191: new SysOrg { Id = 190, Pid = 14, Pids = "[0],[1],[14],", OrgType = OrgType.SCHOOL, OrgFundSource = OrgFundSource.PRIVATE, EducationStage = EducationStage.PRESCHOOL_STAGE, UrbanRuralType = UrbanRuralType.URBAN, Code = "0176", Name = "回兴蓝精灵幼儿园", FullName = "重庆市渝北区回兴蓝精灵幼儿园", ShortName = "回兴蓝精灵", ShortName2 = "回兴蓝精灵", TqesId = 0, TqesCode = "", Sort = 1900, Status = CommonStatus.DISABLE, CreateSysUserId = 1, CreateTime = DateTime.Now },
A192: 191 | B192: 0 | C192: 14 | D192: [0],[1],[14], | E192: OrgType.SCHOOL | F192: 0177 | G192: Y | H192: 重庆市渝北区回兴未来之星幼儿园 | I192: 回兴未来之星幼儿园 | J192: 回兴未来之星 | K192: 回兴未来之星 | L192: EducationStage.PRESCHOOL_STAGE | M192: UrbanRuralType.URBAN | N192: OrgFundSource.PRIVATE | O192: 1910 | P192: 渝北区回兴兴科一路265号附1号 | Q192: 等级三级，是否普惠园：是 | R192: CommonStatus.DISABLE | T192: new SysOrg { Id = 191, Pid = 14, Pids = "[0],[1],[14],", OrgType = OrgType.SCHOOL, OrgFundSource = OrgFundSource.PRIVATE, EducationStage = EducationStage.PRESCHOOL_STAGE, UrbanRuralType = UrbanRuralType.URBAN, Code = "0177", Name = "回兴未来之星幼儿园", FullName = "重庆市渝北区回兴未来之星幼儿园", ShortName = "回兴未来之星", ShortName2 = "回兴未来之星", TqesId = 0, TqesCode = "", Sort = 1910, Status = CommonStatus.DISABLE, CreateSysUserId = 1, CreateTime = DateTime.Now },
A193: 192 | B193: 0 | C193: 14 | D193: [0],[1],[14], | E193: OrgType.SCHOOL | F193: 0178 | G193: Y | H193: 重庆市渝北区两江慧谷童之乐幼儿园 | I193: 两江慧谷童之乐幼儿园 | J193: 两江慧谷童之乐 | K193: 两江慧谷童之乐 | L193: EducationStage.PRESCHOOL_STAGE | M193: UrbanRuralType.URBAN | N193: OrgFundSource.PRIVATE | O193: 1920 | P193: 渝北区宝圣湖街道金果大道155号 | Q193: 等级三级，是否普惠园：是 | R193: CommonStatus.DISABLE | T193: new SysOrg { Id = 192, Pid = 14, Pids = "[0],[1],[14],", OrgType = OrgType.SCHOOL, OrgFundSource = OrgFundSource.PRIVATE, EducationStage = EducationStage.PRESCHOOL_STAGE, UrbanRuralType = UrbanRuralType.URBAN, Code = "0178", Name = "两江慧谷童之乐幼儿园", FullName = "重庆市渝北区两江慧谷童之乐幼儿园", ShortName = "两江慧谷童之乐", ShortName2 = "两江慧谷童之乐", TqesId = 0, TqesCode = "", Sort = 1920, Status = CommonStatus.DISABLE, CreateSysUserId = 1, CreateTime = DateTime.Now },
A194: 193 | B194: 0 | C194: 14 | D194: [0],[1],[14], | E194: OrgType.SCHOOL | F194: 0179 | G194: Y | H194: 重庆市渝北区回兴蓝天幼儿园 | I194: 回兴蓝天幼儿园 | J194: 回兴蓝天 | K194: 回兴蓝天 | L194: EducationStage.PRESCHOOL_STAGE | M194: UrbanRuralType.URBAN | N194: OrgFundSource.PRIVATE | O194: 1930 | P194: 渝北区回兴农业园区巴山夜雨11栋一层 | Q194: 等级三级，是否普惠园：是 | R194: CommonStatus.DISABLE | T194: new SysOrg { Id = 193, Pid = 14, Pids = "[0],[1],[14],", OrgType = OrgType.SCHOOL, OrgFundSource = OrgFundSource.PRIVATE, EducationStage = EducationStage.PRESCHOOL_STAGE, UrbanRuralType = UrbanRuralType.URBAN, Code = "0179", Name = "回兴蓝天幼儿园", FullName = "重庆市渝北区回兴蓝天幼儿园", ShortName = "回兴蓝天", ShortName2 = "回兴蓝天", TqesId = 0, TqesCode = "", Sort = 1930, Status = CommonStatus.DISABLE, CreateSysUserId = 1, CreateTime = DateTime.Now },
A195: 194 | B195: 0 | C195: 14 | D195: [0],[1],[14], | E195: OrgType.SCHOOL | F195: 0180 | G195: Y | H195: 重庆市渝北区宝圣湖童之乐幼儿园 | I195: 宝圣湖童之乐幼儿园 | J195: 宝圣湖童之乐 | K195: 宝圣湖童之乐 | L195: EducationStage.PRESCHOOL_STAGE | M195: UrbanRuralType.URBAN | N195: OrgFundSource.PRIVATE | O195: 1940 | P195: 渝北区回兴街道果塘路139号清河世家12幢 | Q195: 等级三级，是否普惠园：是 | R195: CommonStatus.DISABLE | T195: new SysOrg { Id = 194, Pid = 14, Pids = "[0],[1],[14],", OrgType = OrgType.SCHOOL, OrgFundSource = OrgFundSource.PRIVATE, EducationStage = EducationStage.PRESCHOOL_STAGE, UrbanRuralType = UrbanRuralType.URBAN, Code = "0180", Name = "宝圣湖童之乐幼儿园", FullName = "重庆市渝北区宝圣湖童之乐幼儿园", ShortName = "宝圣湖童之乐", ShortName2 = "宝圣湖童之乐", TqesId = 0, TqesCode = "", Sort = 1940, Status = CommonStatus.DISABLE, CreateSysUserId = 1, CreateTime = DateTime.Now },
A196: 195 | B196: 0 | C196: 14 | D196: [0],[1],[14], | E196: OrgType.SCHOOL | F196: 0181 | G196: Y | H196: 重庆市渝北区金摇篮幼儿园 | I196: 金摇篮幼儿园 | J196: 金摇篮 | K196: 金摇篮 | L196: EducationStage.PRESCHOOL_STAGE | M196: UrbanRuralType.URBAN | N196: OrgFundSource.PRIVATE | O196: 1950 | P196: 渝北区宝圣大道348号附37号 | Q196: 等级二级，是否普惠园：是 | R196: CommonStatus.DISABLE | T196: new SysOrg { Id = 195, Pid = 14, Pids = "[0],[1],[14],", OrgType = OrgType.SCHOOL, OrgFundSource = OrgFundSource.PRIVATE, EducationStage = EducationStage.PRESCHOOL_STAGE, UrbanRuralType = UrbanRuralType.URBAN, Code = "0181", Name = "金摇篮幼儿园", FullName = "重庆市渝北区金摇篮幼儿园", ShortName = "金摇篮", ShortName2 = "金摇篮", TqesId = 0, TqesCode = "", Sort = 1950, Status = CommonStatus.DISABLE, CreateSysUserId = 1, CreateTime = DateTime.Now },
A197: 196 | B197: 0 | C197: 14 | D197: [0],[1],[14], | E197: OrgType.SCHOOL | F197: 0182 | G197: Y | H197: 重庆市渝北区童年本色幼儿园 | I197: 童年本色幼儿园 | J197: 童年本色 | K197: 童年本色 | L197: EducationStage.PRESCHOOL_STAGE | M197: UrbanRuralType.URBAN | N197: OrgFundSource.PRIVATE | O197: 1960 | P197: 渝北区宝圣湖街道宝圣大道38号 | Q197: 等级一级，是否普惠园：是 | R197: CommonStatus.DISABLE | T197: new SysOrg { Id = 196, Pid = 14, Pids = "[0],[1],[14],", OrgType = OrgType.SCHOOL, OrgFundSource = OrgFundSource.PRIVATE, EducationStage = EducationStage.PRESCHOOL_STAGE, UrbanRuralType = UrbanRuralType.URBAN, Code = "0182", Name = "童年本色幼儿园", FullName = "重庆市渝北区童年本色幼儿园", ShortName = "童年本色", ShortName2 = "童年本色", TqesId = 0, TqesCode = "", Sort = 1960, Status = CommonStatus.DISABLE, CreateSysUserId = 1, CreateTime = DateTime.Now },
A198: 197 | B198: 0 | C198: 14 | D198: [0],[1],[14], | E198: OrgType.SCHOOL | F198: 0183 | G198: Y | H198: 重庆市渝北区载英幼儿园 | I198: 载英幼儿园 | J198: 载英 | K198: 载英 | L198: EducationStage.PRESCHOOL_STAGE | M198: UrbanRuralType.URBAN | N198: OrgFundSource.PRIVATE | O198: 1970 | P198: 回兴宝桐路101号翠湖柳岸 | Q198: 等级一级，是否普惠园：是 | R198: CommonStatus.DISABLE | T198: new SysOrg { Id = 197, Pid = 14, Pids = "[0],[1],[14],", OrgType = OrgType.SCHOOL, OrgFundSource = OrgFundSource.PRIVATE, EducationStage = EducationStage.PRESCHOOL_STAGE, UrbanRuralType = UrbanRuralType.URBAN, Code = "0183", Name = "载英幼儿园", FullName = "重庆市渝北区载英幼儿园", ShortName = "载英", ShortName2 = "载英", TqesId = 0, TqesCode = "", Sort = 1970, Status = CommonStatus.DISABLE, CreateSysUserId = 1, CreateTime = DateTime.Now },
A199: 198 | B199: 0 | C199: 14 | D199: [0],[1],[14], | E199: OrgType.SCHOOL | F199: 0184 | G199: Y | H199: 重庆市渝北区两江实验幼儿园 | I199: 两江实验幼儿园 | J199: 两江实验 | K199: 两江实验 | L199: EducationStage.PRESCHOOL_STAGE | M199: UrbanRuralType.URBAN | N199: OrgFundSource.PRIVATE | O199: 1980 | P199: 重庆市渝北区宝圣湖街道257号 | Q199: 等级一级，是否普惠园：否 | R199: CommonStatus.DISABLE | T199: new SysOrg { Id = 198, Pid = 14, Pids = "[0],[1],[14],", OrgType = OrgType.SCHOOL, OrgFundSource = OrgFundSource.PRIVATE, EducationStage = EducationStage.PRESCHOOL_STAGE, UrbanRuralType = UrbanRuralType.URBAN, Code = "0184", Name = "两江实验幼儿园", FullName = "重庆市渝北区两江实验幼儿园", ShortName = "两江实验", ShortName2 = "两江实验", TqesId = 0, TqesCode = "", Sort = 1980, Status = CommonStatus.DISABLE, CreateSysUserId = 1, CreateTime = DateTime.Now },
A200: 199 | B200: 0 | C200: 14 | D200: [0],[1],[14], | E200: OrgType.SCHOOL | F200: 0185 | G200: Y | H200: 重庆市渝北区锦绣华城幼儿园 | I200: 锦绣华城幼儿园 | J200: 锦绣华城 | K200: 锦绣华城 | L200: EducationStage.PRESCHOOL_STAGE | M200: UrbanRuralType.URBAN | N200: OrgFundSource.PRIVATE | O200: 1990 | P200: 渝北区金石大道369号锦绣华城小区2栋-幼儿园 | Q200: 等级一级，是否普惠园：否 | R200: CommonStatus.DISABLE | T200: ="new SysOrg { Id = "&A200&", Pid = "&C200&", Pids = """&D200&""", OrgType = "&E200&", OrgFundSource = "&N200&", EducationStage = "&L200&", UrbanRuralType = "&M200&", Code = """&F200&""", Name = """&I200&""", FullName = """&H200&""", ShortName = """&J200&""", ShortName2 = """&K200&""", TqesId = "&B200&", TqesCode = """&S200&""", Sort = "&O200&", Status = "&R200&", CreateSysUserId = 1, CreateTime = DateTime.Now }," -> new SysOrg { Id = 199, Pid = 14, Pids = "[0],[1],[14],", OrgType = OrgType.SCHOOL, OrgFundSource = OrgFundSource.PRIVATE, EducationStage = EducationStage.PRESCHOOL_STAGE, UrbanRuralType = UrbanRuralType.URBAN, Code = "0185", Name = "锦绣华城幼儿园", FullName = "重庆市渝北区锦绣华城幼儿园", ShortName = "锦绣华城", ShortName2 = "锦绣华城", TqesId = 0, TqesCode = "", Sort = 1990, Status = CommonStatus.DISABLE, CreateSysUserId = 1, CreateTime = DateTime.Now },
... 278 more rows

Sheet 用户
E2: account | H2: /* 学前 - 管理员 */ | I2: /* 学前 - 管理员 */
A3: 6 | B3: 100 | C3: =机构!H16 -> 重庆市渝北区城南幼儿园 | D3: =机构!A16 -> 15 | E3: =机构!G16&RIGHT("000000"&机构!F16,5)&"01" -> Y0000101 | F3: 管理员 | G3: 5t6QUpK/gc29b2R83PGu/dMBr8qUIkRWpG9dhS85SnI= | H3: ="INSERT INTO sys_user(id, sys_org_id, `name`, account, password, is_activated, create_sys_user_id, create_time, status, is_deleted) VALUES("&B3&", "&D3&", '"&F3&"', '"&E3&"', '"&G3&"', 0, 1, NOW(), 1, 0);" -> INSERT INTO sys_user(id, sys_org_id, `name`, account, password, is_activated, create_sys_user_id, create_time, status, is_deleted) VALUES(100, 15, '管理员', 'Y0000101', '5t6QUpK/gc29b2R83PGu/dMBr8qUIkRWpG9dhS85SnI=', 0, 1, NOW(), 1, 0); | I3: ="INSERT INTO sys_role_user(id, sys_role_id, sys_user_id) VALUES("&B3&", "&A3&", "&B3&");" -> INSERT INTO sys_role_user(id, sys_role_id, sys_user_id) VALUES(100, 6, 100);
A4: 6 | B4: 101 | C4: =机构!H17 -> 重庆市渝北区城南幼儿园飞湖园 | D4: =机构!A17 -> 16 | E4: =机构!G17&RIGHT("000000"&机构!F17,5)&"01" -> Y0000201 | F4: 管理员 | G4: 5t6QUpK/gc29b2R83PGu/dMBr8qUIkRWpG9dhS85SnI= | H4: ="INSERT INTO sys_user(id, sys_org_id, `name`, account, password, is_activated, create_sys_user_id, create_time, status, is_deleted) VALUES("&B4&", "&D4&", '"&F4&"', '"&E4&"', '"&G4&"', 0, 1, NOW(), 1, 0);" -> INSERT INTO sys_user(id, sys_org_id, `name`, account, password, is_activated, create_sys_user_id, create_time, status, is_deleted) VALUES(101, 16, '管理员', 'Y0000201', '5t6QUpK/gc29b2R83PGu/dMBr8qUIkRWpG9dhS85SnI=', 0, 1, NOW(), 1, 0); | I4: ="INSERT INTO sys_role_user(id, sys_role_id, sys_user_id) VALUES("&B4&", "&A4&", "&B4&");" -> INSERT INTO sys_role_user(id, sys_role_id, sys_user_id) VALUES(101, 6, 101);
A5: 6 | B5: 102 | C5: =机构!H18 -> 重庆市渝北区城南幼儿园翠湖园 | D5: =机构!A18 -> 17 | E5: =机构!G18&RIGHT("000000"&机构!F18,5)&"01" -> Y0000301 | F5: 管理员 | G5: 5t6QUpK/gc29b2R83PGu/dMBr8qUIkRWpG9dhS85SnI= | H5: INSERT INTO sys_user(id, sys_org_id, `name`, account, password, is_activated, create_sys_user_id, create_time, status, is_deleted) VALUES(102, 17, '管理员', 'Y0000301', '5t6QUpK/gc29b2R83PGu/dMBr8qUIkRWpG9dhS85SnI=', 0, 1, NOW(), 1, 0); | I5: INSERT INTO sys_role_user(id, sys_role_id, sys_user_id) VALUES(102, 6, 102);
A6: 6 | B6: 103 | C6: =机构!H19 -> 重庆市渝北区城南幼儿园锦湖园 | D6: =机构!A19 -> 18 | E6: =机构!G19&RIGHT("000000"&机构!F19,5)&"01" -> Y0000401 | F6: 管理员 | G6: 5t6QUpK/gc29b2R83PGu/dMBr8qUIkRWpG9dhS85SnI= | H6: INSERT INTO sys_user(id, sys_org_id, `name`, account, password, is_activated, create_sys_user_id, create_time, status, is_deleted) VALUES(103, 18, '管理员', 'Y0000401', '5t6QUpK/gc29b2R83PGu/dMBr8qUIkRWpG9dhS85SnI=', 0, 1, NOW(), 1, 0); | I6: INSERT INTO sys_role_user(id, sys_role_id, sys_user_id) VALUES(103, 6, 103);
A7: 6 | B7: 104 | C7: =机构!H20 -> 重庆市渝北区同茂小学校附属幼儿园 | D7: =机构!A20 -> 19 | E7: =机构!G20&RIGHT("000000"&机构!F20,5)&"01" -> Y0000501 | F7: 管理员 | G7: 5t6QUpK/gc29b2R83PGu/dMBr8qUIkRWpG9dhS85SnI= | H7: INSERT INTO sys_user(id, sys_org_id, `name`, account, password, is_activated, create_sys_user_id, create_time, status, is_deleted) VALUES(104, 19, '管理员', 'Y0000501', '5t6QUpK/gc29b2R83PGu/dMBr8qUIkRWpG9dhS85SnI=', 0, 1, NOW(), 1, 0); | I7: INSERT INTO sys_role_user(id, sys_role_id, sys_user_id) VALUES(104, 6, 104);
A8: 6 | B8: 105 | C8: =机构!H21 -> 重庆市渝北区港城幼儿园 | D8: =机构!A21 -> 20 | E8: =机构!G21&RIGHT("000000"&机构!F21,5)&"01" -> Y0000601 | F8: 管理员 | G8: 5t6QUpK/gc29b2R83PGu/dMBr8qUIkRWpG9dhS85SnI= | H8: INSERT INTO sys_user(id, sys_org_id, `name`, account, password, is_activated, create_sys_user_id, create_time, status, is_deleted) VALUES(105, 20, '管理员', 'Y0000601', '5t6QUpK/gc29b2R83PGu/dMBr8qUIkRWpG9dhS85SnI=', 0, 1, NOW(), 1, 0); | I8: INSERT INTO sys_role_user(id, sys_role_id, sys_user_id) VALUES(105, 6, 105);
A9: 6 | B9: 106 | C9: =机构!H22 -> 重庆市渝北区双龙湖思艺幼儿园 | D9: =机构!A22 -> 21 | E9: =机构!G22&RIGHT("000000"&机构!F22,5)&"01" -> Y0000701 | F9: 管理员 | G9: 5t6QUpK/gc29b2R83PGu/dMBr8qUIkRWpG9dhS85SnI= | H9: INSERT INTO sys_user(id, sys_org_id, `name`, account, password, is_activated, create_sys_user_id, create_time, status, is_deleted) VALUES(106, 21, '管理员', 'Y0000701', '5t6QUpK/gc29b2R83PGu/dMBr8qUIkRWpG9dhS85SnI=', 0, 1, NOW(), 1, 0); | I9: INSERT INTO sys_role_user(id, sys_role_id, sys_user_id) VALUES(106, 6, 106);
A10: 6 | B10: 107 | C10: =机构!H23 -> 重庆市渝北区双龙湖佳家幼儿园 | D10: =机构!A23 -> 22 | E10: =机构!G23&RIGHT("000000"&机构!F23,5)&"01" -> Y0000801 | F10: 管理员 | G10: 5t6QUpK/gc29b2R83PGu/dMBr8qUIkRWpG9dhS85SnI= | H10: INSERT INTO sys_user(id, sys_org_id, `name`, account, password, is_activated, create_sys_user_id, create_time, status, is_deleted) VALUES(107, 22, '管理员', 'Y0000801', '5t6QUpK/gc29b2R83PGu/dMBr8qUIkRWpG9dhS85SnI=', 0, 1, NOW(), 1, 0); | I10: INSERT INTO sys_role_user(id, sys_role_id, sys_user_id) VALUES(107, 6, 107);
A11: 6 | B11: 108 | C11: =机构!H24 -> 重庆市渝北区双龙湖园丁村幼儿园 | D11: =机构!A24 -> 23 | E11: =机构!G24&RIGHT("000000"&机构!F24,5)&"01" -> Y0000901 | F11: 管理员 | G11: 5t6QUpK/gc29b2R83PGu/dMBr8qUIkRWpG9dhS85SnI= | H11: INSERT INTO sys_user(id, sys_org_id, `name`, account, password, is_activated, create_sys_user_id, create_time, status, is_deleted) VALUES(108, 23, '管理员', 'Y0000901', '5t6QUpK/gc29b2R83PGu/dMBr8qUIkRWpG9dhS85SnI=', 0, 1, NOW(), 1, 0); | I11: INSERT INTO sys_role_user(id, sys_role_id, sys_user_id) VALUES(108, 6, 108);
A12: 6 | B12: 109 | C12: =机构!H25 -> 重庆市渝北区双龙湖华都湖滨幼儿园 | D12: =机构!A25 -> 24 | E12: =机构!G25&RIGHT("000000"&机构!F25,5)&"01" -> Y0001001 | F12: 管理员 | G12: 5t6QUpK/gc29b2R83PGu/dMBr8qUIkRWpG9dhS85SnI= | H12: INSERT INTO sys_user(id, sys_org_id, `name`, account, password, is_activated, create_sys_user_id, create_time, status, is_deleted) VALUES(109, 24, '管理员', 'Y0001001', '5t6QUpK/gc29b2R83PGu/dMBr8qUIkRWpG9dhS85SnI=', 0, 1, NOW(), 1, 0); | I12: INSERT INTO sys_role_user(id, sys_role_id, sys_user_id) VALUES(109, 6, 109);
A13: 6 | B13: 110 | C13: =机构!H26 -> 重庆市渝北区双龙湖艺苗幼儿园 | D13: =机构!A26 -> 25 | E13: =机构!G26&RIGHT("000000"&机构!F26,5)&"01" -> Y0001101 | F13: 管理员 | G13: 5t6QUpK/gc29b2R83PGu/dMBr8qUIkRWpG9dhS85SnI= | H13: INSERT INTO sys_user(id, sys_org_id, `name`, account, password, is_activated, create_sys_user_id, create_time, status, is_deleted) VALUES(110, 25, '管理员', 'Y0001101', '5t6QUpK/gc29b2R83PGu/dMBr8qUIkRWpG9dhS85SnI=', 0, 1, NOW(), 1, 0); | I13: INSERT INTO sys_role_user(id, sys_role_id, sys_user_id) VALUES(110, 6, 110);
A14: 6 | B14: 111 | C14: =机构!H27 -> 重庆市渝北区星朗幼儿园 | D14: =机构!A27 -> 26 | E14: =机构!G27&RIGHT("000000"&机构!F27,5)&"01" -> Y0001201 | F14: 管理员 | G14: 5t6QUpK/gc29b2R83PGu/dMBr8qUIkRWpG9dhS85SnI= | H14: INSERT INTO sys_user(id, sys_org_id, `name`, account, password, is_activated, create_sys_user_id, create_time, status, is_deleted) VALUES(111, 26, '管理员', 'Y0001201', '5t6QUpK/gc29b2R83PGu/dMBr8qUIkRWpG9dhS85SnI=', 0, 1, NOW(), 1, 0); | I14: INSERT INTO sys_role_user(id, sys_role_id, sys_user_id) VALUES(111, 6, 111);
A15: 6 | B15: 112 | C15: =机构!H28 -> 重庆市渝北区阳光宝童幼儿园 | D15: =机构!A28 -> 27 | E15: =机构!G28&RIGHT("000000"&机构!F28,5)&"01" -> Y0001301 | F15: 管理员 | G15: 5t6QUpK/gc29b2R83PGu/dMBr8qUIkRWpG9dhS85SnI= | H15: INSERT INTO sys_user(id, sys_org_id, `name`, account, password, is_activated, create_sys_user_id, create_time, status, is_deleted) VALUES(112, 27, '管理员', 'Y0001301', '5t6QUpK/gc29b2R83PGu/dMBr8qUIkRWpG9dhS85SnI=', 0, 1, NOW(), 1, 0); | I15: INSERT INTO sys_role_user(id, sys_role_id, sys_user_id) VALUES(112, 6, 112);
A16: 6 | B16: 113 | C16: =机构!H29 -> 重庆市渝北区紫台金宝贝幼儿园 | D16: =机构!A29 -> 28 | E16: =机构!G29&RIGHT("000000"&机构!F29,5)&"01" -> Y0001401 | F16: 管理员 | G16: 5t6QUpK/gc29b2R83PGu/dMBr8qUIkRWpG9dhS85SnI= | H16: INSERT INTO sys_user(id, sys_org_id, `name`, account, password, is_activated, create_sys_user_id, create_time, status, is_deleted) VALUES(113, 28, '管理员', 'Y0001401', '5t6QUpK/gc29b2R83PGu/dMBr8qUIkRWpG9dhS85SnI=', 0, 1, NOW(), 1, 0); | I16: INSERT INTO sys_role_user(id, sys_role_id, sys_user_id) VALUES(113, 6, 113);
A17: 6 | B17: 114 | C17: =机构!H30 -> 重庆市渝北区双龙湖小不点幼儿园 | D17: =机构!A30 -> 29 | E17: =机构!G30&RIGHT("000000"&机构!F30,5)&"01" -> Y0001501 | F17: 管理员 | G17: 5t6QUpK/gc29b2R83PGu/dMBr8qUIkRWpG9dhS85SnI= | H17: INSERT INTO sys_user(id, sys_org_id, `name`, account, password, is_activated, create_sys_user_id, create_time, status, is_deleted) VALUES(114, 29, '管理员', 'Y0001501', '5t6QUpK/gc29b2R83PGu/dMBr8qUIkRWpG9dhS85SnI=', 0, 1, NOW(), 1, 0); | I17: INSERT INTO sys_role_user(id, sys_role_id, sys_user_id) VALUES(114, 6, 114);
A18: 6 | B18: 115 | C18: =机构!H31 -> 重庆市渝北区双龙湖老干部活动中心幼儿园 | D18: =机构!A31 -> 30 | E18: =机构!G31&RIGHT("000000"&机构!F31,5)&"01" -> Y0001601 | F18: 管理员 | G18: 5t6QUpK/gc29b2R83PGu/dMBr8qUIkRWpG9dhS85SnI= | H18: INSERT INTO sys_user(id, sys_org_id, `name`, account, password, is_activated, create_sys_user_id, create_time, status, is_deleted) VALUES(115, 30, '管理员', 'Y0001601', '5t6QUpK/gc29b2R83PGu/dMBr8qUIkRWpG9dhS85SnI=', 0, 1, NOW(), 1, 0); | I18: INSERT INTO sys_role_user(id, sys_role_id, sys_user_id) VALUES(115, 6, 115);
A19: 6 | B19: 116 | C19: =机构!H32 -> 重庆市渝北区双龙湖育苗幼儿园 | D19: =机构!A32 -> 31 | E19: =机构!G32&RIGHT("000000"&机构!F32,5)&"01" -> Y0001701 | F19: 管理员 | G19: 5t6QUpK/gc29b2R83PGu/dMBr8qUIkRWpG9dhS85SnI= | H19: INSERT INTO sys_user(id, sys_org_id, `name`, account, password, is_activated, create_sys_user_id, create_time, status, is_deleted) VALUES(116, 31, '管理员', 'Y0001701', '5t6QUpK/gc29b2R83PGu/dMBr8qUIkRWpG9dhS85SnI=', 0, 1, NOW(), 1, 0); | I19: INSERT INTO sys_role_user(id, sys_role_id, sys_user_id) VALUES(116, 6, 116);
A20: 6 | B20: 117 | C20: =机构!H33 -> 重庆市渝北区双龙湖天寨幼儿园 | D20: =机构!A33 -> 32 | E20: =机构!G33&RIGHT("000000"&机构!F33,5)&"01" -> Y0001801 | F20: 管理员 | G20: 5t6QUpK/gc29b2R83PGu/dMBr8qUIkRWpG9dhS85SnI= | H20: INSERT INTO sys_user(id, sys_org_id, `name`, account, password, is_activated, create_sys_user_id, create_time, status, is_deleted) VALUES(117, 32, '管理员', 'Y0001801', '5t6QUpK/gc29b2R83PGu/dMBr8qUIkRWpG9dhS85SnI=', 0, 1, NOW(), 1, 0); | I20: INSERT INTO sys_role_user(id, sys_role_id, sys_user_id) VALUES(117, 6, 117);
A21: 6 | B21: 118 | C21: =机构!H34 -> 重庆市渝北区双龙湖康利幼儿园 | D21: =机构!A34 -> 33 | E21: =机构!G34&RIGHT("000000"&机构!F34,5)&"01" -> Y0001901 | F21: 管理员 | G21: 5t6QUpK/gc29b2R83PGu/dMBr8qUIkRWpG9dhS85SnI= | H21: INSERT INTO sys_user(id, sys_org_id, `name`, account, password, is_activated, create_sys_user_id, create_time, status, is_deleted) VALUES(118, 33, '管理员', 'Y0001901', '5t6QUpK/gc29b2R83PGu/dMBr8qUIkRWpG9dhS85SnI=', 0, 1, NOW(), 1, 0); | I21: INSERT INTO sys_role_user(id, sys_role_id, sys_user_id) VALUES(118, 6, 118);
A22: 6 | B22: 119 | C22: =机构!H35 -> 重庆市渝北区双龙湖花蕾幼儿园 | D22: =机构!A35 -> 34 | E22: =机构!G35&RIGHT("000000"&机构!F35,5)&"01" -> Y0002001 | F22: 管理员 | G22: 5t6QUpK/gc29b2R83PGu/dMBr8qUIkRWpG9dhS85SnI= | H22: INSERT INTO sys_user(id, sys_org_id, `name`, account, password, is_activated, create_sys_user_id, create_time, status, is_deleted) VALUES(119, 34, '管理员', 'Y0002001', '5t6QUpK/gc29b2R83PGu/dMBr8qUIkRWpG9dhS85SnI=', 0, 1, NOW(), 1, 0); | I22: INSERT INTO sys_role_user(id, sys_role_id, sys_user_id) VALUES(119, 6, 119);
A23: 6 | B23: 120 | C23: =机构!H36 -> 重庆市渝北区双龙湖华艺幼儿园 | D23: =机构!A36 -> 35 | E23: =机构!G36&RIGHT("000000"&机构!F36,5)&"01" -> Y0002101 | F23: 管理员 | G23: 5t6QUpK/gc29b2R83PGu/dMBr8qUIkRWpG9dhS85SnI= | H23: INSERT INTO sys_user(id, sys_org_id, `name`, account, password, is_activated, create_sys_user_id, create_time, status, is_deleted) VALUES(120, 35, '管理员', 'Y0002101', '5t6QUpK/gc29b2R83PGu/dMBr8qUIkRWpG9dhS85SnI=', 0, 1, NOW(), 1, 0); | I23: INSERT INTO sys_role_user(id, sys_role_id, sys_user_id) VALUES(120, 6, 120);
A24: 6 | B24: 121 | C24: =机构!H37 -> 重庆市渝北区光彩幼儿园 | D24: =机构!A37 -> 36 | E24: =机构!G37&RIGHT("000000"&机构!F37,5)&"01" -> Y0002201 | F24: 管理员 | G24: 5t6QUpK/gc29b2R83PGu/dMBr8qUIkRWpG9dhS85SnI= | H24: INSERT INTO sys_user(id, sys_org_id, `name`, account, password, is_activated, create_sys_user_id, create_time, status, is_deleted) VALUES(121, 36, '管理员', 'Y0002201', '5t6QUpK/gc29b2R83PGu/dMBr8qUIkRWpG9dhS85SnI=', 0, 1, NOW(), 1, 0); | I24: INSERT INTO sys_role_user(id, sys_role_id, sys_user_id) VALUES(121, 6, 121);
A25: 6 | B25: 122 | C25: =机构!H38 -> 重庆市渝北区双龙湖南灵幼儿园 | D25: =机构!A38 -> 37 | E25: =机构!G38&RIGHT("000000"&机构!F38,5)&"01" -> Y0002301 | F25: 管理员 | G25: 5t6QUpK/gc29b2R83PGu/dMBr8qUIkRWpG9dhS85SnI= | H25: INSERT INTO sys_user(id, sys_org_id, `name`, account, password, is_activated, create_sys_user_id, create_time, status, is_deleted) VALUES(122, 37, '管理员', 'Y0002301', '5t6QUpK/gc29b2R83PGu/dMBr8qUIkRWpG9dhS85SnI=', 0, 1, NOW(), 1, 0); | I25: INSERT INTO sys_role_user(id, sys_role_id, sys_user_id) VALUES(122, 6, 122);
A26: 6 | B26: 123 | C26: =机构!H39 -> 重庆市渝北区双龙湖红孩儿幼儿园 | D26: =机构!A39 -> 38 | E26: =机构!G39&RIGHT("000000"&机构!F39,5)&"01" -> Y0002401 | F26: 管理员 | G26: 5t6QUpK/gc29b2R83PGu/dMBr8qUIkRWpG9dhS85SnI= | H26: INSERT INTO sys_user(id, sys_org_id, `name`, account, password, is_activated, create_sys_user_id, create_time, status, is_deleted) VALUES(123, 38, '管理员', 'Y0002401', '5t6QUpK/gc29b2R83PGu/dMBr8qUIkRWpG9dhS85SnI=', 0, 1, NOW(), 1, 0); | I26: INSERT INTO sys_role_user(id, sys_role_id, sys_user_id) VALUES(123, 6, 123);
A27: 6 | B27: 124 | C27: =机构!H40 -> 重庆市渝北区双龙湖蓝天贝贝幼儿园 | D27: =机构!A40 -> 39 | E27: =机构!G40&RIGHT("000000"&机构!F40,5)&"01" -> Y0002501 | F27: 管理员 | G27: 5t6QUpK/gc29b2R83PGu/dMBr8qUIkRWpG9dhS85SnI= | H27: INSERT INTO sys_user(id, sys_org_id, `name`, account, password, is_activated, create_sys_user_id, create_time, status, is_deleted) VALUES(124, 39, '管理员', 'Y0002501', '5t6QUpK/gc29b2R83PGu/dMBr8qUIkRWpG9dhS85SnI=', 0, 1, NOW(), 1, 0); | I27: INSERT INTO sys_role_user(id, sys_role_id, sys_user_id) VALUES(124, 6, 124);
A28: 6 | B28: 125 | C28: =机构!H41 -> 重庆市渝北区双龙湖农工商幼儿园 | D28: =机构!A41 -> 40 | E28: =机构!G41&RIGHT("000000"&机构!F41,5)&"01" -> Y0002601 | F28: 管理员 | G28: 5t6QUpK/gc29b2R83PGu/dMBr8qUIkRWpG9dhS85SnI= | H28: INSERT INTO sys_user(id, sys_org_id, `name`, account, password, is_activated, create_sys_user_id, create_time, status, is_deleted) VALUES(125, 40, '管理员', 'Y0002601', '5t6QUpK/gc29b2R83PGu/dMBr8qUIkRWpG9dhS85SnI=', 0, 1, NOW(), 1, 0); | I28: INSERT INTO sys_role_user(id, sys_role_id, sys_user_id) VALUES(125, 6, 125);
A29: 6 | B29: 126 | C29: =机构!H42 -> 重庆市渝北区双龙湖苗苗幼儿园 | D29: =机构!A42 -> 41 | E29: =机构!G42&RIGHT("000000"&机构!F42,5)&"01" -> Y0002701 | F29: 管理员 | G29: 5t6QUpK/gc29b2R83PGu/dMBr8qUIkRWpG9dhS85SnI= | H29: INSERT INTO sys_user(id, sys_org_id, `name`, account, password, is_activated, create_sys_user_id, create_time, status, is_deleted) VALUES(126, 41, '管理员', 'Y0002701', '5t6QUpK/gc29b2R83PGu/dMBr8qUIkRWpG9dhS85SnI=', 0, 1, NOW(), 1, 0); | I29: INSERT INTO sys_role_user(id, sys_role_id, sys_user_id) VALUES(126, 6, 126);
A30: 6 | B30: 127 | C30: =机构!H43 -> 重庆市渝北区双龙湖彩虹幼儿园 | D30: =机构!A43 -> 42 | E30: =机构!G43&RIGHT("000000"&机构!F43,5)&"01" -> Y0002801 | F30: 管理员 | G30: 5t6QUpK/gc29b2R83PGu/dMBr8qUIkRWpG9dhS85SnI= | H30: INSERT INTO sys_user(id, sys_org_id, `name`, account, password, is_activated, create_sys_user_id, create_time, status, is_deleted) VALUES(127, 42, '管理员', 'Y0002801', '5t6QUpK/gc29b2R83PGu/dMBr8qUIkRWpG9dhS85SnI=', 0, 1, NOW(), 1, 0); | I30: INSERT INTO sys_role_user(id, sys_role_id, sys_user_id) VALUES(127, 6, 127);
A31: 6 | B31: 128 | C31: =机构!H44 -> 重庆市渝北区双龙湖群欣幼儿园 | D31: =机构!A44 -> 43 | E31: =机构!G44&RIGHT("000000"&机构!F44,5)&"01" -> Y0002901 | F31: 管理员 | G31: 5t6QUpK/gc29b2R83PGu/dMBr8qUIkRWpG9dhS85SnI= | H31: INSERT INTO sys_user(id, sys_org_id, `name`, account, password, is_activated, create_sys_user_id, create_time, status, is_deleted) VALUES(128, 43, '管理员', 'Y0002901', '5t6QUpK/gc29b2R83PGu/dMBr8qUIkRWpG9dhS85SnI=', 0, 1, NOW(), 1, 0); | I31: INSERT INTO sys_role_user(id, sys_role_id, sys_user_id) VALUES(128, 6, 128);
A32: 6 | B32: 129 | C32: =机构!H45 -> 重庆市渝北区绿梦幼儿园 | D32: =机构!A45 -> 44 | E32: =机构!G45&RIGHT("000000"&机构!F45,5)&"01" -> Y0003001 | F32: 管理员 | G32: 5t6QUpK/gc29b2R83PGu/dMBr8qUIkRWpG9dhS85SnI= | H32: INSERT INTO sys_user(id, sys_org_id, `name`, account, password, is_activated, create_sys_user_id, create_time, status, is_deleted) VALUES(129, 44, '管理员', 'Y0003001', '5t6QUpK/gc29b2R83PGu/dMBr8qUIkRWpG9dhS85SnI=', 0, 1, NOW(), 1, 0); | I32: INSERT INTO sys_role_user(id, sys_role_id, sys_user_id) VALUES(129, 6, 129);
A33: 6 | B33: 130 | C33: =机构!H46 -> 重庆市渝北区鹿山村宝贝幼儿园 | D33: =机构!A46 -> 45 | E33: =机构!G46&RIGHT("000000"&机构!F46,5)&"01" -> Y0003101 | F33: 管理员 | G33: 5t6QUpK/gc29b2R83PGu/dMBr8qUIkRWpG9dhS85SnI= | H33: INSERT INTO sys_user(id, sys_org_id, `name`, account, password, is_activated, create_sys_user_id, create_time, status, is_deleted) VALUES(130, 45, '管理员', 'Y0003101', '5t6QUpK/gc29b2R83PGu/dMBr8qUIkRWpG9dhS85SnI=', 0, 1, NOW(), 1, 0); | I33: INSERT INTO sys_role_user(id, sys_role_id, sys_user_id) VALUES(130, 6, 130);
A34: 6 | B34: 131 | C34: =机构!H47 -> 重庆市渝北区水木香山贝乐坊幼儿园 | D34: =机构!A47 -> 46 | E34: =机构!G47&RIGHT("000000"&机构!F47,5)&"01" -> Y0003201 | F34: 管理员 | G34: 5t6QUpK/gc29b2R83PGu/dMBr8qUIkRWpG9dhS85SnI= | H34: INSERT INTO sys_user(id, sys_org_id, `name`, account, password, is_activated, create_sys_user_id, create_time, status, is_deleted) VALUES(131, 46, '管理员', 'Y0003201', '5t6QUpK/gc29b2R83PGu/dMBr8qUIkRWpG9dhS85SnI=', 0, 1, NOW(), 1, 0); | I34: INSERT INTO sys_role_user(id, sys_role_id, sys_user_id) VALUES(131, 6, 131);
A35: 6 | B35: 132 | C35: =机构!H48 -> 重庆市渝北区莱恩幼儿园 | D35: =机构!A48 -> 47 | E35: =机构!G48&RIGHT("000000"&机构!F48,5)&"01" -> Y0003301 | F35: 管理员 | G35: 5t6QUpK/gc29b2R83PGu/dMBr8qUIkRWpG9dhS85SnI= | H35: INSERT INTO sys_user(id, sys_org_id, `name`, account, password, is_activated, create_sys_user_id, create_time, status, is_deleted) VALUES(132, 47, '管理员', 'Y0003301', '5t6QUpK/gc29b2R83PGu/dMBr8qUIkRWpG9dhS85SnI=', 0, 1, NOW(), 1, 0); | I35: INSERT INTO sys_role_user(id, sys_role_id, sys_user_id) VALUES(132, 6, 132);
A36: 6 | B36: 133 | C36: =机构!H49 -> 重庆市渝北区润丰水尚幼儿园 | D36: =机构!A49 -> 48 | E36: =机构!G49&RIGHT("000000"&机构!F49,5)&"01" -> Y0003401 | F36: 管理员 | G36: 5t6QUpK/gc29b2R83PGu/dMBr8qUIkRWpG9dhS85SnI= | H36: INSERT INTO sys_user(id, sys_org_id, `name`, account, password, is_activated, create_sys_user_id, create_time, status, is_deleted) VALUES(133, 48, '管理员', 'Y0003401', '5t6QUpK/gc29b2R83PGu/dMBr8qUIkRWpG9dhS85SnI=', 0, 1, NOW(), 1, 0); | I36: INSERT INTO sys_role_user(id, sys_role_id, sys_user_id) VALUES(133, 6, 133);
A37: 6 | B37: 134 | C37: =机构!H50 -> 重庆市渝北区公园北路幼儿园 | D37: =机构!A50 -> 49 | E37: =机构!G50&RIGHT("000000"&机构!F50,5)&"01" -> Y0003501 | F37: 管理员 | G37: 5t6QUpK/gc29b2R83PGu/dMBr8qUIkRWpG9dhS85SnI= | H37: INSERT INTO sys_user(id, sys_org_id, `name`, account, password, is_activated, create_sys_user_id, create_time, status, is_deleted) VALUES(134, 49, '管理员', 'Y0003501', '5t6QUpK/gc29b2R83PGu/dMBr8qUIkRWpG9dhS85SnI=', 0, 1, NOW(), 1, 0); | I37: INSERT INTO sys_role_user(id, sys_role_id, sys_user_id) VALUES(134, 6, 134);
A38: 6 | B38: 135 | C38: =机构!H51 -> 重庆市渝北区腾芳幼儿园桂馥园 | D38: =机构!A51 -> 50 | E38: =机构!G51&RIGHT("000000"&机构!F51,5)&"01" -> Y0003601 | F38: 管理员 | G38: 5t6QUpK/gc29b2R83PGu/dMBr8qUIkRWpG9dhS85SnI= | H38: INSERT INTO sys_user(id, sys_org_id, `name`, account, password, is_activated, create_sys_user_id, create_time, status, is_deleted) VALUES(135, 50, '管理员', 'Y0003601', '5t6QUpK/gc29b2R83PGu/dMBr8qUIkRWpG9dhS85SnI=', 0, 1, NOW(), 1, 0); | I38: INSERT INTO sys_role_user(id, sys_role_id, sys_user_id) VALUES(135, 6, 135);
A39: 6 | B39: 136 | C39: =机构!H52 -> 重庆市渝北区空港佳园幼儿园学盛园（G园） | D39: =机构!A52 -> 51 | E39: =机构!G52&RIGHT("000000"&机构!F52,5)&"01" -> Y0003701 | F39: 管理员 | G39: 5t6QUpK/gc29b2R83PGu/dMBr8qUIkRWpG9dhS85SnI= | H39: INSERT INTO sys_user(id, sys_org_id, `name`, account, password, is_activated, create_sys_user_id, create_time, status, is_deleted) VALUES(136, 51, '管理员', 'Y0003701', '5t6QUpK/gc29b2R83PGu/dMBr8qUIkRWpG9dhS85SnI=', 0, 1, NOW(), 1, 0); | I39: INSERT INTO sys_role_user(id, sys_role_id, sys_user_id) VALUES(136, 6, 136);
A40: 6 | B40: 137 | C40: =机构!H53 -> 重庆市渝北区空港佳园幼儿园丛岩园（E园） | D40: =机构!A53 -> 52 | E40: =机构!G53&RIGHT("000000"&机构!F53,5)&"01" -> Y0003801 | F40: 管理员 | G40: 5t6QUpK/gc29b2R83PGu/dMBr8qUIkRWpG9dhS85SnI= | H40: INSERT INTO sys_user(id, sys_org_id, `name`, account, password, is_activated, create_sys_user_id, create_time, status, is_deleted) VALUES(137, 52, '管理员', 'Y0003801', '5t6QUpK/gc29b2R83PGu/dMBr8qUIkRWpG9dhS85SnI=', 0, 1, NOW(), 1, 0); | I40: INSERT INTO sys_role_user(id, sys_role_id, sys_user_id) VALUES(137, 6, 137);
A41: 6 | B41: 138 | C41: =机构!H54 -> 重庆市渝北区空港佳园第二幼儿园 | D41: =机构!A54 -> 53 | E41: =机构!G54&RIGHT("000000"&机构!F54,5)&"01" -> Y0003901 | F41: 管理员 | G41: 5t6QUpK/gc29b2R83PGu/dMBr8qUIkRWpG9dhS85SnI= | H41: INSERT INTO sys_user(id, sys_org_id, `name`, account, password, is_activated, create_sys_user_id, create_time, status, is_deleted) VALUES(138, 53, '管理员', 'Y0003901', '5t6QUpK/gc29b2R83PGu/dMBr8qUIkRWpG9dhS85SnI=', 0, 1, NOW(), 1, 0); | I41: INSERT INTO sys_role_user(id, sys_role_id, sys_user_id) VALUES(138, 6, 138);
A42: 6 | B42: 139 | C42: =机构!H55 -> 重庆市渝北区同茂幼儿园 | D42: =机构!A55 -> 54 | E42: =机构!G55&RIGHT("000000"&机构!F55,5)&"01" -> Y0004001 | F42: 管理员 | G42: 5t6QUpK/gc29b2R83PGu/dMBr8qUIkRWpG9dhS85SnI= | H42: INSERT INTO sys_user(id, sys_org_id, `name`, account, password, is_activated, create_sys_user_id, create_time, status, is_deleted) VALUES(139, 54, '管理员', 'Y0004001', '5t6QUpK/gc29b2R83PGu/dMBr8qUIkRWpG9dhS85SnI=', 0, 1, NOW(), 1, 0); | I42: INSERT INTO sys_role_user(id, sys_role_id, sys_user_id) VALUES(139, 6, 139);
A43: 6 | B43: 140 | C43: =机构!H56 -> 重庆市渝北区盛景天下小学校附属幼儿园 | D43: =机构!A56 -> 55 | E43: =机构!G56&RIGHT("000000"&机构!F56,5)&"01" -> Y0004101 | F43: 管理员 | G43: 5t6QUpK/gc29b2R83PGu/dMBr8qUIkRWpG9dhS85SnI= | H43: INSERT INTO sys_user(id, sys_org_id, `name`, account, password, is_activated, create_sys_user_id, create_time, status, is_deleted) VALUES(140, 55, '管理员', 'Y0004101', '5t6QUpK/gc29b2R83PGu/dMBr8qUIkRWpG9dhS85SnI=', 0, 1, NOW(), 1, 0); | I43: INSERT INTO sys_role_user(id, sys_role_id, sys_user_id) VALUES(140, 6, 140);
A44: 6 | B44: 141 | C44: =机构!H57 -> 重庆市渝北区空港新城小学附属幼儿园 | D44: =机构!A57 -> 56 | E44: =机构!G57&RIGHT("000000"&机构!F57,5)&"01" -> Y0004201 | F44: 管理员 | G44: 5t6QUpK/gc29b2R83PGu/dMBr8qUIkRWpG9dhS85SnI= | H44: INSERT INTO sys_user(id, sys_org_id, `name`, account, password, is_activated, create_sys_user_id, create_time, status, is_deleted) VALUES(141, 56, '管理员', 'Y0004201', '5t6QUpK/gc29b2R83PGu/dMBr8qUIkRWpG9dhS85SnI=', 0, 1, NOW(), 1, 0); | I44: INSERT INTO sys_role_user(id, sys_role_id, sys_user_id) VALUES(141, 6, 141);
A45: 6 | B45: 142 | C45: =机构!H58 -> 重庆市渝北区数据谷小学校附属幼儿园 | D45: =机构!A58 -> 57 | E45: =机构!G58&RIGHT("000000"&机构!F58,5)&"01" -> Y0004301 | F45: 管理员 | G45: 5t6QUpK/gc29b2R83PGu/dMBr8qUIkRWpG9dhS85SnI= | H45: INSERT INTO sys_user(id, sys_org_id, `name`, account, password, is_activated, create_sys_user_id, create_time, status, is_deleted) VALUES(142, 57, '管理员', 'Y0004301', '5t6QUpK/gc29b2R83PGu/dMBr8qUIkRWpG9dhS85SnI=', 0, 1, NOW(), 1, 0); | I45: INSERT INTO sys_role_user(id, sys_role_id, sys_user_id) VALUES(142, 6, 142);
A46: 6 | B46: 143 | C46: =机构!H59 -> 重庆市渝北庆龄幼儿园秋成园 | D46: =机构!A59 -> 58 | E46: =机构!G59&RIGHT("000000"&机构!F59,5)&"01" -> Y0004401 | F46: 管理员 | G46: 5t6QUpK/gc29b2R83PGu/dMBr8qUIkRWpG9dhS85SnI= | H46: INSERT INTO sys_user(id, sys_org_id, `name`, account, password, is_activated, create_sys_user_id, create_time, status, is_deleted) VALUES(143, 58, '管理员', 'Y0004401', '5t6QUpK/gc29b2R83PGu/dMBr8qUIkRWpG9dhS85SnI=', 0, 1, NOW(), 1, 0); | I46: INSERT INTO sys_role_user(id, sys_role_id, sys_user_id) VALUES(143, 6, 143);
A47: 6 | B47: 144 | C47: =机构!H60 -> 重庆市渝北区英华贝贝空港幼儿园 | D47: =机构!A60 -> 59 | E47: =机构!G60&RIGHT("000000"&机构!F60,5)&"01" -> Y0004501 | F47: 管理员 | G47: 5t6QUpK/gc29b2R83PGu/dMBr8qUIkRWpG9dhS85SnI= | H47: INSERT INTO sys_user(id, sys_org_id, `name`, account, password, is_activated, create_sys_user_id, create_time, status, is_deleted) VALUES(144, 59, '管理员', 'Y0004501', '5t6QUpK/gc29b2R83PGu/dMBr8qUIkRWpG9dhS85SnI=', 0, 1, NOW(), 1, 0); | I47: INSERT INTO sys_role_user(id, sys_role_id, sys_user_id) VALUES(144, 6, 144);
A48: 6 | B48: 145 | C48: =机构!H61 -> 重庆市渝北区好莱坞红黄蓝幼儿园 | D48: =机构!A61 -> 60 | E48: =机构!G61&RIGHT("000000"&机构!F61,5)&"01" -> Y0004601 | F48: 管理员 | G48: 5t6QUpK/gc29b2R83PGu/dMBr8qUIkRWpG9dhS85SnI= | H48: INSERT INTO sys_user(id, sys_org_id, `name`, account, password, is_activated, create_sys_user_id, create_time, status, is_deleted) VALUES(145, 60, '管理员', 'Y0004601', '5t6QUpK/gc29b2R83PGu/dMBr8qUIkRWpG9dhS85SnI=', 0, 1, NOW(), 1, 0); | I48: INSERT INTO sys_role_user(id, sys_role_id, sys_user_id) VALUES(145, 6, 145);
A49: 6 | B49: 146 | C49: =机构!H62 -> 重庆市渝北区盛景天下喜洋洋幼儿园 | D49: =机构!A62 -> 61 | E49: =机构!G62&RIGHT("000000"&机构!F62,5)&"01" -> Y0004701 | F49: 管理员 | G49: 5t6QUpK/gc29b2R83PGu/dMBr8qUIkRWpG9dhS85SnI= | H49: INSERT INTO sys_user(id, sys_org_id, `name`, account, password, is_activated, create_sys_user_id, create_time, status, is_deleted) VALUES(146, 61, '管理员', 'Y0004701', '5t6QUpK/gc29b2R83PGu/dMBr8qUIkRWpG9dhS85SnI=', 0, 1, NOW(), 1, 0); | I49: INSERT INTO sys_role_user(id, sys_role_id, sys_user_id) VALUES(146, 6, 146);
A50: 6 | B50: 147 | C50: =机构!H63 -> 重庆市渝北区迪思尼幼儿园 | D50: =机构!A63 -> 62 | E50: =机构!G63&RIGHT("000000"&机构!F63,5)&"01" -> Y0004801 | F50: 管理员 | G50: 5t6QUpK/gc29b2R83PGu/dMBr8qUIkRWpG9dhS85SnI= | H50: INSERT INTO sys_user(id, sys_org_id, `name`, account, password, is_activated, create_sys_user_id, create_time, status, is_deleted) VALUES(147, 62, '管理员', 'Y0004801', '5t6QUpK/gc29b2R83PGu/dMBr8qUIkRWpG9dhS85SnI=', 0, 1, NOW(), 1, 0); | I50: INSERT INTO sys_role_user(id, sys_role_id, sys_user_id) VALUES(147, 6, 147);
A51: 6 | B51: 148 | C51: =机构!H64 -> 重庆市渝北区七色幼儿园 | D51: =机构!A64 -> 63 | E51: =机构!G64&RIGHT("000000"&机构!F64,5)&"01" -> Y0004901 | F51: 管理员 | G51: 5t6QUpK/gc29b2R83PGu/dMBr8qUIkRWpG9dhS85SnI= | H51: INSERT INTO sys_user(id, sys_org_id, `name`, account, password, is_activated, create_sys_user_id, create_time, status, is_deleted) VALUES(148, 63, '管理员', 'Y0004901', '5t6QUpK/gc29b2R83PGu/dMBr8qUIkRWpG9dhS85SnI=', 0, 1, NOW(), 1, 0); | I51: INSERT INTO sys_role_user(id, sys_role_id, sys_user_id) VALUES(148, 6, 148);
A52: 6 | B52: 149 | C52: =机构!H65 -> 重庆市渝北区全稚园金色池塘幼儿园 | D52: =机构!A65 -> 64 | E52: =机构!G65&RIGHT("000000"&机构!F65,5)&"01" -> Y0005001 | F52: 管理员 | G52: 5t6QUpK/gc29b2R83PGu/dMBr8qUIkRWpG9dhS85SnI= | H52: INSERT INTO sys_user(id, sys_org_id, `name`, account, password, is_activated, create_sys_user_id, create_time, status, is_deleted) VALUES(149, 64, '管理员', 'Y0005001', '5t6QUpK/gc29b2R83PGu/dMBr8qUIkRWpG9dhS85SnI=', 0, 1, NOW(), 1, 0); | I52: INSERT INTO sys_role_user(id, sys_role_id, sys_user_id) VALUES(149, 6, 149);
A53: 6 | B53: 150 | C53: =机构!H66 -> 重庆市渝北区润丰明希幼儿园 | D53: =机构!A66 -> 65 | E53: =机构!G66&RIGHT("000000"&机构!F66,5)&"01" -> Y0005101 | F53: 管理员 | G53: 5t6QUpK/gc29b2R83PGu/dMBr8qUIkRWpG9dhS85SnI= | H53: INSERT INTO sys_user(id, sys_org_id, `name`, account, password, is_activated, create_sys_user_id, create_time, status, is_deleted) VALUES(150, 65, '管理员', 'Y0005101', '5t6QUpK/gc29b2R83PGu/dMBr8qUIkRWpG9dhS85SnI=', 0, 1, NOW(), 1, 0); | I53: INSERT INTO sys_role_user(id, sys_role_id, sys_user_id) VALUES(150, 6, 150);
A54: 6 | B54: 151 | C54: =机构!H67 -> 重庆市渝北区香城雅郡幼儿园 | D54: =机构!A67 -> 66 | E54: =机构!G67&RIGHT("000000"&机构!F67,5)&"01" -> Y0005201 | F54: 管理员 | G54: 5t6QUpK/gc29b2R83PGu/dMBr8qUIkRWpG9dhS85SnI= | H54: INSERT INTO sys_user(id, sys_org_id, `name`, account, password, is_activated, create_sys_user_id, create_time, status, is_deleted) VALUES(151, 66, '管理员', 'Y0005201', '5t6QUpK/gc29b2R83PGu/dMBr8qUIkRWpG9dhS85SnI=', 0, 1, NOW(), 1, 0); | I54: INSERT INTO sys_role_user(id, sys_role_id, sys_user_id) VALUES(151, 6, 151);
A55: 6 | B55: 152 | C55: =机构!H68 -> 重庆市渝北区和庆路幼儿园 | D55: =机构!A68 -> 67 | E55: =机构!G68&RIGHT("000000"&机构!F68,5)&"01" -> Y0005301 | F55: 管理员 | G55: 5t6QUpK/gc29b2R83PGu/dMBr8qUIkRWpG9dhS85SnI= | H55: INSERT INTO sys_user(id, sys_org_id, `name`, account, password, is_activated, create_sys_user_id, create_time, status, is_deleted) VALUES(152, 67, '管理员', 'Y0005301', '5t6QUpK/gc29b2R83PGu/dMBr8qUIkRWpG9dhS85SnI=', 0, 1, NOW(), 1, 0); | I55: INSERT INTO sys_role_user(id, sys_role_id, sys_user_id) VALUES(152, 6, 152);
A56: 6 | B56: 153 | C56: =机构!H69 -> 重庆市渝北区戈米孚幼儿园 | D56: =机构!A69 -> 68 | E56: =机构!G69&RIGHT("000000"&机构!F69,5)&"01" -> Y0005401 | F56: 管理员 | G56: 5t6QUpK/gc29b2R83PGu/dMBr8qUIkRWpG9dhS85SnI= | H56: INSERT INTO sys_user(id, sys_org_id, `name`, account, password, is_activated, create_sys_user_id, create_time, status, is_deleted) VALUES(153, 68, '管理员', 'Y0005401', '5t6QUpK/gc29b2R83PGu/dMBr8qUIkRWpG9dhS85SnI=', 0, 1, NOW(), 1, 0); | I56: INSERT INTO sys_role_user(id, sys_role_id, sys_user_id) VALUES(153, 6, 153);
A57: 6 | B57: 154 | C57: =机构!H70 -> 重庆市渝北区奇心乐泽科幼儿园 | D57: =机构!A70 -> 69 | E57: =机构!G70&RIGHT("000000"&机构!F70,5)&"01" -> Y0005501 | F57: 管理员 | G57: 5t6QUpK/gc29b2R83PGu/dMBr8qUIkRWpG9dhS85SnI= | H57: INSERT INTO sys_user(id, sys_org_id, `name`, account, password, is_activated, create_sys_user_id, create_time, status, is_deleted) VALUES(154, 69, '管理员', 'Y0005501', '5t6QUpK/gc29b2R83PGu/dMBr8qUIkRWpG9dhS85SnI=', 0, 1, NOW(), 1, 0); | I57: INSERT INTO sys_role_user(id, sys_role_id, sys_user_id) VALUES(154, 6, 154);
A58: 6 | B58: 155 | C58: =机构!H71 -> 重庆市渝北区青苗幼儿园有限公司 | D58: =机构!A71 -> 70 | E58: =机构!G71&RIGHT("000000"&机构!F71,5)&"01" -> Y0005601 | F58: 管理员 | G58: 5t6QUpK/gc29b2R83PGu/dMBr8qUIkRWpG9dhS85SnI= | H58: INSERT INTO sys_user(id, sys_org_id, `name`, account, password, is_activated, create_sys_user_id, create_time, status, is_deleted) VALUES(155, 70, '管理员', 'Y0005601', '5t6QUpK/gc29b2R83PGu/dMBr8qUIkRWpG9dhS85SnI=', 0, 1, NOW(), 1, 0); | I58: INSERT INTO sys_role_user(id, sys_role_id, sys_user_id) VALUES(155, 6, 155);
A59: 6 | B59: 156 | C59: =机构!H72 -> 重庆市渝北区汇祥林里伟才幼儿园 | D59: =机构!A72 -> 71 | E59: =机构!G72&RIGHT("000000"&机构!F72,5)&"01" -> Y0005701 | F59: 管理员 | G59: 5t6QUpK/gc29b2R83PGu/dMBr8qUIkRWpG9dhS85SnI= | H59: INSERT INTO sys_user(id, sys_org_id, `name`, account, password, is_activated, create_sys_user_id, create_time, status, is_deleted) VALUES(156, 71, '管理员', 'Y0005701', '5t6QUpK/gc29b2R83PGu/dMBr8qUIkRWpG9dhS85SnI=', 0, 1, NOW(), 1, 0); | I59: INSERT INTO sys_role_user(id, sys_role_id, sys_user_id) VALUES(156, 6, 156);
A60: 6 | B60: 157 | C60: =机构!H73 -> 重庆市渝北区辰星幼儿园 | D60: =机构!A73 -> 72 | E60: =机构!G73&RIGHT("000000"&机构!F73,5)&"01" -> Y0005801 | F60: 管理员 | G60: 5t6QUpK/gc29b2R83PGu/dMBr8qUIkRWpG9dhS85SnI= | H60: INSERT INTO sys_user(id, sys_org_id, `name`, account, password, is_activated, create_sys_user_id, create_time, status, is_deleted) VALUES(157, 72, '管理员', 'Y0005801', '5t6QUpK/gc29b2R83PGu/dMBr8qUIkRWpG9dhS85SnI=', 0, 1, NOW(), 1, 0); | I60: INSERT INTO sys_role_user(id, sys_role_id, sys_user_id) VALUES(157, 6, 157);
A61: 6 | B61: 158 | C61: =机构!H74 -> 重庆市渝北区爱加橄榄幼儿园 | D61: =机构!A74 -> 73 | E61: =机构!G74&RIGHT("000000"&机构!F74,5)&"01" -> Y0005901 | F61: 管理员 | G61: 5t6QUpK/gc29b2R83PGu/dMBr8qUIkRWpG9dhS85SnI= | H61: INSERT INTO sys_user(id, sys_org_id, `name`, account, password, is_activated, create_sys_user_id, create_time, status, is_deleted) VALUES(158, 73, '管理员', 'Y0005901', '5t6QUpK/gc29b2R83PGu/dMBr8qUIkRWpG9dhS85SnI=', 0, 1, NOW(), 1, 0); | I61: INSERT INTO sys_role_user(id, sys_role_id, sys_user_id) VALUES(158, 6, 158);
A62: 6 | B62: 159 | C62: =机构!H75 -> 重庆市渝北区蒙世学堂幼儿园 | D62: =机构!A75 -> 74 | E62: =机构!G75&RIGHT("000000"&机构!F75,5)&"01" -> Y0006001 | F62: 管理员 | G62: 5t6QUpK/gc29b2R83PGu/dMBr8qUIkRWpG9dhS85SnI= | H62: INSERT INTO sys_user(id, sys_org_id, `name`, account, password, is_activated, create_sys_user_id, create_time, status, is_deleted) VALUES(159, 74, '管理员', 'Y0006001', '5t6QUpK/gc29b2R83PGu/dMBr8qUIkRWpG9dhS85SnI=', 0, 1, NOW(), 1, 0); | I62: INSERT INTO sys_role_user(id, sys_role_id, sys_user_id) VALUES(159, 6, 159);
A63: 6 | B63: 160 | C63: =机构!H76 -> 重庆市渝北区启明幼儿园 | D63: =机构!A76 -> 75 | E63: =机构!G76&RIGHT("000000"&机构!F76,5)&"01" -> Y0006101 | F63: 管理员 | G63: 5t6QUpK/gc29b2R83PGu/dMBr8qUIkRWpG9dhS85SnI= | H63: INSERT INTO sys_user(id, sys_org_id, `name`, account, password, is_activated, create_sys_user_id, create_time, status, is_deleted) VALUES(160, 75, '管理员', 'Y0006101', '5t6QUpK/gc29b2R83PGu/dMBr8qUIkRWpG9dhS85SnI=', 0, 1, NOW(), 1, 0); | I63: INSERT INTO sys_role_user(id, sys_role_id, sys_user_id) VALUES(160, 6, 160);
A64: 6 | B64: 161 | C64: =机构!H77 -> 重庆市渝北区金茂幼儿园 | D64: =机构!A77 -> 76 | E64: =机构!G77&RIGHT("000000"&机构!F77,5)&"01" -> Y0006201 | F64: 管理员 | G64: 5t6QUpK/gc29b2R83PGu/dMBr8qUIkRWpG9dhS85SnI= | H64: INSERT INTO sys_user(id, sys_org_id, `name`, account, password, is_activated, create_sys_user_id, create_time, status, is_deleted) VALUES(161, 76, '管理员', 'Y0006201', '5t6QUpK/gc29b2R83PGu/dMBr8qUIkRWpG9dhS85SnI=', 0, 1, NOW(), 1, 0); | I64: INSERT INTO sys_role_user(id, sys_role_id, sys_user_id) VALUES(161, 6, 161);
A65: 6 | B65: 162 | C65: =机构!H78 -> 重庆市渝北区三之三天晋幼儿园 | D65: =机构!A78 -> 77 | E65: =机构!G78&RIGHT("000000"&机构!F78,5)&"01" -> Y0006301 | F65: 管理员 | G65: 5t6QUpK/gc29b2R83PGu/dMBr8qUIkRWpG9dhS85SnI= | H65: INSERT INTO sys_user(id, sys_org_id, `name`, account, password, is_activated, create_sys_user_id, create_time, status, is_deleted) VALUES(162, 77, '管理员', 'Y0006301', '5t6QUpK/gc29b2R83PGu/dMBr8qUIkRWpG9dhS85SnI=', 0, 1, NOW(), 1, 0); | I65: INSERT INTO sys_role_user(id, sys_role_id, sys_user_id) VALUES(162, 6, 162);
A66: 6 | B66: 163 | C66: =机构!H79 -> 重庆市渝北区盛果誉峰幼儿园 | D66: =机构!A79 -> 78 | E66: =机构!G79&RIGHT("000000"&机构!F79,5)&"01" -> Y0006401 | F66: 管理员 | G66: 5t6QUpK/gc29b2R83PGu/dMBr8qUIkRWpG9dhS85SnI= | H66: INSERT INTO sys_user(id, sys_org_id, `name`, account, password, is_activated, create_sys_user_id, create_time, status, is_deleted) VALUES(163, 78, '管理员', 'Y0006401', '5t6QUpK/gc29b2R83PGu/dMBr8qUIkRWpG9dhS85SnI=', 0, 1, NOW(), 1, 0); | I66: INSERT INTO sys_role_user(id, sys_role_id, sys_user_id) VALUES(163, 6, 163);
A67: 6 | B67: 164 | C67: =机构!H80 -> 重庆市渝北区生生幼儿园 | D67: =机构!A80 -> 79 | E67: =机构!G80&RIGHT("000000"&机构!F80,5)&"01" -> Y0006501 | F67: 管理员 | G67: 5t6QUpK/gc29b2R83PGu/dMBr8qUIkRWpG9dhS85SnI= | H67: INSERT INTO sys_user(id, sys_org_id, `name`, account, password, is_activated, create_sys_user_id, create_time, status, is_deleted) VALUES(164, 79, '管理员', 'Y0006501', '5t6QUpK/gc29b2R83PGu/dMBr8qUIkRWpG9dhS85SnI=', 0, 1, NOW(), 1, 0); | I67: INSERT INTO sys_role_user(id, sys_role_id, sys_user_id) VALUES(164, 6, 164);
A68: 6 | B68: 165 | C68: =机构!H81 -> 重庆市渝北幼儿园 | D68: =机构!A81 -> 80 | E68: =机构!G81&RIGHT("000000"&机构!F81,5)&"01" -> Y0006601 | F68: 管理员 | G68: 5t6QUpK/gc29b2R83PGu/dMBr8qUIkRWpG9dhS85SnI= | H68: ="INSERT INTO sys_user(id, sys_org_id, `name`, account, password, is_activated, create_sys_user_id, create_time, status, is_deleted) VALUES("&B68&", "&D68&", '"&F68&"', '"&E68&"', '"&G68&"', 0, 1, NOW(), 1, 0);" -> INSERT INTO sys_user(id, sys_org_id, `name`, account, password, is_activated, create_sys_user_id, create_time, status, is_deleted) VALUES(165, 80, '管理员', 'Y0006601', '5t6QUpK/gc29b2R83PGu/dMBr8qUIkRWpG9dhS85SnI=', 0, 1, NOW(), 1, 0); | I68: ="INSERT INTO sys_role_user(id, sys_role_id, sys_user_id) VALUES("&B68&", "&A68&", "&B68&");" -> INSERT INTO sys_role_user(id, sys_role_id, sys_user_id) VALUES(165, 6, 165);
A69: 6 | B69: 166 | C69: =机构!H82 -> 重庆市渝北幼儿园空港新城园 | D69: =机构!A82 -> 81 | E69: =机构!G82&RIGHT("000000"&机构!F82,5)&"01" -> Y0006701 | F69: 管理员 | G69: 5t6QUpK/gc29b2R83PGu/dMBr8qUIkRWpG9dhS85SnI= | H69: INSERT INTO sys_user(id, sys_org_id, `name`, account, password, is_activated, create_sys_user_id, create_time, status, is_deleted) VALUES(166, 81, '管理员', 'Y0006701', '5t6QUpK/gc29b2R83PGu/dMBr8qUIkRWpG9dhS85SnI=', 0, 1, NOW(), 1, 0); | I69: INSERT INTO sys_role_user(id, sys_role_id, sys_user_id) VALUES(166, 6, 166);
A70: 6 | B70: 167 | C70: =机构!H83 -> 重庆市渝北区两路幼儿园 | D70: =机构!A83 -> 82 | E70: =机构!G83&RIGHT("000000"&机构!F83,5)&"01" -> Y0006801 | F70: 管理员 | G70: 5t6QUpK/gc29b2R83PGu/dMBr8qUIkRWpG9dhS85SnI= | H70: INSERT INTO sys_user(id, sys_org_id, `name`, account, password, is_activated, create_sys_user_id, create_time, status, is_deleted) VALUES(167, 82, '管理员', 'Y0006801', '5t6QUpK/gc29b2R83PGu/dMBr8qUIkRWpG9dhS85SnI=', 0, 1, NOW(), 1, 0); | I70: INSERT INTO sys_role_user(id, sys_role_id, sys_user_id) VALUES(167, 6, 167);
A71: 6 | B71: 168 | C71: =机构!H84 -> 重庆市渝北区两路幼儿园晚晴园 | D71: =机构!A84 -> 83 | E71: =机构!G84&RIGHT("000000"&机构!F84,5)&"01" -> Y0006901 | F71: 管理员 | G71: 5t6QUpK/gc29b2R83PGu/dMBr8qUIkRWpG9dhS85SnI= | H71: INSERT INTO sys_user(id, sys_org_id, `name`, account, password, is_activated, create_sys_user_id, create_time, status, is_deleted) VALUES(168, 83, '管理员', 'Y0006901', '5t6QUpK/gc29b2R83PGu/dMBr8qUIkRWpG9dhS85SnI=', 0, 1, NOW(), 1, 0); | I71: INSERT INTO sys_role_user(id, sys_role_id, sys_user_id) VALUES(168, 6, 168);
A72: 6 | B72: 169 | C72: =机构!H85 -> 重庆市渝北金港国际实验小学校附属幼儿园 | D72: =机构!A85 -> 84 | E72: =机构!G85&RIGHT("000000"&机构!F85,5)&"01" -> Y0007001 | F72: 管理员 | G72: 5t6QUpK/gc29b2R83PGu/dMBr8qUIkRWpG9dhS85SnI= | H72: INSERT INTO sys_user(id, sys_org_id, `name`, account, password, is_activated, create_sys_user_id, create_time, status, is_deleted) VALUES(169, 84, '管理员', 'Y0007001', '5t6QUpK/gc29b2R83PGu/dMBr8qUIkRWpG9dhS85SnI=', 0, 1, NOW(), 1, 0); | I72: INSERT INTO sys_role_user(id, sys_role_id, sys_user_id) VALUES(169, 6, 169);
A73: 6 | B73: 170 | C73: =机构!H86 -> 重庆市渝北区汉渝路小学校附属幼儿园 | D73: =机构!A86 -> 85 | E73: =机构!G86&RIGHT("000000"&机构!F86,5)&"01" -> Y0007101 | F73: 管理员 | G73: 5t6QUpK/gc29b2R83PGu/dMBr8qUIkRWpG9dhS85SnI= | H73: INSERT INTO sys_user(id, sys_org_id, `name`, account, password, is_activated, create_sys_user_id, create_time, status, is_deleted) VALUES(170, 85, '管理员', 'Y0007101', '5t6QUpK/gc29b2R83PGu/dMBr8qUIkRWpG9dhS85SnI=', 0, 1, NOW(), 1, 0); | I73: INSERT INTO sys_role_user(id, sys_role_id, sys_user_id) VALUES(170, 6, 170);
A74: 6 | B74: 171 | C74: =机构!H87 -> 重庆市渝北区实验中学附属幼儿园 | D74: =机构!A87 -> 86 | E74: =机构!G87&RIGHT("000000"&机构!F87,5)&"01" -> Y0007201 | F74: 管理员 | G74: 5t6QUpK/gc29b2R83PGu/dMBr8qUIkRWpG9dhS85SnI= | H74: INSERT INTO sys_user(id, sys_org_id, `name`, account, password, is_activated, create_sys_user_id, create_time, status, is_deleted) VALUES(171, 86, '管理员', 'Y0007201', '5t6QUpK/gc29b2R83PGu/dMBr8qUIkRWpG9dhS85SnI=', 0, 1, NOW(), 1, 0); | I74: INSERT INTO sys_role_user(id, sys_role_id, sys_user_id) VALUES(171, 6, 171);
A75: 6 | B75: 172 | C75: =机构!H88 -> 重庆市渝北区笃信实验学校附属幼儿园 | D75: =机构!A88 -> 87 | E75: =机构!G88&RIGHT("000000"&机构!F88,5)&"01" -> Y0007301 | F75: 管理员 | G75: 5t6QUpK/gc29b2R83PGu/dMBr8qUIkRWpG9dhS85SnI= | H75: INSERT INTO sys_user(id, sys_org_id, `name`, account, password, is_activated, create_sys_user_id, create_time, status, is_deleted) VALUES(172, 87, '管理员', 'Y0007301', '5t6QUpK/gc29b2R83PGu/dMBr8qUIkRWpG9dhS85SnI=', 0, 1, NOW(), 1, 0); | I75: INSERT INTO sys_role_user(id, sys_role_id, sys_user_id) VALUES(172, 6, 172);
A76: 6 | B76: 173 | C76: =机构!H89 -> 重庆市渝北区特殊教育学校附属幼儿园 | D76: =机构!A89 -> 88 | E76: =机构!G89&RIGHT("000000"&机构!F89,5)&"01" -> Y0007401 | F76: 管理员 | G76: 5t6QUpK/gc29b2R83PGu/dMBr8qUIkRWpG9dhS85SnI= | H76: INSERT INTO sys_user(id, sys_org_id, `name`, account, password, is_activated, create_sys_user_id, create_time, status, is_deleted) VALUES(173, 88, '管理员', 'Y0007401', '5t6QUpK/gc29b2R83PGu/dMBr8qUIkRWpG9dhS85SnI=', 0, 1, NOW(), 1, 0); | I76: INSERT INTO sys_role_user(id, sys_role_id, sys_user_id) VALUES(173, 6, 173);
A77: 6 | B77: 174 | C77: =机构!H90 -> 重庆市渝北区新葵幼儿园 | D77: =机构!A90 -> 89 | E77: =机构!G90&RIGHT("000000"&机构!F90,5)&"01" -> Y0007501 | F77: 管理员 | G77: 5t6QUpK/gc29b2R83PGu/dMBr8qUIkRWpG9dhS85SnI= | H77: INSERT INTO sys_user(id, sys_org_id, `name`, account, password, is_activated, create_sys_user_id, create_time, status, is_deleted) VALUES(174, 89, '管理员', 'Y0007501', '5t6QUpK/gc29b2R83PGu/dMBr8qUIkRWpG9dhS85SnI=', 0, 1, NOW(), 1, 0); | I77: INSERT INTO sys_role_user(id, sys_role_id, sys_user_id) VALUES(174, 6, 174);
A78: 6 | B78: 175 | C78: =机构!H91 -> 重庆市渝北区双凤桥星星幼儿园 | D78: =机构!A91 -> 90 | E78: =机构!G91&RIGHT("000000"&机构!F91,5)&"01" -> Y0007601 | F78: 管理员 | G78: 5t6QUpK/gc29b2R83PGu/dMBr8qUIkRWpG9dhS85SnI= | H78: INSERT INTO sys_user(id, sys_org_id, `name`, account, password, is_activated, create_sys_user_id, create_time, status, is_deleted) VALUES(175, 90, '管理员', 'Y0007601', '5t6QUpK/gc29b2R83PGu/dMBr8qUIkRWpG9dhS85SnI=', 0, 1, NOW(), 1, 0); | I78: INSERT INTO sys_role_user(id, sys_role_id, sys_user_id) VALUES(175, 6, 175);
A79: 6 | B79: 176 | C79: =机构!H92 -> 重庆市渝北区泽科幼儿园 | D79: =机构!A92 -> 91 | E79: =机构!G92&RIGHT("000000"&机构!F92,5)&"01" -> Y0007701 | F79: 管理员 | G79: 5t6QUpK/gc29b2R83PGu/dMBr8qUIkRWpG9dhS85SnI= | H79: INSERT INTO sys_user(id, sys_org_id, `name`, account, password, is_activated, create_sys_user_id, create_time, status, is_deleted) VALUES(176, 91, '管理员', 'Y0007701', '5t6QUpK/gc29b2R83PGu/dMBr8qUIkRWpG9dhS85SnI=', 0, 1, NOW(), 1, 0); | I79: INSERT INTO sys_role_user(id, sys_role_id, sys_user_id) VALUES(176, 6, 176);
A80: 6 | B80: 177 | C80: =机构!H93 -> 重庆市渝北区双凤桥慧伶幼儿园 | D80: =机构!A93 -> 92 | E80: =机构!G93&RIGHT("000000"&机构!F93,5)&"01" -> Y0007801 | F80: 管理员 | G80: 5t6QUpK/gc29b2R83PGu/dMBr8qUIkRWpG9dhS85SnI= | H80: INSERT INTO sys_user(id, sys_org_id, `name`, account, password, is_activated, create_sys_user_id, create_time, status, is_deleted) VALUES(177, 92, '管理员', 'Y0007801', '5t6QUpK/gc29b2R83PGu/dMBr8qUIkRWpG9dhS85SnI=', 0, 1, NOW(), 1, 0); | I80: INSERT INTO sys_role_user(id, sys_role_id, sys_user_id) VALUES(177, 6, 177);
A81: 6 | B81: 178 | C81: =机构!H94 -> 重庆市渝北区双凤桥高屋幼儿园 | D81: =机构!A94 -> 93 | E81: =机构!G94&RIGHT("000000"&机构!F94,5)&"01" -> Y0007901 | F81: 管理员 | G81: 5t6QUpK/gc29b2R83PGu/dMBr8qUIkRWpG9dhS85SnI= | H81: INSERT INTO sys_user(id, sys_org_id, `name`, account, password, is_activated, create_sys_user_id, create_time, status, is_deleted) VALUES(178, 93, '管理员', 'Y0007901', '5t6QUpK/gc29b2R83PGu/dMBr8qUIkRWpG9dhS85SnI=', 0, 1, NOW(), 1, 0); | I81: INSERT INTO sys_role_user(id, sys_role_id, sys_user_id) VALUES(178, 6, 178);
A82: 6 | B82: 179 | C82: =机构!H95 -> 重庆市渝北区双凤桥乐乐幼儿园 | D82: =机构!A95 -> 94 | E82: =机构!G95&RIGHT("000000"&机构!F95,5)&"01" -> Y0008001 | F82: 管理员 | G82: 5t6QUpK/gc29b2R83PGu/dMBr8qUIkRWpG9dhS85SnI= | H82: INSERT INTO sys_user(id, sys_org_id, `name`, account, password, is_activated, create_sys_user_id, create_time, status, is_deleted) VALUES(179, 94, '管理员', 'Y0008001', '5t6QUpK/gc29b2R83PGu/dMBr8qUIkRWpG9dhS85SnI=', 0, 1, NOW(), 1, 0); | I82: INSERT INTO sys_role_user(id, sys_role_id, sys_user_id) VALUES(179, 6, 179);
A83: 6 | B83: 180 | C83: =机构!H96 -> 重庆市渝北区双凤桥大风车幼儿园 | D83: =机构!A96 -> 95 | E83: =机构!G96&RIGHT("000000"&机构!F96,5)&"01" -> Y0008101 | F83: 管理员 | G83: 5t6QUpK/gc29b2R83PGu/dMBr8qUIkRWpG9dhS85SnI= | H83: INSERT INTO sys_user(id, sys_org_id, `name`, account, password, is_activated, create_sys_user_id, create_time, status, is_deleted) VALUES(180, 95, '管理员', 'Y0008101', '5t6QUpK/gc29b2R83PGu/dMBr8qUIkRWpG9dhS85SnI=', 0, 1, NOW(), 1, 0); | I83: INSERT INTO sys_role_user(id, sys_role_id, sys_user_id) VALUES(180, 6, 180);
A84: 6 | B84: 181 | C84: =机构!H97 -> 重庆市渝北区双凤桥艺树幼儿园 | D84: =机构!A97 -> 96 | E84: =机构!G97&RIGHT("000000"&机构!F97,5)&"01" -> Y0008201 | F84: 管理员 | G84: 5t6QUpK/gc29b2R83PGu/dMBr8qUIkRWpG9dhS85SnI= | H84: INSERT INTO sys_user(id, sys_org_id, `name`, account, password, is_activated, create_sys_user_id, create_time, status, is_deleted) VALUES(181, 96, '管理员', 'Y0008201', '5t6QUpK/gc29b2R83PGu/dMBr8qUIkRWpG9dhS85SnI=', 0, 1, NOW(), 1, 0); | I84: INSERT INTO sys_role_user(id, sys_role_id, sys_user_id) VALUES(181, 6, 181);
A85: 6 | B85: 182 | C85: =机构!H98 -> 重庆市渝北区双凤桥阳光幼儿园 | D85: =机构!A98 -> 97 | E85: =机构!G98&RIGHT("000000"&机构!F98,5)&"01" -> Y0008301 | F85: 管理员 | G85: 5t6QUpK/gc29b2R83PGu/dMBr8qUIkRWpG9dhS85SnI= | H85: INSERT INTO sys_user(id, sys_org_id, `name`, account, password, is_activated, create_sys_user_id, create_time, status, is_deleted) VALUES(182, 97, '管理员', 'Y0008301', '5t6QUpK/gc29b2R83PGu/dMBr8qUIkRWpG9dhS85SnI=', 0, 1, NOW(), 1, 0); | I85: INSERT INTO sys_role_user(id, sys_role_id, sys_user_id) VALUES(182, 6, 182);
A86: 6 | B86: 183 | C86: =机构!H99 -> 重庆市渝北区双凤桥康乐幼儿园 | D86: =机构!A99 -> 98 | E86: =机构!G99&RIGHT("000000"&机构!F99,5)&"01" -> Y0008401 | F86: 管理员 | G86: 5t6QUpK/gc29b2R83PGu/dMBr8qUIkRWpG9dhS85SnI= | H86: INSERT INTO sys_user(id, sys_org_id, `name`, account, password, is_activated, create_sys_user_id, create_time, status, is_deleted) VALUES(183, 98, '管理员', 'Y0008401', '5t6QUpK/gc29b2R83PGu/dMBr8qUIkRWpG9dhS85SnI=', 0, 1, NOW(), 1, 0); | I86: INSERT INTO sys_role_user(id, sys_role_id, sys_user_id) VALUES(183, 6, 183);
A87: 6 | B87: 184 | C87: =机构!H100 -> 重庆市渝北区两江第一幼儿园环雅园 | D87: =机构!A100 -> 99 | E87: =机构!G100&RIGHT("000000"&机构!F100,5)&"01" -> Y0008501 | F87: 管理员 | G87: 5t6QUpK/gc29b2R83PGu/dMBr8qUIkRWpG9dhS85SnI= | H87: INSERT INTO sys_user(id, sys_org_id, `name`, account, password, is_activated, create_sys_user_id, create_time, status, is_deleted) VALUES(184, 99, '管理员', 'Y0008501', '5t6QUpK/gc29b2R83PGu/dMBr8qUIkRWpG9dhS85SnI=', 0, 1, NOW(), 1, 0); | I87: INSERT INTO sys_role_user(id, sys_role_id, sys_user_id) VALUES(184, 6, 184);
A88: 6 | B88: 185 | C88: =机构!H101 -> 重庆市渝北区两江第一幼儿园 | D88: =机构!A101 -> 100 | E88: =机构!G101&RIGHT("000000"&机构!F101,5)&"01" -> Y0008601 | F88: 管理员 | G88: 5t6QUpK/gc29b2R83PGu/dMBr8qUIkRWpG9dhS85SnI= | H88: INSERT INTO sys_user(id, sys_org_id, `name`, account, password, is_activated, create_sys_user_id, create_time, status, is_deleted) VALUES(185, 100, '管理员', 'Y0008601', '5t6QUpK/gc29b2R83PGu/dMBr8qUIkRWpG9dhS85SnI=', 0, 1, NOW(), 1, 0); | I88: INSERT INTO sys_role_user(id, sys_role_id, sys_user_id) VALUES(185, 6, 185);
A89: 6 | B89: 186 | C89: =机构!H102 -> 重庆市渝北区两江第一幼儿园桃源园 | D89: =机构!A102 -> 101 | E89: =机构!G102&RIGHT("000000"&机构!F102,5)&"01" -> Y0008701 | F89: 管理员 | G89: 5t6QUpK/gc29b2R83PGu/dMBr8qUIkRWpG9dhS85SnI= | H89: INSERT INTO sys_user(id, sys_org_id, `name`, account, password, is_activated, create_sys_user_id, create_time, status, is_deleted) VALUES(186, 101, '管理员', 'Y0008701', '5t6QUpK/gc29b2R83PGu/dMBr8qUIkRWpG9dhS85SnI=', 0, 1, NOW(), 1, 0); | I89: INSERT INTO sys_role_user(id, sys_role_id, sys_user_id) VALUES(186, 6, 186);
A90: 6 | B90: 187 | C90: =机构!H103 -> 重庆市渝北区空港实验小学校附属幼儿园 | D90: =机构!A103 -> 102 | E90: =机构!G103&RIGHT("000000"&机构!F103,5)&"01" -> Y0008801 | F90: 管理员 | G90: 5t6QUpK/gc29b2R83PGu/dMBr8qUIkRWpG9dhS85SnI= | H90: INSERT INTO sys_user(id, sys_org_id, `name`, account, password, is_activated, create_sys_user_id, create_time, status, is_deleted) VALUES(187, 102, '管理员', 'Y0008801', '5t6QUpK/gc29b2R83PGu/dMBr8qUIkRWpG9dhS85SnI=', 0, 1, NOW(), 1, 0); | I90: INSERT INTO sys_role_user(id, sys_role_id, sys_user_id) VALUES(187, 6, 187);
A91: 6 | B91: 188 | C91: =机构!H104 -> 重庆市渝北区长安锦尚小学附属幼儿园 | D91: =机构!A104 -> 103 | E91: =机构!G104&RIGHT("000000"&机构!F104,5)&"01" -> Y0008901 | F91: 管理员 | G91: 5t6QUpK/gc29b2R83PGu/dMBr8qUIkRWpG9dhS85SnI= | H91: INSERT INTO sys_user(id, sys_org_id, `name`, account, password, is_activated, create_sys_user_id, create_time, status, is_deleted) VALUES(188, 103, '管理员', 'Y0008901', '5t6QUpK/gc29b2R83PGu/dMBr8qUIkRWpG9dhS85SnI=', 0, 1, NOW(), 1, 0); | I91: INSERT INTO sys_role_user(id, sys_role_id, sys_user_id) VALUES(188, 6, 188);
A92: 6 | B92: 189 | C92: =机构!H105 -> 重庆市渝北区环雅小学校附属幼儿园 | D92: =机构!A105 -> 104 | E92: =机构!G105&RIGHT("000000"&机构!F105,5)&"01" -> Y0009001 | F92: 管理员 | G92: 5t6QUpK/gc29b2R83PGu/dMBr8qUIkRWpG9dhS85SnI= | H92: INSERT INTO sys_user(id, sys_org_id, `name`, account, password, is_activated, create_sys_user_id, create_time, status, is_deleted) VALUES(189, 104, '管理员', 'Y0009001', '5t6QUpK/gc29b2R83PGu/dMBr8qUIkRWpG9dhS85SnI=', 0, 1, NOW(), 1, 0); | I92: INSERT INTO sys_role_user(id, sys_role_id, sys_user_id) VALUES(189, 6, 189);
A93: 6 | B93: 190 | C93: =机构!H106 -> 重庆市渝北区观月小学校附属幼儿园 | D93: =机构!A106 -> 105 | E93: =机构!G106&RIGHT("000000"&机构!F106,5)&"01" -> Y0009101 | F93: 管理员 | G93: 5t6QUpK/gc29b2R83PGu/dMBr8qUIkRWpG9dhS85SnI= | H93: INSERT INTO sys_user(id, sys_org_id, `name`, account, password, is_activated, create_sys_user_id, create_time, status, is_deleted) VALUES(190, 105, '管理员', 'Y0009101', '5t6QUpK/gc29b2R83PGu/dMBr8qUIkRWpG9dhS85SnI=', 0, 1, NOW(), 1, 0); | I93: INSERT INTO sys_role_user(id, sys_role_id, sys_user_id) VALUES(190, 6, 190);
A94: 6 | B94: 191 | C94: =机构!H107 -> 重庆市渝北区兴阳瑞丰幼儿园 | D94: =机构!A107 -> 106 | E94: =机构!G107&RIGHT("000000"&机构!F107,5)&"01" -> Y0009201 | F94: 管理员 | G94: 5t6QUpK/gc29b2R83PGu/dMBr8qUIkRWpG9dhS85SnI= | H94: INSERT INTO sys_user(id, sys_org_id, `name`, account, password, is_activated, create_sys_user_id, create_time, status, is_deleted) VALUES(191, 106, '管理员', 'Y0009201', '5t6QUpK/gc29b2R83PGu/dMBr8qUIkRWpG9dhS85SnI=', 0, 1, NOW(), 1, 0); | I94: INSERT INTO sys_role_user(id, sys_role_id, sys_user_id) VALUES(191, 6, 191);
A95: 6 | B95: 192 | C95: =机构!H108 -> 重庆市渝北区兴阳幼儿园 | D95: =机构!A108 -> 107 | E95: =机构!G108&RIGHT("000000"&机构!F108,5)&"01" -> Y0009301 | F95: 管理员 | G95: 5t6QUpK/gc29b2R83PGu/dMBr8qUIkRWpG9dhS85SnI= | H95: INSERT INTO sys_user(id, sys_org_id, `name`, account, password, is_activated, create_sys_user_id, create_time, status, is_deleted) VALUES(192, 107, '管理员', 'Y0009301', '5t6QUpK/gc29b2R83PGu/dMBr8qUIkRWpG9dhS85SnI=', 0, 1, NOW(), 1, 0); | I95: INSERT INTO sys_role_user(id, sys_role_id, sys_user_id) VALUES(192, 6, 192);
A96: 6 | B96: 193 | C96: =机构!H109 -> 重庆市渝北区当当香海驿幼儿园 | D96: =机构!A109 -> 108 | E96: =机构!G109&RIGHT("000000"&机构!F109,5)&"01" -> Y0009401 | F96: 管理员 | G96: 5t6QUpK/gc29b2R83PGu/dMBr8qUIkRWpG9dhS85SnI= | H96: INSERT INTO sys_user(id, sys_org_id, `name`, account, password, is_activated, create_sys_user_id, create_time, status, is_deleted) VALUES(193, 108, '管理员', 'Y0009401', '5t6QUpK/gc29b2R83PGu/dMBr8qUIkRWpG9dhS85SnI=', 0, 1, NOW(), 1, 0); | I96: INSERT INTO sys_role_user(id, sys_role_id, sys_user_id) VALUES(193, 6, 193);
A97: 6 | B97: 194 | C97: =机构!H110 -> 重庆市渝北区长安锦尚城幼儿园 | D97: =机构!A110 -> 109 | E97: =机构!G110&RIGHT("000000"&机构!F110,5)&"01" -> Y0009501 | F97: 管理员 | G97: 5t6QUpK/gc29b2R83PGu/dMBr8qUIkRWpG9dhS85SnI= | H97: INSERT INTO sys_user(id, sys_org_id, `name`, account, password, is_activated, create_sys_user_id, create_time, status, is_deleted) VALUES(194, 109, '管理员', 'Y0009501', '5t6QUpK/gc29b2R83PGu/dMBr8qUIkRWpG9dhS85SnI=', 0, 1, NOW(), 1, 0); | I97: INSERT INTO sys_role_user(id, sys_role_id, sys_user_id) VALUES(194, 6, 194);
A98: 6 | B98: 195 | C98: =机构!H111 -> 重庆市渝北区空港童心幼儿园 | D98: =机构!A111 -> 110 | E98: =机构!G111&RIGHT("000000"&机构!F111,5)&"01" -> Y0009601 | F98: 管理员 | G98: 5t6QUpK/gc29b2R83PGu/dMBr8qUIkRWpG9dhS85SnI= | H98: INSERT INTO sys_user(id, sys_org_id, `name`, account, password, is_activated, create_sys_user_id, create_time, status, is_deleted) VALUES(195, 110, '管理员', 'Y0009601', '5t6QUpK/gc29b2R83PGu/dMBr8qUIkRWpG9dhS85SnI=', 0, 1, NOW(), 1, 0); | I98: INSERT INTO sys_role_user(id, sys_role_id, sys_user_id) VALUES(195, 6, 195);
A99: 6 | B99: 196 | C99: =机构!H112 -> 重庆市渝北区浩博幼儿园 | D99: =机构!A112 -> 111 | E99: =机构!G112&RIGHT("000000"&机构!F112,5)&"01" -> Y0009701 | F99: 管理员 | G99: 5t6QUpK/gc29b2R83PGu/dMBr8qUIkRWpG9dhS85SnI= | H99: INSERT INTO sys_user(id, sys_org_id, `name`, account, password, is_activated, create_sys_user_id, create_time, status, is_deleted) VALUES(196, 111, '管理员', 'Y0009701', '5t6QUpK/gc29b2R83PGu/dMBr8qUIkRWpG9dhS85SnI=', 0, 1, NOW(), 1, 0); | I99: INSERT INTO sys_role_user(id, sys_role_id, sys_user_id) VALUES(196, 6, 196);
A100: 6 | B100: 197 | C100: =机构!H113 -> 重庆市渝北区双凤桥金易星辰幼儿园 | D100: =机构!A113 -> 112 | E100: =机构!G113&RIGHT("000000"&机构!F113,5)&"01" -> Y0009801 | F100: 管理员 | G100: 5t6QUpK/gc29b2R83PGu/dMBr8qUIkRWpG9dhS85SnI= | H100: INSERT INTO sys_user(id, sys_org_id, `name`, account, password, is_activated, create_sys_user_id, create_time, status, is_deleted) VALUES(197, 112, '管理员', 'Y0009801', '5t6QUpK/gc29b2R83PGu/dMBr8qUIkRWpG9dhS85SnI=', 0, 1, NOW(), 1, 0); | I100: INSERT INTO sys_role_user(id, sys_role_id, sys_user_id) VALUES(197, 6, 197);
A101: 6 | B101: 198 | C101: =机构!H114 -> 重庆市渝北区双凤桥青麓幼儿园 | D101: =机构!A114 -> 113 | E101: =机构!G114&RIGHT("000000"&机构!F114,5)&"01" -> Y0009901 | F101: 管理员 | G101: 5t6QUpK/gc29b2R83PGu/dMBr8qUIkRWpG9dhS85SnI= | H101: INSERT INTO sys_user(id, sys_org_id, `name`, account, password, is_activated, create_sys_user_id, create_time, status, is_deleted) VALUES(198, 113, '管理员', 'Y0009901', '5t6QUpK/gc29b2R83PGu/dMBr8qUIkRWpG9dhS85SnI=', 0, 1, NOW(), 1, 0); | I101: INSERT INTO sys_role_user(id, sys_role_id, sys_user_id) VALUES(198, 6, 198);
A102: 6 | B102: 199 | C102: =机构!H115 -> 重庆市渝北区蕾蕾唐庄幼儿园 | D102: =机构!A115 -> 114 | E102: =机构!G115&RIGHT("000000"&机构!F115,5)&"01" -> Y0010001 | F102: 管理员 | G102: 5t6QUpK/gc29b2R83PGu/dMBr8qUIkRWpG9dhS85SnI= | H102: INSERT INTO sys_user(id, sys_org_id, `name`, account, password, is_activated, create_sys_user_id, create_time, status, is_deleted) VALUES(199, 114, '管理员', 'Y0010001', '5t6QUpK/gc29b2R83PGu/dMBr8qUIkRWpG9dhS85SnI=', 0, 1, NOW(), 1, 0); | I102: INSERT INTO sys_role_user(id, sys_role_id, sys_user_id) VALUES(199, 6, 199);
A103: 6 | B103: 200 | C103: =机构!H116 -> 重庆市渝北区海智幼儿园 | D103: =机构!A116 -> 115 | E103: =机构!G116&RIGHT("000000"&机构!F116,5)&"01" -> Y0010101 | F103: 管理员 | G103: 5t6QUpK/gc29b2R83PGu/dMBr8qUIkRWpG9dhS85SnI= | H103: INSERT INTO sys_user(id, sys_org_id, `name`, account, password, is_activated, create_sys_user_id, create_time, status, is_deleted) VALUES(200, 115, '管理员', 'Y0010101', '5t6QUpK/gc29b2R83PGu/dMBr8qUIkRWpG9dhS85SnI=', 0, 1, NOW(), 1, 0); | I103: INSERT INTO sys_role_user(id, sys_role_id, sys_user_id) VALUES(200, 6, 200);
A104: 6 | B104: 201 | C104: =机构!H117 -> 重庆市渝北区艺思蒙想幼儿园 | D104: =机构!A117 -> 116 | E104: =机构!G117&RIGHT("000000"&机构!F117,5)&"01" -> Y0010201 | F104: 管理员 | G104: 5t6QUpK/gc29b2R83PGu/dMBr8qUIkRWpG9dhS85SnI= | H104: INSERT INTO sys_user(id, sys_org_id, `name`, account, password, is_activated, create_sys_user_id, create_time, status, is_deleted) VALUES(201, 116, '管理员', 'Y0010201', '5t6QUpK/gc29b2R83PGu/dMBr8qUIkRWpG9dhS85SnI=', 0, 1, NOW(), 1, 0); | I104: INSERT INTO sys_role_user(id, sys_role_id, sys_user_id) VALUES(201, 6, 201);
A105: 6 | B105: 202 | C105: =机构!H118 -> 重庆市渝北区双凤桥红苹果幼儿园 | D105: =机构!A118 -> 117 | E105: =机构!G118&RIGHT("000000"&机构!F118,5)&"01" -> Y0010301 | F105: 管理员 | G105: 5t6QUpK/gc29b2R83PGu/dMBr8qUIkRWpG9dhS85SnI= | H105: INSERT INTO sys_user(id, sys_org_id, `name`, account, password, is_activated, create_sys_user_id, create_time, status, is_deleted) VALUES(202, 117, '管理员', 'Y0010301', '5t6QUpK/gc29b2R83PGu/dMBr8qUIkRWpG9dhS85SnI=', 0, 1, NOW(), 1, 0); | I105: INSERT INTO sys_role_user(id, sys_role_id, sys_user_id) VALUES(202, 6, 202);
A106: 6 | B106: 203 | C106: =机构!H119 -> 重庆市渝北区双凤桥建兴幼儿园 | D106: =机构!A119 -> 118 | E106: =机构!G119&RIGHT("000000"&机构!F119,5)&"01" -> Y0010401 | F106: 管理员 | G106: 5t6QUpK/gc29b2R83PGu/dMBr8qUIkRWpG9dhS85SnI= | H106: INSERT INTO sys_user(id, sys_org_id, `name`, account, password, is_activated, create_sys_user_id, create_time, status, is_deleted) VALUES(203, 118, '管理员', 'Y0010401', '5t6QUpK/gc29b2R83PGu/dMBr8qUIkRWpG9dhS85SnI=', 0, 1, NOW(), 1, 0); | I106: INSERT INTO sys_role_user(id, sys_role_id, sys_user_id) VALUES(203, 6, 203);
A107: 6 | B107: 204 | C107: =机构!H120 -> 重庆市渝北区双凤桥蕾蕾幼儿园 | D107: =机构!A120 -> 119 | E107: =机构!G120&RIGHT("000000"&机构!F120,5)&"01" -> Y0010501 | F107: 管理员 | G107: 5t6QUpK/gc29b2R83PGu/dMBr8qUIkRWpG9dhS85SnI= | H107: INSERT INTO sys_user(id, sys_org_id, `name`, account, password, is_activated, create_sys_user_id, create_time, status, is_deleted) VALUES(204, 119, '管理员', 'Y0010501', '5t6QUpK/gc29b2R83PGu/dMBr8qUIkRWpG9dhS85SnI=', 0, 1, NOW(), 1, 0); | I107: INSERT INTO sys_role_user(id, sys_role_id, sys_user_id) VALUES(204, 6, 204);
A108: 6 | B108: 205 | C108: =机构!H121 -> 重庆市渝北区双凤桥晨曦幼儿园 | D108: =机构!A121 -> 120 | E108: =机构!G121&RIGHT("000000"&机构!F121,5)&"01" -> Y0010601 | F108: 管理员 | G108: 5t6QUpK/gc29b2R83PGu/dMBr8qUIkRWpG9dhS85SnI= | H108: INSERT INTO sys_user(id, sys_org_id, `name`, account, password, is_activated, create_sys_user_id, create_time, status, is_deleted) VALUES(205, 120, '管理员', 'Y0010601', '5t6QUpK/gc29b2R83PGu/dMBr8qUIkRWpG9dhS85SnI=', 0, 1, NOW(), 1, 0); | I108: INSERT INTO sys_role_user(id, sys_role_id, sys_user_id) VALUES(205, 6, 205);
A109: 6 | B109: 206 | C109: =机构!H122 -> 重庆市渝北区金色童年幼儿园 | D109: =机构!A122 -> 121 | E109: =机构!G122&RIGHT("000000"&机构!F122,5)&"01" -> Y0010701 | F109: 管理员 | G109: 5t6QUpK/gc29b2R83PGu/dMBr8qUIkRWpG9dhS85SnI= | H109: INSERT INTO sys_user(id, sys_org_id, `name`, account, password, is_activated, create_sys_user_id, create_time, status, is_deleted) VALUES(206, 121, '管理员', 'Y0010701', '5t6QUpK/gc29b2R83PGu/dMBr8qUIkRWpG9dhS85SnI=', 0, 1, NOW(), 1, 0); | I109: INSERT INTO sys_role_user(id, sys_role_id, sys_user_id) VALUES(206, 6, 206);
A110: 6 | B110: 207 | C110: =机构!H123 -> 重庆市渝北区双凤桥童心幼儿园 | D110: =机构!A123 -> 122 | E110: =机构!G123&RIGHT("000000"&机构!F123,5)&"01" -> Y0010801 | F110: 管理员 | G110: 5t6QUpK/gc29b2R83PGu/dMBr8qUIkRWpG9dhS85SnI= | H110: INSERT INTO sys_user(id, sys_org_id, `name`, account, password, is_activated, create_sys_user_id, create_time, status, is_deleted) VALUES(207, 122, '管理员', 'Y0010801', '5t6QUpK/gc29b2R83PGu/dMBr8qUIkRWpG9dhS85SnI=', 0, 1, NOW(), 1, 0); | I110: INSERT INTO sys_role_user(id, sys_role_id, sys_user_id) VALUES(207, 6, 207);
A111: 6 | B111: 208 | C111: =机构!H124 -> 重庆市渝北区北城空港大地幼儿园 | D111: =机构!A124 -> 123 | E111: =机构!G124&RIGHT("000000"&机构!F124,5)&"01" -> Y0010901 | F111: 管理员 | G111: 5t6QUpK/gc29b2R83PGu/dMBr8qUIkRWpG9dhS85SnI= | H111: INSERT INTO sys_user(id, sys_org_id, `name`, account, password, is_activated, create_sys_user_id, create_time, status, is_deleted) VALUES(208, 123, '管理员', 'Y0010901', '5t6QUpK/gc29b2R83PGu/dMBr8qUIkRWpG9dhS85SnI=', 0, 1, NOW(), 1, 0); | I111: INSERT INTO sys_role_user(id, sys_role_id, sys_user_id) VALUES(208, 6, 208);
A112: 6 | B112: 209 | C112: =机构!H125 -> 重庆市渝北区桃源居悠乐蒙幼儿园 | D112: =机构!A125 -> 124 | E112: =机构!G125&RIGHT("000000"&机构!F125,5)&"01" -> Y0011001 | F112: 管理员 | G112: 5t6QUpK/gc29b2R83PGu/dMBr8qUIkRWpG9dhS85SnI= | H112: INSERT INTO sys_user(id, sys_org_id, `name`, account, password, is_activated, create_sys_user_id, create_time, status, is_deleted) VALUES(209, 124, '管理员', 'Y0011001', '5t6QUpK/gc29b2R83PGu/dMBr8qUIkRWpG9dhS85SnI=', 0, 1, NOW(), 1, 0); | I112: INSERT INTO sys_role_user(id, sys_role_id, sys_user_id) VALUES(209, 6, 209);
A113: 6 | B113: 210 | C113: =机构!H126 -> 重庆市渝北区双凤桥街道金辰幼儿园 | D113: =机构!A126 -> 125 | E113: =机构!G126&RIGHT("000000"&机构!F126,5)&"01" -> Y0011101 | F113: 管理员 | G113: 5t6QUpK/gc29b2R83PGu/dMBr8qUIkRWpG9dhS85SnI= | H113: INSERT INTO sys_user(id, sys_org_id, `name`, account, password, is_activated, create_sys_user_id, create_time, status, is_deleted) VALUES(210, 125, '管理员', 'Y0011101', '5t6QUpK/gc29b2R83PGu/dMBr8qUIkRWpG9dhS85SnI=', 0, 1, NOW(), 1, 0); | I113: INSERT INTO sys_role_user(id, sys_role_id, sys_user_id) VALUES(210, 6, 210);
A114: 6 | B114: 211 | C114: =机构!H127 -> 重庆市渝北区君君幼儿园 | D114: =机构!A127 -> 126 | E114: =机构!G127&RIGHT("000000"&机构!F127,5)&"01" -> Y0011201 | F114: 管理员 | G114: 5t6QUpK/gc29b2R83PGu/dMBr8qUIkRWpG9dhS85SnI= | H114: INSERT INTO sys_user(id, sys_org_id, `name`, account, password, is_activated, create_sys_user_id, create_time, status, is_deleted) VALUES(211, 126, '管理员', 'Y0011201', '5t6QUpK/gc29b2R83PGu/dMBr8qUIkRWpG9dhS85SnI=', 0, 1, NOW(), 1, 0); | I114: INSERT INTO sys_role_user(id, sys_role_id, sys_user_id) VALUES(211, 6, 211);
A115: 6 | B115: 212 | C115: =机构!H128 -> 重庆市渝北区红树林幼儿园 | D115: =机构!A128 -> 127 | E115: =机构!G128&RIGHT("000000"&机构!F128,5)&"01" -> Y0011301 | F115: 管理员 | G115: 5t6QUpK/gc29b2R83PGu/dMBr8qUIkRWpG9dhS85SnI= | H115: INSERT INTO sys_user(id, sys_org_id, `name`, account, password, is_activated, create_sys_user_id, create_time, status, is_deleted) VALUES(212, 127, '管理员', 'Y0011301', '5t6QUpK/gc29b2R83PGu/dMBr8qUIkRWpG9dhS85SnI=', 0, 1, NOW(), 1, 0); | I115: INSERT INTO sys_role_user(id, sys_role_id, sys_user_id) VALUES(212, 6, 212);
A116: 6 | B116: 213 | C116: =机构!H129 -> 重庆市渝北区黄桷坪幼儿园 | D116: =机构!A129 -> 128 | E116: =机构!G129&RIGHT("000000"&机构!F129,5)&"01" -> Y0011401 | F116: 管理员 | G116: 5t6QUpK/gc29b2R83PGu/dMBr8qUIkRWpG9dhS85SnI= | H116: INSERT INTO sys_user(id, sys_org_id, `name`, account, password, is_activated, create_sys_user_id, create_time, status, is_deleted) VALUES(213, 128, '管理员', 'Y0011401', '5t6QUpK/gc29b2R83PGu/dMBr8qUIkRWpG9dhS85SnI=', 0, 1, NOW(), 1, 0); | I116: INSERT INTO sys_role_user(id, sys_role_id, sys_user_id) VALUES(213, 6, 213);
A117: 6 | B117: 214 | C117: =机构!H130 -> 重庆市渝北区黄桷坪幼儿园心海园 | D117: =机构!A130 -> 129 | E117: =机构!G130&RIGHT("000000"&机构!F130,5)&"01" -> Y0011501 | F117: 管理员 | G117: 5t6QUpK/gc29b2R83PGu/dMBr8qUIkRWpG9dhS85SnI= | H117: INSERT INTO sys_user(id, sys_org_id, `name`, account, password, is_activated, create_sys_user_id, create_time, status, is_deleted) VALUES(214, 129, '管理员', 'Y0011501', '5t6QUpK/gc29b2R83PGu/dMBr8qUIkRWpG9dhS85SnI=', 0, 1, NOW(), 1, 0); | I117: INSERT INTO sys_role_user(id, sys_role_id, sys_user_id) VALUES(214, 6, 214);
A118: 6 | B118: 215 | C118: =机构!H131 -> 重庆市渝北区回兴小学校附属幼儿园 | D118: =机构!A131 -> 130 | E118: =机构!G131&RIGHT("000000"&机构!F131,5)&"01" -> Y0011601 | F118: 管理员 | G118: 5t6QUpK/gc29b2R83PGu/dMBr8qUIkRWpG9dhS85SnI= | H118: INSERT INTO sys_user(id, sys_org_id, `name`, account, password, is_activated, create_sys_user_id, create_time, status, is_deleted) VALUES(215, 130, '管理员', 'Y0011601', '5t6QUpK/gc29b2R83PGu/dMBr8qUIkRWpG9dhS85SnI=', 0, 1, NOW(), 1, 0); | I118: INSERT INTO sys_role_user(id, sys_role_id, sys_user_id) VALUES(215, 6, 215);
A119: 6 | B119: 216 | C119: =机构!H132 -> 重庆市渝北区双湖小学校附属幼儿园 | D119: =机构!A132 -> 131 | E119: =机构!G132&RIGHT("000000"&机构!F132,5)&"01" -> Y0011701 | F119: 管理员 | G119: 5t6QUpK/gc29b2R83PGu/dMBr8qUIkRWpG9dhS85SnI= | H119: INSERT INTO sys_user(id, sys_org_id, `name`, account, password, is_activated, create_sys_user_id, create_time, status, is_deleted) VALUES(216, 131, '管理员', 'Y0011701', '5t6QUpK/gc29b2R83PGu/dMBr8qUIkRWpG9dhS85SnI=', 0, 1, NOW(), 1, 0); | I119: INSERT INTO sys_role_user(id, sys_role_id, sys_user_id) VALUES(216, 6, 216);
A120: 6 | B120: 217 | C120: =机构!H133 -> 重庆市渝北区锦华学校附属幼儿园 | D120: =机构!A133 -> 132 | E120: =机构!G133&RIGHT("000000"&机构!F133,5)&"01" -> Y0011801 | F120: 管理员 | G120: 5t6QUpK/gc29b2R83PGu/dMBr8qUIkRWpG9dhS85SnI= | H120: INSERT INTO sys_user(id, sys_org_id, `name`, account, password, is_activated, create_sys_user_id, create_time, status, is_deleted) VALUES(217, 132, '管理员', 'Y0011801', '5t6QUpK/gc29b2R83PGu/dMBr8qUIkRWpG9dhS85SnI=', 0, 1, NOW(), 1, 0); | I120: INSERT INTO sys_role_user(id, sys_role_id, sys_user_id) VALUES(217, 6, 217);
A121: 6 | B121: 218 | C121: =机构!H134 -> 重庆市渝北区申佳幼儿园 | D121: =机构!A134 -> 133 | E121: =机构!G134&RIGHT("000000"&机构!F134,5)&"01" -> Y0011901 | F121: 管理员 | G121: 5t6QUpK/gc29b2R83PGu/dMBr8qUIkRWpG9dhS85SnI= | H121: INSERT INTO sys_user(id, sys_org_id, `name`, account, password, is_activated, create_sys_user_id, create_time, status, is_deleted) VALUES(218, 133, '管理员', 'Y0011901', '5t6QUpK/gc29b2R83PGu/dMBr8qUIkRWpG9dhS85SnI=', 0, 1, NOW(), 1, 0); | I121: INSERT INTO sys_role_user(id, sys_role_id, sys_user_id) VALUES(218, 6, 218);
A122: 6 | B122: 219 | C122: =机构!H135 -> 重庆市渝北区中艺南方玫瑰城幼儿园 | D122: =机构!A135 -> 134 | E122: =机构!G135&RIGHT("000000"&机构!F135,5)&"01" -> Y0012001 | F122: 管理员 | G122: 5t6QUpK/gc29b2R83PGu/dMBr8qUIkRWpG9dhS85SnI= | H122: INSERT INTO sys_user(id, sys_org_id, `name`, account, password, is_activated, create_sys_user_id, create_time, status, is_deleted) VALUES(219, 134, '管理员', 'Y0012001', '5t6QUpK/gc29b2R83PGu/dMBr8qUIkRWpG9dhS85SnI=', 0, 1, NOW(), 1, 0); | I122: INSERT INTO sys_role_user(id, sys_role_id, sys_user_id) VALUES(219, 6, 219);
A123: 6 | B123: 220 | C123: =机构!H136 -> 重庆市渝北区山语间幼儿园 | D123: =机构!A136 -> 135 | E123: =机构!G136&RIGHT("000000"&机构!F136,5)&"01" -> Y0012101 | F123: 管理员 | G123: 5t6QUpK/gc29b2R83PGu/dMBr8qUIkRWpG9dhS85SnI= | H123: INSERT INTO sys_user(id, sys_org_id, `name`, account, password, is_activated, create_sys_user_id, create_time, status, is_deleted) VALUES(220, 135, '管理员', 'Y0012101', '5t6QUpK/gc29b2R83PGu/dMBr8qUIkRWpG9dhS85SnI=', 0, 1, NOW(), 1, 0); | I123: INSERT INTO sys_role_user(id, sys_role_id, sys_user_id) VALUES(220, 6, 220);
A124: 6 | B124: 221 | C124: =机构!H137 -> 重庆市渝北区家纺城大地幼儿园 | D124: =机构!A137 -> 136 | E124: =机构!G137&RIGHT("000000"&机构!F137,5)&"01" -> Y0012201 | F124: 管理员 | G124: 5t6QUpK/gc29b2R83PGu/dMBr8qUIkRWpG9dhS85SnI= | H124: INSERT INTO sys_user(id, sys_org_id, `name`, account, password, is_activated, create_sys_user_id, create_time, status, is_deleted) VALUES(221, 136, '管理员', 'Y0012201', '5t6QUpK/gc29b2R83PGu/dMBr8qUIkRWpG9dhS85SnI=', 0, 1, NOW(), 1, 0); | I124: INSERT INTO sys_role_user(id, sys_role_id, sys_user_id) VALUES(221, 6, 221);
A125: 6 | B125: 222 | C125: =机构!H138 -> 重庆市渝北区启智幼儿园 | D125: =机构!A138 -> 137 | E125: =机构!G138&RIGHT("000000"&机构!F138,5)&"01" -> Y0012301 | F125: 管理员 | G125: 5t6QUpK/gc29b2R83PGu/dMBr8qUIkRWpG9dhS85SnI= | H125: INSERT INTO sys_user(id, sys_org_id, `name`, account, password, is_activated, create_sys_user_id, create_time, status, is_deleted) VALUES(222, 137, '管理员', 'Y0012301', '5t6QUpK/gc29b2R83PGu/dMBr8qUIkRWpG9dhS85SnI=', 0, 1, NOW(), 1, 0); | I125: INSERT INTO sys_role_user(id, sys_role_id, sys_user_id) VALUES(222, 6, 222);
A126: 6 | B126: 223 | C126: =机构!H139 -> 重庆市渝北区迪乐星光幼儿园 | D126: =机构!A139 -> 138 | E126: =机构!G139&RIGHT("000000"&机构!F139,5)&"01" -> Y0012401 | F126: 管理员 | G126: 5t6QUpK/gc29b2R83PGu/dMBr8qUIkRWpG9dhS85SnI= | H126: INSERT INTO sys_user(id, sys_org_id, `name`, account, password, is_activated, create_sys_user_id, create_time, status, is_deleted) VALUES(223, 138, '管理员', 'Y0012401', '5t6QUpK/gc29b2R83PGu/dMBr8qUIkRWpG9dhS85SnI=', 0, 1, NOW(), 1, 0); | I126: INSERT INTO sys_role_user(id, sys_role_id, sys_user_id) VALUES(223, 6, 223);
A127: 6 | B127: 224 | C127: =机构!H140 -> 重庆市渝北区乡间城七色花幼儿园 | D127: =机构!A140 -> 139 | E127: =机构!G140&RIGHT("000000"&机构!F140,5)&"01" -> Y0012501 | F127: 管理员 | G127: 5t6QUpK/gc29b2R83PGu/dMBr8qUIkRWpG9dhS85SnI= | H127: INSERT INTO sys_user(id, sys_org_id, `name`, account, password, is_activated, create_sys_user_id, create_time, status, is_deleted) VALUES(224, 139, '管理员', 'Y0012501', '5t6QUpK/gc29b2R83PGu/dMBr8qUIkRWpG9dhS85SnI=', 0, 1, NOW(), 1, 0); | I127: INSERT INTO sys_role_user(id, sys_role_id, sys_user_id) VALUES(224, 6, 224);
A128: 6 | B128: 225 | C128: =机构!H141 -> 重庆市渝北区回兴龙凤幼儿园 | D128: =机构!A141 -> 140 | E128: =机构!G141&RIGHT("000000"&机构!F141,5)&"01" -> Y0012601 | F128: 管理员 | G128: 5t6QUpK/gc29b2R83PGu/dMBr8qUIkRWpG9dhS85SnI= | H128: INSERT INTO sys_user(id, sys_org_id, `name`, account, password, is_activated, create_sys_user_id, create_time, status, is_deleted) VALUES(225, 140, '管理员', 'Y0012601', '5t6QUpK/gc29b2R83PGu/dMBr8qUIkRWpG9dhS85SnI=', 0, 1, NOW(), 1, 0); | I128: INSERT INTO sys_role_user(id, sys_role_id, sys_user_id) VALUES(225, 6, 225);
A129: 6 | B129: 226 | C129: =机构!H142 -> 重庆市渝北区木鱼石幼儿园 | D129: =机构!A142 -> 141 | E129: =机构!G142&RIGHT("000000"&机构!F142,5)&"01" -> Y0012701 | F129: 管理员 | G129: 5t6QUpK/gc29b2R83PGu/dMBr8qUIkRWpG9dhS85SnI= | H129: INSERT INTO sys_user(id, sys_org_id, `name`, account, password, is_activated, create_sys_user_id, create_time, status, is_deleted) VALUES(226, 141, '管理员', 'Y0012701', '5t6QUpK/gc29b2R83PGu/dMBr8qUIkRWpG9dhS85SnI=', 0, 1, NOW(), 1, 0); | I129: INSERT INTO sys_role_user(id, sys_role_id, sys_user_id) VALUES(226, 6, 226);
A130: 6 | B130: 227 | C130: =机构!H143 -> 重庆市渝北区迪乐家纺城幼儿园 | D130: =机构!A143 -> 142 | E130: =机构!G143&RIGHT("000000"&机构!F143,5)&"01" -> Y0012801 | F130: 管理员 | G130: 5t6QUpK/gc29b2R83PGu/dMBr8qUIkRWpG9dhS85SnI= | H130: INSERT INTO sys_user(id, sys_org_id, `name`, account, password, is_activated, create_sys_user_id, create_time, status, is_deleted) VALUES(227, 142, '管理员', 'Y0012801', '5t6QUpK/gc29b2R83PGu/dMBr8qUIkRWpG9dhS85SnI=', 0, 1, NOW(), 1, 0); | I130: INSERT INTO sys_role_user(id, sys_role_id, sys_user_id) VALUES(227, 6, 227);
A131: 6 | B131: 228 | C131: =机构!H144 -> 重庆市渝北区明天幼儿园 | D131: =机构!A144 -> 143 | E131: =机构!G144&RIGHT("000000"&机构!F144,5)&"01" -> Y0012901 | F131: 管理员 | G131: 5t6QUpK/gc29b2R83PGu/dMBr8qUIkRWpG9dhS85SnI= | H131: INSERT INTO sys_user(id, sys_org_id, `name`, account, password, is_activated, create_sys_user_id, create_time, status, is_deleted) VALUES(228, 143, '管理员', 'Y0012901', '5t6QUpK/gc29b2R83PGu/dMBr8qUIkRWpG9dhS85SnI=', 0, 1, NOW(), 1, 0); | I131: INSERT INTO sys_role_user(id, sys_role_id, sys_user_id) VALUES(228, 6, 228);
A132: 6 | B132: 229 | C132: =机构!H145 -> 重庆市渝北区回兴七彩阳光幼儿园 | D132: =机构!A145 -> 144 | E132: =机构!G145&RIGHT("000000"&机构!F145,5)&"01" -> Y0013001 | F132: 管理员 | G132: 5t6QUpK/gc29b2R83PGu/dMBr8qUIkRWpG9dhS85SnI= | H132: ="INSERT INTO sys_user(id, sys_org_id, `name`, account, password, is_activated, create_sys_user_id, create_time, status, is_deleted) VALUES("&B132&", "&D132&", '"&F132&"', '"&E132&"', '"&G132&"', 0, 1, NOW(), 1, 0);" -> INSERT INTO sys_user(id, sys_org_id, `name`, account, password, is_activated, create_sys_user_id, create_time, status, is_deleted) VALUES(229, 144, '管理员', 'Y0013001', '5t6QUpK/gc29b2R83PGu/dMBr8qUIkRWpG9dhS85SnI=', 0, 1, NOW(), 1, 0); | I132: ="INSERT INTO sys_role_user(id, sys_role_id, sys_user_id) VALUES("&B132&", "&A132&", "&B132&");" -> INSERT INTO sys_role_user(id, sys_role_id, sys_user_id) VALUES(229, 6, 229);
A133: 6 | B133: 230 | C133: =机构!H146 -> 重庆市渝北区香榆园幼儿园 | D133: =机构!A146 -> 145 | E133: =机构!G146&RIGHT("000000"&机构!F146,5)&"01" -> Y0013101 | F133: 管理员 | G133: 5t6QUpK/gc29b2R83PGu/dMBr8qUIkRWpG9dhS85SnI= | H133: INSERT INTO sys_user(id, sys_org_id, `name`, account, password, is_activated, create_sys_user_id, create_time, status, is_deleted) VALUES(230, 145, '管理员', 'Y0013101', '5t6QUpK/gc29b2R83PGu/dMBr8qUIkRWpG9dhS85SnI=', 0, 1, NOW(), 1, 0); | I133: INSERT INTO sys_role_user(id, sys_role_id, sys_user_id) VALUES(230, 6, 230);
A134: 6 | B134: 231 | C134: =机构!H147 -> 重庆市渝北区水木年华贝乐坊幼儿园 | D134: =机构!A147 -> 146 | E134: =机构!G147&RIGHT("000000"&机构!F147,5)&"01" -> Y0013201 | F134: 管理员 | G134: 5t6QUpK/gc29b2R83PGu/dMBr8qUIkRWpG9dhS85SnI= | H134: INSERT INTO sys_user(id, sys_org_id, `name`, account, password, is_activated, create_sys_user_id, create_time, status, is_deleted) VALUES(231, 146, '管理员', 'Y0013201', '5t6QUpK/gc29b2R83PGu/dMBr8qUIkRWpG9dhS85SnI=', 0, 1, NOW(), 1, 0); | I134: INSERT INTO sys_role_user(id, sys_role_id, sys_user_id) VALUES(231, 6, 231);
A135: 6 | B135: 232 | C135: =机构!H148 -> 重庆市渝北区回兴满艺幼儿园 | D135: =机构!A148 -> 147 | E135: =机构!G148&RIGHT("000000"&机构!F148,5)&"01" -> Y0013301 | F135: 管理员 | G135: 5t6QUpK/gc29b2R83PGu/dMBr8qUIkRWpG9dhS85SnI= | H135: INSERT INTO sys_user(id, sys_org_id, `name`, account, password, is_activated, create_sys_user_id, create_time, status, is_deleted) VALUES(232, 147, '管理员', 'Y0013301', '5t6QUpK/gc29b2R83PGu/dMBr8qUIkRWpG9dhS85SnI=', 0, 1, NOW(), 1, 0); | I135: INSERT INTO sys_role_user(id, sys_role_id, sys_user_id) VALUES(232, 6, 232);
A136: 6 | B136: 233 | C136: =机构!H149 -> 重庆市渝北区吉的堡花屿城幼儿园 | D136: =机构!A149 -> 148 | E136: =机构!G149&RIGHT("000000"&机构!F149,5)&"01" -> Y0013401 | F136: 管理员 | G136: 5t6QUpK/gc29b2R83PGu/dMBr8qUIkRWpG9dhS85SnI= | H136: INSERT INTO sys_user(id, sys_org_id, `name`, account, password, is_activated, create_sys_user_id, create_time, status, is_deleted) VALUES(233, 148, '管理员', 'Y0013401', '5t6QUpK/gc29b2R83PGu/dMBr8qUIkRWpG9dhS85SnI=', 0, 1, NOW(), 1, 0); | I136: INSERT INTO sys_role_user(id, sys_role_id, sys_user_id) VALUES(233, 6, 233);
A137: 6 | B137: 234 | C137: =机构!H150 -> 重庆市渝北区梦苗艾乐幼儿园 | D137: =机构!A150 -> 149 | E137: =机构!G150&RIGHT("000000"&机构!F150,5)&"01" -> Y0013501 | F137: 管理员 | G137: 5t6QUpK/gc29b2R83PGu/dMBr8qUIkRWpG9dhS85SnI= | H137: INSERT INTO sys_user(id, sys_org_id, `name`, account, password, is_activated, create_sys_user_id, create_time, status, is_deleted) VALUES(234, 149, '管理员', 'Y0013501', '5t6QUpK/gc29b2R83PGu/dMBr8qUIkRWpG9dhS85SnI=', 0, 1, NOW(), 1, 0); | I137: INSERT INTO sys_role_user(id, sys_role_id, sys_user_id) VALUES(234, 6, 234);
A138: 6 | B138: 235 | C138: =机构!H151 -> 重庆市渝北区南方玫瑰城康城幼儿园 | D138: =机构!A151 -> 150 | E138: =机构!G151&RIGHT("000000"&机构!F151,5)&"01" -> Y0013601 | F138: 管理员 | G138: 5t6QUpK/gc29b2R83PGu/dMBr8qUIkRWpG9dhS85SnI= | H138: INSERT INTO sys_user(id, sys_org_id, `name`, account, password, is_activated, create_sys_user_id, create_time, status, is_deleted) VALUES(235, 150, '管理员', 'Y0013601', '5t6QUpK/gc29b2R83PGu/dMBr8qUIkRWpG9dhS85SnI=', 0, 1, NOW(), 1, 0); | I138: INSERT INTO sys_role_user(id, sys_role_id, sys_user_id) VALUES(235, 6, 235);
A139: 6 | B139: 236 | C139: =机构!H152 -> 重庆市渝北区回兴华华幼儿园 | D139: =机构!A152 -> 151 | E139: =机构!G152&RIGHT("000000"&机构!F152,5)&"01" -> Y0013701 | F139: 管理员 | G139: 5t6QUpK/gc29b2R83PGu/dMBr8qUIkRWpG9dhS85SnI= | H139: INSERT INTO sys_user(id, sys_org_id, `name`, account, password, is_activated, create_sys_user_id, create_time, status, is_deleted) VALUES(236, 151, '管理员', 'Y0013701', '5t6QUpK/gc29b2R83PGu/dMBr8qUIkRWpG9dhS85SnI=', 0, 1, NOW(), 1, 0); | I139: INSERT INTO sys_role_user(id, sys_role_id, sys_user_id) VALUES(236, 6, 236);
A140: 6 | B140: 237 | C140: =机构!H153 -> 重庆市渝北区回兴六一幼儿园 | D140: =机构!A153 -> 152 | E140: =机构!G153&RIGHT("000000"&机构!F153,5)&"01" -> Y0013801 | F140: 管理员 | G140: 5t6QUpK/gc29b2R83PGu/dMBr8qUIkRWpG9dhS85SnI= | H140: INSERT INTO sys_user(id, sys_org_id, `name`, account, password, is_activated, create_sys_user_id, create_time, status, is_deleted) VALUES(237, 152, '管理员', 'Y0013801', '5t6QUpK/gc29b2R83PGu/dMBr8qUIkRWpG9dhS85SnI=', 0, 1, NOW(), 1, 0); | I140: INSERT INTO sys_role_user(id, sys_role_id, sys_user_id) VALUES(237, 6, 237);
A141: 6 | B141: 238 | C141: =机构!H154 -> 重庆市渝北区回兴奇缘名居幼儿园 | D141: =机构!A154 -> 153 | E141: =机构!G154&RIGHT("000000"&机构!F154,5)&"01" -> Y0013901 | F141: 管理员 | G141: 5t6QUpK/gc29b2R83PGu/dMBr8qUIkRWpG9dhS85SnI= | H141: INSERT INTO sys_user(id, sys_org_id, `name`, account, password, is_activated, create_sys_user_id, create_time, status, is_deleted) VALUES(238, 153, '管理员', 'Y0013901', '5t6QUpK/gc29b2R83PGu/dMBr8qUIkRWpG9dhS85SnI=', 0, 1, NOW(), 1, 0); | I141: INSERT INTO sys_role_user(id, sys_role_id, sys_user_id) VALUES(238, 6, 238);
A142: 6 | B142: 239 | C142: =机构!H155 -> 重庆市渝北区回兴培培幼儿园 | D142: =机构!A155 -> 154 | E142: =机构!G155&RIGHT("000000"&机构!F155,5)&"01" -> Y0014001 | F142: 管理员 | G142: 5t6QUpK/gc29b2R83PGu/dMBr8qUIkRWpG9dhS85SnI= | H142: INSERT INTO sys_user(id, sys_org_id, `name`, account, password, is_activated, create_sys_user_id, create_time, status, is_deleted) VALUES(239, 154, '管理员', 'Y0014001', '5t6QUpK/gc29b2R83PGu/dMBr8qUIkRWpG9dhS85SnI=', 0, 1, NOW(), 1, 0); | I142: INSERT INTO sys_role_user(id, sys_role_id, sys_user_id) VALUES(239, 6, 239);
A143: 6 | B143: 240 | C143: =机构!H156 -> 重庆市渝北区回兴宝圣东路幼儿园 | D143: =机构!A156 -> 155 | E143: =机构!G156&RIGHT("000000"&机构!F156,5)&"01" -> Y0014101 | F143: 管理员 | G143: 5t6QUpK/gc29b2R83PGu/dMBr8qUIkRWpG9dhS85SnI= | H143: INSERT INTO sys_user(id, sys_org_id, `name`, account, password, is_activated, create_sys_user_id, create_time, status, is_deleted) VALUES(240, 155, '管理员', 'Y0014101', '5t6QUpK/gc29b2R83PGu/dMBr8qUIkRWpG9dhS85SnI=', 0, 1, NOW(), 1, 0); | I143: INSERT INTO sys_role_user(id, sys_role_id, sys_user_id) VALUES(240, 6, 240);
A144: 6 | B144: 241 | C144: =机构!H157 -> 重庆市渝北区迪乐宝贝幼儿园 | D144: =机构!A157 -> 156 | E144: =机构!G157&RIGHT("000000"&机构!F157,5)&"01" -> Y0014201 | F144: 管理员 | G144: 5t6QUpK/gc29b2R83PGu/dMBr8qUIkRWpG9dhS85SnI= | H144: INSERT INTO sys_user(id, sys_org_id, `name`, account, password, is_activated, create_sys_user_id, create_time, status, is_deleted) VALUES(241, 156, '管理员', 'Y0014201', '5t6QUpK/gc29b2R83PGu/dMBr8qUIkRWpG9dhS85SnI=', 0, 1, NOW(), 1, 0); | I144: INSERT INTO sys_role_user(id, sys_role_id, sys_user_id) VALUES(241, 6, 241);
A145: 6 | B145: 242 | C145: =机构!H158 -> 重庆市渝北区励贝玫瑰城幼儿园 | D145: =机构!A158 -> 157 | E145: =机构!G158&RIGHT("000000"&机构!F158,5)&"01" -> Y0014301 | F145: 管理员 | G145: 5t6QUpK/gc29b2R83PGu/dMBr8qUIkRWpG9dhS85SnI= | H145: INSERT INTO sys_user(id, sys_org_id, `name`, account, password, is_activated, create_sys_user_id, create_time, status, is_deleted) VALUES(242, 157, '管理员', 'Y0014301', '5t6QUpK/gc29b2R83PGu/dMBr8qUIkRWpG9dhS85SnI=', 0, 1, NOW(), 1, 0); | I145: INSERT INTO sys_role_user(id, sys_role_id, sys_user_id) VALUES(242, 6, 242);
A146: 6 | B146: 243 | C146: =机构!H159 -> 重庆市渝北区金辰环山幼儿园 | D146: =机构!A159 -> 158 | E146: =机构!G159&RIGHT("000000"&机构!F159,5)&"01" -> Y0014401 | F146: 管理员 | G146: 5t6QUpK/gc29b2R83PGu/dMBr8qUIkRWpG9dhS85SnI= | H146: INSERT INTO sys_user(id, sys_org_id, `name`, account, password, is_activated, create_sys_user_id, create_time, status, is_deleted) VALUES(243, 158, '管理员', 'Y0014401', '5t6QUpK/gc29b2R83PGu/dMBr8qUIkRWpG9dhS85SnI=', 0, 1, NOW(), 1, 0); | I146: INSERT INTO sys_role_user(id, sys_role_id, sys_user_id) VALUES(243, 6, 243);
A147: 6 | B147: 244 | C147: =机构!H160 -> 重庆市渝北区南方英华玫瑰城幼儿园 | D147: =机构!A160 -> 159 | E147: =机构!G160&RIGHT("000000"&机构!F160,5)&"01" -> Y0014501 | F147: 管理员 | G147: 5t6QUpK/gc29b2R83PGu/dMBr8qUIkRWpG9dhS85SnI= | H147: INSERT INTO sys_user(id, sys_org_id, `name`, account, password, is_activated, create_sys_user_id, create_time, status, is_deleted) VALUES(244, 159, '管理员', 'Y0014501', '5t6QUpK/gc29b2R83PGu/dMBr8qUIkRWpG9dhS85SnI=', 0, 1, NOW(), 1, 0); | I147: INSERT INTO sys_role_user(id, sys_role_id, sys_user_id) VALUES(244, 6, 244);
A148: 6 | B148: 245 | C148: =机构!H161 -> 重庆市渝北区智慧树幼儿园 | D148: =机构!A161 -> 160 | E148: =机构!G161&RIGHT("000000"&机构!F161,5)&"01" -> Y0014601 | F148: 管理员 | G148: 5t6QUpK/gc29b2R83PGu/dMBr8qUIkRWpG9dhS85SnI= | H148: INSERT INTO sys_user(id, sys_org_id, `name`, account, password, is_activated, create_sys_user_id, create_time, status, is_deleted) VALUES(245, 160, '管理员', 'Y0014601', '5t6QUpK/gc29b2R83PGu/dMBr8qUIkRWpG9dhS85SnI=', 0, 1, NOW(), 1, 0); | I148: INSERT INTO sys_role_user(id, sys_role_id, sys_user_id) VALUES(245, 6, 245);
A149: 6 | B149: 246 | C149: =机构!H162 -> 重庆市渝北区吉的堡新里城幼儿园 | D149: =机构!A162 -> 161 | E149: =机构!G162&RIGHT("000000"&机构!F162,5)&"01" -> Y0014701 | F149: 管理员 | G149: 5t6QUpK/gc29b2R83PGu/dMBr8qUIkRWpG9dhS85SnI= | H149: INSERT INTO sys_user(id, sys_org_id, `name`, account, password, is_activated, create_sys_user_id, create_time, status, is_deleted) VALUES(246, 161, '管理员', 'Y0014701', '5t6QUpK/gc29b2R83PGu/dMBr8qUIkRWpG9dhS85SnI=', 0, 1, NOW(), 1, 0); | I149: INSERT INTO sys_role_user(id, sys_role_id, sys_user_id) VALUES(246, 6, 246);
A150: 6 | B150: 247 | C150: =机构!H163 -> 重庆市渝北区金香林幼儿园 | D150: =机构!A163 -> 162 | E150: =机构!G163&RIGHT("000000"&机构!F163,5)&"01" -> Y0014801 | F150: 管理员 | G150: 5t6QUpK/gc29b2R83PGu/dMBr8qUIkRWpG9dhS85SnI= | H150: INSERT INTO sys_user(id, sys_org_id, `name`, account, password, is_activated, create_sys_user_id, create_time, status, is_deleted) VALUES(247, 162, '管理员', 'Y0014801', '5t6QUpK/gc29b2R83PGu/dMBr8qUIkRWpG9dhS85SnI=', 0, 1, NOW(), 1, 0); | I150: INSERT INTO sys_role_user(id, sys_role_id, sys_user_id) VALUES(247, 6, 247);
A151: 6 | B151: 248 | C151: =机构!H164 -> 重庆市渝北区康兴幼儿园 | D151: =机构!A164 -> 163 | E151: =机构!G164&RIGHT("000000"&机构!F164,5)&"01" -> Y0014901 | F151: 管理员 | G151: 5t6QUpK/gc29b2R83PGu/dMBr8qUIkRWpG9dhS85SnI= | H151: INSERT INTO sys_user(id, sys_org_id, `name`, account, password, is_activated, create_sys_user_id, create_time, status, is_deleted) VALUES(248, 163, '管理员', 'Y0014901', '5t6QUpK/gc29b2R83PGu/dMBr8qUIkRWpG9dhS85SnI=', 0, 1, NOW(), 1, 0); | I151: INSERT INTO sys_role_user(id, sys_role_id, sys_user_id) VALUES(248, 6, 248);
A152: 6 | B152: 249 | C152: =机构!H165 -> 重庆市渝北区同航幼儿园 | D152: =机构!A165 -> 164 | E152: =机构!G165&RIGHT("000000"&机构!F165,5)&"01" -> Y0015001 | F152: 管理员 | G152: 5t6QUpK/gc29b2R83PGu/dMBr8qUIkRWpG9dhS85SnI= | H152: INSERT INTO sys_user(id, sys_org_id, `name`, account, password, is_activated, create_sys_user_id, create_time, status, is_deleted) VALUES(249, 164, '管理员', 'Y0015001', '5t6QUpK/gc29b2R83PGu/dMBr8qUIkRWpG9dhS85SnI=', 0, 1, NOW(), 1, 0); | I152: INSERT INTO sys_role_user(id, sys_role_id, sys_user_id) VALUES(249, 6, 249);
A153: 6 | B153: 250 | C153: =机构!H166 -> 重庆市渝北区鸿府贝迪幼儿园 | D153: =机构!A166 -> 165 | E153: =机构!G166&RIGHT("000000"&机构!F166,5)&"01" -> Y0015101 | F153: 管理员 | G153: 5t6QUpK/gc29b2R83PGu/dMBr8qUIkRWpG9dhS85SnI= | H153: INSERT INTO sys_user(id, sys_org_id, `name`, account, password, is_activated, create_sys_user_id, create_time, status, is_deleted) VALUES(250, 165, '管理员', 'Y0015101', '5t6QUpK/gc29b2R83PGu/dMBr8qUIkRWpG9dhS85SnI=', 0, 1, NOW(), 1, 0); | I153: INSERT INTO sys_role_user(id, sys_role_id, sys_user_id) VALUES(250, 6, 250);
A154: 6 | B154: 251 | C154: =机构!H167 -> 重庆市渝北区宝圣湖幼儿园 | D154: =机构!A167 -> 166 | E154: =机构!G167&RIGHT("000000"&机构!F167,5)&"01" -> Y0015201 | F154: 管理员 | G154: 5t6QUpK/gc29b2R83PGu/dMBr8qUIkRWpG9dhS85SnI= | H154: INSERT INTO sys_user(id, sys_org_id, `name`, account, password, is_activated, create_sys_user_id, create_time, status, is_deleted) VALUES(251, 166, '管理员', 'Y0015201', '5t6QUpK/gc29b2R83PGu/dMBr8qUIkRWpG9dhS85SnI=', 0, 1, NOW(), 1, 0); | I154: INSERT INTO sys_role_user(id, sys_role_id, sys_user_id) VALUES(251, 6, 251);
A155: 6 | B155: 252 | C155: =机构!H168 -> 重庆市渝北区宝圣湖幼儿园宏苑园 | D155: =机构!A168 -> 167 | E155: =机构!G168&RIGHT("000000"&机构!F168,5)&"01" -> Y0015301 | F155: 管理员 | G155: 5t6QUpK/gc29b2R83PGu/dMBr8qUIkRWpG9dhS85SnI= | H155: INSERT INTO sys_user(id, sys_org_id, `name`, account, password, is_activated, create_sys_user_id, create_time, status, is_deleted) VALUES(252, 167, '管理员', 'Y0015301', '5t6QUpK/gc29b2R83PGu/dMBr8qUIkRWpG9dhS85SnI=', 0, 1, NOW(), 1, 0); | I155: INSERT INTO sys_role_user(id, sys_role_id, sys_user_id) VALUES(252, 6, 252);
A156: 6 | B156: 253 | C156: =机构!H169 -> 重庆市渝北区宝圣湖幼儿园翠屏园 | D156: =机构!A169 -> 168 | E156: =机构!G169&RIGHT("000000"&机构!F169,5)&"01" -> Y0015401 | F156: 管理员 | G156: 5t6QUpK/gc29b2R83PGu/dMBr8qUIkRWpG9dhS85SnI= | H156: INSERT INTO sys_user(id, sys_org_id, `name`, account, password, is_activated, create_sys_user_id, create_time, status, is_deleted) VALUES(253, 168, '管理员', 'Y0015401', '5t6QUpK/gc29b2R83PGu/dMBr8qUIkRWpG9dhS85SnI=', 0, 1, NOW(), 1, 0); | I156: INSERT INTO sys_role_user(id, sys_role_id, sys_user_id) VALUES(253, 6, 253);
A157: 6 | B157: 254 | C157: =机构!H170 -> 重庆市渝北区西政幼儿园 | D157: =机构!A170 -> 169 | E157: =机构!G170&RIGHT("000000"&机构!F170,5)&"01" -> Y0015501 | F157: 管理员 | G157: 5t6QUpK/gc29b2R83PGu/dMBr8qUIkRWpG9dhS85SnI= | H157: INSERT INTO sys_user(id, sys_org_id, `name`, account, password, is_activated, create_sys_user_id, create_time, status, is_deleted) VALUES(254, 169, '管理员', 'Y0015501', '5t6QUpK/gc29b2R83PGu/dMBr8qUIkRWpG9dhS85SnI=', 0, 1, NOW(), 1, 0); | I157: INSERT INTO sys_role_user(id, sys_role_id, sys_user_id) VALUES(254, 6, 254);
A158: 6 | B158: 255 | C158: =机构!H171 -> 重庆市渝北区第三实验小学校附属幼儿园 | D158: =机构!A171 -> 170 | E158: =机构!G171&RIGHT("000000"&机构!F171,5)&"01" -> Y0015601 | F158: 管理员 | G158: 5t6QUpK/gc29b2R83PGu/dMBr8qUIkRWpG9dhS85SnI= | H158: INSERT INTO sys_user(id, sys_org_id, `name`, account, password, is_activated, create_sys_user_id, create_time, status, is_deleted) VALUES(255, 170, '管理员', 'Y0015601', '5t6QUpK/gc29b2R83PGu/dMBr8qUIkRWpG9dhS85SnI=', 0, 1, NOW(), 1, 0); | I158: INSERT INTO sys_role_user(id, sys_role_id, sys_user_id) VALUES(255, 6, 255);
A159: 6 | B159: 256 | C159: =机构!H172 -> 重庆市渝北区宝圣湖小学附属幼儿园 | D159: =机构!A172 -> 171 | E159: =机构!G172&RIGHT("000000"&机构!F172,5)&"01" -> Y0015701 | F159: 管理员 | G159: 5t6QUpK/gc29b2R83PGu/dMBr8qUIkRWpG9dhS85SnI= | H159: INSERT INTO sys_user(id, sys_org_id, `name`, account, password, is_activated, create_sys_user_id, create_time, status, is_deleted) VALUES(256, 171, '管理员', 'Y0015701', '5t6QUpK/gc29b2R83PGu/dMBr8qUIkRWpG9dhS85SnI=', 0, 1, NOW(), 1, 0); | I159: INSERT INTO sys_role_user(id, sys_role_id, sys_user_id) VALUES(256, 6, 256);
A160: 6 | B160: 257 | C160: =机构!H173 -> 重庆市渝北区在水一方大地幼儿园 | D160: =机构!A173 -> 172 | E160: =机构!G173&RIGHT("000000"&机构!F173,5)&"01" -> Y0015801 | F160: 管理员 | G160: 5t6QUpK/gc29b2R83PGu/dMBr8qUIkRWpG9dhS85SnI= | H160: INSERT INTO sys_user(id, sys_org_id, `name`, account, password, is_activated, create_sys_user_id, create_time, status, is_deleted) VALUES(257, 172, '管理员', 'Y0015801', '5t6QUpK/gc29b2R83PGu/dMBr8qUIkRWpG9dhS85SnI=', 0, 1, NOW(), 1, 0); | I160: INSERT INTO sys_role_user(id, sys_role_id, sys_user_id) VALUES(257, 6, 257);
A161: 6 | B161: 258 | C161: =机构!H174 -> 重庆市渝北区青河世家华都幼儿园 | D161: =机构!A174 -> 173 | E161: =机构!G174&RIGHT("000000"&机构!F174,5)&"01" -> Y0015901 | F161: 管理员 | G161: 5t6QUpK/gc29b2R83PGu/dMBr8qUIkRWpG9dhS85SnI= | H161: INSERT INTO sys_user(id, sys_org_id, `name`, account, password, is_activated, create_sys_user_id, create_time, status, is_deleted) VALUES(258, 173, '管理员', 'Y0015901', '5t6QUpK/gc29b2R83PGu/dMBr8qUIkRWpG9dhS85SnI=', 0, 1, NOW(), 1, 0); | I161: INSERT INTO sys_role_user(id, sys_role_id, sys_user_id) VALUES(258, 6, 258);
A162: 6 | B162: 259 | C162: =机构!H175 -> 重庆市渝北区朗润三色幼儿园 | D162: =机构!A175 -> 174 | E162: =机构!G175&RIGHT("000000"&机构!F175,5)&"01" -> Y0016001 | F162: 管理员 | G162: 5t6QUpK/gc29b2R83PGu/dMBr8qUIkRWpG9dhS85SnI= | H162: INSERT INTO sys_user(id, sys_org_id, `name`, account, password, is_activated, create_sys_user_id, create_time, status, is_deleted) VALUES(259, 174, '管理员', 'Y0016001', '5t6QUpK/gc29b2R83PGu/dMBr8qUIkRWpG9dhS85SnI=', 0, 1, NOW(), 1, 0); | I162: INSERT INTO sys_role_user(id, sys_role_id, sys_user_id) VALUES(259, 6, 259);
A163: 6 | B163: 260 | C163: =机构!H176 -> 重庆市渝北区回兴小太阳幼儿园 | D163: =机构!A176 -> 175 | E163: =机构!G176&RIGHT("000000"&机构!F176,5)&"01" -> Y0016101 | F163: 管理员 | G163: 5t6QUpK/gc29b2R83PGu/dMBr8qUIkRWpG9dhS85SnI= | H163: INSERT INTO sys_user(id, sys_org_id, `name`, account, password, is_activated, create_sys_user_id, create_time, status, is_deleted) VALUES(260, 175, '管理员', 'Y0016101', '5t6QUpK/gc29b2R83PGu/dMBr8qUIkRWpG9dhS85SnI=', 0, 1, NOW(), 1, 0); | I163: INSERT INTO sys_role_user(id, sys_role_id, sys_user_id) VALUES(260, 6, 260);
A164: 6 | B164: 261 | C164: =机构!H177 -> 重庆市渝北区兴阳两江时光幼儿园 | D164: =机构!A177 -> 176 | E164: =机构!G177&RIGHT("000000"&机构!F177,5)&"01" -> Y0016201 | F164: 管理员 | G164: 5t6QUpK/gc29b2R83PGu/dMBr8qUIkRWpG9dhS85SnI= | H164: INSERT INTO sys_user(id, sys_org_id, `name`, account, password, is_activated, create_sys_user_id, create_time, status, is_deleted) VALUES(261, 176, '管理员', 'Y0016201', '5t6QUpK/gc29b2R83PGu/dMBr8qUIkRWpG9dhS85SnI=', 0, 1, NOW(), 1, 0); | I164: INSERT INTO sys_role_user(id, sys_role_id, sys_user_id) VALUES(261, 6, 261);
A165: 6 | B165: 262 | C165: =机构!H178 -> 重庆市渝北区宝圣湖艺佳谊幼儿园 | D165: =机构!A178 -> 177 | E165: =机构!G178&RIGHT("000000"&机构!F178,5)&"01" -> Y0016301 | F165: 管理员 | G165: 5t6QUpK/gc29b2R83PGu/dMBr8qUIkRWpG9dhS85SnI= | H165: INSERT INTO sys_user(id, sys_org_id, `name`, account, password, is_activated, create_sys_user_id, create_time, status, is_deleted) VALUES(262, 177, '管理员', 'Y0016301', '5t6QUpK/gc29b2R83PGu/dMBr8qUIkRWpG9dhS85SnI=', 0, 1, NOW(), 1, 0); | I165: INSERT INTO sys_role_user(id, sys_role_id, sys_user_id) VALUES(262, 6, 262);
A166: 6 | B166: 263 | C166: =机构!H179 -> 重庆市渝北区未来宝贝幼儿园 | D166: =机构!A179 -> 178 | E166: =机构!G179&RIGHT("000000"&机构!F179,5)&"01" -> Y0016401 | F166: 管理员 | G166: 5t6QUpK/gc29b2R83PGu/dMBr8qUIkRWpG9dhS85SnI= | H166: INSERT INTO sys_user(id, sys_org_id, `name`, account, password, is_activated, create_sys_user_id, create_time, status, is_deleted) VALUES(263, 178, '管理员', 'Y0016401', '5t6QUpK/gc29b2R83PGu/dMBr8qUIkRWpG9dhS85SnI=', 0, 1, NOW(), 1, 0); | I166: INSERT INTO sys_role_user(id, sys_role_id, sys_user_id) VALUES(263, 6, 263);
A167: 6 | B167: 264 | C167: =机构!H180 -> 重庆市渝北区三和幼儿园 | D167: =机构!A180 -> 179 | E167: =机构!G180&RIGHT("000000"&机构!F180,5)&"01" -> Y0016501 | F167: 管理员 | G167: 5t6QUpK/gc29b2R83PGu/dMBr8qUIkRWpG9dhS85SnI= | H167: INSERT INTO sys_user(id, sys_org_id, `name`, account, password, is_activated, create_sys_user_id, create_time, status, is_deleted) VALUES(264, 179, '管理员', 'Y0016501', '5t6QUpK/gc29b2R83PGu/dMBr8qUIkRWpG9dhS85SnI=', 0, 1, NOW(), 1, 0); | I167: INSERT INTO sys_role_user(id, sys_role_id, sys_user_id) VALUES(264, 6, 264);
A168: 6 | B168: 265 | C168: =机构!H181 -> 重庆市渝北区回兴圣湖天域阳光幼儿园 | D168: =机构!A181 -> 180 | E168: =机构!G181&RIGHT("000000"&机构!F181,5)&"01" -> Y0016601 | F168: 管理员 | G168: 5t6QUpK/gc29b2R83PGu/dMBr8qUIkRWpG9dhS85SnI= | H168: INSERT INTO sys_user(id, sys_org_id, `name`, account, password, is_activated, create_sys_user_id, create_time, status, is_deleted) VALUES(265, 180, '管理员', 'Y0016601', '5t6QUpK/gc29b2R83PGu/dMBr8qUIkRWpG9dhS85SnI=', 0, 1, NOW(), 1, 0); | I168: INSERT INTO sys_role_user(id, sys_role_id, sys_user_id) VALUES(265, 6, 265);
A169: 6 | B169: 266 | C169: =机构!H182 -> 重庆市渝北区鑫城名都幼儿园 | D169: =机构!A182 -> 181 | E169: =机构!G182&RIGHT("000000"&机构!F182,5)&"01" -> Y0016701 | F169: 管理员 | G169: 5t6QUpK/gc29b2R83PGu/dMBr8qUIkRWpG9dhS85SnI= | H169: INSERT INTO sys_user(id, sys_org_id, `name`, account, password, is_activated, create_sys_user_id, create_time, status, is_deleted) VALUES(266, 181, '管理员', 'Y0016701', '5t6QUpK/gc29b2R83PGu/dMBr8qUIkRWpG9dhS85SnI=', 0, 1, NOW(), 1, 0); | I169: INSERT INTO sys_role_user(id, sys_role_id, sys_user_id) VALUES(266, 6, 266);
A170: 6 | B170: 267 | C170: =机构!H183 -> 重庆市渝北区鸿府幼儿园 | D170: =机构!A183 -> 182 | E170: =机构!G183&RIGHT("000000"&机构!F183,5)&"01" -> Y0016801 | F170: 管理员 | G170: 5t6QUpK/gc29b2R83PGu/dMBr8qUIkRWpG9dhS85SnI= | H170: INSERT INTO sys_user(id, sys_org_id, `name`, account, password, is_activated, create_sys_user_id, create_time, status, is_deleted) VALUES(267, 182, '管理员', 'Y0016801', '5t6QUpK/gc29b2R83PGu/dMBr8qUIkRWpG9dhS85SnI=', 0, 1, NOW(), 1, 0); | I170: INSERT INTO sys_role_user(id, sys_role_id, sys_user_id) VALUES(267, 6, 267);
A171: 6 | B171: 268 | C171: =机构!H184 -> 重庆市渝北区悠彩郡阳光幼儿园 | D171: =机构!A184 -> 183 | E171: =机构!G184&RIGHT("000000"&机构!F184,5)&"01" -> Y0016901 | F171: 管理员 | G171: 5t6QUpK/gc29b2R83PGu/dMBr8qUIkRWpG9dhS85SnI= | H171: INSERT INTO sys_user(id, sys_org_id, `name`, account, password, is_activated, create_sys_user_id, create_time, status, is_deleted) VALUES(268, 183, '管理员', 'Y0016901', '5t6QUpK/gc29b2R83PGu/dMBr8qUIkRWpG9dhS85SnI=', 0, 1, NOW(), 1, 0); | I171: INSERT INTO sys_role_user(id, sys_role_id, sys_user_id) VALUES(268, 6, 268);
A172: 6 | B172: 269 | C172: =机构!H185 -> 重庆市渝北区蓝宝特幼儿园 | D172: =机构!A185 -> 184 | E172: =机构!G185&RIGHT("000000"&机构!F185,5)&"01" -> Y0017001 | F172: 管理员 | G172: 5t6QUpK/gc29b2R83PGu/dMBr8qUIkRWpG9dhS85SnI= | H172: INSERT INTO sys_user(id, sys_org_id, `name`, account, password, is_activated, create_sys_user_id, create_time, status, is_deleted) VALUES(269, 184, '管理员', 'Y0017001', '5t6QUpK/gc29b2R83PGu/dMBr8qUIkRWpG9dhS85SnI=', 0, 1, NOW(), 1, 0); | I172: INSERT INTO sys_role_user(id, sys_role_id, sys_user_id) VALUES(269, 6, 269);
A173: 6 | B173: 270 | C173: =机构!H186 -> 重庆市渝北区回兴朗天幼儿园 | D173: =机构!A186 -> 185 | E173: =机构!G186&RIGHT("000000"&机构!F186,5)&"01" -> Y0017101 | F173: 管理员 | G173: 5t6QUpK/gc29b2R83PGu/dMBr8qUIkRWpG9dhS85SnI= | H173: INSERT INTO sys_user(id, sys_org_id, `name`, account, password, is_activated, create_sys_user_id, create_time, status, is_deleted) VALUES(270, 185, '管理员', 'Y0017101', '5t6QUpK/gc29b2R83PGu/dMBr8qUIkRWpG9dhS85SnI=', 0, 1, NOW(), 1, 0); | I173: INSERT INTO sys_role_user(id, sys_role_id, sys_user_id) VALUES(270, 6, 270);
A174: 6 | B174: 271 | C174: =机构!H187 -> 重庆市渝北区宝圣西路幼儿园 | D174: =机构!A187 -> 186 | E174: =机构!G187&RIGHT("000000"&机构!F187,5)&"01" -> Y0017201 | F174: 管理员 | G174: 5t6QUpK/gc29b2R83PGu/dMBr8qUIkRWpG9dhS85SnI= | H174: INSERT INTO sys_user(id, sys_org_id, `name`, account, password, is_activated, create_sys_user_id, create_time, status, is_deleted) VALUES(271, 186, '管理员', 'Y0017201', '5t6QUpK/gc29b2R83PGu/dMBr8qUIkRWpG9dhS85SnI=', 0, 1, NOW(), 1, 0); | I174: INSERT INTO sys_role_user(id, sys_role_id, sys_user_id) VALUES(271, 6, 271);
A175: 6 | B175: 272 | C175: =机构!H188 -> 重庆市渝北区回兴海德幼儿园 | D175: =机构!A188 -> 187 | E175: =机构!G188&RIGHT("000000"&机构!F188,5)&"01" -> Y0017301 | F175: 管理员 | G175: 5t6QUpK/gc29b2R83PGu/dMBr8qUIkRWpG9dhS85SnI= | H175: INSERT INTO sys_user(id, sys_org_id, `name`, account, password, is_activated, create_sys_user_id, create_time, status, is_deleted) VALUES(272, 187, '管理员', 'Y0017301', '5t6QUpK/gc29b2R83PGu/dMBr8qUIkRWpG9dhS85SnI=', 0, 1, NOW(), 1, 0); | I175: INSERT INTO sys_role_user(id, sys_role_id, sys_user_id) VALUES(272, 6, 272);
A176: 6 | B176: 273 | C176: =机构!H189 -> 重庆市渝北区回兴童星幼儿园 | D176: =机构!A189 -> 188 | E176: =机构!G189&RIGHT("000000"&机构!F189,5)&"01" -> Y0017401 | F176: 管理员 | G176: 5t6QUpK/gc29b2R83PGu/dMBr8qUIkRWpG9dhS85SnI= | H176: INSERT INTO sys_user(id, sys_org_id, `name`, account, password, is_activated, create_sys_user_id, create_time, status, is_deleted) VALUES(273, 188, '管理员', 'Y0017401', '5t6QUpK/gc29b2R83PGu/dMBr8qUIkRWpG9dhS85SnI=', 0, 1, NOW(), 1, 0); | I176: INSERT INTO sys_role_user(id, sys_role_id, sys_user_id) VALUES(273, 6, 273);
A177: 6 | B177: 274 | C177: =机构!H190 -> 重庆市渝北区回兴明菁幼儿园 | D177: =机构!A190 -> 189 | E177: =机构!G190&RIGHT("000000"&机构!F190,5)&"01" -> Y0017501 | F177: 管理员 | G177: 5t6QUpK/gc29b2R83PGu/dMBr8qUIkRWpG9dhS85SnI= | H177: INSERT INTO sys_user(id, sys_org_id, `name`, account, password, is_activated, create_sys_user_id, create_time, status, is_deleted) VALUES(274, 189, '管理员', 'Y0017501', '5t6QUpK/gc29b2R83PGu/dMBr8qUIkRWpG9dhS85SnI=', 0, 1, NOW(), 1, 0); | I177: INSERT INTO sys_role_user(id, sys_role_id, sys_user_id) VALUES(274, 6, 274);
A178: 6 | B178: 275 | C178: =机构!H191 -> 重庆市渝北区回兴蓝精灵幼儿园 | D178: =机构!A191 -> 190 | E178: =机构!G191&RIGHT("000000"&机构!F191,5)&"01" -> Y0017601 | F178: 管理员 | G178: 5t6QUpK/gc29b2R83PGu/dMBr8qUIkRWpG9dhS85SnI= | H178: INSERT INTO sys_user(id, sys_org_id, `name`, account, password, is_activated, create_sys_user_id, create_time, status, is_deleted) VALUES(275, 190, '管理员', 'Y0017601', '5t6QUpK/gc29b2R83PGu/dMBr8qUIkRWpG9dhS85SnI=', 0, 1, NOW(), 1, 0); | I178: INSERT INTO sys_role_user(id, sys_role_id, sys_user_id) VALUES(275, 6, 275);
A179: 6 | B179: 276 | C179: =机构!H192 -> 重庆市渝北区回兴未来之星幼儿园 | D179: =机构!A192 -> 191 | E179: =机构!G192&RIGHT("000000"&机构!F192,5)&"01" -> Y0017701 | F179: 管理员 | G179: 5t6QUpK/gc29b2R83PGu/dMBr8qUIkRWpG9dhS85SnI= | H179: INSERT INTO sys_user(id, sys_org_id, `name`, account, password, is_activated, create_sys_user_id, create_time, status, is_deleted) VALUES(276, 191, '管理员', 'Y0017701', '5t6QUpK/gc29b2R83PGu/dMBr8qUIkRWpG9dhS85SnI=', 0, 1, NOW(), 1, 0); | I179: INSERT INTO sys_role_user(id, sys_role_id, sys_user_id) VALUES(276, 6, 276);
A180: 6 | B180: 277 | C180: =机构!H193 -> 重庆市渝北区两江慧谷童之乐幼儿园 | D180: =机构!A193 -> 192 | E180: =机构!G193&RIGHT("000000"&机构!F193,5)&"01" -> Y0017801 | F180: 管理员 | G180: 5t6QUpK/gc29b2R83PGu/dMBr8qUIkRWpG9dhS85SnI= | H180: INSERT INTO sys_user(id, sys_org_id, `name`, account, password, is_activated, create_sys_user_id, create_time, status, is_deleted) VALUES(277, 192, '管理员', 'Y0017801', '5t6QUpK/gc29b2R83PGu/dMBr8qUIkRWpG9dhS85SnI=', 0, 1, NOW(), 1, 0); | I180: INSERT INTO sys_role_user(id, sys_role_id, sys_user_id) VALUES(277, 6, 277);
A181: 6 | B181: 278 | C181: =机构!H194 -> 重庆市渝北区回兴蓝天幼儿园 | D181: =机构!A194 -> 193 | E181: =机构!G194&RIGHT("000000"&机构!F194,5)&"01" -> Y0017901 | F181: 管理员 | G181: 5t6QUpK/gc29b2R83PGu/dMBr8qUIkRWpG9dhS85SnI= | H181: INSERT INTO sys_user(id, sys_org_id, `name`, account, password, is_activated, create_sys_user_id, create_time, status, is_deleted) VALUES(278, 193, '管理员', 'Y0017901', '5t6QUpK/gc29b2R83PGu/dMBr8qUIkRWpG9dhS85SnI=', 0, 1, NOW(), 1, 0); | I181: INSERT INTO sys_role_user(id, sys_role_id, sys_user_id) VALUES(278, 6, 278);
A182: 6 | B182: 279 | C182: =机构!H195 -> 重庆市渝北区宝圣湖童之乐幼儿园 | D182: =机构!A195 -> 194 | E182: =机构!G195&RIGHT("000000"&机构!F195,5)&"01" -> Y0018001 | F182: 管理员 | G182: 5t6QUpK/gc29b2R83PGu/dMBr8qUIkRWpG9dhS85SnI= | H182: INSERT INTO sys_user(id, sys_org_id, `name`, account, password, is_activated, create_sys_user_id, create_time, status, is_deleted) VALUES(279, 194, '管理员', 'Y0018001', '5t6QUpK/gc29b2R83PGu/dMBr8qUIkRWpG9dhS85SnI=', 0, 1, NOW(), 1, 0); | I182: INSERT INTO sys_role_user(id, sys_role_id, sys_user_id) VALUES(279, 6, 279);
A183: 6 | B183: 280 | C183: =机构!H196 -> 重庆市渝北区金摇篮幼儿园 | D183: =机构!A196 -> 195 | E183: =机构!G196&RIGHT("000000"&机构!F196,5)&"01" -> Y0018101 | F183: 管理员 | G183: 5t6QUpK/gc29b2R83PGu/dMBr8qUIkRWpG9dhS85SnI= | H183: INSERT INTO sys_user(id, sys_org_id, `name`, account, password, is_activated, create_sys_user_id, create_time, status, is_deleted) VALUES(280, 195, '管理员', 'Y0018101', '5t6QUpK/gc29b2R83PGu/dMBr8qUIkRWpG9dhS85SnI=', 0, 1, NOW(), 1, 0); | I183: INSERT INTO sys_role_user(id, sys_role_id, sys_user_id) VALUES(280, 6, 280);
A184: 6 | B184: 281 | C184: =机构!H197 -> 重庆市渝北区童年本色幼儿园 | D184: =机构!A197 -> 196 | E184: =机构!G197&RIGHT("000000"&机构!F197,5)&"01" -> Y0018201 | F184: 管理员 | G184: 5t6QUpK/gc29b2R83PGu/dMBr8qUIkRWpG9dhS85SnI= | H184: INSERT INTO sys_user(id, sys_org_id, `name`, account, password, is_activated, create_sys_user_id, create_time, status, is_deleted) VALUES(281, 196, '管理员', 'Y0018201', '5t6QUpK/gc29b2R83PGu/dMBr8qUIkRWpG9dhS85SnI=', 0, 1, NOW(), 1, 0); | I184: INSERT INTO sys_role_user(id, sys_role_id, sys_user_id) VALUES(281, 6, 281);
A185: 6 | B185: 282 | C185: =机构!H198 -> 重庆市渝北区载英幼儿园 | D185: =机构!A198 -> 197 | E185: =机构!G198&RIGHT("000000"&机构!F198,5)&"01" -> Y0018301 | F185: 管理员 | G185: 5t6QUpK/gc29b2R83PGu/dMBr8qUIkRWpG9dhS85SnI= | H185: INSERT INTO sys_user(id, sys_org_id, `name`, account, password, is_activated, create_sys_user_id, create_time, status, is_deleted) VALUES(282, 197, '管理员', 'Y0018301', '5t6QUpK/gc29b2R83PGu/dMBr8qUIkRWpG9dhS85SnI=', 0, 1, NOW(), 1, 0); | I185: INSERT INTO sys_role_user(id, sys_role_id, sys_user_id) VALUES(282, 6, 282);
A186: 6 | B186: 283 | C186: =机构!H199 -> 重庆市渝北区两江实验幼儿园 | D186: =机构!A199 -> 198 | E186: =机构!G199&RIGHT("000000"&机构!F199,5)&"01" -> Y0018401 | F186: 管理员 | G186: 5t6QUpK/gc29b2R83PGu/dMBr8qUIkRWpG9dhS85SnI= | H186: INSERT INTO sys_user(id, sys_org_id, `name`, account, password, is_activated, create_sys_user_id, create_time, status, is_deleted) VALUES(283, 198, '管理员', 'Y0018401', '5t6QUpK/gc29b2R83PGu/dMBr8qUIkRWpG9dhS85SnI=', 0, 1, NOW(), 1, 0); | I186: INSERT INTO sys_role_user(id, sys_role_id, sys_user_id) VALUES(283, 6, 283);
A187: 6 | B187: 284 | C187: =机构!H200 -> 重庆市渝北区锦绣华城幼儿园 | D187: =机构!A200 -> 199 | E187: =机构!G200&RIGHT("000000"&机构!F200,5)&"01" -> Y0018501 | F187: 管理员 | G187: 5t6QUpK/gc29b2R83PGu/dMBr8qUIkRWpG9dhS85SnI= | H187: INSERT INTO sys_user(id, sys_org_id, `name`, account, password, is_activated, create_sys_user_id, create_time, status, is_deleted) VALUES(284, 199, '管理员', 'Y0018501', '5t6QUpK/gc29b2R83PGu/dMBr8qUIkRWpG9dhS85SnI=', 0, 1, NOW(), 1, 0); | I187: INSERT INTO sys_role_user(id, sys_role_id, sys_user_id) VALUES(284, 6, 284);
A188: 6 | B188: 285 | C188: =机构!H201 -> 重庆市渝北区博赞常青藤幼儿园 | D188: =机构!A201 -> 200 | E188: =机构!G201&RIGHT("000000"&机构!F201,5)&"01" -> Y0018601 | F188: 管理员 | G188: 5t6QUpK/gc29b2R83PGu/dMBr8qUIkRWpG9dhS85SnI= | H188: INSERT INTO sys_user(id, sys_org_id, `name`, account, password, is_activated, create_sys_user_id, create_time, status, is_deleted) VALUES(285, 200, '管理员', 'Y0018601', '5t6QUpK/gc29b2R83PGu/dMBr8qUIkRWpG9dhS85SnI=', 0, 1, NOW(), 1, 0); | I188: INSERT INTO sys_role_user(id, sys_role_id, sys_user_id) VALUES(285, 6, 285);
A189: 6 | B189: 286 | C189: =机构!H202 -> 重庆市渝北区枫桥水郡幼儿园 | D189: =机构!A202 -> 201 | E189: =机构!G202&RIGHT("000000"&机构!F202,5)&"01" -> Y0018701 | F189: 管理员 | G189: 5t6QUpK/gc29b2R83PGu/dMBr8qUIkRWpG9dhS85SnI= | H189: INSERT INTO sys_user(id, sys_org_id, `name`, account, password, is_activated, create_sys_user_id, create_time, status, is_deleted) VALUES(286, 201, '管理员', 'Y0018701', '5t6QUpK/gc29b2R83PGu/dMBr8qUIkRWpG9dhS85SnI=', 0, 1, NOW(), 1, 0); | I189: INSERT INTO sys_role_user(id, sys_role_id, sys_user_id) VALUES(286, 6, 286);
A190: 6 | B190: 287 | C190: =机构!H203 -> 重庆市渝北区启明星幼儿园 | D190: =机构!A203 -> 202 | E190: =机构!G203&RIGHT("000000"&机构!F203,5)&"01" -> Y0018801 | F190: 管理员 | G190: 5t6QUpK/gc29b2R83PGu/dMBr8qUIkRWpG9dhS85SnI= | H190: INSERT INTO sys_user(id, sys_org_id, `name`, account, password, is_activated, create_sys_user_id, create_time, status, is_deleted) VALUES(287, 202, '管理员', 'Y0018801', '5t6QUpK/gc29b2R83PGu/dMBr8qUIkRWpG9dhS85SnI=', 0, 1, NOW(), 1, 0); | I190: INSERT INTO sys_role_user(id, sys_role_id, sys_user_id) VALUES(287, 6, 287);
A191: 6 | B191: 288 | C191: =机构!H204 -> 重庆市渝北区孝英爱幼儿园有限公司 | D191: =机构!A204 -> 203 | E191: =机构!G204&RIGHT("000000"&机构!F204,5)&"01" -> Y0018901 | F191: 管理员 | G191: 5t6QUpK/gc29b2R83PGu/dMBr8qUIkRWpG9dhS85SnI= | H191: INSERT INTO sys_user(id, sys_org_id, `name`, account, password, is_activated, create_sys_user_id, create_time, status, is_deleted) VALUES(288, 203, '管理员', 'Y0018901', '5t6QUpK/gc29b2R83PGu/dMBr8qUIkRWpG9dhS85SnI=', 0, 1, NOW(), 1, 0); | I191: INSERT INTO sys_role_user(id, sys_role_id, sys_user_id) VALUES(288, 6, 288);
A192: 6 | B192: 289 | C192: =机构!H205 -> 重庆市渝北区英才坊幼儿园 | D192: =机构!A205 -> 204 | E192: =机构!G205&RIGHT("000000"&机构!F205,5)&"01" -> Y0019001 | F192: 管理员 | G192: 5t6QUpK/gc29b2R83PGu/dMBr8qUIkRWpG9dhS85SnI= | H192: INSERT INTO sys_user(id, sys_org_id, `name`, account, password, is_activated, create_sys_user_id, create_time, status, is_deleted) VALUES(289, 204, '管理员', 'Y0019001', '5t6QUpK/gc29b2R83PGu/dMBr8qUIkRWpG9dhS85SnI=', 0, 1, NOW(), 1, 0); | I192: INSERT INTO sys_role_user(id, sys_role_id, sys_user_id) VALUES(289, 6, 289);
A193: 6 | B193: 290 | C193: =机构!H206 -> 重庆市渝北区艾尔世茂幼儿园 | D193: =机构!A206 -> 205 | E193: =机构!G206&RIGHT("000000"&机构!F206,5)&"01" -> Y0019101 | F193: 管理员 | G193: 5t6QUpK/gc29b2R83PGu/dMBr8qUIkRWpG9dhS85SnI= | H193: INSERT INTO sys_user(id, sys_org_id, `name`, account, password, is_activated, create_sys_user_id, create_time, status, is_deleted) VALUES(290, 205, '管理员', 'Y0019101', '5t6QUpK/gc29b2R83PGu/dMBr8qUIkRWpG9dhS85SnI=', 0, 1, NOW(), 1, 0); | I193: INSERT INTO sys_role_user(id, sys_role_id, sys_user_id) VALUES(290, 6, 290);
A194: 6 | B194: 291 | C194: =机构!H207 -> 重庆市渝北区艾尔璀璨幼儿园 | D194: =机构!A207 -> 206 | E194: =机构!G207&RIGHT("000000"&机构!F207,5)&"01" -> Y0019201 | F194: 管理员 | G194: 5t6QUpK/gc29b2R83PGu/dMBr8qUIkRWpG9dhS85SnI= | H194: INSERT INTO sys_user(id, sys_org_id, `name`, account, password, is_activated, create_sys_user_id, create_time, status, is_deleted) VALUES(291, 206, '管理员', 'Y0019201', '5t6QUpK/gc29b2R83PGu/dMBr8qUIkRWpG9dhS85SnI=', 0, 1, NOW(), 1, 0); | I194: INSERT INTO sys_role_user(id, sys_role_id, sys_user_id) VALUES(291, 6, 291);
A195: 6 | B195: 292 | C195: =机构!H208 -> 重庆市渝北庆龄幼儿园 | D195: =机构!A208 -> 207 | E195: =机构!G208&RIGHT("000000"&机构!F208,5)&"01" -> Y0019301 | F195: 管理员 | G195: 5t6QUpK/gc29b2R83PGu/dMBr8qUIkRWpG9dhS85SnI= | H195: INSERT INTO sys_user(id, sys_org_id, `name`, account, password, is_activated, create_sys_user_id, create_time, status, is_deleted) VALUES(292, 207, '管理员', 'Y0019301', '5t6QUpK/gc29b2R83PGu/dMBr8qUIkRWpG9dhS85SnI=', 0, 1, NOW(), 1, 0); | I195: INSERT INTO sys_role_user(id, sys_role_id, sys_user_id) VALUES(292, 6, 292);
A196: 6 | B196: 293 | C196: =机构!H209 -> 重庆市渝北区龙溪幼儿园 | D196: =机构!A209 -> 208 | E196: =机构!G209&RIGHT("000000"&机构!F209,5)&"01" -> Y0019401 | F196: 管理员 | G196: 5t6QUpK/gc29b2R83PGu/dMBr8qUIkRWpG9dhS85SnI= | H196: ="INSERT INTO sys_user(id, sys_org_id, `name`, account, password, is_activated, create_sys_user_id, create_time, status, is_deleted) VALUES("&B196&", "&D196&", '"&F196&"', '"&E196&"', '"&G196&"', 0, 1, NOW(), 1, 0);" -> INSERT INTO sys_user(id, sys_org_id, `name`, account, password, is_activated, create_sys_user_id, create_time, status, is_deleted) VALUES(293, 208, '管理员', 'Y0019401', '5t6QUpK/gc29b2R83PGu/dMBr8qUIkRWpG9dhS85SnI=', 0, 1, NOW(), 1, 0); | I196: ="INSERT INTO sys_role_user(id, sys_role_id, sys_user_id) VALUES("&B196&", "&A196&", "&B196&");" -> INSERT INTO sys_role_user(id, sys_role_id, sys_user_id) VALUES(293, 6, 293);
A197: 6 | B197: 294 | C197: =机构!H210 -> 重庆市渝北区龙溪小学附属幼儿园 | D197: =机构!A210 -> 209 | E197: =机构!G210&RIGHT("000000"&机构!F210,5)&"01" -> Y0019501 | F197: 管理员 | G197: 5t6QUpK/gc29b2R83PGu/dMBr8qUIkRWpG9dhS85SnI= | H197: INSERT INTO sys_user(id, sys_org_id, `name`, account, password, is_activated, create_sys_user_id, create_time, status, is_deleted) VALUES(294, 209, '管理员', 'Y0019501', '5t6QUpK/gc29b2R83PGu/dMBr8qUIkRWpG9dhS85SnI=', 0, 1, NOW(), 1, 0); | I197: INSERT INTO sys_role_user(id, sys_role_id, sys_user_id) VALUES(294, 6, 294);
A198: 6 | B198: 295 | C198: =机构!H211 -> 重庆市渝北长安锦绣实验小学校附属幼儿园 | D198: =机构!A211 -> 210 | E198: =机构!G211&RIGHT("000000"&机构!F211,5)&"01" -> Y0019601 | F198: 管理员 | G198: 5t6QUpK/gc29b2R83PGu/dMBr8qUIkRWpG9dhS85SnI= | H198: INSERT INTO sys_user(id, sys_org_id, `name`, account, password, is_activated, create_sys_user_id, create_time, status, is_deleted) VALUES(295, 210, '管理员', 'Y0019601', '5t6QUpK/gc29b2R83PGu/dMBr8qUIkRWpG9dhS85SnI=', 0, 1, NOW(), 1, 0); | I198: INSERT INTO sys_role_user(id, sys_role_id, sys_user_id) VALUES(295, 6, 295);
A199: 6 | B199: 296 | C199: =机构!H212 -> 重庆市渝北区龙湖南苑幼儿园 | D199: =机构!A212 -> 211 | E199: =机构!G212&RIGHT("000000"&机构!F212,5)&"01" -> Y0019701 | F199: 管理员 | G199: 5t6QUpK/gc29b2R83PGu/dMBr8qUIkRWpG9dhS85SnI= | H199: INSERT INTO sys_user(id, sys_org_id, `name`, account, password, is_activated, create_sys_user_id, create_time, status, is_deleted) VALUES(296, 211, '管理员', 'Y0019701', '5t6QUpK/gc29b2R83PGu/dMBr8qUIkRWpG9dhS85SnI=', 0, 1, NOW(), 1, 0); | I199: INSERT INTO sys_role_user(id, sys_role_id, sys_user_id) VALUES(296, 6, 296);
A200: 6 | B200: 297 | C200: =机构!H213 -> 重庆市渝北区小博士巴蜀丽景幼儿园 | D200: =机构!A213 -> 212 | E200: =机构!G213&RIGHT("000000"&机构!F213,5)&"01" -> Y0019801 | F200: 管理员 | G200: 5t6QUpK/gc29b2R83PGu/dMBr8qUIkRWpG9dhS85SnI= | H200: INSERT INTO sys_user(id, sys_org_id, `name`, account, password, is_activated, create_sys_user_id, create_time, status, is_deleted) VALUES(297, 212, '管理员', 'Y0019801', '5t6QUpK/gc29b2R83PGu/dMBr8qUIkRWpG9dhS85SnI=', 0, 1, NOW(), 1, 0); | I200: INSERT INTO sys_role_user(id, sys_role_id, sys_user_id) VALUES(297, 6, 297);
A201: 6 | B201: 298 | C201: =机构!H214 -> 重庆市渝北区富悦阳光幼儿园 | D201: =机构!A214 -> 213 | E201: =机构!G214&RIGHT("000000"&机构!F214,5)&"01" -> Y0019901 | F201: 管理员 | G201: 5t6QUpK/gc29b2R83PGu/dMBr8qUIkRWpG9dhS85SnI= | H201: INSERT INTO sys_user(id, sys_org_id, `name`, account, password, is_activated, create_sys_user_id, create_time, status, is_deleted) VALUES(298, 213, '管理员', 'Y0019901', '5t6QUpK/gc29b2R83PGu/dMBr8qUIkRWpG9dhS85SnI=', 0, 1, NOW(), 1, 0); | I201: INSERT INTO sys_role_user(id, sys_role_id, sys_user_id) VALUES(298, 6, 298);
... 720 more rows

Sheet Sheet2
A1: 所属镇街 | B1: 机构名称 | H1: 办园性质 | J1: 机构地址 | M1: 幼儿园等级 | N1: 是否普惠园 | O1: 负责人姓名
A2: 双龙湖街道 | B2: 重庆市渝北区城南幼儿园 | C2: 城南幼儿园 | D2: 城南 | E2: 城南 | F2: EducationStage.PRESCHOOL_STAGE | G2: UrbanRuralType.URBAN | H2: OrgFundSource.PUBLIC | J2: 渝北区北湖路140号 | K2: ="等级"&M2&"，"&"是否普惠园："&N2 -> 等级二级，是否普惠园：是 | L2: CommonStatus.DISABLE | M2: 二级 | N2: 是 | O2: 刘莉
A3: 双龙湖街道 | B3: 重庆市渝北区城南幼儿园飞湖园 | C3: 城南幼儿园飞湖园 | D3: 城南飞湖园 | E3: 城南飞湖园 | F3: EducationStage.PRESCHOOL_STAGE | G3: UrbanRuralType.URBAN | H3: OrgFundSource.PUBLIC | J3: 渝北区龙永街28号 | K3: ="等级"&M3&"，"&"是否普惠园："&N3 -> 等级一级，是否普惠园：是 | L3: CommonStatus.DISABLE | M3: 一级 | N3: 是
A4: 双龙湖街道 | B4: 重庆市渝北区城南幼儿园翠湖园 | C4: 城南幼儿园翠湖园 | D4: 城南翠湖园 | E4: 城南翠湖园 | F4: EducationStage.PRESCHOOL_STAGE | G4: UrbanRuralType.URBAN | H4: OrgFundSource.PUBLIC | J4: 渝北区翠湖路一巷 | K4: 等级二级，是否普惠园：是 | L4: CommonStatus.DISABLE | M4: 二级 | N4: 是
A5: 双龙湖街道 | B5: 重庆市渝北区城南幼儿园锦湖园 | C5: 城南幼儿园锦湖园 | D5: 城南锦湖园 | E5: 城南锦湖园 | F5: EducationStage.PRESCHOOL_STAGE | G5: UrbanRuralType.URBAN | H5: OrgFundSource.PUBLIC | J5: 渝北区双龙湖街道翠湖路146号 | K5: 等级预一级，是否普惠园：是 | L5: CommonStatus.DISABLE | M5: 预一级 | N5: 是
A6: 双龙湖街道 | B6: 重庆市渝北区同茂小学校附属幼儿园 | C6: 同茂小学校附属幼儿园 | D6: 同茂小学校附属 | E6: 同茂小学校附属 | F6: EducationStage.PRESCHOOL_STAGE | G6: UrbanRuralType.URBAN | H6: OrgFundSource.PUBLIC | J6: 渝北区双龙湖街道同茂小学内 | K6: 等级预一级，是否普惠园：是 | L6: CommonStatus.DISABLE | M6: 预一级 | N6: 是 | O6: 游佐伦
A7: 双龙湖街道 | B7: 重庆市渝北区港城幼儿园 | C7: 港城幼儿园 | D7: 港城 | E7: 港城 | F7: EducationStage.PRESCHOOL_STAGE | G7: UrbanRuralType.URBAN | H7: OrgFundSource.PRIVATE | J7: 渝北区仙桃街道兰馨大道18号 | K7: 等级一级，是否普惠园：是 | L7: CommonStatus.DISABLE | M7: 一级 | N7: 是 | O7: 严梅
A8: 双龙湖街道 | B8: 重庆市渝北区双龙湖思艺幼儿园 | C8: 双龙湖思艺幼儿园 | D8: 双龙湖思艺 | E8: 双龙湖思艺 | F8: EducationStage.PRESCHOOL_STAGE | G8: UrbanRuralType.URBAN | H8: OrgFundSource.PRIVATE | J8: 渝北区翠湖路三巷250号 | K8: 等级二级，是否普惠园：是 | L8: CommonStatus.DISABLE | M8: 二级 | N8: 是 | O8: 蒋亚男
A9: 双龙湖街道 | B9: 重庆市渝北区双龙湖佳家幼儿园 | C9: 双龙湖佳家幼儿园 | D9: 双龙湖佳家 | E9: 双龙湖佳家 | F9: EducationStage.PRESCHOOL_STAGE | G9: UrbanRuralType.URBAN | H9: OrgFundSource.PRIVATE | J9: 渝北区双龙湖凯歌路后街4号 | K9: 等级二级，是否普惠园：是 | L9: CommonStatus.DISABLE | M9: 二级 | N9: 是 | O9: 卢德燕
A10: 双龙湖街道 | B10: 重庆市渝北区双龙湖园丁村幼儿园 | C10: 双龙湖园丁村幼儿园 | D10: 双龙湖园丁村 | E10: 双龙湖园丁村 | F10: EducationStage.PRESCHOOL_STAGE | G10: UrbanRuralType.URBAN | H10: OrgFundSource.PRIVATE | J10: 渝北区龙平街5号1幢单元1-1-3 | K10: 等级二级，是否普惠园：是 | L10: CommonStatus.DISABLE | M10: 二级 | N10: 是 | O10: 胡蓉
A11: 双龙湖街道 | B11: 重庆市渝北区双龙湖华都湖滨幼儿园 | C11: 双龙湖华都湖滨幼儿园 | D11: 双龙湖华都湖滨 | E11: 双龙湖华都湖滨 | F11: EducationStage.PRESCHOOL_STAGE | G11: UrbanRuralType.URBAN | H11: OrgFundSource.PRIVATE | J11: 渝北区双龙大道绣湖路21号 | K11: 等级二级，是否普惠园：是 | L11: CommonStatus.DISABLE | M11: 二级 | N11: 是 | O11: 陈燕
A12: 双龙湖街道 | B12: 重庆市渝北区双龙湖艺苗幼儿园 | C12: 双龙湖艺苗幼儿园 | D12: 双龙湖艺苗 | E12: 双龙湖艺苗 | F12: EducationStage.PRESCHOOL_STAGE | G12: UrbanRuralType.URBAN | H12: OrgFundSource.PRIVATE | J12: 渝北区双龙湖街道龙兴街85号 | K12: 等级二级，是否普惠园：是 | L12: CommonStatus.DISABLE | M12: 二级 | N12: 是 | O12: 傅茂琴
A13: 双龙湖街道 | B13: 重庆市渝北区星朗幼儿园 | C13: 星朗幼儿园 | D13: 星朗 | E13: 星朗 | F13: EducationStage.PRESCHOOL_STAGE | G13: UrbanRuralType.URBAN | H13: OrgFundSource.PRIVATE | J13: 渝北区双龙西路149号 | K13: 等级二级，是否普惠园：是 | L13: CommonStatus.DISABLE | M13: 二级 | N13: 是 | O13: 樊春梅
A14: 双龙湖街道 | B14: 重庆市渝北区阳光宝童幼儿园 | C14: 阳光宝童幼儿园 | D14: 阳光宝童 | E14: 阳光宝童 | F14: EducationStage.PRESCHOOL_STAGE | G14: UrbanRuralType.URBAN | H14: OrgFundSource.PRIVATE | J14: 渝北区双龙湖街道银鑫路7号 | K14: 等级二级，是否普惠园：是 | L14: CommonStatus.DISABLE | M14: 二级 | N14: 是 | O14: 王福燕
A15: 双龙湖街道 | B15: 重庆市渝北区紫台金宝贝幼儿园 | C15: 紫台金宝贝幼儿园 | D15: 紫台金宝贝 | E15: 紫台金宝贝 | F15: EducationStage.PRESCHOOL_STAGE | G15: UrbanRuralType.URBAN | H15: OrgFundSource.PRIVATE | J15: 渝北区双龙湖街道同茂大道14号 | K15: 等级二级，是否普惠园：是 | L15: CommonStatus.DISABLE | M15: 二级 | N15: 是 | O15: 王馀
A16: 双龙湖街道 | B16: 重庆市渝北区双龙湖小不点幼儿园 | C16: 双龙湖小不点幼儿园 | D16: 双龙湖小不点 | E16: 双龙湖小不点 | F16: EducationStage.PRESCHOOL_STAGE | G16: UrbanRuralType.URBAN | H16: OrgFundSource.PRIVATE | J16: 渝北区双龙湖一支路龙裕街58号 | K16: 等级二级，是否普惠园：是 | L16: CommonStatus.DISABLE | M16: 二级 | N16: 是 | O16: 刘红梅
A17: 双龙湖街道 | B17: 重庆市渝北区双龙湖老干部活动中心幼儿园 | C17: 双龙湖老干部活动中心幼儿园 | D17: 双龙湖老干部活动中心 | E17: 双龙湖老干部活动中心 | F17: EducationStage.PRESCHOOL_STAGE | G17: UrbanRuralType.URBAN | H17: OrgFundSource.PRIVATE | J17: 渝北区双龙湖龙永街28号 | K17: 等级三级，是否普惠园：是 | L17: CommonStatus.DISABLE | M17: 三级 | N17: 是 | O17: 凌夏佩
A18: 双龙湖街道 | B18: 重庆市渝北区双龙湖育苗幼儿园 | C18: 双龙湖育苗幼儿园 | D18: 双龙湖育苗 | E18: 双龙湖育苗 | F18: EducationStage.PRESCHOOL_STAGE | G18: UrbanRuralType.URBAN | H18: OrgFundSource.PRIVATE | J18: 渝北区双龙湖街道龙盛街90号 | K18: 等级三级，是否普惠园：是 | L18: CommonStatus.DISABLE | M18: 三级 | N18: 是 | O18: 王瑛
A19: 双龙湖街道 | B19: 重庆市渝北区双龙湖天寨幼儿园 | C19: 双龙湖天寨幼儿园 | D19: 双龙湖天寨 | E19: 双龙湖天寨 | F19: EducationStage.PRESCHOOL_STAGE | G19: UrbanRuralType.URBAN | H19: OrgFundSource.PRIVATE | J19: 渝北区五星路162号 | K19: 等级三级，是否普惠园：是 | L19: CommonStatus.DISABLE | M19: 三级 | N19: 是 | O19: 詹均
A20: 双龙湖街道 | B20: 重庆市渝北区双龙湖康利幼儿园 | C20: 双龙湖康利幼儿园 | D20: 双龙湖康利 | E20: 双龙湖康利 | F20: EducationStage.PRESCHOOL_STAGE | G20: UrbanRuralType.URBAN | H20: OrgFundSource.PRIVATE | J20: 渝北区双龙湖龙康街124号 | K20: 等级三级，是否普惠园：是 | L20: CommonStatus.DISABLE | M20: 三级 | N20: 是 | O20: 段利容
A21: 双龙湖街道 | B21: 重庆市渝北区双龙湖花蕾幼儿园 | C21: 双龙湖花蕾幼儿园 | D21: 双龙湖花蕾 | E21: 双龙湖花蕾 | F21: EducationStage.PRESCHOOL_STAGE | G21: UrbanRuralType.URBAN | H21: OrgFundSource.PRIVATE | J21: 渝北区双龙湖龙升街114# | K21: 等级三级，是否普惠园：是 | L21: CommonStatus.DISABLE | M21: 三级 | N21: 是 | O21: 敖奇红
A22: 双龙湖街道 | B22: 重庆市渝北区双龙湖华艺幼儿园 | C22: 双龙湖华艺幼儿园 | D22: 双龙湖华艺 | E22: 双龙湖华艺 | F22: EducationStage.PRESCHOOL_STAGE | G22: UrbanRuralType.URBAN | H22: OrgFundSource.PRIVATE | J22: 渝北区双龙湖滨港路39号山水绿城内 | K22: 等级三级，是否普惠园：是 | L22: CommonStatus.DISABLE | M22: 三级 | N22: 是 | O22: 沈莉
A23: 双龙湖街道 | B23: 重庆市渝北区光彩幼儿园 | C23: 光彩幼儿园 | D23: 光彩 | E23: 光彩 | F23: EducationStage.PRESCHOOL_STAGE | G23: UrbanRuralType.URBAN | H23: OrgFundSource.PRIVATE | J23: 渝北区双龙湖街道五星路三巷18号 | K23: 等级三级，是否普惠园：是 | L23: CommonStatus.DISABLE | M23: 三级 | N23: 是 | O23: 罗艺
A24: 双龙湖街道 | B24: 重庆市渝北区双龙湖南灵幼儿园 | C24: 双龙湖南灵幼儿园 | D24: 双龙湖南灵 | E24: 双龙湖南灵 | F24: EducationStage.PRESCHOOL_STAGE | G24: UrbanRuralType.URBAN | H24: OrgFundSource.PRIVATE | J24: 渝北区双龙湖龙康街161号 | K24: 等级三级，是否普惠园：是 | L24: CommonStatus.DISABLE | M24: 三级 | N24: 是 | O24: 童小玲
A25: 双龙湖街道 | B25: 重庆市渝北区双龙湖红孩儿幼儿园 | C25: 双龙湖红孩儿幼儿园 | D25: 双龙湖红孩儿 | E25: 双龙湖红孩儿 | F25: EducationStage.PRESCHOOL_STAGE | G25: UrbanRuralType.URBAN | H25: OrgFundSource.PRIVATE | J25: 渝北区双龙湖街道龙平街一巷43号 | K25: 等级三级，是否普惠园：是 | L25: CommonStatus.DISABLE | M25: 三级 | N25: 是 | O25: 张坤琼
A26: 双龙湖街道 | B26: 重庆市渝北区双龙湖蓝天贝贝幼儿园 | C26: 双龙湖蓝天贝贝幼儿园 | D26: 双龙湖蓝天贝贝 | E26: 双龙湖蓝天贝贝 | F26: EducationStage.PRESCHOOL_STAGE | G26: UrbanRuralType.URBAN | H26: OrgFundSource.PRIVATE | J26: 渝北区双龙湖龙平街三巷检察院家属院B栋9-12号 | K26: 等级三级，是否普惠园：是 | L26: CommonStatus.DISABLE | M26: 三级 | N26: 是 | O26: 陈明芳
A27: 双龙湖街道 | B27: 重庆市渝北区双龙湖农工商幼儿园 | C27: 双龙湖农工商幼儿园 | D27: 双龙湖农工商 | E27: 双龙湖农工商 | F27: EducationStage.PRESCHOOL_STAGE | G27: UrbanRuralType.URBAN | H27: OrgFundSource.PRIVATE | J27: 渝北区双龙湖街道龙平支路36号 | K27: 等级三级，是否普惠园：是 | L27: CommonStatus.DISABLE | M27: 三级 | N27: 是 | O27: 廖琴
A28: 双龙湖街道 | B28: 重庆市渝北区双龙湖苗苗幼儿园 | C28: 双龙湖苗苗幼儿园 | D28: 双龙湖苗苗 | E28: 双龙湖苗苗 | F28: EducationStage.PRESCHOOL_STAGE | G28: UrbanRuralType.URBAN | H28: OrgFundSource.PRIVATE | J28: 渝北区双龙湖街道五星路4巷19号 | K28: 等级三级，是否普惠园：是 | L28: CommonStatus.DISABLE | M28: 三级 | N28: 是 | O28: 邓芙容
A29: 双龙湖街道 | B29: 重庆市渝北区双龙湖彩虹幼儿园 | C29: 双龙湖彩虹幼儿园 | D29: 双龙湖彩虹 | E29: 双龙湖彩虹 | F29: EducationStage.PRESCHOOL_STAGE | G29: UrbanRuralType.URBAN | H29: OrgFundSource.PRIVATE | J29: 渝北区龙康街161号3-3-1-2 | K29: 等级三级，是否普惠园：是 | L29: CommonStatus.DISABLE | M29: 三级 | N29: 是 | O29: 曾开萍
A30: 双龙湖街道 | B30: 重庆市渝北区双龙湖群欣幼儿园 | C30: 双龙湖群欣幼儿园 | D30: 双龙湖群欣 | E30: 双龙湖群欣 | F30: EducationStage.PRESCHOOL_STAGE | G30: UrbanRuralType.URBAN | H30: OrgFundSource.PRIVATE | J30: 渝北区渝湖路56号 | K30: 等级三级，是否普惠园：是 | L30: CommonStatus.DISABLE | M30: 三级 | N30: 是 | O30: 杨红梅
A31: 双龙湖街道 | B31: 重庆市渝北区绿梦幼儿园 | C31: 绿梦幼儿园 | D31: 绿梦 | E31: 绿梦 | F31: EducationStage.PRESCHOOL_STAGE | G31: UrbanRuralType.URBAN | H31: OrgFundSource.PRIVATE | J31: 渝北区双龙大道474号 | K31: 等级二级，是否普惠园：是 | L31: CommonStatus.DISABLE | M31: 二级 | N31: 是 | O31: 王银生
A32: 双龙湖街道 | B32: 重庆市渝北区鹿山村宝贝幼儿园 | C32: 鹿山村宝贝幼儿园 | D32: 鹿山村宝贝 | E32: 鹿山村宝贝 | F32: EducationStage.PRESCHOOL_STAGE | G32: UrbanRuralType.URBAN | H32: OrgFundSource.PRIVATE | J32: 渝北区双龙湖街道观音岩路168号格林上城小区 | K32: 等级三级，是否普惠园：是 | L32: CommonStatus.DISABLE | M32: 三级 | N32: 是 | O32: 王馀
A33: 双龙湖街道 | B33: 重庆市渝北区水木香山贝乐坊幼儿园 | C33: 水木香山贝乐坊幼儿园 | D33: 水木香山贝乐坊 | E33: 水木香山贝乐坊 | F33: EducationStage.PRESCHOOL_STAGE | G33: UrbanRuralType.URBAN | H33: OrgFundSource.PRIVATE | J33: 渝北区双龙湖街道竹音支路18号34栋1-1、2-1 | K33: 等级一级，是否普惠园：是 | L33: CommonStatus.DISABLE | M33: 一级 | N33: 是 | O33: 郑淑月
A34: 双龙湖街道 | B34: 重庆市渝北区莱恩幼儿园 | C34: 莱恩幼儿园 | D34: 莱恩 | E34: 莱恩 | F34: EducationStage.PRESCHOOL_STAGE | G34: UrbanRuralType.URBAN | H34: OrgFundSource.PRIVATE | J34: 渝北区空港新城兰馨大道18号附26号 | K34: 等级二级，是否普惠园：否 | L34: CommonStatus.DISABLE | M34: 二级 | N34: 否 | O34: 刘花
A35: 双龙湖街道 | B35: 重庆市渝北区润丰水尚幼儿园 | C35: 润丰水尚幼儿园 | D35: 润丰水尚 | E35: 润丰水尚 | F35: EducationStage.PRESCHOOL_STAGE | G35: UrbanRuralType.URBAN | H35: OrgFundSource.PRIVATE | J35: 重庆市渝北区兰桂大道2号18幢 | K35: 等级预一级，是否普惠园：是 | L35: CommonStatus.DISABLE | M35: 预一级 | N35: 是 | O35: 钟琳燕
A36: 仙桃街道 | B36: 重庆市渝北区公园北路幼儿园 | C36: 公园北路幼儿园 | D36: 公园北路 | E36: 公园北路 | F36: EducationStage.PRESCHOOL_STAGE | G36: UrbanRuralType.URBAN | H36: OrgFundSource.PUBLIC | J36: 渝北区中央公园北路8号 | K36: 等级一级，是否普惠园：是 | L36: CommonStatus.DISABLE | M36: 一级 | N36: 是 | O36: 叶其春
A37: 仙桃街道 | B37: 重庆市渝北区腾芳幼儿园桂馥园 | C37: 腾芳幼儿园桂馥园 | D37: 腾芳桂馥园 | E37: 腾芳桂馥园 | F37: EducationStage.PRESCHOOL_STAGE | G37: UrbanRuralType.URBAN | H37: OrgFundSource.PUBLIC | J37: 渝北区桂馥二支路18号 | K37: 等级一级，是否普惠园：是 | L37: CommonStatus.DISABLE | M37: 一级 | N37: 是 | O37: 石春燕
A38: 仙桃街道 | B38: 重庆市渝北区空港佳园幼儿园学盛园（G园） | C38: 空港佳园幼儿园学盛园（G园） | D38: 空港佳园学盛园（G园） | E38: 空港佳园学盛园（G园） | F38: EducationStage.PRESCHOOL_STAGE | G38: UrbanRuralType.URBAN | H38: OrgFundSource.PUBLIC | J38: 渝北区空港佳园公租房丛岩一路17号 | K38: 等级一级，是否普惠园：是 | L38: CommonStatus.DISABLE | M38: 一级 | N38: 是 | O38: 包莲
A39: 仙桃街道 | B39: 重庆市渝北区空港佳园幼儿园丛岩园（E园） | C39: 空港佳园幼儿园丛岩园（E园） | D39: 空港佳园丛岩园（E园） | E39: 空港佳园丛岩园（E园） | F39: EducationStage.PRESCHOOL_STAGE | G39: UrbanRuralType.URBAN | H39: OrgFundSource.PUBLIC | J39: 渝北区空港佳园公租房丛岩一路1号 | K39: 等级一级，是否普惠园：是 | L39: CommonStatus.DISABLE | M39: 一级 | N39: 是
A40: 仙桃街道 | B40: 重庆市渝北区空港佳园第二幼儿园 | C40: 空港佳园第二幼儿园 | D40: 空港佳园第二 | E40: 空港佳园第二 | F40: EducationStage.PRESCHOOL_STAGE | G40: UrbanRuralType.URBAN | H40: OrgFundSource.PUBLIC | J40: 渝北区仙桃街道从岩二路4号 | K40: 等级一级，是否普惠园：是 | L40: CommonStatus.DISABLE | M40: 一级 | N40: 是 | O40: 王跃兰
A41: 仙桃街道 | B41: 重庆市渝北区同茂幼儿园 | C41: 同茂幼儿园 | D41: 同茂 | E41: 同茂 | F41: EducationStage.PRESCHOOL_STAGE | G41: UrbanRuralType.URBAN | H41: OrgFundSource.PUBLIC | J41: 渝北区睦邻路 | K41: 等级预一级，是否普惠园：是 | L41: CommonStatus.DISABLE | M41: 预一级 | N41: 是 | O41: 杨群
A42: 仙桃街道 | B42: 重庆市渝北区盛景天下小学校附属幼儿园 | C42: 盛景天下小学校附属幼儿园 | D42: 盛景天下小学校附属 | E42: 盛景天下小学校附属 | F42: EducationStage.PRESCHOOL_STAGE | G42: UrbanRuralType.URBAN | H42: OrgFundSource.PUBLIC | J42: 渝北区兰馨大道16号1栋 | K42: 等级一级，是否普惠园：是 | L42: CommonStatus.DISABLE | M42: 一级 | N42: 是 | O42: 凌玲
A43: 仙桃街道 | B43: 重庆市渝北区空港新城小学附属幼儿园 | C43: 空港新城小学附属幼儿园 | D43: 空港新城小学附属 | E43: 空港新城小学附属 | F43: EducationStage.PRESCHOOL_STAGE | G43: UrbanRuralType.URBAN | H43: OrgFundSource.PUBLIC | J43: 渝北区仙桃街道桂馥二支路9号 | K43: 等级二级，是否普惠园：是 | L43: CommonStatus.DISABLE | M43: 二级 | N43: 是 | O43: 陈中梅
A44: 仙桃街道 | B44: 重庆市渝北区数据谷小学校附属幼儿园 | C44: 数据谷小学校附属幼儿园 | D44: 数据谷小学校附属 | E44: 数据谷小学校附属 | F44: EducationStage.PRESCHOOL_STAGE | G44: UrbanRuralType.URBAN | H44: OrgFundSource.PUBLIC | J44: 渝北区仙桃街道数据谷中路52号 | K44: 等级一级，是否普惠园：是 | L44: CommonStatus.DISABLE | M44: 一级 | N44: 是 | O44: 余水琴
A45: 仙桃街道 | B45: 重庆市渝北庆龄幼儿园秋成园 | C45: 龄幼儿园秋成园 | D45: 龄秋成园 | E45: 龄秋成园 | F45: EducationStage.PRESCHOOL_STAGE | G45: UrbanRuralType.URBAN | H45: OrgFundSource.PUBLIC | J45: 渝北区秋成大道 | K45: 等级预一级，是否普惠园：是 | L45: CommonStatus.DISABLE | M45: 预一级 | N45: 是 | O45: 邓雪梅
A46: 仙桃街道 | B46: 重庆市渝北区英华贝贝空港幼儿园 | C46: 英华贝贝空港幼儿园 | D46: 英华贝贝空港 | E46: 英华贝贝空港 | F46: EducationStage.PRESCHOOL_STAGE | G46: UrbanRuralType.URBAN | H46: OrgFundSource.PRIVATE | J46: 渝北区双龙湖桂馥大道6号 | K46: 等级一级，是否普惠园：是 | L46: CommonStatus.DISABLE | M46: 一级 | N46: 是 | O46: 喻黎
A47: 仙桃街道 | B47: 重庆市渝北区好莱坞红黄蓝幼儿园 | C47: 好莱坞红黄蓝幼儿园 | D47: 好莱坞红黄蓝 | E47: 好莱坞红黄蓝 | F47: EducationStage.PRESCHOOL_STAGE | G47: UrbanRuralType.URBAN | H47: OrgFundSource.PRIVATE | J47: 渝北区兰馨大道77号汇祥好莱坞 | K47: 等级一级，是否普惠园：是 | L47: CommonStatus.DISABLE | M47: 一级 | N47: 是 | O47: 刘小英
A48: 仙桃街道 | B48: 重庆市渝北区盛景天下喜洋洋幼儿园 | C48: 盛景天下喜洋洋幼儿园 | D48: 盛景天下喜洋洋 | E48: 盛景天下喜洋洋 | F48: EducationStage.PRESCHOOL_STAGE | G48: UrbanRuralType.URBAN | H48: OrgFundSource.PRIVATE | J48: 渝北区双龙湖兰馨大道12号17幢负一层 | K48: 等级二级，是否普惠园：是 | L48: CommonStatus.DISABLE | M48: 二级 | N48: 是 | O48: 郑吕
A49: 仙桃街道 | B49: 重庆市渝北区迪思尼幼儿园 | C49: 迪思尼幼儿园 | D49: 迪思尼 | E49: 迪思尼 | F49: EducationStage.PRESCHOOL_STAGE | G49: UrbanRuralType.URBAN | H49: OrgFundSource.PRIVATE | J49: 渝北区兰馨大道10号锦域蓝湾13幢3-35号 | K49: 等级二级，是否普惠园：是 | L49: CommonStatus.DISABLE | M49: 二级 | N49: 是 | O49: 王林萍
A50: 仙桃街道 | B50: 重庆市渝北区七色幼儿园 | C50: 七色幼儿园 | D50: 七色 | E50: 七色 | F50: EducationStage.PRESCHOOL_STAGE | G50: UrbanRuralType.URBAN | H50: OrgFundSource.PRIVATE | J50: 渝北区兰馨大道10号锦域蓝湾小区12-1-14 | K50: 等级二级，是否普惠园：是 | L50: CommonStatus.DISABLE | M50: 二级 | N50: 是 | O50: 曾昭郁
A51: 仙桃街道 | B51: 重庆市渝北区全稚园金色池塘幼儿园 | C51: 全稚园金色池塘幼儿园 | D51: 全稚园金色池塘 | E51: 全稚园金色池塘 | F51: EducationStage.PRESCHOOL_STAGE | G51: UrbanRuralType.URBAN | H51: OrgFundSource.PRIVATE | J51: 渝北区空港新城金色池塘小区 | K51: 等级二级，是否普惠园：是 | L51: CommonStatus.DISABLE | M51: 二级 | N51: 是 | O51: 李通俊
A52: 仙桃街道 | B52: 重庆市渝北区润丰明希幼儿园 | C52: 润丰明希幼儿园 | D52: 润丰明希 | E52: 润丰明希 | F52: EducationStage.PRESCHOOL_STAGE | G52: UrbanRuralType.URBAN | H52: OrgFundSource.PRIVATE | J52: 渝北区仙桃街道福畅路7号附59号润丰水尚20幢至23幢 | K52: 等级三级，是否普惠园：是 | L52: CommonStatus.DISABLE | M52: 三级 | N52: 是 | O52: 王林萍
A53: 仙桃街道 | B53: 重庆市渝北区香城雅郡幼儿园 | C53: 香城雅郡幼儿园 | D53: 香城雅郡 | E53: 香城雅郡 | F53: EducationStage.PRESCHOOL_STAGE | G53: UrbanRuralType.URBAN | H53: OrgFundSource.PRIVATE | J53: 渝北区仙桃街道睦邻路158号附12号14幢 | K53: 等级一级，是否普惠园：是 | L53: CommonStatus.DISABLE | M53: 一级 | N53: 是 | O53: 何花
A54: 仙桃街道 | B54: 重庆市渝北区和庆路幼儿园 | C54: 和庆路幼儿园 | D54: 和庆路 | E54: 和庆路 | F54: EducationStage.PRESCHOOL_STAGE | G54: UrbanRuralType.URBAN | H54: OrgFundSource.PRIVATE | J54: 渝北区和庆路1号 | K54: 等级二级，是否普惠园：是 | L54: CommonStatus.DISABLE | M54: 二级 | N54: 是 | O54: 杨红莉
A55: 仙桃街道 | B55: 重庆市渝北区戈米孚幼儿园 | C55: 戈米孚幼儿园 | D55: 戈米孚 | E55: 戈米孚 | F55: EducationStage.PRESCHOOL_STAGE | G55: UrbanRuralType.URBAN | H55: OrgFundSource.PRIVATE | J55: 渝北区仙桃街道同辉路18号附35号8幢1-幼儿园 | K55: 等级一级，是否普惠园：是 | L55: CommonStatus.DISABLE | M55: 一级 | N55: 是 | O55: 任珍
A56: 仙桃街道 | B56: 重庆市渝北区奇心乐泽科幼儿园 | C56: 奇心乐泽科幼儿园 | D56: 奇心乐泽科 | E56: 奇心乐泽科 | F56: EducationStage.PRESCHOOL_STAGE | G56: UrbanRuralType.URBAN | H56: OrgFundSource.PRIVATE | J56: 渝北区仙桃街道兰馨大道福畅路12号港城国际 | K56: 等级一级，是否普惠园：否 | L56: CommonStatus.DISABLE | M56: 一级 | N56: 否 | O56: 邓舒娅
A57: 仙桃街道 | B57: 重庆市渝北区青苗幼儿园有限公司 | C57: 青苗幼儿园有限公司 | D57: 青苗有限公司 | E57: 青苗有限公司 | F57: EducationStage.PRESCHOOL_STAGE | G57: UrbanRuralType.URBAN | H57: OrgFundSource.PRIVATE | J57: 渝北区成兴路21号附2-45至2-73号 | K57: 等级一级，是否普惠园：否 | L57: CommonStatus.DISABLE | M57: 一级 | N57: 否 | O57: 邓春玲
A58: 仙桃街道 | B58: 重庆市渝北区汇祥林里伟才幼儿园 | C58: 汇祥林里伟才幼儿园 | D58: 汇祥林里伟才 | E58: 汇祥林里伟才 | F58: EducationStage.PRESCHOOL_STAGE | G58: UrbanRuralType.URBAN | H58: OrgFundSource.PRIVATE | J58: 渝北区仙桃街道城兴路16号香芷汀兰22幢 | K58: 等级一级，是否普惠园：否 | L58: CommonStatus.DISABLE | M58: 一级 | N58: 否 | O58: 曾辉
A59: 仙桃街道 | B59: 重庆市渝北区辰星幼儿园 | C59: 辰星幼儿园 | D59: 辰星 | E59: 辰星 | F59: EducationStage.PRESCHOOL_STAGE | G59: UrbanRuralType.URBAN | H59: OrgFundSource.PRIVATE | J59: 渝北区仙桃街道睦邻路9号 | K59: 等级一级，是否普惠园：否 | L59: CommonStatus.DISABLE | M59: 一级 | N59: 否 | O59: 柏长利
A60: 仙桃街道 | B60: 重庆市渝北区爱加橄榄幼儿园 | C60: 爱加橄榄幼儿园 | D60: 爱加橄榄 | E60: 爱加橄榄 | F60: EducationStage.PRESCHOOL_STAGE | G60: UrbanRuralType.URBAN | H60: OrgFundSource.PRIVATE | J60: 渝北区双龙湖街道福畅路一号 | K60: 等级一级，是否普惠园：否 | L60: CommonStatus.DISABLE | M60: 一级 | N60: 否 | O60: 李鸿
A61: 仙桃街道 | B61: 重庆市渝北区蒙世学堂幼儿园 | C61: 蒙世学堂幼儿园 | D61: 蒙世学堂 | E61: 蒙世学堂 | F61: EducationStage.PRESCHOOL_STAGE | G61: UrbanRuralType.URBAN | H61: OrgFundSource.PRIVATE | J61: 渝北区福畅路28号 | K61: 等级二级，是否普惠园：否 | L61: CommonStatus.DISABLE | M61: 二级 | N61: 否 | O61: 潘敏
A62: 仙桃街道 | B62: 重庆市渝北区启明幼儿园 | C62: 启明幼儿园 | D62: 启明 | E62: 启明 | F62: EducationStage.PRESCHOOL_STAGE | G62: UrbanRuralType.URBAN | H62: OrgFundSource.PRIVATE | J62: 渝北区空港新城金玉路18号 | K62: 等级二级，是否普惠园：否 | L62: CommonStatus.DISABLE | M62: 二级 | N62: 否 | O62: 徐健铧
A63: 仙桃街道 | B63: 重庆市渝北区金茂幼儿园 | C63: 金茂幼儿园 | D63: 金茂 | E63: 金茂 | F63: EducationStage.PRESCHOOL_STAGE | G63: UrbanRuralType.URBAN | H63: OrgFundSource.PRIVATE | J63: 渝北区德才路329号金茂书院2号楼 | K63: 等级预一级，是否普惠园：是 | L63: CommonStatus.DISABLE | M63: 预一级 | N63: 是 | O63: 丁朦朦
A64: 仙桃街道 | B64: 重庆市渝北区三之三天晋幼儿园 | C64: 三之三天晋幼儿园 | D64: 三之三天晋 | E64: 三之三天晋 | F64: EducationStage.PRESCHOOL_STAGE | G64: UrbanRuralType.URBAN | H64: OrgFundSource.PRIVATE | J64: 渝北区仙桃街道同茂大道38号天晋46栋 | K64: 等级预一级，是否普惠园：是 | L64: CommonStatus.DISABLE | M64: 预一级 | N64: 是 | O64: 黄燕
A65: 仙桃街道 | B65: 重庆市渝北区盛果誉峰幼儿园 | C65: 盛果誉峰幼儿园 | D65: 盛果誉峰 | E65: 盛果誉峰 | F65: EducationStage.PRESCHOOL_STAGE | G65: UrbanRuralType.URBAN | H65: OrgFundSource.PRIVATE | J65: 渝北区富锦街23号 | K65: 等级未定级，是否普惠园：是 | L65: CommonStatus.DISABLE | M65: 未定级 | N65: 是 | O65: 刘媛媛
A66: 仙桃街道 | B66: 重庆市渝北区生生幼儿园 | C66: 生生幼儿园 | D66: 生生 | E66: 生生 | F66: EducationStage.PRESCHOOL_STAGE | G66: UrbanRuralType.URBAN | H66: OrgFundSource.PRIVATE | J66: 渝北区福畅路55号13幢 | K66: 等级未定级，是否普惠园：是 | L66: CommonStatus.DISABLE | M66: 未定级 | N66: 是 | O66: 彭梦娇
A67: 两路街道 | B67: 重庆市渝北幼儿园 | C67: 儿园 | D67: 儿园 | E67: 儿园 | F67: EducationStage.PRESCHOOL_STAGE | G67: UrbanRuralType.URBAN | H67: OrgFundSource.PUBLIC | J67: 渝北区金航路86号 | K67: ="等级"&M67&"，"&"是否普惠园："&N67 -> 等级示范园，是否普惠园：是 | L67: CommonStatus.DISABLE | M67: 示范园 | N67: 是 | O67: 颜勇
A68: 两路街道 | B68: 重庆市渝北幼儿园空港新城园 | C68: 儿园空港新城园 | D68: 儿园空港新城园 | E68: 儿园空港新城园 | F68: EducationStage.PRESCHOOL_STAGE | G68: UrbanRuralType.URBAN | H68: OrgFundSource.PUBLIC | J68: 仙桃街道桂馥一支路6号 | K68: 等级一级，是否普惠园：是 | L68: CommonStatus.DISABLE | M68: 一级 | N68: 是
A69: 两路街道 | B69: 重庆市渝北区两路幼儿园 | C69: 两路幼儿园 | D69: 两路 | E69: 两路 | F69: EducationStage.PRESCHOOL_STAGE | G69: UrbanRuralType.URBAN | H69: OrgFundSource.PUBLIC | J69: 渝北区双凤路170号 | K69: 等级一级，是否普惠园：是 | L69: CommonStatus.DISABLE | M69: 一级 | N69: 是 | O69: 刘燕
A70: 两路街道 | B70: 重庆市渝北区两路幼儿园晚晴园 | C70: 两路幼儿园晚晴园 | D70: 两路晚晴园 | E70: 两路晚晴园 | F70: EducationStage.PRESCHOOL_STAGE | G70: UrbanRuralType.URBAN | H70: OrgFundSource.PUBLIC | J70: 渝北区双凤支路3号 | K70: 等级一级，是否普惠园：是 | L70: CommonStatus.DISABLE | M70: 一级 | N70: 是
A71: 两路街道 | B71: 重庆市渝北金港国际实验小学校附属幼儿园 | C71: 港国际实验小学校附属幼儿园 | D71: 港国际实验小学校附属 | E71: 港国际实验小学校附属 | F71: EducationStage.PRESCHOOL_STAGE | G71: UrbanRuralType.URBAN | H71: OrgFundSource.PUBLIC | J71: 渝北区胜利路李家湾3号 | K71: 等级一级，是否普惠园：是 | L71: CommonStatus.DISABLE | M71: 一级 | N71: 是 | O71: 黄时均
A72: 两路街道 | B72: 重庆市渝北区汉渝路小学校附属幼儿园 | C72: 汉渝路小学校附属幼儿园 | D72: 汉渝路小学校附属 | E72: 汉渝路小学校附属 | F72: EducationStage.PRESCHOOL_STAGE | G72: UrbanRuralType.URBAN | H72: OrgFundSource.PUBLIC | J72: 渝北区两路街道汉渝路62号 | K72: 等级预一级，是否普惠园：是 | L72: CommonStatus.DISABLE | M72: 预一级 | N72: 是 | O72: 吕心静
A73: 两路街道 | B73: 重庆市渝北区实验中学附属幼儿园 | C73: 实验中学附属幼儿园 | D73: 实验中学附属 | E73: 实验中学附属 | F73: EducationStage.PRESCHOOL_STAGE | G73: UrbanRuralType.URBAN | H73: OrgFundSource.PUBLIC | J73: 渝北区双凤支路三号 | K73: 等级预一级，是否普惠园：是 | L73: CommonStatus.DISABLE | M73: 预一级 | N73: 是 | O73: 陈后林
A74: 两路街道 | B74: 重庆市渝北区笃信实验学校附属幼儿园 | C74: 笃信实验学校附属幼儿园 | D74: 笃信实验学校附属 | E74: 笃信实验学校附属 | F74: EducationStage.PRESCHOOL_STAGE | G74: UrbanRuralType.URBAN | H74: OrgFundSource.PUBLIC | J74: 渝北区两路街道汉渝路101号 | K74: 等级二级，是否普惠园：是 | L74: CommonStatus.DISABLE | M74: 二级 | N74: 是 | O74: 秦纪梅
A75: 两路街道 | B75: 重庆市渝北区特殊教育学校附属幼儿园 | C75: 特殊教育学校附属幼儿园 | D75: 特殊教育学校附属 | E75: 特殊教育学校附属 | F75: EducationStage.PRESCHOOL_STAGE | G75: UrbanRuralType.URBAN | H75: OrgFundSource.PUBLIC | J75: 渝北区两路街道汉渝路69-5号 | K75: 等级二级，是否普惠园：是 | L75: CommonStatus.DISABLE | M75: 二级 | N75: 是 | O75: 叶其琼
A76: 两路街道 | B76: 重庆市渝北区新葵幼儿园 | C76: 新葵幼儿园 | D76: 新葵 | E76: 新葵 | F76: EducationStage.PRESCHOOL_STAGE | G76: UrbanRuralType.URBAN | H76: OrgFundSource.PRIVATE | J76: 渝北区两路街道汉渝路101号 | K76: 等级一级，是否普惠园：是 | L76: CommonStatus.DISABLE | M76: 一级 | N76: 是 | O76: 李雨洁
A77: 两路街道 | B77: 重庆市渝北区双凤桥星星幼儿园 | C77: 双凤桥星星幼儿园 | D77: 双凤桥星星 | E77: 双凤桥星星 | F77: EducationStage.PRESCHOOL_STAGE | G77: UrbanRuralType.URBAN | H77: OrgFundSource.PRIVATE | J77: 渝北区双凤路五巷48号 | K77: 等级二级，是否普惠园：是 | L77: CommonStatus.DISABLE | M77: 二级 | N77: 是 | O77: 邓礼贤
A78: 两路街道 | B78: 重庆市渝北区泽科幼儿园 | C78: 泽科幼儿园 | D78: 泽科 | E78: 泽科 | F78: EducationStage.PRESCHOOL_STAGE | G78: UrbanRuralType.URBAN | H78: OrgFundSource.PRIVATE | J78: 观音岩路83号泽科兴城A区 | K78: 等级二级，是否普惠园：是 | L78: CommonStatus.DISABLE | M78: 二级 | N78: 是 | O78: 罗艺
A79: 两路街道 | B79: 重庆市渝北区双凤桥慧伶幼儿园 | C79: 双凤桥慧伶幼儿园 | D79: 双凤桥慧伶 | E79: 双凤桥慧伶 | F79: EducationStage.PRESCHOOL_STAGE | G79: UrbanRuralType.URBAN | H79: OrgFundSource.PRIVATE | J79: 渝北区双凤桥天灯堡 | K79: 等级二级，是否普惠园：是 | L79: CommonStatus.DISABLE | M79: 二级 | N79: 是 | O79: 王福燕
A80: 两路街道 | B80: 重庆市渝北区双凤桥高屋幼儿园 | C80: 双凤桥高屋幼儿园 | D80: 双凤桥高屋 | E80: 双凤桥高屋 | F80: EducationStage.PRESCHOOL_STAGE | G80: UrbanRuralType.URBAN | H80: OrgFundSource.PRIVATE | J80: 渝北区汉渝路69-3号 | K80: 等级三级，是否普惠园：是 | L80: CommonStatus.DISABLE | M80: 三级 | N80: 是 | O80: 张艳
A81: 两路街道 | B81: 重庆市渝北区双凤桥乐乐幼儿园 | C81: 双凤桥乐乐幼儿园 | D81: 双凤桥乐乐 | E81: 双凤桥乐乐 | F81: EducationStage.PRESCHOOL_STAGE | G81: UrbanRuralType.URBAN | H81: OrgFundSource.PRIVATE | J81: 渝北区双凤支路5号 | K81: 等级三级，是否普惠园：是 | L81: CommonStatus.DISABLE | M81: 三级 | N81: 是 | O81: 王浩
A82: 两路街道 | B82: 重庆市渝北区双凤桥大风车幼儿园 | C82: 双凤桥大风车幼儿园 | D82: 双凤桥大风车 | E82: 双凤桥大风车 | F82: EducationStage.PRESCHOOL_STAGE | G82: UrbanRuralType.URBAN | H82: OrgFundSource.PRIVATE | J82: 渝航路三巷1号 | K82: 等级三级，是否普惠园：是 | L82: CommonStatus.DISABLE | M82: 三级 | N82: 是 | O82: 夏也茹
A83: 两路街道 | B83: 重庆市渝北区双凤桥艺树幼儿园 | C83: 双凤桥艺树幼儿园 | D83: 双凤桥艺树 | E83: 双凤桥艺树 | F83: EducationStage.PRESCHOOL_STAGE | G83: UrbanRuralType.URBAN | H83: OrgFundSource.PRIVATE | J83: 渝航路14号 | K83: 等级三级，是否普惠园：是 | L83: CommonStatus.DISABLE | M83: 三级 | N83: 是 | O83: 刘玲
A84: 两路街道 | B84: 重庆市渝北区双凤桥阳光幼儿园 | C84: 双凤桥阳光幼儿园 | D84: 双凤桥阳光 | E84: 双凤桥阳光 | F84: EducationStage.PRESCHOOL_STAGE | G84: UrbanRuralType.URBAN | H84: OrgFundSource.PRIVATE | J84: 渝北区渝航路凯莱帝景15号 | K84: 等级三级，是否普惠园：是 | L84: CommonStatus.DISABLE | M84: 三级 | N84: 是 | O84: 李琴
A85: 两路街道 | B85: 重庆市渝北区双凤桥康乐幼儿园 | C85: 双凤桥康乐幼儿园 | D85: 双凤桥康乐 | E85: 双凤桥康乐 | F85: EducationStage.PRESCHOOL_STAGE | G85: UrbanRuralType.URBAN | H85: OrgFundSource.PRIVATE | J85: 渝北区汉渝路二巷18号附1号 | K85: 等级三级，是否普惠园：是 | L85: CommonStatus.DISABLE | M85: 三级 | N85: 是 | O85: 曾开兰
A86: 双凤桥街道 | B86: 重庆市渝北区两江第一幼儿园环雅园 | C86: 两江第一幼儿园环雅园 | D86: 两江第一环雅园 | E86: 两江第一环雅园 | F86: EducationStage.PRESCHOOL_STAGE | G86: UrbanRuralType.URBAN | H86: OrgFundSource.PUBLIC | J86: 渝北区桃源大道559号 | K86: 等级一级，是否普惠园：是 | L86: CommonStatus.DISABLE | M86: 一级 | N86: 是 | O86: 蒋茜
A87: 双凤桥街道 | B87: 重庆市渝北区两江第一幼儿园 | C87: 两江第一幼儿园 | D87: 两江第一 | E87: 两江第一 | F87: EducationStage.PRESCHOOL_STAGE | G87: UrbanRuralType.URBAN | H87: OrgFundSource.PUBLIC | J87: 渝北区环湖雅居B区民秀路1号附9号 | K87: 等级一级，是否普惠园：是 | L87: CommonStatus.DISABLE | M87: 一级 | N87: 是
A88: 双凤桥街道 | B88: 重庆市渝北区两江第一幼儿园桃源园 | C88: 两江第一幼儿园桃源园 | D88: 两江第一桃源园 | E88: 两江第一桃源园 | F88: EducationStage.PRESCHOOL_STAGE | G88: UrbanRuralType.URBAN | H88: OrgFundSource.PUBLIC | J88: 渝北区桃源大道888号 | K88: 等级二级，是否普惠园：是 | L88: CommonStatus.DISABLE | M88: 二级 | N88: 是
A89: 双凤桥街道 | B89: 重庆市渝北区空港实验小学校附属幼儿园 | C89: 空港实验小学校附属幼儿园 | D89: 空港实验小学校附属 | E89: 空港实验小学校附属 | F89: EducationStage.PRESCHOOL_STAGE | G89: UrbanRuralType.URBAN | H89: OrgFundSource.PUBLIC | J89: 渝北区双凤桥街道安康路225号 | K89: 等级一级，是否普惠园：是 | L89: CommonStatus.DISABLE | M89: 一级 | N89: 是 | O89: 田祥忠
A90: 双凤桥街道 | B90: 重庆市渝北区长安锦尚小学附属幼儿园 | C90: 长安锦尚小学附属幼儿园 | D90: 长安锦尚小学附属 | E90: 长安锦尚小学附属 | F90: EducationStage.PRESCHOOL_STAGE | G90: UrbanRuralType.URBAN | H90: OrgFundSource.PUBLIC | J90: 渝北区观月大道滨河路1号 | K90: 等级二级，是否普惠园：是 | L90: CommonStatus.DISABLE | M90: 二级 | N90: 是 | O90: 彭友斌
A91: 双凤桥街道 | B91: 重庆市渝北区环雅小学校附属幼儿园 | C91: 环雅小学校附属幼儿园 | D91: 环雅小学校附属 | E91: 环雅小学校附属 | F91: EducationStage.PRESCHOOL_STAGE | G91: UrbanRuralType.URBAN | H91: OrgFundSource.PUBLIC | J91: 渝北区民秀路5号 | K91: 等级一级，是否普惠园：是 | L91: CommonStatus.DISABLE | M91: 一级 | N91: 是 | O91: 付启萍
A92: 双凤桥街道 | B92: 重庆市渝北区观月小学校附属幼儿园 | C92: 观月小学校附属幼儿园 | D92: 观月小学校附属 | E92: 观月小学校附属 | F92: EducationStage.PRESCHOOL_STAGE | G92: UrbanRuralType.URBAN | H92: OrgFundSource.PUBLIC | J92: 渝北区双凤桥街道观月北路229号 | K92: 等级预一级，是否普惠园：是 | L92: CommonStatus.DISABLE | M92: 预一级 | N92: 是 | O92: 付文锋
A93: 双凤桥街道 | B93: 重庆市渝北区兴阳瑞丰幼儿园 | C93: 兴阳瑞丰幼儿园 | D93: 兴阳瑞丰 | E93: 兴阳瑞丰 | F93: EducationStage.PRESCHOOL_STAGE | G93: UrbanRuralType.URBAN | H93: OrgFundSource.PRIVATE | J93: 渝北区空港大道251号 | K93: 等级一级，是否普惠园：是 | L93: CommonStatus.DISABLE | M93: 一级 | N93: 是 | O93: 金晓娟
A94: 双凤桥街道 | B94: 重庆市渝北区兴阳幼儿园 | C94: 兴阳幼儿园 | D94: 兴阳 | E94: 兴阳 | F94: EducationStage.PRESCHOOL_STAGE | G94: UrbanRuralType.URBAN | H94: OrgFundSource.PRIVATE | J94: 渝北区双凤桥街道长翔路150号 | K94: 等级一级，是否普惠园：是 | L94: CommonStatus.DISABLE | M94: 一级 | N94: 是 | O94: 刘婷
A95: 双凤桥街道 | B95: 重庆市渝北区当当香海驿幼儿园 | C95: 当当香海驿幼儿园 | D95: 当当香海驿 | E95: 当当香海驿 | F95: EducationStage.PRESCHOOL_STAGE | G95: UrbanRuralType.URBAN | H95: OrgFundSource.PRIVATE | J95: 渝北区空港大道766号香海驿小区19栋 | K95: 等级一级，是否普惠园：是 | L95: CommonStatus.DISABLE | M95: 一级 | N95: 是 | O95: 傅茂琴
A96: 双凤桥街道 | B96: 重庆市渝北区长安锦尚城幼儿园 | C96: 长安锦尚城幼儿园 | D96: 长安锦尚城 | E96: 长安锦尚城 | F96: EducationStage.PRESCHOOL_STAGE | G96: UrbanRuralType.URBAN | H96: OrgFundSource.PRIVATE | J96: 渝北区双凤桥街道空港大道655号滨溪路12号 | K96: 等级一级，是否普惠园：是 | L96: CommonStatus.DISABLE | M96: 一级 | N96: 是 | O96: 王孝飞
A97: 双凤桥街道 | B97: 重庆市渝北区空港童心幼儿园 | C97: 空港童心幼儿园 | D97: 空港童心 | E97: 空港童心 | F97: EducationStage.PRESCHOOL_STAGE | G97: UrbanRuralType.URBAN | H97: OrgFundSource.PRIVATE | J97: 渝北区双凤桥街道泰福路6号4幢2-2 | K97: 等级二级，是否普惠园：是 | L97: CommonStatus.DISABLE | M97: 二级 | N97: 是 | O97: 陈世玉
A98: 双凤桥街道 | B98: 重庆市渝北区浩博幼儿园 | C98: 浩博幼儿园 | D98: 浩博 | E98: 浩博 | F98: EducationStage.PRESCHOOL_STAGE | G98: UrbanRuralType.URBAN | H98: OrgFundSource.PRIVATE | J98: 渝北区双凤桥长空路249号 | K98: 等级二级，是否普惠园：是 | L98: CommonStatus.DISABLE | M98: 二级 | N98: 是 | O98: 彭玲
A99: 双凤桥街道 | B99: 重庆市渝北区双凤桥金易星辰幼儿园 | C99: 双凤桥金易星辰幼儿园 | D99: 双凤桥金易星辰 | E99: 双凤桥金易星辰 | F99: EducationStage.PRESCHOOL_STAGE | G99: UrbanRuralType.URBAN | H99: OrgFundSource.PRIVATE | J99: 渝北区双凤桥街道双凤支路188号 | K99: 等级二级，是否普惠园：是 | L99: CommonStatus.DISABLE | M99: 二级 | N99: 是 | O99: 蒋亚男
A100: 双凤桥街道 | B100: 重庆市渝北区双凤桥青麓幼儿园 | C100: 双凤桥青麓幼儿园 | D100: 双凤桥青麓 | E100: 双凤桥青麓 | F100: EducationStage.PRESCHOOL_STAGE | G100: UrbanRuralType.URBAN | H100: OrgFundSource.PRIVATE | J100: 渝北区空港大道99号 | K100: 等级二级，是否普惠园：是 | L100: CommonStatus.DISABLE | M100: 二级 | N100: 是 | O100: 沈琼
A101: 双凤桥街道 | B101: 重庆市渝北区蕾蕾唐庄幼儿园 | C101: 蕾蕾唐庄幼儿园 | D101: 蕾蕾唐庄 | E101: 蕾蕾唐庄 | F101: EducationStage.PRESCHOOL_STAGE | G101: UrbanRuralType.URBAN | H101: OrgFundSource.PRIVATE | J101: 渝北区双凤桥街道凤鸣路66号 | K101: 等级二级，是否普惠园：是 | L101: CommonStatus.DISABLE | M101: 二级 | N101: 是 | O101: 雷蓉
A102: 双凤桥街道 | B102: 重庆市渝北区海智幼儿园 | C102: 海智幼儿园 | D102: 海智 | E102: 海智 | F102: EducationStage.PRESCHOOL_STAGE | G102: UrbanRuralType.URBAN | H102: OrgFundSource.PRIVATE | J102: 渝北区观月大道99号附2号2-1 | K102: 等级二级，是否普惠园：是 | L102: CommonStatus.DISABLE | M102: 二级 | N102: 是 | O102: 杨静
A103: 双凤桥街道 | B103: 重庆市渝北区艺思蒙想幼儿园 | C103: 艺思蒙想幼儿园 | D103: 艺思蒙想 | E103: 艺思蒙想 | F103: EducationStage.PRESCHOOL_STAGE | G103: UrbanRuralType.URBAN | H103: OrgFundSource.PRIVATE | J103: 渝北区观月北路217号附1号 | K103: 等级一级，是否普惠园：是 | L103: CommonStatus.DISABLE | M103: 一级 | N103: 是 | O103: 廖美
A104: 双凤桥街道 | B104: 重庆市渝北区双凤桥红苹果幼儿园 | C104: 双凤桥红苹果幼儿园 | D104: 双凤桥红苹果 | E104: 双凤桥红苹果 | F104: EducationStage.PRESCHOOL_STAGE | G104: UrbanRuralType.URBAN | H104: OrgFundSource.PRIVATE | J104: 渝北区双凤桥支路90号 | K104: 等级三级，是否普惠园：是 | L104: CommonStatus.DISABLE | M104: 三级 | N104: 是 | O104: 刘天秀
A105: 双凤桥街道 | B105: 重庆市渝北区双凤桥建兴幼儿园 | C105: 双凤桥建兴幼儿园 | D105: 双凤桥建兴 | E105: 双凤桥建兴 | F105: EducationStage.PRESCHOOL_STAGE | G105: UrbanRuralType.URBAN | H105: OrgFundSource.PRIVATE | J105: 渝北区双凤桥街道观月大道294号泽科 | K105: 等级二级，是否普惠园：是 | L105: CommonStatus.DISABLE | M105: 二级 | N105: 是 | O105: 杜贤菊
A106: 双凤桥街道 | B106: 重庆市渝北区双凤桥蕾蕾幼儿园 | C106: 双凤桥蕾蕾幼儿园 | D106: 双凤桥蕾蕾 | E106: 双凤桥蕾蕾 | F106: EducationStage.PRESCHOOL_STAGE | G106: UrbanRuralType.URBAN | H106: OrgFundSource.PRIVATE | J106: 渝北区双凤桥街道双凤桥支路68号 | K106: 等级三级，是否普惠园：是 | L106: CommonStatus.DISABLE | M106: 三级 | N106: 是 | O106: 雷蓉
A107: 双凤桥街道 | B107: 重庆市渝北区双凤桥晨曦幼儿园 | C107: 双凤桥晨曦幼儿园 | D107: 双凤桥晨曦 | E107: 双凤桥晨曦 | F107: EducationStage.PRESCHOOL_STAGE | G107: UrbanRuralType.URBAN | H107: OrgFundSource.PRIVATE | J107: 渝北区双凤桥街道桃源大道363号 | K107: 等级三级，是否普惠园：是 | L107: CommonStatus.DISABLE | M107: 三级 | N107: 是 | O107: 李学玲
A108: 双凤桥街道 | B108: 重庆市渝北区金色童年幼儿园 | C108: 金色童年幼儿园 | D108: 金色童年 | E108: 金色童年 | F108: EducationStage.PRESCHOOL_STAGE | G108: UrbanRuralType.URBAN | H108: OrgFundSource.PRIVATE | J108: 渝北区双凤桥街道翔宇路29号2幢2-2 | K108: 等级三级，是否普惠园：是 | L108: CommonStatus.DISABLE | M108: 三级 | N108: 是 | O108: 石珈萌
A109: 双凤桥街道 | B109: 重庆市渝北区双凤桥童心幼儿园 | C109: 双凤桥童心幼儿园 | D109: 双凤桥童心 | E109: 双凤桥童心 | F109: EducationStage.PRESCHOOL_STAGE | G109: UrbanRuralType.URBAN | H109: OrgFundSource.PRIVATE | J109: 渝北区双凤桥街道港汇路99号附138号 | K109: 等级三级，是否普惠园：是 | L109: CommonStatus.DISABLE | M109: 三级 | N109: 是 | O109: 陈世玉
A110: 双凤桥街道 | B110: 重庆市渝北区北城空港大地幼儿园 | C110: 北城空港大地幼儿园 | D110: 北城空港大地 | E110: 北城空港大地 | F110: EducationStage.PRESCHOOL_STAGE | G110: UrbanRuralType.URBAN | H110: OrgFundSource.PRIVATE | J110: 渝北区双凤桥街道观河路30号 | K110: 等级二级，是否普惠园：是 | L110: CommonStatus.DISABLE | M110: 二级 | N110: 是 | O110: 王俊婵
A111: 双凤桥街道 | B111: 重庆市渝北区桃源居悠乐蒙幼儿园 | C111: 桃源居悠乐蒙幼儿园 | D111: 桃源居悠乐蒙 | E111: 桃源居悠乐蒙 | F111: EducationStage.PRESCHOOL_STAGE | G111: UrbanRuralType.URBAN | H111: OrgFundSource.PRIVATE | J111: 渝北区桃源大道409号 | K111: 等级一级，是否普惠园：是 | L111: CommonStatus.DISABLE | M111: 一级 | N111: 是 | O111: 胡世露
A112: 双凤桥街道 | B112: 重庆市渝北区双凤桥街道金辰幼儿园 | C112: 双凤桥街道金辰幼儿园 | D112: 双凤桥街道金辰 | E112: 双凤桥街道金辰 | F112: EducationStage.PRESCHOOL_STAGE | G112: UrbanRuralType.URBAN | H112: OrgFundSource.PRIVATE | J112: 渝北区空港大道99号35栋 | K112: 等级一级，是否普惠园：是 | L112: CommonStatus.DISABLE | M112: 一级 | N112: 是 | O112: 肖诗红
A113: 双凤桥街道 | B113: 重庆市渝北区君君幼儿园 | C113: 君君幼儿园 | D113: 君君 | E113: 君君 | F113: EducationStage.PRESCHOOL_STAGE | G113: UrbanRuralType.URBAN | H113: OrgFundSource.PRIVATE | J113: 渝北区桃源大道106号 | K113: 等级一级，是否普惠园：是 | L113: CommonStatus.DISABLE | M113: 一级 | N113: 是 | O113: 喻维萍
A114: 双凤桥街道 | B114: 重庆市渝北区红树林幼儿园 | C114: 红树林幼儿园 | D114: 红树林 | E114: 红树林 | F114: EducationStage.PRESCHOOL_STAGE | G114: UrbanRuralType.URBAN | H114: OrgFundSource.PRIVATE | J114: 渝北区桃源大道333号红树林公园处 | K114: 等级一级，是否普惠园：是 | L114: CommonStatus.DISABLE | M114: 一级 | N114: 是 | O114: 姜祥梅
A115: 回兴街道 | B115: 重庆市渝北区黄桷坪幼儿园 | C115: 黄桷坪幼儿园 | D115: 黄桷坪 | E115: 黄桷坪 | F115: EducationStage.PRESCHOOL_STAGE | G115: UrbanRuralType.URBAN | H115: OrgFundSource.PUBLIC | J115: 渝北区回兴街道松鹤路临1699号 | K115: 等级一级，是否普惠园：是 | L115: CommonStatus.DISABLE | M115: 一级 | N115: 是 | O115: 唐春梅
A116: 回兴街道 | B116: 重庆市渝北区黄桷坪幼儿园心海园 | C116: 黄桷坪幼儿园心海园 | D116: 黄桷坪心海园 | E116: 黄桷坪心海园 | F116: EducationStage.PRESCHOOL_STAGE | G116: UrbanRuralType.URBAN | H116: OrgFundSource.PUBLIC | J116: 渝北区回兴街道双湖路398号 | K116: 等级预一级，是否普惠园：是 | L116: CommonStatus.DISABLE | M116: 预一级 | N116: 是
A117: 回兴街道 | B117: 重庆市渝北区回兴小学校附属幼儿园 | C117: 回兴小学校附属幼儿园 | D117: 回兴小学校附属 | E117: 回兴小学校附属 | F117: EducationStage.PRESCHOOL_STAGE | G117: UrbanRuralType.URBAN | H117: OrgFundSource.PUBLIC | J117: 渝北区回兴街道宝圣东路67号 | K117: 等级二级，是否普惠园：是 | L117: CommonStatus.DISABLE | M117: 二级 | N117: 是 | O117: 段晓飞
A118: 回兴街道 | B118: 重庆市渝北区双湖小学校附属幼儿园 | C118: 双湖小学校附属幼儿园 | D118: 双湖小学校附属 | E118: 双湖小学校附属 | F118: EducationStage.PRESCHOOL_STAGE | G118: UrbanRuralType.URBAN | H118: OrgFundSource.PUBLIC | J118: 渝北区回兴街道双湖支路33号 | K118: 等级二级，是否普惠园：是 | L118: CommonStatus.DISABLE | M118: 二级 | N118: 是 | O118: 吴成元
A119: 回兴街道 | B119: 重庆市渝北区锦华学校附属幼儿园 | C119: 锦华学校附属幼儿园 | D119: 锦华学校附属 | E119: 锦华学校附属 | F119: EducationStage.PRESCHOOL_STAGE | G119: UrbanRuralType.URBAN | H119: OrgFundSource.PUBLIC | J119: 渝北区锦华路2号 | K119: 等级二级，是否普惠园：是 | L119: CommonStatus.DISABLE | M119: 二级 | N119: 是 | O119: 胡明健
A120: 回兴街道 | B120: 重庆市渝北区申佳幼儿园 | C120: 申佳幼儿园 | D120: 申佳 | E120: 申佳 | F120: EducationStage.PRESCHOOL_STAGE | G120: UrbanRuralType.URBAN | H120: OrgFundSource.PRIVATE | J120: 渝北区回兴街道银梭大道1号10栋 | K120: 等级一级，是否普惠园：是 | L120: CommonStatus.DISABLE | M120: 一级 | N120: 是 | O120: 杨开英
A121: 回兴街道 | B121: 重庆市渝北区中艺南方玫瑰城幼儿园 | C121: 中艺南方玫瑰城幼儿园 | D121: 中艺南方玫瑰城 | E121: 中艺南方玫瑰城 | F121: EducationStage.PRESCHOOL_STAGE | G121: UrbanRuralType.URBAN | H121: OrgFundSource.PRIVATE | J121: 渝北区回兴街道南方玫瑰城C区332-3地块黛瑰苑 | K121: 等级一级，是否普惠园：是 | L121: CommonStatus.DISABLE | M121: 一级 | N121: 是 | O121: 陈娇
A122: 回兴街道 | B122: 重庆市渝北区山语间幼儿园 | C122: 山语间幼儿园 | D122: 山语间 | E122: 山语间 | F122: EducationStage.PRESCHOOL_STAGE | G122: UrbanRuralType.URBAN | H122: OrgFundSource.PRIVATE | J122: 渝北区高岩路242号山语间幼儿园 | K122: 等级一级，是否普惠园：是 | L122: CommonStatus.DISABLE | M122: 一级 | N122: 是 | O122: 赵梅
A123: 回兴街道 | B123: 重庆市渝北区家纺城大地幼儿园 | C123: 家纺城大地幼儿园 | D123: 家纺城大地 | E123: 家纺城大地 | F123: EducationStage.PRESCHOOL_STAGE | G123: UrbanRuralType.URBAN | H123: OrgFundSource.PRIVATE | J123: 渝北区回兴服装城大道48号B1栋 | K123: 等级一级，是否普惠园：是 | L123: CommonStatus.DISABLE | M123: 一级 | N123: 是 | O123: 付英凤
A124: 回兴街道 | B124: 重庆市渝北区启智幼儿园 | C124: 启智幼儿园 | D124: 启智 | E124: 启智 | F124: EducationStage.PRESCHOOL_STAGE | G124: UrbanRuralType.URBAN | H124: OrgFundSource.PRIVATE | J124: 渝北区回兴服装城大道翠屏路1号附6号 | K124: 等级二级，是否普惠园：是 | L124: CommonStatus.DISABLE | M124: 二级 | N124: 是 | O124: 吴昌艳
A125: 回兴街道 | B125: 重庆市渝北区迪乐星光幼儿园 | C125: 迪乐星光幼儿园 | D125: 迪乐星光 | E125: 迪乐星光 | F125: EducationStage.PRESCHOOL_STAGE | G125: UrbanRuralType.URBAN | H125: OrgFundSource.PRIVATE | J125: 渝北区回兴街道宝圣东路269号1栋 | K125: 等级二级，是否普惠园：是 | L125: CommonStatus.DISABLE | M125: 二级 | N125: 是 | O125: 何花
A126: 回兴街道 | B126: 重庆市渝北区乡间城七色花幼儿园 | C126: 乡间城七色花幼儿园 | D126: 乡间城七色花 | E126: 乡间城七色花 | F126: EducationStage.PRESCHOOL_STAGE | G126: UrbanRuralType.URBAN | H126: OrgFundSource.PRIVATE | J126: 渝北区宝桐一路555号 | K126: 等级二级，是否普惠园：是 | L126: CommonStatus.DISABLE | M126: 二级 | N126: 是 | O126: 程利
A127: 回兴街道 | B127: 重庆市渝北区回兴龙凤幼儿园 | C127: 回兴龙凤幼儿园 | D127: 回兴龙凤 | E127: 回兴龙凤 | F127: EducationStage.PRESCHOOL_STAGE | G127: UrbanRuralType.URBAN | H127: OrgFundSource.PRIVATE | J127: 渝北区回兴街道高岩路172号 | K127: 等级二级，是否普惠园：是 | L127: CommonStatus.DISABLE | M127: 二级 | N127: 是 | O127: 刘莹
A128: 回兴街道 | B128: 重庆市渝北区木鱼石幼儿园 | C128: 木鱼石幼儿园 | D128: 木鱼石 | E128: 木鱼石 | F128: EducationStage.PRESCHOOL_STAGE | G128: UrbanRuralType.URBAN | H128: OrgFundSource.PRIVATE | J128: 渝北区回兴街道双湖路木鱼石花园社区服务楼 | K128: 等级二级，是否普惠园：是 | L128: CommonStatus.DISABLE | M128: 二级 | N128: 是 | O128: 尹莎莎
A129: 回兴街道 | B129: 重庆市渝北区迪乐家纺城幼儿园 | C129: 迪乐家纺城幼儿园 | D129: 迪乐家纺城 | E129: 迪乐家纺城 | F129: EducationStage.PRESCHOOL_STAGE | G129: UrbanRuralType.URBAN | H129: OrgFundSource.PRIVATE | J129: 渝北区回兴街道服装城大道48号国际家纺城小区A3栋 | K129: 等级二级，是否普惠园：是 | L129: CommonStatus.DISABLE | M129: 二级 | N129: 是 | O129: 王承雪
A130: 回兴街道 | B130: 重庆市渝北区明天幼儿园 | C130: 明天幼儿园 | D130: 明天 | E130: 明天 | F130: EducationStage.PRESCHOOL_STAGE | G130: UrbanRuralType.URBAN | H130: OrgFundSource.PRIVATE | J130: 渝北区回兴街道双湖路441号E栋商场 | K130: 等级二级，是否普惠园：是 | L130: CommonStatus.DISABLE | M130: 二级 | N130: 是 | O130: 戈徐英
A131: 回兴街道 | B131: 重庆市渝北区回兴七彩阳光幼儿园 | C131: 回兴七彩阳光幼儿园 | D131: 回兴七彩阳光 | E131: 回兴七彩阳光 | F131: EducationStage.PRESCHOOL_STAGE | G131: UrbanRuralType.URBAN | H131: OrgFundSource.PRIVATE | J131: 渝北区一碗水前街18号银海峰景小区内 | K131: ="等级"&M131&"，"&"是否普惠园："&N131 -> 等级二级，是否普惠园：是 | L131: CommonStatus.DISABLE | M131: 二级 | N131: 是 | O131: 谭孟秋
A132: 回兴街道 | B132: 重庆市渝北区香榆园幼儿园 | C132: 香榆园幼儿园 | D132: 香榆园 | E132: 香榆园 | F132: EducationStage.PRESCHOOL_STAGE | G132: UrbanRuralType.URBAN | H132: OrgFundSource.PRIVATE | J132: 渝北区回兴街道康城路3号附11-16号 | K132: 等级二级，是否普惠园：是 | L132: CommonStatus.DISABLE | M132: 二级 | N132: 是 | O132: 张兰英
A133: 回兴街道 | B133: 重庆市渝北区水木年华贝乐坊幼儿园 | C133: 水木年华贝乐坊幼儿园 | D133: 水木年华贝乐坊 | E133: 水木年华贝乐坊 | F133: EducationStage.PRESCHOOL_STAGE | G133: UrbanRuralType.URBAN | H133: OrgFundSource.PRIVATE | J133: 渝北区兴科大道299号附15号 | K133: 等级二级，是否普惠园：是 | L133: CommonStatus.DISABLE | M133: 二级 | N133: 是 | O133: 郑淑月
A134: 回兴街道 | B134: 重庆市渝北区回兴满艺幼儿园 | C134: 回兴满艺幼儿园 | D134: 回兴满艺 | E134: 回兴满艺 | F134: EducationStage.PRESCHOOL_STAGE | G134: UrbanRuralType.URBAN | H134: OrgFundSource.PRIVATE | J134: 渝北区回兴凯歌一支路99号鹭岭尚品4-1-1013 | K134: 等级二级，是否普惠园：是 | L134: CommonStatus.DISABLE | M134: 二级 | N134: 是 | O134: 曾华蓉
A135: 回兴街道 | B135: 重庆市渝北区吉的堡花屿城幼儿园 | C135: 吉的堡花屿城幼儿园 | D135: 吉的堡花屿城 | E135: 吉的堡花屿城 | F135: EducationStage.PRESCHOOL_STAGE | G135: UrbanRuralType.URBAN | H135: OrgFundSource.PRIVATE | J135: 渝北区回兴街道复地花屿城C区21栋 | K135: 等级一级，是否普惠园：是 | L135: CommonStatus.DISABLE | M135: 一级 | N135: 是 | O135: 刘媛媛
